Workbook

Sheet Instructions
A1: ='DNSP Inputs O & M'!$A$3 -> CitiPower
A3: Instructions
A5: This model is to be used for the setting of Public Lighting Tariffs for the Regulatory Period 2016 to 2020 based on forecast inflation rates and Real Pre Tax WACC.
A7: Distributor data input fields are shaded | C7: and located in tabs "DNSP Inputs General" , "DNSP Inputs O & M" and "DNSP Inputs Capex"
A8: NOTE : All Distributor data input fields have been populated with test data in this model.
A12: This model will also to be used for the annual Public Lighting Tariff Approvals in the Regulatory Period 2016 to 2020 based on actual inflation rates and Real Pre Tax WACC.
H70: =G70 -> 0 | I70: =H70 -> 0 | J70: =I70 -> 0 | K70: =J70 -> 0 | L70: =K70 -> 0

Sheet DNSP Inputs General
A1: ='DNSP Inputs O & M'!$A$3 -> CitiPower
D2: 2009 | E2: 2010 | F2: 2011 | G2: 2012 | H2: 2013 | I2: 2014 | J2: 2015 | K2: 2016 | L2: 2017 | M2: 2018 | N2: 2019 | O2: 2020
A3: Capital Expenditue | D3: Nominal $ - Actual | J3: Real 2015 $ - Forecast
A4: (Net of customer contributions)
A6: Poles and Brackets | D6: ='[1]ACS - General'!D$6 -> 105950.2047 | E6: ='[1]ACS - General'!E$6 -> 11736.16167 | F6: ='[1]ACS - General'!F$6 -> 10313.31404 | G6: ='[1]ACS - General'!G$6 -> 12803.86436 | H6: ='[1]ACS - General'!H$6 -> -44327.21715 | I6: ='[1]ACS - General'!I$6 -> 17361.83832 | J6: ='[1]ACS - General'!J$6 -> 11317.4464 | K6: ='Capex 2016-2020'!B22 -> 3553.938686 | L6: ='Capex 2016-2020'!C22 -> 3602.630118 | M6: ='Capex 2016-2020'!D22 -> 3649.435199 | N6: ='Capex 2016-2020'!E22 -> 3696.903283 | O6: ='Capex 2016-2020'!F22 -> 3745.374614
A8: Existing Lights
A9: Luminaires | D9: ='[1]ACS - General'!D9 -> 1162738.205 | E9: ='[1]ACS - General'!E9 -> 137572.3318 | F9: ='[1]ACS - General'!F9 -> 118406.0629 | G9: ='[1]ACS - General'!G9 -> 201240.3768 | H9: ='[1]ACS - General'!H9 -> -504639.4653 | I9: ='[1]ACS - General'!I9 -> 741036.4368 | J9: ='[1]ACS - General'!J9 -> 483050.2394 | K9: ='Capex 2016-2020'!B12-'Capex 2016-2020'!B29 -> 7786.435878 | L9: ='Capex 2016-2020'!C12-'Capex 2016-2020'!C29 -> -119789.3985 | M9: ='Capex 2016-2020'!D12-'Capex 2016-2020'!D29 -> 97433.64541 | N9: ='Capex 2016-2020'!E12-'Capex 2016-2020'!E29 -> 103125.0951 | O9: ='Capex 2016-2020'!F12-'Capex 2016-2020'!F29 -> 107901.471
A11: Energy Efficient Lights
A12: Luminaires and Ballasts | D12: ='[1]ACS - General'!D12 -> 558952.6223 | E12: ='[1]ACS - General'!E12 -> 66133.90294 | F12: ='[1]ACS - General'!F12 -> 56920.27584 | G12: ='[1]ACS - General'!G12 -> 96740.46649 | H12: ='[1]ACS - General'!H12 -> -242590.7666 | I12: ='[1]ACS - General'!I12 -> 356231.7449 | J12: ='[1]ACS - General'!J12 -> 232212.3733 | K12: ='Capex 2016-2020'!B17 -> 70635.14175 | L12: ='Capex 2016-2020'!C17 -> 79917.29207 | M12: ='Capex 2016-2020'!D17 -> 81089.28274 | N12: ='Capex 2016-2020'!E17 -> 82061.52372 | O12: ='Capex 2016-2020'!F17 -> 82992.42338
A14: Total Net Capex | D14: =SUM(D6,D9,D12) -> 1827641.032 | E14: =SUM(E6,E9,E12) -> 215442.3964 | F14: 185639.6528 | G14: 310784.7077 | H14: -791557.4491 | I14: 1114630.02 | J14: 726580.0591 | K14: 81975.51631 | L14: -36269.47631 | M14: 182172.3633 | N14: 188883.5221 | O14: 194639.269
F17: 2011 | G17: 2012 | H17: 2013 | I17: 2014 | J17: 2015 | K17: 2016 | L17: 2017 | M17: 2018 | N17: 2019 | O17: 2020
A18: Operating and Maintenance Expenditure | F18: Nominal $ - Actual | J18: Real 2015 $ - Forecast
A20: Total O & M | F20: ='[1]ACS - General'!F20 -> 1651025.301 | G20: ='[1]ACS - General'!G20 -> 2873699.753 | H20: ='[1]ACS - General'!H20 -> 2605883.681 | I20: ='[1]ACS - General'!I20 -> 2546123.231 | J20: ='[1]ACS - General'!J20 -> 2419772.133 | K20: ='Cashflow Summary'!K85 -> 2554178.043 | L20: ='Cashflow Summary'!L85 -> 2547976.147 | M20: ='Cashflow Summary'!M85 -> 2566068.605 | N20: ='Cashflow Summary'!N85 -> 2581357.096 | O20: ='Cashflow Summary'!O85 -> 2602573.682
A24: WACC
A25: Regulatoy Period | K25: 2016 | L25: 2017 | M25: 2018 | N25: 2019 | O25: 2020
A26: Real Pre Tax WACC | K26: ='[1]ACS - General'!K26 -> 0.05705470052 | L26: ='[1]ACS - General'!L26 -> 0.05705470052 | M26: ='[1]ACS - General'!M26 -> 0.05705470052 | N26: ='[1]ACS - General'!N26 -> 0.05705470052 | O26: ='[1]ACS - General'!O26 -> 0.05705470052
A29: CPI Index | B29: CPI Index | C29: Actual CPI | D29: F'cast CPI
A30: 2014-09-30 | B30: ='[1]ACS - General'!B30 -> 106.4
A31: 2015-09-30 | C31: =IF(B31="","",B31/B30-1) ->  | D31: ='[1]ACS - General'!D31 -> 0.026
A32: 2016-09-30 | D32: ='[1]ACS - General'!D32 -> 0.026
A33: 2017-09-30 | D33: ='[1]ACS - General'!D33 -> 0.026
A34: 2018-09-30 | D34: ='[1]ACS - General'!D34 -> 0.026
A35: 2019-09-30 | D35: ='[1]ACS - General'!D35 -> 0.026
A38: Number Of Lights | E38: =J$2 -> 2015 | F38: =F$2 -> 2011 | G38: 2012 | H38: 2013 | I38: 2014 | J38: 2015 | K38: 2016 | L38: 2017 | M38: 2018 | N38: 2019 | O38: 2020 | Q38: ='[1]ACS - General'!Q39 -> 2004
E39: Actual Prices | F39: Actual Volumes | J39: Forecast Volumes | Q39: ='[1]ACS - General'!Q40 -> Assumed
A40: Existing Lights | B40: Reference Light | D40: Price Factor
A41: Mercury vapour 80 watt | B41: ='[1]ACS - General'!B42 -> Mercury vapour 80 watt | D41: ='[1]ACS - General'!D42 -> 1 | E41: ='[1]ACS - General'!E42 -> 69.0655462 | I41: ='[1]ACS - General'!I42 -> 6318.667194 | J41: ='[1]ACS - General'!J42 -> 5140.433267 | K41: ='[1]ACS - General'!K42 -> 4260.819549 | L41: ='[1]ACS - General'!L42 -> 2366.78827 | M41: ='[1]ACS - General'!M42 -> 2120.539938 | N41: ='[1]ACS - General'!N42 -> 1899.912082 | O41: ='[1]ACS - General'!O42 -> 1702.239063 | Q41: ='[1]ACS - General'!Q42 -> 19481.60401
A42: Sodium high pressure 150 watt | B42: ='[1]ACS - General'!B43 -> Sodium high pressure 150 watt | D42: ='[1]ACS - General'!D43 -> 1 | E42: ='[1]ACS - General'!E43 -> 117.6548763 | I42: ='[1]ACS - General'!I43 -> 10738.9786 | J42: ='[1]ACS - General'!J43 -> 10792.43555 | K42: ='[1]ACS - General'!K43 -> 10846.15859 | L42: ='[1]ACS - General'!L43 -> 10900.14906 | M42: ='[1]ACS - General'!M43 -> 10954.40828 | N42: ='[1]ACS - General'!N43 -> 11008.9376 | O42: ='[1]ACS - General'!O43 -> 11063.73836 | Q42: ='[1]ACS - General'!Q43 -> 10464.53443
A43: Sodium high pressure 250 watt | B43: ='[1]ACS - General'!B44 -> Sodium high pressure 250 watt | D43: ='[1]ACS - General'!D44 -> 1 | E43: ='[1]ACS - General'!E44 -> 119.3723261 | I43: ='[1]ACS - General'!I44 -> 3524.357374 | J43: ='[1]ACS - General'!J44 -> 3589.655017 | K43: ='[1]ACS - General'!K44 -> 3656.162464 | L43: ='[1]ACS - General'!L44 -> 3723.90213 | M43: ='[1]ACS - General'!M44 -> 3792.896845 | N43: ='[1]ACS - General'!N44 -> 3863.169861 | O43: ='[1]ACS - General'!O44 -> 3934.744863 | Q43: ='[1]ACS - General'!Q44 -> 3104.712525
A44: Fluorescent 20 watt | B44: ='[1]ACS - General'!B45 -> Mercury vapour 80 watt | D44: ='[1]ACS - General'!D45 -> 1.99 | E44: ='[1]ACS - General'!E45 -> 137.4404369 | I44: ='[1]ACS - General'!I45 -> 5 | J44: ='[1]ACS - General'!J45 -> 5 | K44: ='[1]ACS - General'!K45 -> 5 | L44: ='[1]ACS - General'!L45 -> 5 | M44: ='[1]ACS - General'!M45 -> 5 | N44: ='[1]ACS - General'!N45 -> 5 | O44: ='[1]ACS - General'!O45 -> 5 | Q44: ='[1]ACS - General'!Q45 -> 2.371794872
A45: Fluorescent 40 watt | B45: ='[1]ACS - General'!B46 -> Mercury vapour 80 watt | D45: ='[1]ACS - General'!D46 -> 2 | E45: ='[1]ACS - General'!E46 -> 136.6390086 | I45: ='[1]ACS - General'!I46 -> 0 | J45: ='[1]ACS - General'!J46 -> 0 | K45: ='[1]ACS - General'!K46 -> 0 | L45: ='[1]ACS - General'!L46 -> 0 | M45: ='[1]ACS - General'!M46 -> 0 | N45: ='[1]ACS - General'!N46 -> 0 | O45: ='[1]ACS - General'!O46 -> 0 | Q45: ='[1]ACS - General'!Q46 -> 0
A46: Mercury vapour 50 watt | B46: ='[1]ACS - General'!B47 -> Mercury vapour 80 watt | D46: ='[1]ACS - General'!D47 -> 1.42 | E46: ='[1]ACS - General'!E47 -> 98.0730756 | I46: ='[1]ACS - General'!I47 -> 200 | J46: ='[1]ACS - General'!J47 -> 186.9651807 | K46: ='[1]ACS - General'!K47 -> 174.7798941 | L46: ='[1]ACS - General'!L47 -> 163.3887724 | M46: ='[1]ACS - General'!M47 -> 152.7400568 | N46: ='[1]ACS - General'!N47 -> 142.7853617 | O46: ='[1]ACS - General'!O47 -> 133.4794548 | Q46: ='[1]ACS - General'!Q47 -> 316.362847
A47: Mercury vapour 125 watt | B47: ='[1]ACS - General'!B48 -> Mercury vapour 80 watt | D47: ='[1]ACS - General'!D48 -> 1.58 | E47: ='[1]ACS - General'!E48 -> 109.123563 | I47: ='[1]ACS - General'!I48 -> 1020 | J47: ='[1]ACS - General'!J48 -> 963.3741231 | K47: ='[1]ACS - General'!K48 -> 909.8918638 | L47: ='[1]ACS - General'!L48 -> 859.3787024 | M47: ='[1]ACS - General'!M48 -> 811.6698076 | N47: ='[1]ACS - General'!N48 -> 766.6094992 | O47: ='[1]ACS - General'!O48 -> 724.0507393 | Q47: ='[1]ACS - General'!Q48 -> 1812.78045
A48: Mercury vapour 250 watt | B48: ='[1]ACS - General'!B49 -> Sodium high pressure 250 watt | D48: ='[1]ACS - General'!D49 -> 0.84 | E48: ='[1]ACS - General'!E49 -> 100.272754 | I48: ='[1]ACS - General'!I49 -> 550 | J48: ='[1]ACS - General'!J49 -> 500.7391991 | K48: ='[1]ACS - General'!K49 -> 455.8904464 | L48: ='[1]ACS - General'!L49 -> 415.0585763 | M48: ='[1]ACS - General'!M49 -> 377.8838165 | N48: ='[1]ACS - General'!N49 -> 344.0386175 | O48: ='[1]ACS - General'!O49 -> 313.2247669 | Q48: ='[1]ACS - General'!Q49 -> 1064.934183
A49: Mercury vapour 400 watt | B49: ='[1]ACS - General'!B50 -> Sodium high pressure 250 watt | D49: ='[1]ACS - General'!D50 -> 0.85 | E49: ='[1]ACS - General'!E50 -> 101.4664772 | I49: ='[1]ACS - General'!I50 -> 268 | J49: ='[1]ACS - General'!J50 -> 247.4003231 | K49: ='[1]ACS - General'!K50 -> 228.3840295 | L49: ='[1]ACS - General'!L50 -> 210.829413 | M49: ='[1]ACS - General'!M50 -> 194.6241228 | N49: ='[1]ACS - General'!N50 -> 179.6644436 | O49: ='[1]ACS - General'!O50 -> 165.8546321 | Q49: ='[1]ACS - General'!Q50 -> 409.0716928
A50: Mercury vapour 700 watt | B50: ='[1]ACS - General'!B51 -> Sodium high pressure 250 watt | D50: ='[1]ACS - General'!D51 -> 1.25 | E50: ='[1]ACS - General'!E51 -> 149.2154077 | I50: ='[1]ACS - General'!I51 -> 0 | J50: ='[1]ACS - General'!J51 -> 0 | K50: ='[1]ACS - General'!K51 -> 0 | L50: ='[1]ACS - General'!L51 -> 0 | M50: ='[1]ACS - General'!M51 -> 0 | N50: ='[1]ACS - General'!N51 -> 0 | O50: ='[1]ACS - General'!O51 -> 0 | Q50: ='[1]ACS - General'!Q51 -> 0
A51: Sodium high pressure 70 watt | B51: ='[1]ACS - General'!B52 -> Mercury vapour 80 watt | D51: ='[1]ACS - General'!D52 -> 2.12 | E51: ='[1]ACS - General'!E52 -> 146.4189579 | I51: ='[1]ACS - General'!I52 -> 180 | J51: ='[1]ACS - General'!J52 -> 177.4964115 | K51: ='[1]ACS - General'!K52 -> 175.0276449 | L51: ='[1]ACS - General'!L52 -> 172.593216 | M51: ='[1]ACS - General'!M52 -> 170.1926472 | N51: ='[1]ACS - General'!N52 -> 167.8254674 | O51: ='[1]ACS - General'!O52 -> 165.4912123 | Q51: ='[1]ACS - General'!Q52 -> 201.7036113
A52: Sodium high pressure 100 watt | B52: ='[1]ACS - General'!B53 -> Sodium high pressure 150 watt | D52: ='[1]ACS - General'!D53 -> 1.02 | E52: ='[1]ACS - General'!E53 -> 120.0079738 | I52: ='[1]ACS - General'!I53 -> 265.827027 | J52: ='[1]ACS - General'!J53 -> 256.2785708 | K52: ='[1]ACS - General'!K53 -> 247.0730932 | L52: ='[1]ACS - General'!L53 -> 238.1982747 | M52: ='[1]ACS - General'!M53 -> 229.642238 | N52: ='[1]ACS - General'!N53 -> 221.3935324 | O52: ='[1]ACS - General'!O53 -> 213.4411188 | Q52: ='[1]ACS - General'!Q53 -> 322.4391472
A53: Sodium high pressure 220 watt | B53: ='[1]ACS - General'!B54 -> Sodium high pressure 250 watt | D53: ='[1]ACS - General'!D54 -> 1.002 | E53: ='[1]ACS - General'!E54 -> 119.6110708 | I53: ='[1]ACS - General'!I54 -> 1766 | J53: ='[1]ACS - General'!J54 -> 1708.868654 | K53: ='[1]ACS - General'!K54 -> 1653.585548 | L53: ='[1]ACS - General'!L54 -> 1600.090888 | M53: ='[1]ACS - General'!M54 -> 1548.326819 | N53: ='[1]ACS - General'!N54 -> 1498.237354 | O53: ='[1]ACS - General'!O54 -> 1449.768319 | Q53: ='[1]ACS - General'!Q54 -> 2214.998938
A54: Sodium high pressure 360 watt | B54: ='[1]ACS - General'!B55 -> Sodium high pressure 250 watt | D54: ='[1]ACS - General'!D55 -> 1.02 | E54: ='[1]ACS - General'!E55 -> 121.7597727 | I54: ='[1]ACS - General'!I55 -> 216 | J54: ='[1]ACS - General'!J55 -> 214.5534044 | K54: ='[1]ACS - General'!K55 -> 213.1164969 | L54: ='[1]ACS - General'!L55 -> 211.6892127 | M54: ='[1]ACS - General'!M55 -> 210.2714873 | N54: ='[1]ACS - General'!N55 -> 208.8632567 | O54: ='[1]ACS - General'!O55 -> 207.4644573 | Q54: ='[1]ACS - General'!Q55 -> 270.695279
A55: Sodium high pressure 400 watt | B55: ='[1]ACS - General'!B56 -> Sodium high pressure 250 watt | D55: ='[1]ACS - General'!D56 -> 1.1 | E55: ='[1]ACS - General'!E56 -> 131.3095587 | I55: ='[1]ACS - General'!I56 -> 205 | J55: ='[1]ACS - General'!J56 -> 208.7389874 | K55: ='[1]ACS - General'!K56 -> 212.54617 | L55: ='[1]ACS - General'!L56 -> 216.4227917 | M55: ='[1]ACS - General'!M56 -> 220.370119 | N55: ='[1]ACS - General'!N56 -> 224.3894414 | O55: ='[1]ACS - General'!O56 -> 228.4820721 | Q55: ='[1]ACS - General'!Q56 -> 67.08512979
A56: Sodium high pressure 1000 watt | B56: ='[1]ACS - General'!B57 -> Sodium high pressure 250 watt | D56: ='[1]ACS - General'!D57 -> 1.98 | E56: ='[1]ACS - General'!E57 -> 236.3572057 | I56: ='[1]ACS - General'!I57 -> 0 | J56: ='[1]ACS - General'!J57 -> 0 | K56: ='[1]ACS - General'!K57 -> 0 | L56: ='[1]ACS - General'!L57 -> 0 | M56: ='[1]ACS - General'!M57 -> 0 | N56: ='[1]ACS - General'!N57 -> 0 | O56: ='[1]ACS - General'!O57 -> 0 | Q56: ='[1]ACS - General'!Q57 -> 0
A57: Metal halide 70 watt | B57: ='[1]ACS - General'!B58 -> Mercury vapour 80 watt | D57: ='[1]ACS - General'!D58 -> 2.12 | E57: ='[1]ACS - General'!E58 -> 225.8443361 | I57: ='[1]ACS - General'!I58 -> 215.2227642 | J57: ='[1]ACS - General'!J58 -> 224.1278302 | K57: ='[1]ACS - General'!K58 -> 233.4013526 | L57: ='[1]ACS - General'!L58 -> 243.0585766 | M57: ='[1]ACS - General'!M58 -> 253.1153783 | N57: ='[1]ACS - General'!N58 -> 263.5882907 | O57: ='[1]ACS - General'!O58 -> 274.4945307 | Q57: ='[1]ACS - General'!Q58 -> 181.896748
A58: Metal halide 100 watt | B58: ='[1]ACS - General'!B59 -> Sodium high pressure 150 watt | D58: ='[1]ACS - General'!D59 -> 1.57 | E58: ='[1]ACS - General'!E59 -> 184.7181558 | I58: ='[1]ACS - General'!I59 -> 59 | J58: ='[1]ACS - General'!J59 -> 54.56780454 | K58: ='[1]ACS - General'!K59 -> 50.46856428 | L58: ='[1]ACS - General'!L59 -> 46.67726697 | M58: ='[1]ACS - General'!M59 -> 43.17077933 | N58: ='[1]ACS - General'!N59 -> 39.92770591 | O58: ='[1]ACS - General'!O59 -> 36.9282585 | Q58: ='[1]ACS - General'!Q59 -> 99.05728245
A59: Metal halide 150 watt | B59: ='[1]ACS - General'!B60 -> Sodium high pressure 150 watt | D59: ='[1]ACS - General'!D60 -> 1.58 | E59: ='[1]ACS - General'!E60 -> 185.8947045 | I59: ='[1]ACS - General'!I60 -> 72.72222222 | J59: ='[1]ACS - General'!J60 -> 69.6437237 | K59: ='[1]ACS - General'!K60 -> 66.69554509 | L59: ='[1]ACS - General'!L60 -> 63.87216964 | M59: ='[1]ACS - General'!M60 -> 61.16831416 | N59: ='[1]ACS - General'!N60 -> 58.57891908 | O59: ='[1]ACS - General'!O60 -> 56.09913903 | Q59: ='[1]ACS - General'!Q60 -> 100.4152047
A60: Metal halide 250 watt | B60: ='[1]ACS - General'!B61 -> Sodium high pressure 250 watt | D60: ='[1]ACS - General'!D61 -> 1.2 | E60: ='[1]ACS - General'!E61 -> 143.2467914 | I60: ='[1]ACS - General'!I61 -> 296 | J60: ='[1]ACS - General'!J61 -> 337.4593183 | K60: ='[1]ACS - General'!K61 -> 384.7256469 | L60: ='[1]ACS - General'!L61 -> 438.6123463 | M60: ='[1]ACS - General'!M61 -> 500.0467006 | N60: ='[1]ACS - General'!N61 -> 570.0858739 | O60: ='[1]ACS - General'!O61 -> 649.9351026 | Q60: ='[1]ACS - General'!Q61 -> 85.60032688
A61: Metal halide 400 watt | B61: ='[1]ACS - General'!B62 -> Sodium high pressure 250 watt | D61: ='[1]ACS - General'!D62 -> 1.2 | E61: ='[1]ACS - General'!E62 -> 143.2467914 | I61: ='[1]ACS - General'!I62 -> 944.2753067 | J61: ='[1]ACS - General'!J62 -> 956.8638638 | K61: ='[1]ACS - General'!K62 -> 969.6202445 | L61: ='[1]ACS - General'!L62 -> 982.5466862 | M61: ='[1]ACS - General'!M62 -> 995.6454561 | N61: ='[1]ACS - General'!N62 -> 1008.918852 | O61: ='[1]ACS - General'!O62 -> 1022.369201 | Q61: ='[1]ACS - General'!Q62 -> 869.041344
A62: Metal halide 1000 watt | B62: ='[1]ACS - General'!B63 -> Sodium high pressure 250 watt | D62: ='[1]ACS - General'!D63 -> 1.79 | E62: ='[1]ACS - General'!E63 -> 213.6764638 | I62: ='[1]ACS - General'!I63 -> 0 | J62: ='[1]ACS - General'!J63 -> 0 | K62: ='[1]ACS - General'!K63 -> 0 | L62: ='[1]ACS - General'!L63 -> 0 | M62: ='[1]ACS - General'!M63 -> 0 | N62: ='[1]ACS - General'!N63 -> 0 | O62: ='[1]ACS - General'!O63 -> 0 | Q62: ='[1]ACS - General'!Q63 -> 0
A65: Total Existing Lights | I65: =SUM(I41:I64) -> 26845.05049 | J65: 25634.60122 | K65: 24743.34714 | L65: 22858.25635 | M65: 22641.71281 | N65: 22471.92616 | O65: 22346.80529
A67: Energy Efficient Lights | B67: Reference Light | D67: Price Factor
A68: T5 2X14W | B68: T5 2X14W | D68: ='[1]ACS - General'!D69 -> 1 | E68: ='[1]ACS - General'!E69 -> 38.14547144 | I68: ='[1]ACS - General'!I69 -> 13370 | J68: ='[1]ACS - General'!J69 -> 14013.05802 | K68: ='[1]ACS - General'!K69 -> 13732.79686 | L68: ='[1]ACS - General'!L69 -> 13458.14092 | M68: ='[1]ACS - General'!M69 -> 12516.07106 | N68: ='[1]ACS - General'!N69 -> 11639.94608 | O68: ='[1]ACS - General'!O69 -> 10825.14986
A69: T5 2X24W | B69: T5 2X14W | D69: ='[1]ACS - General'!D70 -> 0.9861275788 | E69: ='[1]ACS - General'!E70 -> 37.61630139 | I69: ='[1]ACS - General'!I70 -> 2230.054661 | J69: ='[1]ACS - General'!J70 -> 2482.649237 | K69: ='[1]ACS - General'!K70 -> 2432.996253 | L69: ='[1]ACS - General'!L70 -> 2384.336327 | M69: ='[1]ACS - General'!M70 -> 2217.432785 | N69: ='[1]ACS - General'!N70 -> 2062.21249 | O69: ='[1]ACS - General'!O70 -> 1917.857615
A70: CF32 | B70: T5 2X14W | D70: ='[1]ACS - General'!D71 -> 0.9687520325 | E70: ='[1]ACS - General'!E71 -> 36.95350299 | I70: ='[1]ACS - General'!I71 -> 380 | J70: ='[1]ACS - General'!J71 -> 372.4 | K70: ='[1]ACS - General'!K71 -> 364.952 | L70: ='[1]ACS - General'!L71 -> 357.65296 | M70: ='[1]ACS - General'!M71 -> 332.6172528 | N70: ='[1]ACS - General'!N71 -> 309.3340451 | O70: ='[1]ACS - General'!O71 -> 287.6806619
A71: CF42 | B71: T5 2X14W | D71: ='[1]ACS - General'!D72 -> 0.9687520325 | E71: ='[1]ACS - General'!E72 -> 36.95350299 | I71: ='[1]ACS - General'!I72 -> 120 | J71: ='[1]ACS - General'!J72 -> 116.4 | K71: ='[1]ACS - General'!K72 -> 114.072 | L71: ='[1]ACS - General'!L72 -> 111.79056 | M71: ='[1]ACS - General'!M72 -> 103.9652208 | N71: ='[1]ACS - General'!N72 -> 96.68765534 | O71: ='[1]ACS - General'!O72 -> 89.91951947
A72: Category P LED 18 Watt | B72: Category P LED 18 Watt | D72: ='[1]ACS - General'!D73 -> 1 | E72: ='[1]ACS - General'!E73 -> 23.1450571 | I72: ='[1]ACS - General'!I73 -> 159 | J72: ='[1]ACS - General'!J73 -> 243.966 | K72: ='[1]ACS - General'!K73 -> 1035.9315 | L72: ='[1]ACS - General'!L73 -> 2741.23395 | M72: ='[1]ACS - General'!M73 -> 4446.5364 | N72: ='[1]ACS - General'!N73 -> 5335.84368 | O72: ='[1]ACS - General'!O73 -> 6403.012416
A73: Category P LED 47 Watt | B73: Category P LED 18 Watt | D73: ='[1]ACS - General'!D74 -> 1 | E73: ='[1]ACS - General'!E74 -> 23.1450571 | I73: ='[1]ACS - General'!I74 -> 15 | J73: ='[1]ACS - General'!J74 -> 15 | K73: ='[1]ACS - General'!K74 -> 15 | L73: ='[1]ACS - General'!L74 -> 15 | M73: ='[1]ACS - General'!M74 -> 15 | N73: ='[1]ACS - General'!N74 -> 15 | O73: ='[1]ACS - General'!O74 -> 15
A74: Total Energy Efficient Lights | I74: =SUM(I68:I73) -> 16274.05466 | J74: 17243.47326 | K74: 17695.74861 | L74: 19068.15472 | M74: 19631.62272 | N74: 19459.02395 | O74: 19538.62007
A76: Total Number of Lights | I76: =SUM(I65,I74) -> 43119.10515 | J76: 42878.07448 | K76: 42439.09575 | L76: 41926.41107 | M76: 42273.33552 | N76: 41930.95011 | O76: 41885.42536

Sheet DNSP Inputs O & M
A1: Public Lighting Cost Build-up Model
A3: CitiPower | C3: O & M Data Inputs
C5: Real 2015 $
A7: Input parameters | C7: 2015 | D7: 2016 | E7: 2017 | F7: 2018 | G7: 2019 | H7: 2020
A9: Inputs - all lamps
A11: Labour rate (per hour) | C11: ='[1]ACS - O&M'!C11 -> 121.4914353 | D11: ='[1]ACS - O&M'!D11 -> 123.7674125 | E11: ='[1]ACS - O&M'!E11 -> 125.8521179 | F11: ='[1]ACS - O&M'!F11 -> 127.9719375 | G11: ='[1]ACS - O&M'!G11 -> 130.1274628 | H11: ='[1]ACS - O&M'!H11 -> 132.3192952
A12: Labour rate for night patrols (per hour) | C12: ='[1]ACS - O&M'!C12 -> 142.6766892 | D12: ='[1]ACS - O&M'!D12 -> 145.3495434 | E12: ='[1]ACS - O&M'!E12 -> 147.7977724 | F12: ='[1]ACS - O&M'!F12 -> 150.2872388 | G12: ='[1]ACS - O&M'!G12 -> 152.8186371 | H12: ='[1]ACS - O&M'!H12 -> 155.3926736
A13: Elevated platform vehicle (per hour) - urban MV,urban T5 | C13: ='[1]ACS - O&M'!C13 -> 76.9531112 | D13: ='[1]ACS - O&M'!D13 -> 77.69564122 | E13: ='[1]ACS - O&M'!E13 -> 79.36920231 | F13: ='[1]ACS - O&M'!F13 -> 80.74617287 | G13: ='[1]ACS - O&M'!G13 -> 82.13129241 | H13: ='[1]ACS - O&M'!H13 -> 83.56418727
A14: Elevated platform vehicle (per hour) - rural MV, rural T5, S-HP | C14: ='[1]ACS - O&M'!C14 -> 57.00342251 | D14: ='[1]ACS - O&M'!D14 -> 57.55345553 | E14: ='[1]ACS - O&M'!E14 -> 58.79315472 | F14: ='[1]ACS - O&M'!F14 -> 59.81315292 | G14: ='[1]ACS - O&M'!G14 -> 60.83918751 | H14: ='[1]ACS - O&M'!H14 -> 61.90061193
A15: Patrol vehicle (per hour) | C15: ='[1]ACS - O&M'!C15 -> 25.26368075 | D15: ='[1]ACS - O&M'!D15 -> 25.50745311 | E15: ='[1]ACS - O&M'!E15 -> 26.05688266 | F15: ='[1]ACS - O&M'!F15 -> 26.50894163 | G15: ='[1]ACS - O&M'!G15 -> 26.96367591 | H15: ='[1]ACS - O&M'!H15 -> 27.43409482
A16: Number of hours in a day | C16: ='[1]ACS - O&M'!C16 -> 8 | D16: ='[1]ACS - O&M'!D16 -> 8 | E16: ='[1]ACS - O&M'!E16 -> 8 | F16: ='[1]ACS - O&M'!F16 -> 8 | G16: ='[1]ACS - O&M'!G16 -> 8 | H16: ='[1]ACS - O&M'!H16 -> 8
A17: Indirect overheads | C17: ='[1]ACS - O&M'!C17 -> 0.2374223 | D17: ='[1]ACS - O&M'!D17 -> 0.2374223 | E17: ='[1]ACS - O&M'!E17 -> 0.2374223 | F17: ='[1]ACS - O&M'!F17 -> 0.2374223 | G17: ='[1]ACS - O&M'!G17 -> 0.2374223 | H17: ='[1]ACS - O&M'!H17 -> 0.2374223
A21: Inputs - MV80
A23: Depreciation period | B23: years | C23: ='[1]ACS - O&M'!C23 -> 20 | D23: ='[1]ACS - O&M'!D23 -> 20 | E23: ='[1]ACS - O&M'!E23 -> 20 | F23: ='[1]ACS - O&M'!F23 -> 20 | G23: ='[1]ACS - O&M'!G23 -> 20 | H23: ='[1]ACS - O&M'!H23 -> 20
A24: Lamps - bulk change | B24: years | C24: ='[1]ACS - O&M'!C24 -> 4 | D24: ='[1]ACS - O&M'!D24 -> 4 | E24: ='[1]ACS - O&M'!E24 -> 4 | F24: ='[1]ACS - O&M'!F24 -> 4 | G24: ='[1]ACS - O&M'!G24 -> 4 | H24: ='[1]ACS - O&M'!H24 -> 4
A25: PE cells - bulk change | B25: years | C25: ='[1]ACS - O&M'!C25 -> 8 | D25: ='[1]ACS - O&M'!D25 -> 8 | E25: ='[1]ACS - O&M'!E25 -> 8 | F25: ='[1]ACS - O&M'!F25 -> 8 | G25: ='[1]ACS - O&M'!G25 -> 8 | H25: ='[1]ACS - O&M'!H25 -> 8
A26: Proportion of lamps that fail between bulk change | C26: ='[1]ACS - O&M'!C26 -> 0.15 | D26: ='[1]ACS - O&M'!D26 -> 0.2313269938 | E26: ='[1]ACS - O&M'!E26 -> 0.2313269938 | F26: ='[1]ACS - O&M'!F26 -> 0.2313269938 | G26: ='[1]ACS - O&M'!G26 -> 0.2313269938 | H26: ='[1]ACS - O&M'!H26 -> 0.2313269938
A27: Unit cost - lamp | C27: ='[1]ACS - O&M'!C27 -> 5.694427666 | D27: ='[1]ACS - O&M'!D27 -> 5.694427666 | E27: ='[1]ACS - O&M'!E27 -> 5.694427666 | F27: ='[1]ACS - O&M'!F27 -> 5.694427666 | G27: ='[1]ACS - O&M'!G27 -> 5.694427666 | H27: ='[1]ACS - O&M'!H27 -> 5.694427666
A28: Unit cost - PE cell | C28: ='[1]ACS - O&M'!C28 -> 22.98953839 | D28: ='[1]ACS - O&M'!D28 -> 22.98953839 | E28: ='[1]ACS - O&M'!E28 -> 22.98953839 | F28: ='[1]ACS - O&M'!F28 -> 22.98953839 | G28: ='[1]ACS - O&M'!G28 -> 22.98953839 | H28: ='[1]ACS - O&M'!H28 -> 22.98953839
A29: Unit cost - luminaire | C29: ='[1]ACS - O&M'!C29 -> 197.5605047 | D29: ='[1]ACS - O&M'!D29 -> 197.5605047 | E29: ='[1]ACS - O&M'!E29 -> 197.5605047 | F29: ='[1]ACS - O&M'!F29 -> 197.5605047 | G29: ='[1]ACS - O&M'!G29 -> 197.5605047 | H29: ='[1]ACS - O&M'!H29 -> 197.5605047
A30: Unit cost - miscellaneous materials (bulk lamp) | C30: ='[1]ACS - O&M'!C30 -> 1.246045441 | D30: ='[1]ACS - O&M'!D30 -> 1.246045441 | E30: ='[1]ACS - O&M'!E30 -> 1.246045441 | F30: ='[1]ACS - O&M'!F30 -> 1.246045441 | G30: ='[1]ACS - O&M'!G30 -> 1.246045441 | H30: ='[1]ACS - O&M'!H30 -> 1.246045441
A31: Unit cost - miscellaneous materials (repair) | C31: ='[1]ACS - O&M'!C31 -> 12.46045441 | D31: ='[1]ACS - O&M'!D31 -> 12.46045441 | E31: ='[1]ACS - O&M'!E31 -> 12.46045441 | F31: ='[1]ACS - O&M'!F31 -> 12.46045441 | G31: ='[1]ACS - O&M'!G31 -> 12.46045441 | H31: ='[1]ACS - O&M'!H31 -> 12.46045441
A32: Number of men in crew | C32: ='[1]ACS - O&M'!C32 -> 2 | D32: ='[1]ACS - O&M'!D32 -> 2 | E32: ='[1]ACS - O&M'!E32 -> 2 | F32: ='[1]ACS - O&M'!F32 -> 2 | G32: ='[1]ACS - O&M'!G32 -> 2 | H32: ='[1]ACS - O&M'!H32 -> 2
A33: Number of bulk lamp changes in 1 day - urban | C33: ='[1]ACS - O&M'!C33 -> 86.4 | D33: ='[1]ACS - O&M'!D33 -> 86.4 | E33: ='[1]ACS - O&M'!E33 -> 86.4 | F33: ='[1]ACS - O&M'!F33 -> 86.4 | G33: ='[1]ACS - O&M'!G33 -> 86.4 | H33: ='[1]ACS - O&M'!H33 -> 86.4
A34: Number of repairs in 1 day - urban | C34: ='[1]ACS - O&M'!C34 -> 28.8 | D34: ='[1]ACS - O&M'!D34 -> 28.8 | E34: ='[1]ACS - O&M'!E34 -> 28.8 | F34: ='[1]ACS - O&M'!F34 -> 28.8 | G34: ='[1]ACS - O&M'!G34 -> 28.8 | H34: ='[1]ACS - O&M'!H34 -> 28.8
A35: % of repairs - lamps | C35: ='[1]ACS - O&M'!C35 -> 0.6 | D35: ='[1]ACS - O&M'!D35 -> 0.6 | E35: ='[1]ACS - O&M'!E35 -> 0.6 | F35: ='[1]ACS - O&M'!F35 -> 0.6 | G35: ='[1]ACS - O&M'!G35 -> 0.6 | H35: ='[1]ACS - O&M'!H35 -> 0.6
A36: % of repairs - PE cells | C36: ='[1]ACS - O&M'!C36 -> 0.5 | D36: ='[1]ACS - O&M'!D36 -> 0.5 | E36: ='[1]ACS - O&M'!E36 -> 0.5 | F36: ='[1]ACS - O&M'!F36 -> 0.5 | G36: ='[1]ACS - O&M'!G36 -> 0.5 | H36: ='[1]ACS - O&M'!H36 -> 0.5
A37: % of repairs - luminaires | C37: ='[1]ACS - O&M'!C37 -> 0.15 | D37: ='[1]ACS - O&M'!D37 -> 0.15 | E37: ='[1]ACS - O&M'!E37 -> 0.15 | F37: ='[1]ACS - O&M'!F37 -> 0.15 | G37: ='[1]ACS - O&M'!G37 -> 0.15 | H37: ='[1]ACS - O&M'!H37 -> 0.15
A38: % of repairs - other | C38: ='[1]ACS - O&M'!C38 -> 0.1 | D38: ='[1]ACS - O&M'!D38 -> 0.1 | E38: ='[1]ACS - O&M'!E38 -> 0.1 | F38: ='[1]ACS - O&M'!F38 -> 0.1 | G38: ='[1]ACS - O&M'!G38 -> 0.1 | H38: ='[1]ACS - O&M'!H38 -> 0.1
A40: Other Maintenance and Repair costs
A41: Traffic control costs | C41: ='[1]ACS - O&M'!C41 -> 6832.059095 | D41: ='[1]ACS - O&M'!D41 -> 5809.906517 | E41: ='[1]ACS - O&M'!E41 -> 3348.143397 | F41: ='[1]ACS - O&M'!F41 -> 2945.441132 | G41: ='[1]ACS - O&M'!G41 -> 2696.106351 | H41: ='[1]ACS - O&M'!H41 -> 2433.643843
A42: Other costs : Cascading Network | C42: ='[1]ACS - O&M'!C42 -> 0 | D42: ='[1]ACS - O&M'!D42 -> 38398.31914 | E42: ='[1]ACS - O&M'!E42 -> 21791.66401 | F42: ='[1]ACS - O&M'!F42 -> 19508.30144 | G42: ='[1]ACS - O&M'!G42 -> 17779.74168 | H42: ='[1]ACS - O&M'!H42 -> 16087.30769
C43: =SUM(C41:C42) -> 6832.059095 | D43: 44208.22566 | E43: 25139.8074 | F43: 22453.74257 | G43: 20475.84803 | H43: 18520.95153
A44: Number of Lights | C44: ='DNSP Inputs General'!J41 -> 5140.433267 | D44: ='DNSP Inputs General'!K41 -> 4260.819549 | E44: ='DNSP Inputs General'!L41 -> 2366.78827 | F44: ='DNSP Inputs General'!M41 -> 2120.539938 | G44: ='DNSP Inputs General'!N41 -> 1899.912082 | H44: ='DNSP Inputs General'!O41 -> 1702.239063
A45: Unit Cost | C45: =IF(C44=0,0,C43/C44) -> 1.329082344 | D45: 10.37552169 | E45: 10.62190806 | F45: 10.58869119 | G45: 10.77726082 | H45: 10.88034691
A49: Inputs - S-HP150
A51: Depreciation period | B51: years | C51: ='[1]ACS - O&M'!C51 -> 20 | D51: ='[1]ACS - O&M'!D51 -> 20 | E51: ='[1]ACS - O&M'!E51 -> 20 | F51: ='[1]ACS - O&M'!F51 -> 20 | G51: ='[1]ACS - O&M'!G51 -> 20 | H51: ='[1]ACS - O&M'!H51 -> 20
A52: Number of patrols per year | C52: ='[1]ACS - O&M'!C52 -> 3 | D52: ='[1]ACS - O&M'!D52 -> 3 | E52: ='[1]ACS - O&M'!E52 -> 3 | F52: ='[1]ACS - O&M'!F52 -> 3 | G52: ='[1]ACS - O&M'!G52 -> 3 | H52: ='[1]ACS - O&M'!H52 -> 3
A53: Lamps - frequency of replacement | B53: years | C53: ='[1]ACS - O&M'!C53 -> 5 | D53: ='[1]ACS - O&M'!D53 -> 5 | E53: ='[1]ACS - O&M'!E53 -> 5 | F53: ='[1]ACS - O&M'!F53 -> 5 | G53: ='[1]ACS - O&M'!G53 -> 5 | H53: ='[1]ACS - O&M'!H53 -> 5
A54: PE cells - frequency of replacement | B54: years | C54: ='[1]ACS - O&M'!C54 -> 10 | D54: ='[1]ACS - O&M'!D54 -> 10 | E54: ='[1]ACS - O&M'!E54 -> 10 | F54: ='[1]ACS - O&M'!F54 -> 10 | G54: ='[1]ACS - O&M'!G54 -> 10 | H54: ='[1]ACS - O&M'!H54 -> 10
A55: Unit cost - lamp | C55: ='[1]ACS - O&M'!C55 -> 41.18180183 | D55: ='[1]ACS - O&M'!D55 -> 41.18180183 | E55: ='[1]ACS - O&M'!E55 -> 41.18180183 | F55: ='[1]ACS - O&M'!F55 -> 41.18180183 | G55: ='[1]ACS - O&M'!G55 -> 41.18180183 | H55: ='[1]ACS - O&M'!H55 -> 41.18180183
A56: Unit cost - PE cell | C56: ='[1]ACS - O&M'!C56 -> 22.36651567 | D56: ='[1]ACS - O&M'!D56 -> 22.36651567 | E56: ='[1]ACS - O&M'!E56 -> 22.36651567 | F56: ='[1]ACS - O&M'!F56 -> 22.36651567 | G56: ='[1]ACS - O&M'!G56 -> 22.36651567 | H56: ='[1]ACS - O&M'!H56 -> 22.36651567
A57: Unit cost - miscellaneous materials | C57: ='[1]ACS - O&M'!C57 -> 2.492090882 | D57: ='[1]ACS - O&M'!D57 -> 2.492090882 | E57: ='[1]ACS - O&M'!E57 -> 2.492090882 | F57: ='[1]ACS - O&M'!F57 -> 2.492090882 | G57: ='[1]ACS - O&M'!G57 -> 2.492090882 | H57: ='[1]ACS - O&M'!H57 -> 2.492090882
A58: Number of men in crew - road patrols | C58: ='[1]ACS - O&M'!C58 -> 2 | D58: ='[1]ACS - O&M'!D58 -> 2 | E58: ='[1]ACS - O&M'!E58 -> 2 | F58: ='[1]ACS - O&M'!F58 -> 2 | G58: ='[1]ACS - O&M'!G58 -> 2 | H58: ='[1]ACS - O&M'!H58 -> 2
A59: Number of men in crew - repairs | C59: ='[1]ACS - O&M'!C59 -> 2 | D59: ='[1]ACS - O&M'!D59 -> 2 | E59: ='[1]ACS - O&M'!E59 -> 2 | F59: ='[1]ACS - O&M'!F59 -> 2 | G59: ='[1]ACS - O&M'!G59 -> 2 | H59: ='[1]ACS - O&M'!H59 -> 2
A60: Number of lamps patrolled in 1 day - urban | C60: ='[1]ACS - O&M'!C60 -> 3000 | D60: ='[1]ACS - O&M'!D60 -> 3000 | E60: ='[1]ACS - O&M'!E60 -> 3000 | F60: ='[1]ACS - O&M'!F60 -> 3000 | G60: ='[1]ACS - O&M'!G60 -> 3000 | H60: ='[1]ACS - O&M'!H60 -> 3000
A61: Number of repairs in 1 day - urban | C61: ='[1]ACS - O&M'!C61 -> 19.2 | D61: ='[1]ACS - O&M'!D61 -> 19.2 | E61: ='[1]ACS - O&M'!E61 -> 19.2 | F61: ='[1]ACS - O&M'!F61 -> 19.2 | G61: ='[1]ACS - O&M'!G61 -> 19.2 | H61: ='[1]ACS - O&M'!H61 -> 19.2
A63: Other Maintenance and Repair costs
A64: Traffic control costs | C64: ='[1]ACS - O&M'!C64 -> 28538.78124 | D64: ='[1]ACS - O&M'!D64 -> 28759.03125 | E64: ='[1]ACS - O&M'!E64 -> 29307.53836 | F64: ='[1]ACS - O&M'!F64 -> 30052.51938 | G64: ='[1]ACS - O&M'!G64 -> 30589.09838 | H64: ='[1]ACS - O&M'!H64 -> 31170.79455
A65: Other costs : Cascading Network | C65: ='[1]ACS - O&M'!C65 -> 0 | D65: ='[1]ACS - O&M'!D65 -> 89190.33816 | E65: ='[1]ACS - O&M'!E65 -> 91576.95752 | F65: ='[1]ACS - O&M'!F65 -> 91956.98271 | G65: ='[1]ACS - O&M'!G65 -> 94006.98854 | H65: ='[1]ACS - O&M'!H65 -> 95408.59499
C66: =SUM(C64:C65) -> 28538.78124 | D66: 117949.3694 | E66: 120884.4959 | F66: 122009.5021 | G66: 124596.0869 | H66: 126579.3895
A67: Number of Lights | C67: ='DNSP Inputs General'!J42 -> 10792.43555 | D67: ='DNSP Inputs General'!K42 -> 10846.15859 | E67: ='DNSP Inputs General'!L42 -> 10900.14906 | F67: ='DNSP Inputs General'!M42 -> 10954.40828 | G67: ='DNSP Inputs General'!N42 -> 11008.9376 | H67: ='DNSP Inputs General'!O42 -> 11063.73836
A68: Unit Cost | C68: =IF(C67=0,0,C66/C67) -> 2.644331867 | D68: 10.8747598 | E68: 11.09016907 | F68: 11.13793634 | G68: 11.31772124 | H68: 11.44092399
A72: Inputs - S-HP250
A74: Depreciation period | B74: years | C74: ='[1]ACS - O&M'!C74 -> 20 | D74: ='[1]ACS - O&M'!D74 -> 20 | E74: ='[1]ACS - O&M'!E74 -> 20 | F74: ='[1]ACS - O&M'!F74 -> 20 | G74: ='[1]ACS - O&M'!G74 -> 20 | H74: ='[1]ACS - O&M'!H74 -> 20
A75: Number of patrols per year | C75: ='[1]ACS - O&M'!C75 -> 3 | D75: ='[1]ACS - O&M'!D75 -> 3 | E75: ='[1]ACS - O&M'!E75 -> 3 | F75: ='[1]ACS - O&M'!F75 -> 3 | G75: ='[1]ACS - O&M'!G75 -> 3 | H75: ='[1]ACS - O&M'!H75 -> 3
A76: Lamps - frequency of replacement | B76: years | C76: ='[1]ACS - O&M'!C76 -> 5 | D76: ='[1]ACS - O&M'!D76 -> 5 | E76: ='[1]ACS - O&M'!E76 -> 5 | F76: ='[1]ACS - O&M'!F76 -> 5 | G76: ='[1]ACS - O&M'!G76 -> 5 | H76: ='[1]ACS - O&M'!H76 -> 5
A77: PE cells - frequency of replacement | B77: years | C77: ='[1]ACS - O&M'!C77 -> 10 | D77: ='[1]ACS - O&M'!D77 -> 10 | E77: ='[1]ACS - O&M'!E77 -> 10 | F77: ='[1]ACS - O&M'!F77 -> 10 | G77: ='[1]ACS - O&M'!G77 -> 10 | H77: ='[1]ACS - O&M'!H77 -> 10
A78: Unit cost - lamp | C78: ='[1]ACS - O&M'!C78 -> 41.18180183 | D78: ='[1]ACS - O&M'!D78 -> 41.18180183 | E78: ='[1]ACS - O&M'!E78 -> 41.18180183 | F78: ='[1]ACS - O&M'!F78 -> 41.18180183 | G78: ='[1]ACS - O&M'!G78 -> 41.18180183 | H78: ='[1]ACS - O&M'!H78 -> 41.18180183
A79: Unit cost - PE cell | C79: ='[1]ACS - O&M'!C79 -> 22.36651567 | D79: ='[1]ACS - O&M'!D79 -> 22.36651567 | E79: ='[1]ACS - O&M'!E79 -> 22.36651567 | F79: ='[1]ACS - O&M'!F79 -> 22.36651567 | G79: ='[1]ACS - O&M'!G79 -> 22.36651567 | H79: ='[1]ACS - O&M'!H79 -> 22.36651567
A80: Unit cost - miscellaneous materials | C80: ='[1]ACS - O&M'!C80 -> 2.492090882 | D80: ='[1]ACS - O&M'!D80 -> 2.492090882 | E80: ='[1]ACS - O&M'!E80 -> 2.492090882 | F80: ='[1]ACS - O&M'!F80 -> 2.492090882 | G80: ='[1]ACS - O&M'!G80 -> 2.492090882 | H80: ='[1]ACS - O&M'!H80 -> 2.492090882
A81: Number of men in crew - road patrols | C81: ='[1]ACS - O&M'!C81 -> 2 | D81: ='[1]ACS - O&M'!D81 -> 2 | E81: ='[1]ACS - O&M'!E81 -> 2 | F81: ='[1]ACS - O&M'!F81 -> 2 | G81: ='[1]ACS - O&M'!G81 -> 2 | H81: ='[1]ACS - O&M'!H81 -> 2
A82: Number of men in crew - repairs | C82: ='[1]ACS - O&M'!C82 -> 2 | D82: ='[1]ACS - O&M'!D82 -> 2 | E82: ='[1]ACS - O&M'!E82 -> 2 | F82: ='[1]ACS - O&M'!F82 -> 2 | G82: ='[1]ACS - O&M'!G82 -> 2 | H82: ='[1]ACS - O&M'!H82 -> 2
A83: Number of lamps patrolled in 1 day - urban | C83: ='[1]ACS - O&M'!C83 -> 3000 | D83: ='[1]ACS - O&M'!D83 -> 3000 | E83: ='[1]ACS - O&M'!E83 -> 3000 | F83: ='[1]ACS - O&M'!F83 -> 3000 | G83: ='[1]ACS - O&M'!G83 -> 3000 | H83: ='[1]ACS - O&M'!H83 -> 3000
A84: Number of repairs in 1 day - urban | C84: ='[1]ACS - O&M'!C84 -> 19.2 | D84: ='[1]ACS - O&M'!D84 -> 19.2 | E84: ='[1]ACS - O&M'!E84 -> 19.2 | F84: ='[1]ACS - O&M'!F84 -> 19.2 | G84: ='[1]ACS - O&M'!G84 -> 19.2 | H84: ='[1]ACS - O&M'!H84 -> 19.2
A86: Other Maintenance and Repair costs
A87: Traffic control costs | C87: ='[1]ACS - O&M'!C87 -> 9138.349376 | D87: ='[1]ACS - O&M'!D87 -> 9333.034571 | E87: ='[1]ACS - O&M'!E87 -> 9639.272329 | F87: ='[1]ACS - O&M'!F87 -> 10017.56295 | G87: ='[1]ACS - O&M'!G87 -> 10333.89767 | H87: ='[1]ACS - O&M'!H87 -> 10672.38882
A88: Other costs : Cascading Network | C88: ='[1]ACS - O&M'!C88 -> 0 | D88: ='[1]ACS - O&M'!D88 -> 28944.52536 | E88: ='[1]ACS - O&M'!E88 -> 30119.73307 | F88: ='[1]ACS - O&M'!F88 -> 30652.50042 | G88: ='[1]ACS - O&M'!G88 -> 31758.32736 | H88: ='[1]ACS - O&M'!H88 -> 32666.39935
C89: =SUM(C87:C88) -> 9138.349376 | D89: 38277.55993 | E89: 39759.0054 | F89: 40670.06337 | G89: 42092.22503 | H89: 43338.78818
A90: Number of Lights | C90: ='DNSP Inputs General'!J43 -> 3589.655017 | D90: ='DNSP Inputs General'!K43 -> 3656.162464 | E90: ='DNSP Inputs General'!L43 -> 3723.90213 | F90: ='DNSP Inputs General'!M43 -> 3792.896845 | G90: ='DNSP Inputs General'!N43 -> 3863.169861 | H90: ='DNSP Inputs General'!O43 -> 3934.744863
A91: Unit Cost | C91: =IF(C90=0,0,C89/C90) -> 2.545745854 | D91: 10.46932687 | E91: 10.67670525 | F91: 10.72269166 | G91: 10.89577382 | H91: 11.01438332
A95: Dedicated street lighting poles
A97: Period of inspection | B97: years | C97: ='[1]ACS - O&M'!C97 -> 0 | D97: ='[1]ACS - O&M'!D97 -> 0 | E97: ='[1]ACS - O&M'!E97 -> 0 | F97: ='[1]ACS - O&M'!F97 -> 0 | G97: ='[1]ACS - O&M'!G97 -> 0 | H97: ='[1]ACS - O&M'!H97 -> 0
A98: Pole inspection rate | B98: per day | C98: ='[1]ACS - O&M'!C98 -> 0 | D98: ='[1]ACS - O&M'!D98 -> 0 | E98: ='[1]ACS - O&M'!E98 -> 0 | F98: ='[1]ACS - O&M'!F98 -> 0 | G98: ='[1]ACS - O&M'!G98 -> 0 | H98: ='[1]ACS - O&M'!H98 -> 0
A99: Depreciation of dedicated street lighting pole & bracket | B99: years | C99: ='[1]ACS - O&M'!C99 -> 0 | D99: ='[1]ACS - O&M'!D99 -> 0 | E99: ='[1]ACS - O&M'!E99 -> 0 | F99: ='[1]ACS - O&M'!F99 -> 0 | G99: ='[1]ACS - O&M'!G99 -> 0 | H99: ='[1]ACS - O&M'!H99 -> 0
A100: Proportion of lights on dedicated poles | C100: ='[1]ACS - O&M'!C100 -> 0 | D100: ='[1]ACS - O&M'!D100 -> 0 | E100: ='[1]ACS - O&M'!E100 -> 0 | F100: ='[1]ACS - O&M'!F100 -> 0 | G100: ='[1]ACS - O&M'!G100 -> 0 | H100: ='[1]ACS - O&M'!H100 -> 0
A104: Other direct costs
A105: Call centre
A106: Number of calls | C106: ='[1]ACS - O&M'!C106 -> 1964.145361 | D106: ='[1]ACS - O&M'!D106 -> 3248.653875 | E106: ='[1]ACS - O&M'!E106 -> 3303.373337 | F106: ='[1]ACS - O&M'!F106 -> 3359.014478 | G106: ='[1]ACS - O&M'!G106 -> 3415.592825 | H106: ='[1]ACS - O&M'!H106 -> 3473.124162
A107: Average cost per call $ | C107: ='[1]ACS - O&M'!C107 -> 10 | D107: ='[1]ACS - O&M'!D107 -> 16.12173534 | E107: ='[1]ACS - O&M'!E107 -> 16.39328557 | F107: ='[1]ACS - O&M'!F107 -> 16.66940971 | G107: ='[1]ACS - O&M'!G107 -> 16.95018481 | H107: ='[1]ACS - O&M'!H107 -> 17.23568922
C108: =C106*C107 -> 19641.45361 | D108: 52373.93799 | E108: 54153.14244 | F108: 55992.78856 | G108: 57894.92963 | H108: 59861.68868
A110: GIS and other | C110: ='[1]ACS - O&M'!C110 -> 94039.86983 | D110: ='[1]ACS - O&M'!D110 -> 95801.5792 | E110: ='[1]ACS - O&M'!E110 -> 97415.23552 | F110: ='[1]ACS - O&M'!F110 -> 99056.07184 | G110: ='[1]ACS - O&M'!G110 -> 100724.546 | H110: ='[1]ACS - O&M'!H110 -> 102421.1234
A111: Complaints handling | C111: ='[1]ACS - O&M'!C111 -> 28211.96095 | D111: ='[1]ACS - O&M'!D111 -> 28740.47376 | E111: ='[1]ACS - O&M'!E111 -> 29224.57066 | F111: ='[1]ACS - O&M'!F111 -> 29716.82155 | G111: ='[1]ACS - O&M'!G111 -> 30217.36379 | H111: ='[1]ACS - O&M'!H111 -> 30726.33703
A112: Accounts Manager | C112: ='[1]ACS - O&M'!C112 -> 0 | D112: ='[1]ACS - O&M'!D112 -> 0 | E112: ='[1]ACS - O&M'!E112 -> 0 | F112: ='[1]ACS - O&M'!F112 -> 0 | G112: ='[1]ACS - O&M'!G112 -> 0 | H112: ='[1]ACS - O&M'!H112 -> 0
A115: ENERGY EFFICIENT LIGHTS
A117: Inputs - T5 (2 X 14W)
A119: Depreciation period | B119: years | C119: ='[1]ACS - O&M'!C119 -> 20 | D119: ='[1]ACS - O&M'!D119 -> 20 | E119: ='[1]ACS - O&M'!E119 -> 20 | F119: ='[1]ACS - O&M'!F119 -> 20 | G119: ='[1]ACS - O&M'!G119 -> 20 | H119: ='[1]ACS - O&M'!H119 -> 20
A120: Lamps - bulk change | B120: years | C120: ='[1]ACS - O&M'!C120 -> 4 | D120: ='[1]ACS - O&M'!D120 -> 4 | E120: ='[1]ACS - O&M'!E120 -> 4 | F120: ='[1]ACS - O&M'!F120 -> 4 | G120: ='[1]ACS - O&M'!G120 -> 4 | H120: ='[1]ACS - O&M'!H120 -> 4
A121: PE cells - bulk change | B121: years | C121: ='[1]ACS - O&M'!C121 -> 8 | D121: ='[1]ACS - O&M'!D121 -> 8 | E121: ='[1]ACS - O&M'!E121 -> 8 | F121: ='[1]ACS - O&M'!F121 -> 8 | G121: ='[1]ACS - O&M'!G121 -> 8 | H121: ='[1]ACS - O&M'!H121 -> 8
A122: Ballast unit life | B122: years | C122: ='[1]ACS - O&M'!C122 -> 20 | D122: ='[1]ACS - O&M'!D122 -> 20 | E122: ='[1]ACS - O&M'!E122 -> 20 | F122: ='[1]ACS - O&M'!F122 -> 20 | G122: ='[1]ACS - O&M'!G122 -> 20 | H122: ='[1]ACS - O&M'!H122 -> 20
A123: Proportion of luminaires that fail between bulk change | C123: ='[1]ACS - O&M'!C123 -> 0.114 | D123: ='[1]ACS - O&M'!D123 -> 0.114 | E123: ='[1]ACS - O&M'!E123 -> 0.114 | F123: ='[1]ACS - O&M'!F123 -> 0.114 | G123: ='[1]ACS - O&M'!G123 -> 0.114 | H123: ='[1]ACS - O&M'!H123 -> 0.114
A124: Unit cost - lamp | C124: ='[1]ACS - O&M'!C124 -> 9.968363529 | D124: ='[1]ACS - O&M'!D124 -> 9.968363529 | E124: ='[1]ACS - O&M'!E124 -> 9.968363529 | F124: ='[1]ACS - O&M'!F124 -> 9.968363529 | G124: ='[1]ACS - O&M'!G124 -> 9.968363529 | H124: ='[1]ACS - O&M'!H124 -> 9.968363529
A125: Unit cost - PE cell | C125: ='[1]ACS - O&M'!C125 -> 16.82161346 | D125: ='[1]ACS - O&M'!D125 -> 16.82161346 | E125: ='[1]ACS - O&M'!E125 -> 16.82161346 | F125: ='[1]ACS - O&M'!F125 -> 16.82161346 | G125: ='[1]ACS - O&M'!G125 -> 16.82161346 | H125: ='[1]ACS - O&M'!H125 -> 16.82161346
A126: Unit cost - luminaire | C126: ='[1]ACS - O&M'!C126 -> 300.5212395 | D126: ='[1]ACS - O&M'!D126 -> 300.5212395 | E126: ='[1]ACS - O&M'!E126 -> 300.5212395 | F126: ='[1]ACS - O&M'!F126 -> 300.5212395 | G126: ='[1]ACS - O&M'!G126 -> 300.5212395 | H126: ='[1]ACS - O&M'!H126 -> 300.5212395
A127: Unit cost - miscellaneous materials (bulk lamp) | C127: ='[1]ACS - O&M'!C127 -> 1.246045441 | D127: ='[1]ACS - O&M'!D127 -> 1.246045441 | E127: ='[1]ACS - O&M'!E127 -> 1.246045441 | F127: ='[1]ACS - O&M'!F127 -> 1.246045441 | G127: ='[1]ACS - O&M'!G127 -> 1.246045441 | H127: ='[1]ACS - O&M'!H127 -> 1.246045441
A128: Unit cost - miscellaneous materials (repair) | C128: ='[1]ACS - O&M'!C128 -> 12.46045441 | D128: ='[1]ACS - O&M'!D128 -> 12.46045441 | E128: ='[1]ACS - O&M'!E128 -> 12.46045441 | F128: ='[1]ACS - O&M'!F128 -> 12.46045441 | G128: ='[1]ACS - O&M'!G128 -> 12.46045441 | H128: ='[1]ACS - O&M'!H128 -> 12.46045441
A129: Number of men in crew | C129: ='[1]ACS - O&M'!C129 -> 2 | D129: ='[1]ACS - O&M'!D129 -> 2 | E129: ='[1]ACS - O&M'!E129 -> 2 | F129: ='[1]ACS - O&M'!F129 -> 2 | G129: ='[1]ACS - O&M'!G129 -> 2 | H129: ='[1]ACS - O&M'!H129 -> 2
A130: Number of bulk lamp changes in 1 day - urban | C130: ='[1]ACS - O&M'!C130 -> 73.92 | D130: ='[1]ACS - O&M'!D130 -> 73.92 | E130: ='[1]ACS - O&M'!E130 -> 73.92 | F130: ='[1]ACS - O&M'!F130 -> 73.92 | G130: ='[1]ACS - O&M'!G130 -> 73.92 | H130: ='[1]ACS - O&M'!H130 -> 73.92
A131: Number of repairs in 1 day - urban | C131: ='[1]ACS - O&M'!C131 -> 24.96 | D131: ='[1]ACS - O&M'!D131 -> 24.96 | E131: ='[1]ACS - O&M'!E131 -> 24.96 | F131: ='[1]ACS - O&M'!F131 -> 24.96 | G131: ='[1]ACS - O&M'!G131 -> 24.96 | H131: ='[1]ACS - O&M'!H131 -> 24.96
A132: % of repairs - lamps | C132: ='[1]ACS - O&M'!C132 -> 0.6 | D132: ='[1]ACS - O&M'!D132 -> 0.6 | E132: ='[1]ACS - O&M'!E132 -> 0.6 | F132: ='[1]ACS - O&M'!F132 -> 0.6 | G132: ='[1]ACS - O&M'!G132 -> 0.6 | H132: ='[1]ACS - O&M'!H132 -> 0.6
A133: % of repairs - PE cells | C133: ='[1]ACS - O&M'!C133 -> 0.5 | D133: ='[1]ACS - O&M'!D133 -> 0.5 | E133: ='[1]ACS - O&M'!E133 -> 0.5 | F133: ='[1]ACS - O&M'!F133 -> 0.5 | G133: ='[1]ACS - O&M'!G133 -> 0.5 | H133: ='[1]ACS - O&M'!H133 -> 0.5
A134: % of repairs - luminaires | C134: ='[1]ACS - O&M'!C134 -> 0.15 | D134: ='[1]ACS - O&M'!D134 -> 0.15 | E134: ='[1]ACS - O&M'!E134 -> 0.15 | F134: ='[1]ACS - O&M'!F134 -> 0.15 | G134: ='[1]ACS - O&M'!G134 -> 0.15 | H134: ='[1]ACS - O&M'!H134 -> 0.15
A135: % of repairs - other | C135: ='[1]ACS - O&M'!C135 -> 0.1 | D135: ='[1]ACS - O&M'!D135 -> 0.1 | E135: ='[1]ACS - O&M'!E135 -> 0.1 | F135: ='[1]ACS - O&M'!F135 -> 0.1 | G135: ='[1]ACS - O&M'!G135 -> 0.1 | H135: ='[1]ACS - O&M'!H135 -> 0.1
A137: ='[1]ACS - O&M'!A137 -> Other Maintenance and Repair costs
A138: ='[1]ACS - O&M'!A138 -> Traffic control costs | C138: ='[1]ACS - O&M'!C138 -> 15865.90371 | D138: ='[1]ACS - O&M'!D138 -> 15951.99497 | E138: ='[1]ACS - O&M'!E138 -> 16218.4639 | F138: ='[1]ACS - O&M'!F138 -> 14809.89284 | G138: ='[1]ACS - O&M'!G138 -> 14071.30864 | H138: ='[1]ACS - O&M'!H138 -> 13184.09703
A139: ='[1]ACS - O&M'!A139 -> Other costs : Cascading Network | C139: ='[1]ACS - O&M'!C139 -> 0 | D139: ='[1]ACS - O&M'!D139 -> 114715.1433 | E139: ='[1]ACS - O&M'!E139 -> 114857.3366 | F139: ='[1]ACS - O&M'!F139 -> 106729.3109 | G139: ='[1]ACS - O&M'!G139 -> 100968.4281 | H139: ='[1]ACS - O&M'!H139 -> 94828.61702
C140: =SUM(C138:C139) -> 15865.90371 | D140: 130667.1383 | E140: 131075.8005 | F140: 121539.2037 | G140: 115039.7367 | H140: 108012.714
A141: ='[1]ACS - O&M'!A141 -> Number of Lights | C141: ='DNSP Inputs General'!J68 -> 14013.05802 | D141: ='DNSP Inputs General'!K68 -> 13732.79686 | E141: ='DNSP Inputs General'!L68 -> 13458.14092 | F141: ='DNSP Inputs General'!M68 -> 12516.07106 | G141: ='DNSP Inputs General'!N68 -> 11639.94608 | H141: ='DNSP Inputs General'!O68 -> 10825.14986
A142: ='[1]ACS - O&M'!A142 -> Unit Cost | C142: =IF(C141=0,0,C140/C141) -> 1.132222794 | D142: 9.514969137 | E142: 9.739517611 | F142: 9.710651463 | G142: 9.883184672 | H142: 9.977941687
A144: ='[1]ACS - O&M'!A144 -> Option for "0.8" factor
A145: ='[1]ACS - O&M'!A145 -> Switch ( 1 = On; 0 = Off ) | B145: ='[1]ACS - O&M'!B145 -> 1
A146: ='[1]ACS - O&M'!A146 -> Factor | B146: ='[1]ACS - O&M'!B146 -> 0.8
A148: Inputs - Category P LED
A150: Depreciation period | B150: years | C150: ='[1]ACS - O&M'!C150 -> 20 | D150: ='[1]ACS - O&M'!D150 -> 20 | E150: ='[1]ACS - O&M'!E150 -> 20 | F150: ='[1]ACS - O&M'!F150 -> 20 | G150: ='[1]ACS - O&M'!G150 -> 20 | H150: ='[1]ACS - O&M'!H150 -> 20
A151: Lamps - bulk change | B151: years | C151: ='[1]ACS - O&M'!C151 -> 20 | D151: ='[1]ACS - O&M'!D151 -> 20 | E151: ='[1]ACS - O&M'!E151 -> 20 | F151: ='[1]ACS - O&M'!F151 -> 20 | G151: ='[1]ACS - O&M'!G151 -> 20 | H151: ='[1]ACS - O&M'!H151 -> 20
A152: PE cells - bulk change | B152: years | C152: ='[1]ACS - O&M'!C152 -> 8 | D152: ='[1]ACS - O&M'!D152 -> 8 | E152: ='[1]ACS - O&M'!E152 -> 8 | F152: ='[1]ACS - O&M'!F152 -> 8 | G152: ='[1]ACS - O&M'!G152 -> 8 | H152: ='[1]ACS - O&M'!H152 -> 8
A153: Ballast unit life | B153: years | C153: ='[1]ACS - O&M'!C153 -> 20 | D153: ='[1]ACS - O&M'!D153 -> 20 | E153: ='[1]ACS - O&M'!E153 -> 20 | F153: ='[1]ACS - O&M'!F153 -> 20 | G153: ='[1]ACS - O&M'!G153 -> 20 | H153: ='[1]ACS - O&M'!H153 -> 20
A154: Proportion of luminaires that fail between bulk change | C154: ='[1]ACS - O&M'!C154 -> 0.114 | D154: ='[1]ACS - O&M'!D154 -> 0.114 | E154: ='[1]ACS - O&M'!E154 -> 0.114 | F154: ='[1]ACS - O&M'!F154 -> 0.114 | G154: ='[1]ACS - O&M'!G154 -> 0.114 | H154: ='[1]ACS - O&M'!H154 -> 0.114
A155: Unit cost - lamp | C155: ='[1]ACS - O&M'!C155 -> 0 | D155: ='[1]ACS - O&M'!D155 -> 0 | E155: ='[1]ACS - O&M'!E155 -> 0 | F155: ='[1]ACS - O&M'!F155 -> 0 | G155: ='[1]ACS - O&M'!G155 -> 0 | H155: ='[1]ACS - O&M'!H155 -> 0
A156: Unit cost - PE cell | C156: ='[1]ACS - O&M'!C156 -> 16.82161346 | D156: ='[1]ACS - O&M'!D156 -> 16.82161346 | E156: ='[1]ACS - O&M'!E156 -> 16.82161346 | F156: ='[1]ACS - O&M'!F156 -> 16.82161346 | G156: ='[1]ACS - O&M'!G156 -> 16.82161346 | H156: ='[1]ACS - O&M'!H156 -> 16.82161346
A157: Unit cost - luminaire | C157: ='[1]ACS - O&M'!C157 -> 352.7287516 | D157: ='[1]ACS - O&M'!D157 -> 352.7287516 | E157: ='[1]ACS - O&M'!E157 -> 352.7287516 | F157: ='[1]ACS - O&M'!F157 -> 352.7287516 | G157: ='[1]ACS - O&M'!G157 -> 352.7287516 | H157: ='[1]ACS - O&M'!H157 -> 352.7287516
A158: Unit cost - miscellaneous materials (bulk lamp) | C158: ='[1]ACS - O&M'!C158 -> 1.246045441 | D158: ='[1]ACS - O&M'!D158 -> 1.246045441 | E158: ='[1]ACS - O&M'!E158 -> 1.246045441 | F158: ='[1]ACS - O&M'!F158 -> 1.246045441 | G158: ='[1]ACS - O&M'!G158 -> 1.246045441 | H158: ='[1]ACS - O&M'!H158 -> 1.246045441
A159: Unit cost - miscellaneous materials (repair) | C159: ='[1]ACS - O&M'!C159 -> 12.46045441 | D159: ='[1]ACS - O&M'!D159 -> 12.46045441 | E159: ='[1]ACS - O&M'!E159 -> 12.46045441 | F159: ='[1]ACS - O&M'!F159 -> 12.46045441 | G159: ='[1]ACS - O&M'!G159 -> 12.46045441 | H159: ='[1]ACS - O&M'!H159 -> 12.46045441
A160: Number of men in crew | C160: ='[1]ACS - O&M'!C160 -> 2 | D160: ='[1]ACS - O&M'!D160 -> 2 | E160: ='[1]ACS - O&M'!E160 -> 2 | F160: ='[1]ACS - O&M'!F160 -> 2 | G160: ='[1]ACS - O&M'!G160 -> 2 | H160: ='[1]ACS - O&M'!H160 -> 2
A161: Number of bulk lamp changes in 1 day - urban | C161: ='[1]ACS - O&M'!C161 -> 73.92 | D161: ='[1]ACS - O&M'!D161 -> 73.92 | E161: ='[1]ACS - O&M'!E161 -> 73.92 | F161: ='[1]ACS - O&M'!F161 -> 73.92 | G161: ='[1]ACS - O&M'!G161 -> 73.92 | H161: ='[1]ACS - O&M'!H161 -> 73.92
A162: Number of repairs in 1 day - urban | C162: ='[1]ACS - O&M'!C162 -> 24.96 | D162: ='[1]ACS - O&M'!D162 -> 24.96 | E162: ='[1]ACS - O&M'!E162 -> 24.96 | F162: ='[1]ACS - O&M'!F162 -> 24.96 | G162: ='[1]ACS - O&M'!G162 -> 24.96 | H162: ='[1]ACS - O&M'!H162 -> 24.96
A163: % of repairs - lamps | C163: ='[1]ACS - O&M'!C163 -> 0.6 | D163: ='[1]ACS - O&M'!D163 -> 0.6 | E163: ='[1]ACS - O&M'!E163 -> 0.6 | F163: ='[1]ACS - O&M'!F163 -> 0.6 | G163: ='[1]ACS - O&M'!G163 -> 0.6 | H163: ='[1]ACS - O&M'!H163 -> 0.6
A164: % of repairs - PE cells | C164: ='[1]ACS - O&M'!C164 -> 0.5 | D164: ='[1]ACS - O&M'!D164 -> 0.5 | E164: ='[1]ACS - O&M'!E164 -> 0.5 | F164: ='[1]ACS - O&M'!F164 -> 0.5 | G164: ='[1]ACS - O&M'!G164 -> 0.5 | H164: ='[1]ACS - O&M'!H164 -> 0.5
A165: % of repairs - luminaires | C165: ='[1]ACS - O&M'!C165 -> 0.15 | D165: ='[1]ACS - O&M'!D165 -> 0.15 | E165: ='[1]ACS - O&M'!E165 -> 0.15 | F165: ='[1]ACS - O&M'!F165 -> 0.15 | G165: ='[1]ACS - O&M'!G165 -> 0.15 | H165: ='[1]ACS - O&M'!H165 -> 0.15
A166: % of repairs - other | C166: ='[1]ACS - O&M'!C166 -> 0.1 | D166: ='[1]ACS - O&M'!D166 -> 0.1 | E166: ='[1]ACS - O&M'!E166 -> 0.1 | F166: ='[1]ACS - O&M'!F166 -> 0.1 | G166: ='[1]ACS - O&M'!G166 -> 0.1 | H166: ='[1]ACS - O&M'!H166 -> 0.1
A168: Other Maintenance and Repair costs
A169: Traffic control costs | C169: ='[1]ACS - O&M'!C169 -> 353.5940534 | D169: ='[1]ACS - O&M'!D169 -> 1540.390389 | E169: ='[1]ACS - O&M'!E169 -> 4228.774256 | F169: ='[1]ACS - O&M'!F169 -> 6735.184561 | G169: ='[1]ACS - O&M'!G169 -> 8257.153746 | H169: ='[1]ACS - O&M'!H169 -> 9982.62071
A170: Other costs : Cascading Network | C170: ='[1]ACS - O&M'!C170 -> 0 | D170: ='[1]ACS - O&M'!D170 -> 8653.51987 | E170: ='[1]ACS - O&M'!E170 -> 23394.82343 | F170: ='[1]ACS - O&M'!F170 -> 37917.31156 | G170: ='[1]ACS - O&M'!G170 -> 46284.7289 | H170: ='[1]ACS - O&M'!H170 -> 56090.56873
C171: =SUM(C169:C170) -> 353.5940534 | D171: 10193.91026 | E171: 27623.59768 | F171: 44652.49612 | G171: 54541.88264 | H171: 66073.18944
A172: Number of Lights | C172: ='DNSP Inputs General'!J72 -> 243.966 | D172: ='DNSP Inputs General'!K72 -> 1035.9315 | E172: ='DNSP Inputs General'!L72 -> 2741.23395 | F172: ='DNSP Inputs General'!M72 -> 4446.5364 | G172: ='DNSP Inputs General'!N72 -> 5335.84368 | H172: ='DNSP Inputs General'!O72 -> 6403.012416
A173: Unit Cost | C173: =IF(C172=0,0,C171/C172) -> 1.449357916 | D173: 9.840332356 | E173: 10.07706682 | F173: 10.04208492 | G173: 10.2217917 | H173: 10.31907876

Sheet DNSP Inputs Capex
A1: Public Lighting Cost Build-up Model
A3: ='DNSP Inputs O & M'!$A$3 -> CitiPower | C3: Capex Data Inputs
C5: Real 2015 $
A7: Input parameters | C7: 2015 | D7: 2016 | E7: 2017 | F7: 2018 | G7: 2019 | H7: 2020
A9: Inputs - all lamps
A11: Labour rate (per hour) | C11: ='[1]ACS - Capex'!C11 -> 121.4914353 | D11: ='[1]ACS - Capex'!D11 -> 123.7674125 | E11: ='[1]ACS - Capex'!E11 -> 125.8521179 | F11: ='[1]ACS - Capex'!F11 -> 127.9719375 | G11: ='[1]ACS - Capex'!G11 -> 130.1274628 | H11: ='[1]ACS - Capex'!H11 -> 132.3192952
A12: Elevated platform vehicle (per hour) - urban MV,urban T5 | C12: ='[1]ACS - Capex'!C12 -> 76.9531112 | D12: ='[1]ACS - Capex'!D12 -> 77.69564122 | E12: ='[1]ACS - Capex'!E12 -> 79.36920231 | F12: ='[1]ACS - Capex'!F12 -> 80.74617287 | G12: ='[1]ACS - Capex'!G12 -> 82.13129241 | H12: ='[1]ACS - Capex'!H12 -> 83.56418727
A13: Elevated platform vehicle (per hour) - rural MV, rural T5, S-HP | C13: ='[1]ACS - Capex'!C13 -> 57.00342251 | D13: ='[1]ACS - Capex'!D13 -> 57.55345553 | E13: ='[1]ACS - Capex'!E13 -> 58.79315472 | F13: ='[1]ACS - Capex'!F13 -> 59.81315292 | G13: ='[1]ACS - Capex'!G13 -> 60.83918751 | H13: ='[1]ACS - Capex'!H13 -> 61.90061193
A14: Number of hours in a day | C14: ='[1]ACS - Capex'!C14 -> 8 | D14: ='[1]ACS - Capex'!D14 -> 8 | E14: ='[1]ACS - Capex'!E14 -> 8 | F14: ='[1]ACS - Capex'!F14 -> 8 | G14: ='[1]ACS - Capex'!G14 -> 8 | H14: ='[1]ACS - Capex'!H14 -> 8
A18: Inputs - MV80
A20: Unit cost - luminaire | C20: ='[1]ACS - Capex'!C20 -> 197.5605047 | D20: ='[1]ACS - Capex'!D20 -> 197.5605047 | E20: ='[1]ACS - Capex'!E20 -> 197.5605047 | F20: ='[1]ACS - Capex'!F20 -> 197.5605047 | G20: ='[1]ACS - Capex'!G20 -> 197.5605047 | H20: ='[1]ACS - Capex'!H20 -> 197.5605047
A21: Unit cost - miscellaneous materials (bulk lamp) | C21: ='[1]ACS - Capex'!C21 -> 1.246045441 | D21: ='[1]ACS - Capex'!D21 -> 1.246045441 | E21: ='[1]ACS - Capex'!E21 -> 1.246045441 | F21: ='[1]ACS - Capex'!F21 -> 1.246045441 | G21: ='[1]ACS - Capex'!G21 -> 1.246045441 | H21: ='[1]ACS - Capex'!H21 -> 1.246045441
A22: Number of men in crew | C22: ='[1]ACS - Capex'!C22 -> 2 | D22: ='[1]ACS - Capex'!D22 -> 2 | E22: ='[1]ACS - Capex'!E22 -> 2 | F22: ='[1]ACS - Capex'!F22 -> 2 | G22: ='[1]ACS - Capex'!G22 -> 2 | H22: ='[1]ACS - Capex'!H22 -> 2
A23: Number of luminaires replaced per day - urban | C23: ='[1]ACS - Capex'!C23 -> 15.36 | D23: ='[1]ACS - Capex'!D23 -> 15.36 | E23: ='[1]ACS - Capex'!E23 -> 15.36 | F23: ='[1]ACS - Capex'!F23 -> 15.36 | G23: ='[1]ACS - Capex'!G23 -> 15.36 | H23: ='[1]ACS - Capex'!H23 -> 15.36
A25: Other Capex unit costs Describe :……………………… | C25: ='[1]ACS - Capex'!C25 -> 0 | D25: ='[1]ACS - Capex'!D25 -> 0 | E25: ='[1]ACS - Capex'!E25 -> 0 | F25: ='[1]ACS - Capex'!F25 -> 0 | G25: ='[1]ACS - Capex'!G25 -> 0 | H25: ='[1]ACS - Capex'!H25 -> 0
A27: Forecast Quantities to be replaced
A28: Number of luminaires replaced per year - urban | D28: ='[1]ACS - Capex'!D28 -> 42.91821951 | E28: ='[1]ACS - Capex'!E28 -> 24.17255478 | F28: ='[1]ACS - Capex'!F28 -> 20.65389304 | G28: ='[1]ACS - Capex'!G28 -> 18.4978355 | H28: ='[1]ACS - Capex'!H28 -> 16.31778586
A30: MV80 Lights replaced with T5 Energy Efficient Lights
A31: Number of Lights MV80 replaced with Energy Efficient Lights per year | D31: ='[1]ACS - Capex'!D31 -> 879.6137182 | E31: ='[1]ACS - Capex'!E31 -> 1894.031279 | F31: ='[1]ACS - Capex'!F31 -> 246.2483321 | G31: ='[1]ACS - Capex'!G31 -> 220.6278565 | H31: ='[1]ACS - Capex'!H31 -> 197.6730184
A35: Inputs - S-HP150
A37: Unit cost - luminaire | C37: ='[1]ACS - Capex'!C37 -> 203.4743498 | D37: ='[1]ACS - Capex'!D37 -> 203.4743498 | E37: ='[1]ACS - Capex'!E37 -> 203.4743498 | F37: ='[1]ACS - Capex'!F37 -> 203.4743498 | G37: ='[1]ACS - Capex'!G37 -> 203.4743498 | H37: ='[1]ACS - Capex'!H37 -> 203.4743498
A38: Unit cost - miscellaneous materials | C38: ='[1]ACS - Capex'!C38 -> 2.168773714 | D38: ='[1]ACS - Capex'!D38 -> 2.492090882 | E38: ='[1]ACS - Capex'!E38 -> 2.492090882 | F38: ='[1]ACS - Capex'!F38 -> 2.492090882 | G38: ='[1]ACS - Capex'!G38 -> 2.492090882 | H38: ='[1]ACS - Capex'!H38 -> 2.492090882
A39: Number of men in crew - repairs | C39: ='[1]ACS - Capex'!C39 -> 2 | D39: ='[1]ACS - Capex'!D39 -> 2 | E39: ='[1]ACS - Capex'!E39 -> 2 | F39: ='[1]ACS - Capex'!F39 -> 2 | G39: ='[1]ACS - Capex'!G39 -> 2 | H39: ='[1]ACS - Capex'!H39 -> 2
A40: Number of luminaires replaced per day - urban | C40: ='[1]ACS - Capex'!C40 -> 15.36 | D40: ='[1]ACS - Capex'!D40 -> 15.36 | E40: ='[1]ACS - Capex'!E40 -> 15.36 | F40: ='[1]ACS - Capex'!F40 -> 15.36 | G40: ='[1]ACS - Capex'!G40 -> 15.36 | H40: ='[1]ACS - Capex'!H40 -> 15.36
C41: ='[1]ACS - Capex'!C41 -> 0 | D41: ='[1]ACS - Capex'!D41 -> 0 | E41: ='[1]ACS - Capex'!E41 -> 0 | F41: ='[1]ACS - Capex'!F41 -> 0 | G41: ='[1]ACS - Capex'!G41 -> 0 | H41: ='[1]ACS - Capex'!H41 -> 0
A42: Other Capex unit costs Describe :……………………… | C42: ='[1]ACS - Capex'!C42 -> 0 | D42: ='[1]ACS - Capex'!D42 -> 0 | E42: ='[1]ACS - Capex'!E42 -> 0 | F42: ='[1]ACS - Capex'!F42 -> 0 | G42: ='[1]ACS - Capex'!G42 -> 0 | H42: ='[1]ACS - Capex'!H42 -> 0
A44: Forecast Quantities to be replaced
A45: Number of luminaires replaced per year - urban | D45: ='[1]ACS - Capex'!D45 -> 232.8220006 | E45: ='[1]ACS - Capex'!E45 -> 231.8862819 | F45: ='[1]ACS - Capex'!F45 -> 230.9455903 | G45: ='[1]ACS - Capex'!G45 -> 229.9999712 | H45: ='[1]ACS - Capex'!H45 -> 229.0494711
A49: Inputs - S-HP250
A51: Unit cost - luminaire | C51: ='[1]ACS - Capex'!C51 -> 206.510633 | D51: ='[1]ACS - Capex'!D51 -> 206.510633 | E51: ='[1]ACS - Capex'!E51 -> 206.510633 | F51: ='[1]ACS - Capex'!F51 -> 206.510633 | G51: ='[1]ACS - Capex'!G51 -> 206.510633 | H51: ='[1]ACS - Capex'!H51 -> 206.510633
A52: Unit cost - miscellaneous materials | C52: ='[1]ACS - Capex'!C52 -> 2.168773714 | D52: ='[1]ACS - Capex'!D52 -> 2.492090882 | E52: ='[1]ACS - Capex'!E52 -> 2.492090882 | F52: ='[1]ACS - Capex'!F52 -> 2.492090882 | G52: ='[1]ACS - Capex'!G52 -> 2.492090882 | H52: ='[1]ACS - Capex'!H52 -> 2.492090882
A53: Number of men in crew - repairs | C53: ='[1]ACS - Capex'!C53 -> 2 | D53: ='[1]ACS - Capex'!D53 -> 2 | E53: ='[1]ACS - Capex'!E53 -> 2 | F53: ='[1]ACS - Capex'!F53 -> 2 | G53: ='[1]ACS - Capex'!G53 -> 2 | H53: ='[1]ACS - Capex'!H53 -> 2
A54: Number of luminaires replaced per day - urban | C54: ='[1]ACS - Capex'!C54 -> 15.36 | D54: ='[1]ACS - Capex'!D54 -> 15.36 | E54: ='[1]ACS - Capex'!E54 -> 15.36 | F54: ='[1]ACS - Capex'!F54 -> 15.36 | G54: ='[1]ACS - Capex'!G54 -> 15.36 | H54: ='[1]ACS - Capex'!H54 -> 15.36
A56: Other Capex unit costs Describe :……………………… | C56: ='[1]ACS - Capex'!C56 -> 0 | D56: ='[1]ACS - Capex'!D56 -> 0 | E56: ='[1]ACS - Capex'!E56 -> 0 | F56: ='[1]ACS - Capex'!F56 -> 0 | G56: ='[1]ACS - Capex'!G56 -> 0 | H56: ='[1]ACS - Capex'!H56 -> 0
A58: Forecast Quantities to be replaced
A59: Number of luminaires replaced per year - urban | D59: ='[1]ACS - Capex'!D59 -> 78.48263074 | E59: ='[1]ACS - Capex'!E59 -> 79.2211019 | F59: ='[1]ACS - Capex'!F59 -> 79.96349765 | G59: ='[1]ACS - Capex'!G59 -> 80.70978228 | H59: ='[1]ACS - Capex'!H59 -> 81.45991895
A63: Dedicated street lighting poles
A65: Cost of pole & bracket | C65: ='[1]ACS - Capex'!C65 -> 1390.898761 | D65: ='[1]ACS - Capex'!D65 -> 1390.898761 | E65: ='[1]ACS - Capex'!E65 -> 1390.898761 | F65: ='[1]ACS - Capex'!F65 -> 1390.898761 | G65: ='[1]ACS - Capex'!G65 -> 1390.898761 | H65: ='[1]ACS - Capex'!H65 -> 1390.898761
A66: Number of poles & brackets replaced per day | C66: ='[1]ACS - Capex'!C66 -> 3.84 | D66: ='[1]ACS - Capex'!D66 -> 3.84 | E66: ='[1]ACS - Capex'!E66 -> 3.84 | F66: ='[1]ACS - Capex'!F66 -> 3.84 | G66: ='[1]ACS - Capex'!G66 -> 3.84 | H66: ='[1]ACS - Capex'!H66 -> 3.84
A67: Cost of bracket on non-dedicated poles | C67: ='[1]ACS - Capex'!C67 -> 42.18424 | D67: ='[1]ACS - Capex'!D67 -> 42.18424 | E67: ='[1]ACS - Capex'!E67 -> 42.18424 | F67: ='[1]ACS - Capex'!F67 -> 42.18424 | G67: ='[1]ACS - Capex'!G67 -> 42.18424 | H67: ='[1]ACS - Capex'!H67 -> 42.18424
A68: Number of brackets replaced per day | C68: ='[1]ACS - Capex'!C68 -> 19.2 | D68: ='[1]ACS - Capex'!D68 -> 19.2 | E68: ='[1]ACS - Capex'!E68 -> 19.2 | F68: ='[1]ACS - Capex'!F68 -> 19.2 | G68: ='[1]ACS - Capex'!G68 -> 19.2 | H68: ='[1]ACS - Capex'!H68 -> 19.2
A70: Other poles & brackets Capex unit costs Describe :………………… | C70: ='[1]ACS - Capex'!C70 -> 0 | D70: ='[1]ACS - Capex'!D70 -> 0 | E70: ='[1]ACS - Capex'!E70 -> 0 | F70: ='[1]ACS - Capex'!F70 -> 0 | G70: ='[1]ACS - Capex'!G70 -> 0 | H70: ='[1]ACS - Capex'!H70 -> 0
A73: Forecast Quantities to be replaced
A74: Number of poles & brackets replaced per year - urban | D74: ='[1]ACS - Capex'!D74 -> 0 | E74: ='[1]ACS - Capex'!E74 -> 0 | F74: ='[1]ACS - Capex'!F74 -> 0 | G74: ='[1]ACS - Capex'!G74 -> 0 | H74: ='[1]ACS - Capex'!H74 -> 0
A76: Brackets on non-dedicated poles :
A77: Number of brackets replaced per year - urban | D77: ='[1]ACS - Capex'!D77 -> 20 | E77: ='[1]ACS - Capex'!E77 -> 20 | F77: ='[1]ACS - Capex'!F77 -> 20 | G77: ='[1]ACS - Capex'!G77 -> 20 | H77: ='[1]ACS - Capex'!H77 -> 20
A81: Luminaire Replacents - Other Light types (excluding Energy Efficient Lights)
A82: Number of luminaires replaced per year | D82: ='[1]ACS - Capex'!D82 -> 341.4239556 | E82: ='[1]ACS - Capex'!E82 -> 341.4239556 | F82: ='[1]ACS - Capex'!F82 -> 341.4239556 | G82: ='[1]ACS - Capex'!G82 -> 341.4239556 | H82: ='[1]ACS - Capex'!H82 -> 341.4239556
A83: Forecast Capex | D83: ='[1]ACS - Capex'!D83 -> 257919.8303 | E83: ='[1]ACS - Capex'!E83 -> 257919.8303 | F83: ='[1]ACS - Capex'!F83 -> 257919.8303 | G83: ='[1]ACS - Capex'!G83 -> 257919.8303 | H83: ='[1]ACS - Capex'!H83 -> 257919.8303
A87: Inputs - T5 (2 X 14W)
A89: Unit cost - luminaire | C89: ='[1]ACS - Capex'!C89 -> 300.5212395 | D89: ='[1]ACS - Capex'!D89 -> 300.5212395 | E89: ='[1]ACS - Capex'!E89 -> 300.5212395 | F89: ='[1]ACS - Capex'!F89 -> 300.5212395 | G89: ='[1]ACS - Capex'!G89 -> 300.5212395 | H89: ='[1]ACS - Capex'!H89 -> 300.5212395
A90: Unit cost - miscellaneous materials | C90: ='[1]ACS - Capex'!C90 -> 1.246045441 | D90: ='[1]ACS - Capex'!D90 -> 1.246045441 | E90: ='[1]ACS - Capex'!E90 -> 1.246045441 | F90: ='[1]ACS - Capex'!F90 -> 1.246045441 | G90: ='[1]ACS - Capex'!G90 -> 1.246045441 | H90: ='[1]ACS - Capex'!H90 -> 1.246045441
A91: Number of men in crew - repairs | C91: ='[1]ACS - Capex'!C91 -> 2 | D91: ='[1]ACS - Capex'!D91 -> 2 | E91: ='[1]ACS - Capex'!E91 -> 2 | F91: ='[1]ACS - Capex'!F91 -> 2 | G91: ='[1]ACS - Capex'!G91 -> 2 | H91: ='[1]ACS - Capex'!H91 -> 2
A92: Number of luminaires replaced per day - urban | C92: ='[1]ACS - Capex'!C92 -> 15.36 | D92: ='[1]ACS - Capex'!D92 -> 15.36 | E92: ='[1]ACS - Capex'!E92 -> 15.36 | F92: ='[1]ACS - Capex'!F92 -> 15.36 | G92: ='[1]ACS - Capex'!G92 -> 15.36 | H92: ='[1]ACS - Capex'!H92 -> 15.36
A94: Other Capex unit costs Describe :……………………… | C94: ='[1]ACS - Capex'!C94 -> 0 | D94: ='[1]ACS - Capex'!D94 -> 0 | E94: ='[1]ACS - Capex'!E94 -> 0 | F94: ='[1]ACS - Capex'!F94 -> 0 | G94: ='[1]ACS - Capex'!G94 -> 0 | H94: ='[1]ACS - Capex'!H94 -> 0
A96: Forecast Quantities to be replaced
A97: Number of luminaires replaced per year - urban | D97: ='[1]ACS - Capex'!D97 -> 138.3271888 | E97: ='[1]ACS - Capex'!E97 -> 137.4510989 | F97: ='[1]ACS - Capex'!F97 -> 121.9055526 | G97: ='[1]ACS - Capex'!G97 -> 113.3283008 | H97: ='[1]ACS - Capex'!H97 -> 103.7706636
A101: Inputs - Category P LED
A103: Unit cost - luminaire | C103: ='[1]ACS - Capex'!C103 -> 352.7287516 | D103: ='[1]ACS - Capex'!D103 -> 352.7287516 | E103: ='[1]ACS - Capex'!E103 -> 352.7287516 | F103: ='[1]ACS - Capex'!F103 -> 352.7287516 | G103: ='[1]ACS - Capex'!G103 -> 352.7287516 | H103: ='[1]ACS - Capex'!H103 -> 352.7287516
A104: Unit cost - miscellaneous materials | C104: ='[1]ACS - Capex'!C104 -> 1.246045441 | D104: ='[1]ACS - Capex'!D104 -> 1.246045441 | E104: ='[1]ACS - Capex'!E104 -> 1.246045441 | F104: ='[1]ACS - Capex'!F104 -> 1.246045441 | G104: ='[1]ACS - Capex'!G104 -> 1.246045441 | H104: ='[1]ACS - Capex'!H104 -> 1.246045441
A105: Number of men in crew - repairs | C105: ='[1]ACS - Capex'!C105 -> 2 | D105: ='[1]ACS - Capex'!D105 -> 2 | E105: ='[1]ACS - Capex'!E105 -> 2 | F105: ='[1]ACS - Capex'!F105 -> 2 | G105: ='[1]ACS - Capex'!G105 -> 2 | H105: ='[1]ACS - Capex'!H105 -> 2
A106: Number of luminaires replaced per day - urban | C106: ='[1]ACS - Capex'!C106 -> 15.36 | D106: ='[1]ACS - Capex'!D106 -> 15.36 | E106: ='[1]ACS - Capex'!E106 -> 15.36 | F106: ='[1]ACS - Capex'!F106 -> 15.36 | G106: ='[1]ACS - Capex'!G106 -> 15.36 | H106: ='[1]ACS - Capex'!H106 -> 15.36
A108: Other Capex unit costs Describe :……………………… | C108: ='[1]ACS - Capex'!C108 -> 0 | D108: ='[1]ACS - Capex'!D108 -> 0 | E108: ='[1]ACS - Capex'!E108 -> 0 | F108: ='[1]ACS - Capex'!F108 -> 0 | G108: ='[1]ACS - Capex'!G108 -> 0 | H108: ='[1]ACS - Capex'!H108 -> 0
A110: Forecast Quantities to be replaced
A111: Number of luminaires replaced per year - urban | D111: ='[1]ACS - Capex'!D111 -> 10.43469103 | E111: ='[1]ACS - Capex'!E111 -> 27.99685492 | F111: ='[1]ACS - Capex'!F111 -> 43.30891654 | G111: ='[1]ACS - Capex'!G111 -> 51.95059265 | H111: ='[1]ACS - Capex'!H111 -> 61.37973666
A115: Reset RIN
A116: Number of lights replaced | D116: =SUM(D28,D45,D59,D97,D111) -> 502.9847307 | E116: =SUM(E28,E45,E59,E97,E111) -> 500.7278924 | F116: 496.7774502 | G116: 494.4864824 | H116: 491.9775762

Sheet Total RAB
A1: ='DNSP Inputs O & M'!$A$3 -> CitiPower | E1: Check | F1: =SUM(B144) -> 6.98491931e-09
A3: Total Public Lighting RAB
A4: Historical cost ($)
B6: Life (years) | C6: 2005 | D6: 2006 | E6: 2007 | F6: 2008 | G6: 2009 | H6: 2010 | I6: 2011 | J6: 2012 | K6: 2013 | L6: 2014 | M6: 2015 | N6: 2016 | O6: 2017 | P6: 2018 | Q6: 2019 | R6: 2020
A8: Capital Expenditue (Nominal $)
A9: (Net of customer contributions)
A11: Poles and Brackets | B11: 35 | C11: 69713.87212 | D11: 57351.92811 | E11: 40344.88999 | F11: 43304.26446 | G11: ='DNSP Inputs General'!D6 -> 105950.2047 | H11: ='DNSP Inputs General'!E6 -> 11736.16167 | I11: ='DNSP Inputs General'!F6 -> 10313.31404 | J11: ='DNSP Inputs General'!G6 -> 12803.86436 | K11: ='DNSP Inputs General'!H6 -> -44327.21715 | L11: ='DNSP Inputs General'!I6 -> 17361.83832 | M11: ='DNSP Inputs General'!J6*M$20 -> 11317.4464 | N11: ='DNSP Inputs General'!K6*N$20 -> 3646.341092 | O11: ='DNSP Inputs General'!L6*O$20 -> 3792.402262 | P11: ='DNSP Inputs General'!M6*P$20 -> 3941.556342 | Q11: ='DNSP Inputs General'!N6*Q$20 -> 4096.637461 | R11: ='DNSP Inputs General'!O6*R$20 -> 4258.258935
A13: Existing Lights
A14: Luminaires | B14: ='DNSP Inputs O & M'!$C$23 -> 20 | C14: ='[1]DNSP Inputs General'!B9*'[1]allocation inputs'!G12 -> 1132850.422 | D14: ='[1]DNSP Inputs General'!C9*'[1]allocation inputs'!H12 -> 931968.8318 | E14: ='[1]DNSP Inputs General'!D9*'[1]allocation inputs'!I12 -> 655604.4623 | F14: ='[1]DNSP Inputs General'!E9*'[1]allocation inputs'!J12 -> 703694.2975 | G14: ='DNSP Inputs General'!D9 -> 1162738.205 | H14: ='DNSP Inputs General'!E9 -> 137572.3318 | I14: ='DNSP Inputs General'!F9 -> 118406.0629 | J14: ='DNSP Inputs General'!G9 -> 201240.3768 | K14: ='DNSP Inputs General'!H9 -> -504639.4653 | L14: ='DNSP Inputs General'!I9 -> 741036.4368 | M14: ='DNSP Inputs General'!J9*M$20 -> 483050.2394 | N14: ='DNSP Inputs General'!K9*N$20 -> 7988.883211 | O14: ='DNSP Inputs General'!L9*O$20 -> -126099.4249 | P14: ='DNSP Inputs General'!M9*P$20 -> 105232.7777 | Q14: ='DNSP Inputs General'!N9*Q$20 -> 114275.6776 | R14: ='DNSP Inputs General'!O9*R$20 -> 122677.2887
A16: Energy Efficient Lights
A17: Luminaires and Ballasts | B17: ='DNSP Inputs O & M'!$C$119 -> 20 | G17: ='DNSP Inputs General'!D12 -> 558952.6223 | H17: ='DNSP Inputs General'!E12 -> 66133.90294 | I17: ='DNSP Inputs General'!F12 -> 56920.27584 | J17: ='DNSP Inputs General'!G12 -> 96740.46649 | K17: ='DNSP Inputs General'!H12 -> -242590.7666 | L17: ='DNSP Inputs General'!I12 -> 356231.7449 | M17: ='DNSP Inputs General'!J12*M$20 -> 232212.3733 | N17: ='DNSP Inputs General'!K12*N$20 -> 72471.65543 | O17: ='DNSP Inputs General'!L12*O$20 -> 84127.01535 | P17: ='DNSP Inputs General'!M12*P$20 -> 87580.12108 | Q17: ='DNSP Inputs General'!N12*Q$20 -> 90934.57049 | R17: ='DNSP Inputs General'!O12*R$20 -> 94357.24456
A20: CPI Index | M20: 1 | N20: =M20*(1+WACC!E$6) -> 1.026 | O20: =N20*(1+WACC!F$6) -> 1.052676 | P20: =O20*(1+WACC!G$6) -> 1.080045576 | Q20: =P20*(1+WACC!H$6) -> 1.108126761 | R20: =Q20*(1+WACC!I$6) -> 1.136938057
A23: Depreciation | C23: =$C$6 -> 2005 | D23: =$D$6 -> 2006 | E23: =$E$6 -> 2007 | F23: =$F$6 -> 2008 | G23: =G$6 -> 2009 | H23: =H$6 -> 2010 | I23: 2011 | J23: 2012 | K23: 2013 | L23: 2014 | M23: 2015 | N23: 2016 | O23: 2017 | P23: 2018 | Q23: 2019 | R23: 2020
A24: =$A$11 -> Poles and Brackets
A25: RAB 2001-04 | C25: ='RAB 2001 to 2004'!F113 -> 0 | D25: ='RAB 2001 to 2004'!G113 -> 0 | E25: ='RAB 2001 to 2004'!H113 -> 0 | F25: ='RAB 2001 to 2004'!I113 -> 0 | G25: ='RAB 2001 to 2004'!J113 -> 0 | H25: ='RAB 2001 to 2004'!K113 -> 0 | I25: ='RAB 2001 to 2004'!L113 -> 0 | J25: ='RAB 2001 to 2004'!M113 -> 0 | K25: ='RAB 2001 to 2004'!N113 -> 0 | L25: ='RAB 2001 to 2004'!O113 -> 0 | M25: ='RAB 2001 to 2004'!P113 -> 0 | N25: ='RAB 2001 to 2004'!Q113 -> 0 | O25: ='RAB 2001 to 2004'!R113 -> 0 | P25: ='RAB 2001 to 2004'!S113 -> 0 | Q25: ='RAB 2001 to 2004'!T113 -> 0 | R25: ='RAB 2001 to 2004'!U113 -> 0
A26: Depn Capex 2005 | C26: =C$11/$B$11/2 -> 995.9124588 | D26: =C26*2 -> 1991.824918 | E26: =D26 -> 1991.824918 | F26: =E26 -> 1991.824918 | G26: =F26 -> 1991.824918 | H26: 1991.824918 | I26: 1991.824918 | J26: 1991.824918 | K26: 1991.824918 | L26: 1991.824918 | M26: 1991.824918 | N26: 1991.824918 | O26: 1991.824918 | P26: 1991.824918 | Q26: 1991.824918 | R26: 1991.824918
A27: Depn Capex 2006 | D27: =D$11/$B$11/2 -> 819.3132587 | E27: =D27*2 -> 1638.626517 | F27: =E27 -> 1638.626517 | G27: 1638.626517 | H27: 1638.626517 | I27: 1638.626517 | J27: 1638.626517 | K27: 1638.626517 | L27: 1638.626517 | M27: 1638.626517 | N27: 1638.626517 | O27: 1638.626517 | P27: 1638.626517 | Q27: 1638.626517 | R27: 1638.626517
A28: Depn Capex 2007 | E28: =E$11/$B$11/2 -> 576.3555713 | F28: =E28*2 -> 1152.711143 | G28: =F28 -> 1152.711143 | H28: 1152.711143 | I28: 1152.711143 | J28: 1152.711143 | K28: 1152.711143 | L28: 1152.711143 | M28: 1152.711143 | N28: 1152.711143 | O28: 1152.711143 | P28: 1152.711143 | Q28: 1152.711143 | R28: 1152.711143
A29: Depn Capex 2008 | F29: =F$11/$B$11/2 -> 618.6323495 | G29: =F29*2 -> 1237.264699 | H29: 1237.264699 | I29: 1237.264699 | J29: 1237.264699 | K29: 1237.264699 | L29: 1237.264699 | M29: 1237.264699 | N29: 1237.264699 | O29: 1237.264699 | P29: 1237.264699 | Q29: 1237.264699 | R29: 1237.264699
A30: Depn Capex 2009 | G30: =G$11/$B$11/2 -> 1513.574354 | H30: =G30*2 -> 3027.148707 | I30: =H30 -> 3027.148707 | J30: =I30 -> 3027.148707 | K30: =J30 -> 3027.148707 | L30: =K30 -> 3027.148707 | M30: =L30 -> 3027.148707 | N30: 3027.148707 | O30: 3027.148707 | P30: 3027.148707 | Q30: 3027.148707 | R30: 3027.148707
A31: Depn Capex 2010 | H31: =H$11/$B$11/2 -> 167.6594524 | I31: =H31*2 -> 335.3189048 | J31: =I31 -> 335.3189048 | K31: =J31 -> 335.3189048 | L31: =K31 -> 335.3189048 | M31: =L31 -> 335.3189048 | N31: 335.3189048 | O31: 335.3189048 | P31: 335.3189048 | Q31: 335.3189048 | R31: 335.3189048
A32: Depn Capex 2011 | I32: =I$11/$B$11/2 -> 147.3330578 | J32: =I32*2 -> 294.6661155 | K32: =J32 -> 294.6661155 | L32: =K32 -> 294.6661155 | M32: =L32 -> 294.6661155 | N32: 294.6661155 | O32: 294.6661155 | P32: 294.6661155 | Q32: 294.6661155 | R32: 294.6661155
A33: Depn Capex 2012 | J33: =J$11/$B$11/2 -> 182.912348 | K33: =J33*2 -> 365.8246961 | L33: =K33 -> 365.8246961 | M33: =L33 -> 365.8246961 | N33: 365.8246961 | O33: 365.8246961 | P33: 365.8246961 | Q33: 365.8246961 | R33: 365.8246961
A34: Depn Capex 2013 | K34: =K$11/$B$11/2 -> -633.2459592 | L34: =K34*2 -> -1266.491918 | M34: =L34 -> -1266.491918 | N34: -1266.491918 | O34: -1266.491918 | P34: -1266.491918 | Q34: -1266.491918 | R34: -1266.491918
A35: Depn Capex 2014 | L35: =L$11/$B$11/2 -> 248.0262617 | M35: =L35*2 -> 496.0525234 | N35: 496.0525234 | O35: 496.0525234 | P35: 496.0525234 | Q35: 496.0525234 | R35: 496.0525234
A36: Depn Capex 2015 | M36: =M$11/$B$11/2 -> 161.6778058 | N36: =M36*2 -> 323.3556115 | O36: 323.3556115 | P36: 323.3556115 | Q36: 323.3556115 | R36: 323.3556115
A37: Depn Capex 2016 | N37: =N$11/$B$11/2 -> 52.09058702 | O37: =N37*2 -> 104.181174 | P37: 104.181174 | Q37: 104.181174 | R37: 104.181174
A38: Depn Capex 2017 | O38: =O$11/$B$11/2 -> 54.17717517 | P38: =O38*2 -> 108.3543503 | Q38: 108.3543503 | R38: 108.3543503
A39: Depn Capex 2018 | P39: =P$11/$B$11/2 -> 56.30794774 | Q39: =P39*2 -> 112.6158955 | R39: 112.6158955
A40: Depn Capex 2019 | Q40: =Q$11/$B$11/2 -> 58.5233923 | R40: =Q40*2 -> 117.0467846
A41: Depn Capex 2020 | R41: =R$11/$B$11/2 -> 60.8322705
A42: Total Depreciation | C42: =SUM(C25:C41) -> 995.9124588 | D42: =SUM(D25:D41) -> 2811.138176 | E42: 4206.807006 | F42: 5401.794927 | G42: 7534.00163 | H42: 9215.235436 | I42: 9530.227946 | J42: 9860.473352 | K42: 9410.139741 | L42: 9024.920043 | M42: 9434.624111 | N42: 9648.392503 | O42: 9754.660266 | P42: 9865.145389 | Q42: 9979.976729 | R42: 10099.33239
A44: =$A$13 -> Existing Lights
A45: =$A$14 -> Luminaires
A46: =A25 -> RAB 2001-04 | C46: ='RAB 2001 to 2004'!F77 -> 111814.2798 | D46: ='RAB 2001 to 2004'!G77 -> 111814.2798 | E46: ='RAB 2001 to 2004'!H77 -> 111814.2798 | F46: ='RAB 2001 to 2004'!I77 -> 111814.2798 | G46: ='RAB 2001 to 2004'!J77 -> 111814.2798 | H46: ='RAB 2001 to 2004'!K77 -> 111814.2798 | I46: ='RAB 2001 to 2004'!L77 -> 111814.2798 | J46: ='RAB 2001 to 2004'!M77 -> 111814.2798 | K46: ='RAB 2001 to 2004'!N77 -> 111814.2798 | L46: ='RAB 2001 to 2004'!O77 -> 111814.2798 | M46: ='RAB 2001 to 2004'!P77 -> 111814.2798 | N46: ='RAB 2001 to 2004'!Q77 -> 111814.2798 | O46: ='RAB 2001 to 2004'!R77 -> 111814.2798 | P46: ='RAB 2001 to 2004'!S77 -> 111814.2798 | Q46: ='RAB 2001 to 2004'!T77 -> 111814.2798 | R46: ='RAB 2001 to 2004'!U77 -> 111814.2798
A47: =A26 -> Depn Capex 2005 | C47: =C$14/$B$14/2 -> 28321.26055 | D47: =C47*2 -> 56642.52109 | E47: =D47 -> 56642.52109 | F47: 56642.52109 | G47: 56642.52109 | H47: 56642.52109 | I47: 56642.52109 | J47: 56642.52109 | K47: 56642.52109 | L47: 56642.52109 | M47: 56642.52109 | N47: =M47 -> 56642.52109 | O47: =N47 -> 56642.52109 | P47: =O47 -> 56642.52109 | Q47: =P47 -> 56642.52109 | R47: =Q47 -> 56642.52109
A48: =A27 -> Depn Capex 2006 | D48: =D$14/$B$14/2 -> 23299.22079 | E48: =D48*2 -> 46598.44159 | F48: =E48 -> 46598.44159 | G48: 46598.44159 | H48: 46598.44159 | I48: 46598.44159 | J48: 46598.44159 | K48: 46598.44159 | L48: 46598.44159 | M48: 46598.44159 | N48: 46598.44159 | O48: 46598.44159 | P48: 46598.44159 | Q48: 46598.44159 | R48: 46598.44159
A49: Depn Capex 2007 | E49: =E$14/$B$14/2 -> 16390.11156 | F49: =E49*2 -> 32780.22312 | G49: =F49 -> 32780.22312 | H49: 32780.22312 | I49: 32780.22312 | J49: 32780.22312 | K49: 32780.22312 | L49: 32780.22312 | M49: 32780.22312 | N49: 32780.22312 | O49: 32780.22312 | P49: 32780.22312 | Q49: 32780.22312 | R49: 32780.22312
A50: Depn Capex 2008 | F50: =F$14/$B$14/2 -> 17592.35744 | G50: =F50*2 -> 35184.71488 | H50: =G50 -> 35184.71488 | I50: 35184.71488 | J50: 35184.71488 | K50: 35184.71488 | L50: 35184.71488 | M50: 35184.71488 | N50: 35184.71488 | O50: 35184.71488 | P50: 35184.71488 | Q50: 35184.71488 | R50: 35184.71488
A51: Depn Capex 2009 | G51: =G$14/$B$14/2 -> 29068.45512 | H51: =G51*2 -> 58136.91024 | I51: =H51 -> 58136.91024 | J51: =I51 -> 58136.91024 | K51: =J51 -> 58136.91024 | L51: =K51 -> 58136.91024 | M51: =L51 -> 58136.91024 | N51: 58136.91024 | O51: 58136.91024 | P51: 58136.91024 | Q51: 58136.91024 | R51: 58136.91024
A52: Depn Capex 2010 | H52: =H$14/$B$14/2 -> 3439.308294 | I52: =H52*2 -> 6878.616588 | J52: =I52 -> 6878.616588 | K52: =J52 -> 6878.616588 | L52: =K52 -> 6878.616588 | M52: =L52 -> 6878.616588 | N52: 6878.616588 | O52: 6878.616588 | P52: 6878.616588 | Q52: 6878.616588 | R52: 6878.616588
A53: Depn Capex 2011 | I53: =I$14/$B$14/2 -> 2960.151572 | J53: =I53*2 -> 5920.303145 | K53: =J53 -> 5920.303145 | L53: =K53 -> 5920.303145 | M53: =L53 -> 5920.303145 | N53: 5920.303145 | O53: 5920.303145 | P53: 5920.303145 | Q53: 5920.303145 | R53: 5920.303145
A54: Depn Capex 2012 | J54: =J$14/$B$14/2 -> 5031.009421 | K54: =J54*2 -> 10062.01884 | L54: =K54 -> 10062.01884 | M54: =L54 -> 10062.01884 | N54: 10062.01884 | O54: 10062.01884 | P54: 10062.01884 | Q54: 10062.01884 | R54: 10062.01884
A55: Depn Capex 2013 | K55: =K$14/$B$14/2 -> -12615.98663 | L55: =K55*2 -> -25231.97327 | M55: =L55 -> -25231.97327 | N55: -25231.97327 | O55: -25231.97327 | P55: -25231.97327 | Q55: -25231.97327 | R55: -25231.97327
A56: Depn Capex 2014 | L56: =L$14/$B$14/2 -> 18525.91092 | M56: =L56*2 -> 37051.82184 | N56: 37051.82184 | O56: =N56 -> 37051.82184 | P56: =O56 -> 37051.82184 | Q56: =P56 -> 37051.82184 | R56: =Q56 -> 37051.82184
A57: Depn Capex 2015 | M57: =M$14/$B$14/2 -> 12076.25599 | N57: =M57*2 -> 24152.51197 | O57: 24152.51197 | P57: 24152.51197 | Q57: 24152.51197 | R57: 24152.51197
A58: Depn Capex 2016 | N58: =N$14/$B$14/2 -> 199.7220803 | O58: =N58*2 -> 399.4441605 | P58: =O58 -> 399.4441605 | Q58: 399.4441605 | R58: 399.4441605
A59: Depn Capex 2017 | O59: =O$14/$B$14/2 -> -3152.485621 | P59: =O59*2 -> -6304.971243 | Q59: -6304.971243 | R59: -6304.971243
A60: Depn Capex 2018 | P60: =P$14/$B$14/2 -> 2630.819442 | Q60: =P60*2 -> 5261.638884 | R60: 5261.638884
A61: Depn Capex 2019 | Q61: =Q$14/$B$14/2 -> 2856.89194 | R61: =Q61*2 -> 5713.783879
A62: Depn Capex 2020 | R62: =R$14/$B$14/2 -> 3066.932218
A63: Total Depreciation | C63: =SUM(C46:C62) -> 140135.5403 | D63: 191756.0216 | E63: 231445.354 | F63: 265427.823 | G63: 312088.6355 | H63: 344596.399 | I63: 350995.8588 | J63: 358987.0198 | K63: 351402.0426 | L63: 357311.9669 | M63: 387914.1338 | N63: 400190.1119 | O63: 397237.3483 | P63: 396715.6822 | Q63: 402203.3935 | R63: 408127.2177
A65: =$A$16 -> Energy Efficient Lights
A66: =$A$17 -> Luminaires and Ballasts
A67: =A46 -> RAB 2001-04
A68: =A47 -> Depn Capex 2005
A69: =A48 -> Depn Capex 2006
A70: Depn Capex 2007
A71: Depn Capex 2008
A72: Depn Capex 2009 | G72: =G$17/$B$17/2 -> 13973.81556 | H72: =G72*2 -> 27947.63112 | I72: =H72 -> 27947.63112 | J72: =I72 -> 27947.63112 | K72: =J72 -> 27947.63112 | L72: =K72 -> 27947.63112 | M72: =L72 -> 27947.63112 | N72: =M72 -> 27947.63112 | O72: 27947.63112 | P72: 27947.63112 | Q72: 27947.63112 | R72: 27947.63112
A73: Depn Capex 2010 | H73: =H$17/$B$17/2 -> 1653.347574 | I73: =H73*2 -> 3306.695147 | J73: =I73 -> 3306.695147 | K73: =J73 -> 3306.695147 | L73: =K73 -> 3306.695147 | M73: =L73 -> 3306.695147 | N73: =M73 -> 3306.695147 | O73: 3306.695147 | P73: 3306.695147 | Q73: 3306.695147 | R73: 3306.695147
A74: Depn Capex 2011 | I74: =I$17/$B$17/2 -> 1423.006896 | J74: =I74*2 -> 2846.013792 | K74: =J74 -> 2846.013792 | L74: =K74 -> 2846.013792 | M74: =L74 -> 2846.013792 | N74: =M74 -> 2846.013792 | O74: 2846.013792 | P74: 2846.013792 | Q74: 2846.013792 | R74: 2846.013792
A75: Depn Capex 2012 | J75: =J$17/$B$17/2 -> 2418.511662 | K75: =J75*2 -> 4837.023325 | L75: =K75 -> 4837.023325 | M75: =L75 -> 4837.023325 | N75: =M75 -> 4837.023325 | O75: 4837.023325 | P75: 4837.023325 | Q75: 4837.023325 | R75: 4837.023325
A76: Depn Capex 2013 | K76: =K$17/$B$17/2 -> -6064.769165 | L76: =K76*2 -> -12129.53833 | M76: =L76 -> -12129.53833 | N76: =M76 -> -12129.53833 | O76: -12129.53833 | P76: -12129.53833 | Q76: -12129.53833 | R76: -12129.53833
A77: Depn Capex 2014 | L77: =L$17/$B$17/2 -> 8905.793622 | M77: =L77*2 -> 17811.58724 | N77: 17811.58724 | O77: =N77 -> 17811.58724 | P77: 17811.58724 | Q77: 17811.58724 | R77: 17811.58724
A78: Depn Capex 2015 | M78: =M$17/$B$17/2 -> 5805.309332 | N78: =M78*2 -> 11610.61866 | O78: =N78 -> 11610.61866 | P78: 11610.61866 | Q78: 11610.61866 | R78: 11610.61866
A79: Depn Capex 2016 | N79: =N$17/$B$17/2 -> 1811.791386 | O79: =N79*2 -> 3623.582772 | P79: =O79 -> 3623.582772 | Q79: 3623.582772 | R79: 3623.582772
A80: Depn Capex 2017 | O80: =O$17/$B$17/2 -> 2103.175384 | P80: =O80*2 -> 4206.350768 | Q80: 4206.350768 | R80: 4206.350768
A81: Depn Capex 2018 | P81: =P$17/$B$17/2 -> 2189.503027 | Q81: =P81*2 -> 4379.006054 | R81: 4379.006054
A82: Depn Capex 2019 | Q82: =Q$17/$B$17/2 -> 2273.364262 | R82: =Q82*2 -> 4546.728524
A83: Depn Capex 2020 | R83: =R$17/$B$17/2 -> 2358.931114
A84: Total Depreciation | C84: =SUM(C67:C83) -> 0 | D84: =SUM(D67:D83) -> 0 | E84: =SUM(E67:E83) -> 0 | F84: =SUM(F67:F83) -> 0 | G84: =SUM(G67:G83) -> 13973.81556 | H84: =SUM(H67:H83) -> 29600.97869 | I84: =SUM(I67:I83) -> 32677.33316 | J84: =SUM(J67:J83) -> 36518.85172 | K84: =SUM(K67:K83) -> 32872.59421 | L84: =SUM(L67:L83) -> 35713.61867 | M84: =SUM(M67:M83) -> 50424.72163 | N84: =SUM(N67:N83) -> 58041.82234 | O84: =SUM(O67:O83) -> 61956.78911 | P84: =SUM(P67:P83) -> 66249.46752 | Q84: =SUM(Q67:Q83) -> 70712.33481 | R84: =SUM(R67:R83) -> 75344.63019
A87: Nominal pre tax WACC | N87: =WACC!E$8 -> 0.08453812274 | O87: =WACC!F$8 -> 0.08453812274 | P87: =WACC!G$8 -> 0.08453812274 | Q87: =WACC!H$8 -> 0.08453812274 | R87: =WACC!I$8 -> 0.08453812274
A90: =$A$11 -> Poles and Brackets
A91: RAB | C91: =C$6 -> 2005 | D91: =D$6 -> 2006 | E91: 2007 | F91: 2008 | G91: 2009 | H91: 2010 | I91: 2011 | J91: 2012 | K91: 2013 | L91: 2014 | M91: 2015 | N91: 2016 | O91: 2017 | P91: 2018 | Q91: 2019 | R91: 2020
A92: Opening RAB | C92: ='RAB 2001 to 2004'!E113 -> 0 | D92: =C95 -> 68717.95966 | E92: 123258.7496 | F92: 159396.8326 | G92: 197299.3021 | H92: 295715.5052 | I92: 298236.4315 | J92: 299019.5176 | K92: 301962.9086 | L92: 248225.5517 | M92: 256562.47 | N92: =M95 -> 258445.2922 | O92: =N95 -> 252443.2408 | P92: =O95 -> 246480.9828 | Q92: =P95 -> 240557.3938 | R92: =Q95 -> 234674.0545
A93: Additional Capex | C93: =C$11 -> 69713.87212 | D93: 57351.92811 | E93: 40344.88999 | F93: 43304.26446 | G93: 105950.2047 | H93: 11736.16167 | I93: 10313.31404 | J93: 12803.86436 | K93: -44327.21715 | L93: 17361.83832 | M93: 11317.4464 | N93: 3646.341092 | O93: 3792.402262 | P93: 3941.556342 | Q93: 4096.637461 | R93: 4258.258935
A94: Depreciation | C94: =C$42 -> 995.9124588 | D94: 2811.138176 | E94: 4206.807006 | F94: 5401.794927 | G94: 7534.00163 | H94: 9215.235436 | I94: 9530.227946 | J94: 9860.473352 | K94: 9410.139741 | L94: 9024.920043 | M94: 9434.624111 | N94: 9648.392503 | O94: 9754.660266 | P94: 9865.145389 | Q94: 9979.976729 | R94: 10099.33239
A95: Closing RAB | C95: =C92+C93-C94 -> 68717.95966 | D95: 123258.7496 | E95: 159396.8326 | F95: 197299.3021 | G95: 295715.5052 | H95: 298236.4315 | I95: 299019.5176 | J95: 301962.9086 | K95: 248225.5517 | L95: 256562.47 | M95: 258445.2922 | N95: =N92+N93-N94 -> 252443.2408 | O95: 246480.9828 | P95: 240557.3938 | Q95: 234674.0545 | R95: 228832.9811
A96: Average RAB | C96: =SUM(C92,C95)/2 -> 34358.97983 | D96: 95988.35462 | E96: 141327.7911 | F96: 178348.0673 | G96: =SUM(G92,G95)/2 -> 246507.4037 | H96: 296975.9683 | I96: 298627.9745 | J96: 300491.2131 | K96: 275094.2301 | L96: 252394.0108 | M96: 257503.8811 | N96: 255444.2665 | O96: 249462.1118 | P96: 243519.1883 | Q96: 237615.7242 | R96: 231753.5178
A98: Total Value to be recovered by change in unit rates | N98: =N$6 -> 2016 | O98: 2017 | P98: 2018 | Q98: 2019 | R98: 2020
A99: Depreciation | N99: =N94 -> 9648.392503 | O99: =O94 -> 9754.660266 | P99: =P94 -> 9865.145389 | Q99: =Q94 -> 9979.976729 | R99: =R94 -> 10099.33239
A100: ROA | N100: =N$87*N96 -> 21594.77876 | O100: =O$87*O96 -> 21089.05863 | P100: 20586.65503 | Q100: 20087.58725 | R100: 19592.00733
N101: =SUM(N99:N100) -> 31243.17126 | O101: 30843.71889 | P101: 30451.80042 | Q101: 30067.56398 | R101: 29691.33972
A104: =$A$13 -> Existing Lights
A105: =$A$14 -> Luminaires
A106: RAB | C106: =$C$6 -> 2005 | D106: =$D$6 -> 2006 | E106: =$E$6 -> 2007 | F106: =$F$6 -> 2008 | G106: =G$6 -> 2009 | H106: =H$6 -> 2010 | I106: 2011 | J106: 2012 | K106: 2013 | L106: 2014 | M106: 2015 | N106: 2016 | O106: 2017 | P106: 2018 | Q106: 2019 | R106: 2020
A107: Opening RAB | C107: ='RAB 2001 to 2004'!E77 -> 2012657.036 | D107: =C110 -> 3005371.917 | E107: 3745584.727 | F107: 4169743.836 | G107: 4608010.31 | H107: 5458659.879 | I107: 5251635.812 | J107: 5019046.016 | K107: 4861299.373 | L107: 4005257.865 | M107: 4388982.335 | N107: =M110 -> 4484118.441 | O107: =N110 -> 4091917.212 | P107: =O110 -> 3568580.439 | Q107: =P110 -> 3277097.535 | R107: =Q110 -> 2989169.819
A108: Additional Capex | C108: =C$14 -> 1132850.422 | D108: 931968.8318 | E108: 655604.4623 | F108: 703694.2975 | G108: 1162738.205 | H108: 137572.3318 | I108: 118406.0629 | J108: 201240.3768 | K108: -504639.4653 | L108: 741036.4368 | M108: 483050.2394 | N108: 7988.883211 | O108: -126099.4249 | P108: 105232.7777 | Q108: 114275.6776 | R108: 122677.2887
A109: Depreciation | C109: =C$63 -> 140135.5403 | D109: 191756.0216 | E109: 231445.354 | F109: 265427.823 | G109: 312088.6355 | H109: 344596.399 | I109: 350995.8588 | J109: 358987.0198 | K109: 351402.0426 | L109: 357311.9669 | M109: 387914.1338 | N109: 400190.1119 | O109: 397237.3483 | P109: 396715.6822 | Q109: 402203.3935 | R109: 408127.2177
A110: Closing RAB | C110: =C107+C108-C109 -> 3005371.917 | D110: 3745584.727 | E110: 4169743.836 | F110: 4608010.31 | G110: 5458659.879 | H110: 5251635.812 | I110: 5019046.016 | J110: 4861299.373 | K110: 4005257.865 | L110: 4388982.335 | M110: 4484118.441 | N110: =N107+N108-N109 -> 4091917.212 | O110: 3568580.439 | P110: 3277097.535 | Q110: 2989169.819 | R110: 2703719.89
A111: Average RAB | C111: =SUM(C107,C110)/2 -> 2509014.476 | D111: =SUM(D107,D110)/2 -> 3375478.322 | E111: =SUM(E107,E110)/2 -> 3957664.281 | F111: =SUM(F107,F110)/2 -> 4388877.073 | G111: =SUM(G107,G110)/2 -> 5033335.095 | H111: 5355147.846 | I111: 5135340.914 | J111: 4940172.695 | K111: 4433278.619 | L111: 4197120.1 | M111: 4436550.388 | N111: 4288017.827 | O111: 3830248.826 | P111: 3422838.987 | Q111: 3133133.677 | R111: 2846444.854
A113: Total Value to be recovered by change in unit rates | N113: =N$6 -> 2016 | O113: 2017 | P113: 2018 | Q113: 2019 | R113: 2020
A114: Depreciation | N114: =N109 -> 400190.1119 | O114: =O109 -> 397237.3483 | P114: =P109 -> 396715.6822 | Q114: =Q109 -> 402203.3935 | R114: =R109 -> 408127.2177
A115: ROA | N115: =N$87*N111 -> 362500.9773 | O115: =O$87*O111 -> 323802.0453 | P115: 289360.3824 | Q115: 264869.2393 | R115: 240633.1044
N116: =SUM(N114:N115) -> 762691.0892 | O116: 721039.3937 | P116: 686076.0645 | Q116: 667072.6328 | R116: 648760.3221
A119: =$A$16 -> Energy Efficient Lights
A120: =$A$17 -> Luminaires and Ballasts
A121: RAB | C121: =$C$6 -> 2005 | D121: =$D$6 -> 2006 | E121: =$E$6 -> 2007 | F121: =$F$6 -> 2008 | G121: =G$6 -> 2009 | H121: =H$6 -> 2010 | I121: 2011 | J121: 2012 | K121: 2013 | L121: 2014 | M121: 2015 | N121: 2016 | O121: 2017 | P121: 2018 | Q121: 2019 | R121: 2020
A122: Opening RAB | C122: 0 | D122: =C125 -> 0 | E122: 0 | F122: 0 | G122: 0 | H122: 544978.8067 | I122: 581511.731 | J122: 605754.6737 | K122: 665976.2885 | L122: 390512.9277 | M122: 711031.0539 | N122: =M125 -> 892818.7055 | O122: =N125 -> 907248.5386 | P122: =O125 -> 929418.7648 | Q122: =P125 -> 950749.4184 | R122: =Q125 -> 970971.6541
A123: Additional Capex | C123: =C$17 -> 0 | D123: 0 | E123: 0 | F123: 0 | G123: 558952.6223 | H123: 66133.90294 | I123: 56920.27584 | J123: 96740.46649 | K123: -242590.7666 | L123: 356231.7449 | M123: 232212.3733 | N123: 72471.65543 | O123: 84127.01535 | P123: 87580.12108 | Q123: 90934.57049 | R123: 94357.24456
A124: Depreciation | C124: =C$84 -> 0 | D124: 0 | E124: 0 | F124: 0 | G124: 13973.81556 | H124: 29600.97869 | I124: 32677.33316 | J124: 36518.85172 | K124: 32872.59421 | L124: 35713.61867 | M124: 50424.72163 | N124: 58041.82234 | O124: 61956.78911 | P124: 66249.46752 | Q124: 70712.33481 | R124: 75344.63019
A125: Closing RAB | C125: =C122+C123-C124 -> 0 | D125: 0 | E125: 0 | F125: 0 | G125: 544978.8067 | H125: 581511.731 | I125: 605754.6737 | J125: 665976.2885 | K125: 390512.9277 | L125: 711031.0539 | M125: 892818.7055 | N125: =N122+N123-N124 -> 907248.5386 | O125: 929418.7648 | P125: 950749.4184 | Q125: 970971.6541 | R125: 989984.2684
A126: Average RAB | C126: =SUM(C122,C125)/2 -> 0 | D126: 0 | E126: 0 | F126: 0 | G126: =SUM(G122,G125)/2 -> 272489.4034 | H126: 563245.2689 | I126: 593633.2023 | J126: 635865.4811 | K126: 528244.6081 | L126: 550771.9908 | M126: 801924.8797 | N126: 900033.622 | O126: 918333.6517 | P126: 940084.0916 | Q126: 960860.5362 | R126: 980477.9613
A128: Total Value to be recovered by change in unit rates | N128: =N$6 -> 2016 | O128: 2017 | P128: 2018 | Q128: 2019 | R128: 2020
A129: Depreciation | N129: =N124 -> 58041.82234 | O129: =O124 -> 61956.78911 | P129: =P124 -> 66249.46752 | Q129: =Q124 -> 70712.33481 | R129: =R124 -> 75344.63019
A130: ROA | N130: =N$87*N126 -> 76087.15281 | O130: =O$87*O126 -> 77634.20296 | P130: 79472.94432 | Q130: 81229.34594 | R130: 82887.76623
N131: =SUM(N129:N130) -> 134128.9752 | O131: 139590.9921 | P131: 145722.4118 | Q131: 151941.6808 | R131: 158232.3964
A135: Total Public Lighting RAB
A136: Historical cost ($)
A138: RAB | C138: =C$6 -> 2005 | D138: =D$6 -> 2006 | E138: =E$6 -> 2007 | F138: 2008 | G138: 2009 | H138: 2010 | I138: 2011 | J138: 2012 | K138: 2013 | L138: 2014 | M138: 2015 | N138: 2016 | O138: 2017 | P138: 2018 | Q138: 2019 | R138: 2020
A139: Opening RAB | C139: =SUM(C92,C107,C122) -> 2012657.036 | D139: =C142 -> 3074089.877 | E139: =D142 -> 3868843.477 | F139: 4329140.668 | G139: 4805309.612 | H139: 6299354.191 | I139: 6131383.975 | J139: 5923820.208 | K139: 5829238.57 | L139: 4643996.345 | M139: 5356575.859 | N139: 5635382.439 | O139: 5251608.992 | P139: 4744480.187 | Q139: 4468404.347 | R139: 4194815.527
A140: Capex | C140: =SUM(C93,C108,C123) -> 1202564.294 | D140: =SUM(D93,D108,D123) -> 989320.7599 | E140: 695949.3523 | F140: 746998.562 | G140: 1827641.032 | H140: 215442.3964 | I140: 185639.6528 | J140: 310784.7077 | K140: -791557.4491 | L140: 1114630.02 | M140: 726580.0591 | N140: 84106.87974 | O140: -38180.00725 | P140: 196754.4551 | Q140: 209306.8855 | R140: 221292.7922
A141: Depreciation | C141: =SUM(C94,C109,C124) -> 141131.4528 | D141: 194567.1598 | E141: 235652.161 | F141: 270829.6179 | G141: 333596.4527 | H141: 383412.6131 | I141: 393203.4199 | J141: 405366.3449 | K141: 393684.7766 | L141: 402050.5056 | M141: 447773.4795 | N141: =SUM(N94,N109,N124) -> 467880.3267 | O141: 468948.7977 | P141: 472830.2951 | Q141: 482895.7051 | R141: 493571.1803
A142: Closing RAB | C142: =C139+C140-C141 -> 3074089.877 | D142: =D139+D140-D141 -> 3868843.477 | E142: =E139+E140-E141 -> 4329140.668 | F142: 4805309.612 | G142: 6299354.191 | H142: 6131383.975 | I142: 5923820.208 | J142: 5829238.57 | K142: 4643996.345 | L142: 5356575.859 | M142: 5635382.439 | N142: 5251608.992 | O142: 4744480.187 | P142: 4468404.347 | Q142: 4194815.527 | R142: 3922537.139
A143: Average RAB | C143: =SUM(C139,C142)/2 -> 2543373.456 | D143: =SUM(D139,D142)/2 -> 3471466.677 | E143: =SUM(E139,E142)/2 -> 4098992.072 | F143: 4567225.14 | G143: 5552331.902 | H143: 6215369.083 | I143: 6027602.091 | J143: 5876529.389 | K143: 5236617.458 | L143: 5000286.102 | M143: 5495979.149 | N143: 5443495.715 | O143: 4998044.589 | P143: 4606442.267 | Q143: 4331609.937 | R143: 4058676.333
A144: Check | B144: =SUM(C144:R144) -> 6.98491931e-09 | C144: =ABS(C142-SUM(C95,C110,C125)) -> 0 | D144: 0 | E144: 0 | F144: 9.313225746e-10 | G144: 0 | H144: 9.313225746e-10 | I144: 0 | J144: 0 | K144: 0 | L144: 9.313225746e-10 | M144: 9.313225746e-10 | N144: 0 | O144: 9.313225746e-10 | P144: 0 | Q144: 9.313225746e-10 | R144: 1.396983862e-09
A147: Depreciation Useful Lives for RAB RIN
A149: Table 3.3.4.1 - Asset Lives – estimated service life of new assets
A150: “Other” assets with long lives | M150: =ROUND( M11/SUM(M$11,M$14,M$17)*$B11 + M14/SUM(M$11,M$14,M$17)*$B14 + M17/SUM(M$11,M$14,M$17)*$B17, 1) -> 20.2 | N150: Applied for periods 2016-2020
A152: Table 3.3.4.2 - Asset Lives – estimated residual service life
A153: “Other” assets with long lives | M153: =ROUND(M139/M141,1) -> 12 | N153: =ROUND(N139/N141,1) -> 12 | O153: 11.2 | P153: 10 | Q153: 9.3 | R153: 8.5

Sheet PL Tariffs
A1: ='DNSP Inputs O & M'!$A$3 -> CitiPower | E1: Global Check | F1: =IF(SUM('Total RAB'!F1,'Depn & WACC Post 2004'!F1,'Cashflow Summary'!F1)<1,"Ok","Error") -> Ok
A3: Public Lighting Tariffs | C3: Nominal Prices | J3: Nominal Price Movement | P3: Real Price Movement (Implied X Factor)
C4: Actual
A5: ='DNSP Inputs General'!A$40 -> Existing Lights | C5: ='DNSP Inputs General'!J$2 -> 2015 | D5: ='DNSP Inputs General'!K$2 -> 2016 | E5: ='DNSP Inputs General'!L$2 -> 2017 | F5: ='DNSP Inputs General'!M$2 -> 2018 | G5: ='DNSP Inputs General'!N$2 -> 2019 | H5: ='DNSP Inputs General'!O$2 -> 2020 | J5: =D5 -> 2016 | K5: =E5 -> 2017 | L5: 2018 | M5: 2019 | N5: 2020 | P5: =J5 -> 2016 | Q5: =K5 -> 2017 | R5: 2018 | S5: 2019 | T5: 2020
A6: ='DNSP Inputs General'!A41 -> Mercury vapour 80 watt | C6: ='DNSP Inputs General'!E41 -> 69.0655462 | D6: ='Charges Summary'!D$31 -> 70.59937312 | E6: ='Charges Summary'!E$31 -> 72.78152442 | F6: ='Charges Summary'!F$31 -> 73.24430128 | G6: ='Charges Summary'!G$31 -> 74.67456763 | H6: ='Charges Summary'!H$31 -> 76.00035954 | J6: =IF(C6=0,"",D6/C6-1) -> 0.02220827905 | K6: =IF(D6=0,"",E6/D6-1) -> 0.03090893309 | L6: =IF(E6=0,"",F6/E6-1) -> 0.006358438701 | M6: =IF(F6=0,"",G6/F6-1) -> 0.01952733966 | N6: =IF(G6=0,"",H6/G6-1) -> 0.01775426299 | P6: =IF(C6=0,"",(D6/'Charges Summary'!D$4)/C6-1) -> -0.00369563445 | Q6: =IF(D6=0,"",(E6/'Charges Summary'!E$4)/(D6/'Charges Summary'!D$4)-1) -> 0.004784535174 | R6: =IF(E6=0,"",(F6/'Charges Summary'!F$4)/(E6/'Charges Summary'!E$4)-1) -> -0.01914382193 | S6: =IF(F6=0,"",(G6/'Charges Summary'!G$4)/(F6/'Charges Summary'!F$4)-1) -> -0.006308635806 | T6: =IF(G6=0,"",(H6/'Charges Summary'!H$4)/(G6/'Charges Summary'!G$4)-1) -> -0.008036780713
A7: ='DNSP Inputs General'!A42 -> Sodium high pressure 150 watt | C7: ='DNSP Inputs General'!E42 -> 117.6548763 | D7: ='Charges Summary'!D$55 -> 114.4175563 | E7: ='Charges Summary'!E$55 -> 118.2249664 | F7: ='Charges Summary'!F$55 -> 120.2779111 | G7: ='Charges Summary'!G$55 -> 123.3404041 | H7: ='Charges Summary'!H$55 -> 126.4083361 | J7: -0.02751539172 | K7: 0.0332764502 | L7: 0.01736473085 | M7: 0.02546180725 | N7: 0.02487369799 | P7: =IF(C7=0,"",(D7/'Charges Summary'!D$4)/C7-1) -> -0.05215925119 | Q7: =IF(D7=0,"",(E7/'Charges Summary'!E$4)/(D7/'Charges Summary'!D$4)-1) -> 0.007092056725 | R7: =IF(E7=0,"",(F7/'Charges Summary'!F$4)/(E7/'Charges Summary'!E$4)-1) -> -0.008416441671 | S7: =IF(F7=0,"",(G7/'Charges Summary'!G$4)/(F7/'Charges Summary'!F$4)-1) -> -0.0005245543339 | T7: =IF(G7=0,"",(H7/'Charges Summary'!H$4)/(G7/'Charges Summary'!G$4)-1) -> -0.001097760246
A8: ='DNSP Inputs General'!A43 -> Sodium high pressure 250 watt | C8: ='DNSP Inputs General'!E43 -> 119.3723261 | D8: ='Charges Summary'!D$71 -> 115.1154792 | E8: ='Charges Summary'!E$71 -> 118.9097068 | F8: ='Charges Summary'!F$71 -> 120.8953168 | G8: ='Charges Summary'!G$71 -> 123.9077062 | H8: ='Charges Summary'!H$71 -> 126.9264137 | J8: -0.03566024969 | K8: 0.03296018581 | L8: 0.01669846896 | M8: 0.02491733751 | N8: 0.0243625484 | P8: =IF(C8=0,"",(D8/'Charges Summary'!D$4)/C8-1) -> -0.06009770925 | Q8: =IF(D8=0,"",(E8/'Charges Summary'!E$4)/(D8/'Charges Summary'!D$4)-1) -> 0.006783806832 | R8: =IF(E8=0,"",(F8/'Charges Summary'!F$4)/(E8/'Charges Summary'!E$4)-1) -> -0.009065819727 | S8: =IF(F8=0,"",(G8/'Charges Summary'!G$4)/(F8/'Charges Summary'!F$4)-1) -> -0.001055226602 | T8: =IF(G8=0,"",(H8/'Charges Summary'!H$4)/(G8/'Charges Summary'!G$4)-1) -> -0.001595956721
A9: ='DNSP Inputs General'!A44 -> Fluorescent 20 watt | C9: ='DNSP Inputs General'!E44 -> 137.4404369 | D9: =IF('DNSP Inputs General'!$B44='DNSP Inputs General'!$A$41,D$6,IF('DNSP Inputs General'!$B44='DNSP Inputs General'!$A$42,D$7,D$8))*'DNSP Inputs General'!$D44 -> 140.4927525 | E9: =IF('DNSP Inputs General'!$B44='DNSP Inputs General'!$A$41,E$6,IF('DNSP Inputs General'!$B44='DNSP Inputs General'!$A$42,E$7,E$8))*'DNSP Inputs General'!$D44 -> 144.8352336 | F9: =IF('DNSP Inputs General'!$B44='DNSP Inputs General'!$A$41,F$6,IF('DNSP Inputs General'!$B44='DNSP Inputs General'!$A$42,F$7,F$8))*'DNSP Inputs General'!$D44 -> 145.7561596 | G9: =IF('DNSP Inputs General'!$B44='DNSP Inputs General'!$A$41,G$6,IF('DNSP Inputs General'!$B44='DNSP Inputs General'!$A$42,G$7,G$8))*'DNSP Inputs General'!$D44 -> 148.6023896 | H9: =IF('DNSP Inputs General'!$B44='DNSP Inputs General'!$A$41,H$6,IF('DNSP Inputs General'!$B44='DNSP Inputs General'!$A$42,H$7,H$8))*'DNSP Inputs General'!$D44 -> 151.2407155 | J9: 0.02220827905 | K9: 0.03090893309 | L9: 0.006358438701 | M9: 0.01952733966 | N9: 0.01775426299 | P9: =IF(C9=0,"",(D9/'Charges Summary'!D$4)/C9-1) -> -0.00369563445 | Q9: =IF(D9=0,"",(E9/'Charges Summary'!E$4)/(D9/'Charges Summary'!D$4)-1) -> 0.004784535174 | R9: =IF(E9=0,"",(F9/'Charges Summary'!F$4)/(E9/'Charges Summary'!E$4)-1) -> -0.01914382193 | S9: =IF(F9=0,"",(G9/'Charges Summary'!G$4)/(F9/'Charges Summary'!F$4)-1) -> -0.006308635806 | T9: =IF(G9=0,"",(H9/'Charges Summary'!H$4)/(G9/'Charges Summary'!G$4)-1) -> -0.008036780713
A10: ='DNSP Inputs General'!A45 -> Fluorescent 40 watt | C10: ='DNSP Inputs General'!E45 -> 136.6390086 | D10: =IF('DNSP Inputs General'!$B45='DNSP Inputs General'!$A$41,D$6,IF('DNSP Inputs General'!$B45='DNSP Inputs General'!$A$42,D$7,D$8))*'DNSP Inputs General'!$D45 -> 141.1987462 | E10: =IF('DNSP Inputs General'!$B45='DNSP Inputs General'!$A$41,E$6,IF('DNSP Inputs General'!$B45='DNSP Inputs General'!$A$42,E$7,E$8))*'DNSP Inputs General'!$D45 -> 145.5630488 | F10: =IF('DNSP Inputs General'!$B45='DNSP Inputs General'!$A$41,F$6,IF('DNSP Inputs General'!$B45='DNSP Inputs General'!$A$42,F$7,F$8))*'DNSP Inputs General'!$D45 -> 146.4886026 | G10: =IF('DNSP Inputs General'!$B45='DNSP Inputs General'!$A$41,G$6,IF('DNSP Inputs General'!$B45='DNSP Inputs General'!$A$42,G$7,G$8))*'DNSP Inputs General'!$D45 -> 149.3491353 | H10: =IF('DNSP Inputs General'!$B45='DNSP Inputs General'!$A$41,H$6,IF('DNSP Inputs General'!$B45='DNSP Inputs General'!$A$42,H$7,H$8))*'DNSP Inputs General'!$D45 -> 152.0007191 | J10: 0.03337068776 | K10: 0.03090893309 | L10: 0.006358438701 | M10: 0.01952733966 | N10: 0.01775426299 | P10: =IF(C10=0,"",(D10/'Charges Summary'!D$4)/C10-1) -> 0.007183906203 | Q10: =IF(D10=0,"",(E10/'Charges Summary'!E$4)/(D10/'Charges Summary'!D$4)-1) -> 0.004784535174 | R10: =IF(E10=0,"",(F10/'Charges Summary'!F$4)/(E10/'Charges Summary'!E$4)-1) -> -0.01914382193 | S10: =IF(F10=0,"",(G10/'Charges Summary'!G$4)/(F10/'Charges Summary'!F$4)-1) -> -0.006308635806 | T10: =IF(G10=0,"",(H10/'Charges Summary'!H$4)/(G10/'Charges Summary'!G$4)-1) -> -0.008036780713
A11: ='DNSP Inputs General'!A46 -> Mercury vapour 50 watt | C11: ='DNSP Inputs General'!E46 -> 98.0730756 | D11: =IF('DNSP Inputs General'!$B46='DNSP Inputs General'!$A$41,D$6,IF('DNSP Inputs General'!$B46='DNSP Inputs General'!$A$42,D$7,D$8))*'DNSP Inputs General'!$D46 -> 100.2511098 | E11: =IF('DNSP Inputs General'!$B46='DNSP Inputs General'!$A$41,E$6,IF('DNSP Inputs General'!$B46='DNSP Inputs General'!$A$42,E$7,E$8))*'DNSP Inputs General'!$D46 -> 103.3497647 | F11: =IF('DNSP Inputs General'!$B46='DNSP Inputs General'!$A$41,F$6,IF('DNSP Inputs General'!$B46='DNSP Inputs General'!$A$42,F$7,F$8))*'DNSP Inputs General'!$D46 -> 104.0069078 | G11: =IF('DNSP Inputs General'!$B46='DNSP Inputs General'!$A$41,G$6,IF('DNSP Inputs General'!$B46='DNSP Inputs General'!$A$42,G$7,G$8))*'DNSP Inputs General'!$D46 -> 106.037886 | H11: =IF('DNSP Inputs General'!$B46='DNSP Inputs General'!$A$41,H$6,IF('DNSP Inputs General'!$B46='DNSP Inputs General'!$A$42,H$7,H$8))*'DNSP Inputs General'!$D46 -> 107.9205106 | J11: 0.02220827905 | K11: 0.03090893309 | L11: 0.006358438701 | M11: 0.01952733966 | N11: 0.01775426299 | P11: =IF(C11=0,"",(D11/'Charges Summary'!D$4)/C11-1) -> -0.00369563445 | Q11: =IF(D11=0,"",(E11/'Charges Summary'!E$4)/(D11/'Charges Summary'!D$4)-1) -> 0.004784535174 | R11: =IF(E11=0,"",(F11/'Charges Summary'!F$4)/(E11/'Charges Summary'!E$4)-1) -> -0.01914382193 | S11: =IF(F11=0,"",(G11/'Charges Summary'!G$4)/(F11/'Charges Summary'!F$4)-1) -> -0.006308635806 | T11: =IF(G11=0,"",(H11/'Charges Summary'!H$4)/(G11/'Charges Summary'!G$4)-1) -> -0.008036780713
A12: ='DNSP Inputs General'!A47 -> Mercury vapour 125 watt | C12: ='DNSP Inputs General'!E47 -> 109.123563 | D12: =IF('DNSP Inputs General'!$B47='DNSP Inputs General'!$A$41,D$6,IF('DNSP Inputs General'!$B47='DNSP Inputs General'!$A$42,D$7,D$8))*'DNSP Inputs General'!$D47 -> 111.5470095 | E12: =IF('DNSP Inputs General'!$B47='DNSP Inputs General'!$A$41,E$6,IF('DNSP Inputs General'!$B47='DNSP Inputs General'!$A$42,E$7,E$8))*'DNSP Inputs General'!$D47 -> 114.9948086 | F12: =IF('DNSP Inputs General'!$B47='DNSP Inputs General'!$A$41,F$6,IF('DNSP Inputs General'!$B47='DNSP Inputs General'!$A$42,F$7,F$8))*'DNSP Inputs General'!$D47 -> 115.725996 | G12: =IF('DNSP Inputs General'!$B47='DNSP Inputs General'!$A$41,G$6,IF('DNSP Inputs General'!$B47='DNSP Inputs General'!$A$42,G$7,G$8))*'DNSP Inputs General'!$D47 -> 117.9858169 | H12: =IF('DNSP Inputs General'!$B47='DNSP Inputs General'!$A$41,H$6,IF('DNSP Inputs General'!$B47='DNSP Inputs General'!$A$42,H$7,H$8))*'DNSP Inputs General'!$D47 -> 120.0805681 | J12: 0.02220827905 | K12: 0.03090893309 | L12: 0.006358438701 | M12: 0.01952733966 | N12: 0.01775426299 | P12: =IF(C12=0,"",(D12/'Charges Summary'!D$4)/C12-1) -> -0.00369563445 | Q12: =IF(D12=0,"",(E12/'Charges Summary'!E$4)/(D12/'Charges Summary'!D$4)-1) -> 0.004784535174 | R12: =IF(E12=0,"",(F12/'Charges Summary'!F$4)/(E12/'Charges Summary'!E$4)-1) -> -0.01914382193 | S12: =IF(F12=0,"",(G12/'Charges Summary'!G$4)/(F12/'Charges Summary'!F$4)-1) -> -0.006308635806 | T12: =IF(G12=0,"",(H12/'Charges Summary'!H$4)/(G12/'Charges Summary'!G$4)-1) -> -0.008036780713
A13: ='DNSP Inputs General'!A48 -> Mercury vapour 250 watt | C13: ='DNSP Inputs General'!E48 -> 100.272754 | D13: =IF('DNSP Inputs General'!$B48='DNSP Inputs General'!$A$41,D$6,IF('DNSP Inputs General'!$B48='DNSP Inputs General'!$A$42,D$7,D$8))*'DNSP Inputs General'!$D48 -> 96.69700251 | E13: =IF('DNSP Inputs General'!$B48='DNSP Inputs General'!$A$41,E$6,IF('DNSP Inputs General'!$B48='DNSP Inputs General'!$A$42,E$7,E$8))*'DNSP Inputs General'!$D48 -> 99.88415368 | F13: =IF('DNSP Inputs General'!$B48='DNSP Inputs General'!$A$41,F$6,IF('DNSP Inputs General'!$B48='DNSP Inputs General'!$A$42,F$7,F$8))*'DNSP Inputs General'!$D48 -> 101.5520661 | G13: =IF('DNSP Inputs General'!$B48='DNSP Inputs General'!$A$41,G$6,IF('DNSP Inputs General'!$B48='DNSP Inputs General'!$A$42,G$7,G$8))*'DNSP Inputs General'!$D48 -> 104.0824732 | H13: =IF('DNSP Inputs General'!$B48='DNSP Inputs General'!$A$41,H$6,IF('DNSP Inputs General'!$B48='DNSP Inputs General'!$A$42,H$7,H$8))*'DNSP Inputs General'!$D48 -> 106.6181875 | J13: -0.03566024969 | K13: 0.03296018581 | L13: 0.01669846896 | M13: 0.02491733751 | N13: 0.0243625484 | P13: =IF(C13=0,"",(D13/'Charges Summary'!D$4)/C13-1) -> -0.06009770925 | Q13: =IF(D13=0,"",(E13/'Charges Summary'!E$4)/(D13/'Charges Summary'!D$4)-1) -> 0.006783806832 | R13: =IF(E13=0,"",(F13/'Charges Summary'!F$4)/(E13/'Charges Summary'!E$4)-1) -> -0.009065819727 | S13: =IF(F13=0,"",(G13/'Charges Summary'!G$4)/(F13/'Charges Summary'!F$4)-1) -> -0.001055226602 | T13: =IF(G13=0,"",(H13/'Charges Summary'!H$4)/(G13/'Charges Summary'!G$4)-1) -> -0.001595956721
A14: ='DNSP Inputs General'!A49 -> Mercury vapour 400 watt | C14: ='DNSP Inputs General'!E49 -> 101.4664772 | D14: =IF('DNSP Inputs General'!$B49='DNSP Inputs General'!$A$41,D$6,IF('DNSP Inputs General'!$B49='DNSP Inputs General'!$A$42,D$7,D$8))*'DNSP Inputs General'!$D49 -> 97.8481573 | E14: =IF('DNSP Inputs General'!$B49='DNSP Inputs General'!$A$41,E$6,IF('DNSP Inputs General'!$B49='DNSP Inputs General'!$A$42,E$7,E$8))*'DNSP Inputs General'!$D49 -> 101.0732507 | F14: =IF('DNSP Inputs General'!$B49='DNSP Inputs General'!$A$41,F$6,IF('DNSP Inputs General'!$B49='DNSP Inputs General'!$A$42,F$7,F$8))*'DNSP Inputs General'!$D49 -> 102.7610193 | G14: =IF('DNSP Inputs General'!$B49='DNSP Inputs General'!$A$41,G$6,IF('DNSP Inputs General'!$B49='DNSP Inputs General'!$A$42,G$7,G$8))*'DNSP Inputs General'!$D49 -> 105.3215503 | H14: =IF('DNSP Inputs General'!$B49='DNSP Inputs General'!$A$41,H$6,IF('DNSP Inputs General'!$B49='DNSP Inputs General'!$A$42,H$7,H$8))*'DNSP Inputs General'!$D49 -> 107.8874517 | J14: -0.03566024969 | K14: 0.03296018581 | L14: 0.01669846896 | M14: 0.02491733751 | N14: 0.0243625484 | P14: =IF(C14=0,"",(D14/'Charges Summary'!D$4)/C14-1) -> -0.06009770925 | Q14: =IF(D14=0,"",(E14/'Charges Summary'!E$4)/(D14/'Charges Summary'!D$4)-1) -> 0.006783806832 | R14: =IF(E14=0,"",(F14/'Charges Summary'!F$4)/(E14/'Charges Summary'!E$4)-1) -> -0.009065819727 | S14: =IF(F14=0,"",(G14/'Charges Summary'!G$4)/(F14/'Charges Summary'!F$4)-1) -> -0.001055226602 | T14: =IF(G14=0,"",(H14/'Charges Summary'!H$4)/(G14/'Charges Summary'!G$4)-1) -> -0.001595956721
A15: ='DNSP Inputs General'!A50 -> Mercury vapour 700 watt | C15: ='DNSP Inputs General'!E50 -> 149.2154077 | D15: =IF('DNSP Inputs General'!$B50='DNSP Inputs General'!$A$41,D$6,IF('DNSP Inputs General'!$B50='DNSP Inputs General'!$A$42,D$7,D$8))*'DNSP Inputs General'!$D50 -> 143.894349 | E15: =IF('DNSP Inputs General'!$B50='DNSP Inputs General'!$A$41,E$6,IF('DNSP Inputs General'!$B50='DNSP Inputs General'!$A$42,E$7,E$8))*'DNSP Inputs General'!$D50 -> 148.6371334 | F15: =IF('DNSP Inputs General'!$B50='DNSP Inputs General'!$A$41,F$6,IF('DNSP Inputs General'!$B50='DNSP Inputs General'!$A$42,F$7,F$8))*'DNSP Inputs General'!$D50 -> 151.119146 | G15: =IF('DNSP Inputs General'!$B50='DNSP Inputs General'!$A$41,G$6,IF('DNSP Inputs General'!$B50='DNSP Inputs General'!$A$42,G$7,G$8))*'DNSP Inputs General'!$D50 -> 154.8846328 | H15: =IF('DNSP Inputs General'!$B50='DNSP Inputs General'!$A$41,H$6,IF('DNSP Inputs General'!$B50='DNSP Inputs General'!$A$42,H$7,H$8))*'DNSP Inputs General'!$D50 -> 158.6580171 | J15: -0.03566024969 | K15: 0.03296018581 | L15: 0.01669846896 | M15: 0.02491733751 | N15: 0.0243625484 | P15: =IF(C15=0,"",(D15/'Charges Summary'!D$4)/C15-1) -> -0.06009770925 | Q15: =IF(D15=0,"",(E15/'Charges Summary'!E$4)/(D15/'Charges Summary'!D$4)-1) -> 0.006783806832 | R15: =IF(E15=0,"",(F15/'Charges Summary'!F$4)/(E15/'Charges Summary'!E$4)-1) -> -0.009065819727 | S15: =IF(F15=0,"",(G15/'Charges Summary'!G$4)/(F15/'Charges Summary'!F$4)-1) -> -0.001055226602 | T15: =IF(G15=0,"",(H15/'Charges Summary'!H$4)/(G15/'Charges Summary'!G$4)-1) -> -0.001595956721
A16: ='DNSP Inputs General'!A51 -> Sodium high pressure 70 watt | C16: ='DNSP Inputs General'!E51 -> 146.4189579 | D16: =IF('DNSP Inputs General'!$B51='DNSP Inputs General'!$A$41,D$6,IF('DNSP Inputs General'!$B51='DNSP Inputs General'!$A$42,D$7,D$8))*'DNSP Inputs General'!$D51 -> 149.670671 | E16: =IF('DNSP Inputs General'!$B51='DNSP Inputs General'!$A$41,E$6,IF('DNSP Inputs General'!$B51='DNSP Inputs General'!$A$42,E$7,E$8))*'DNSP Inputs General'!$D51 -> 154.2968318 | F16: =IF('DNSP Inputs General'!$B51='DNSP Inputs General'!$A$41,F$6,IF('DNSP Inputs General'!$B51='DNSP Inputs General'!$A$42,F$7,F$8))*'DNSP Inputs General'!$D51 -> 155.2779187 | G16: =IF('DNSP Inputs General'!$B51='DNSP Inputs General'!$A$41,G$6,IF('DNSP Inputs General'!$B51='DNSP Inputs General'!$A$42,G$7,G$8))*'DNSP Inputs General'!$D51 -> 158.3100834 | H16: =IF('DNSP Inputs General'!$B51='DNSP Inputs General'!$A$41,H$6,IF('DNSP Inputs General'!$B51='DNSP Inputs General'!$A$42,H$7,H$8))*'DNSP Inputs General'!$D51 -> 161.1207622 | J16: 0.02220827905 | K16: 0.03090893309 | L16: 0.006358438701 | M16: 0.01952733966 | N16: 0.01775426299 | P16: =IF(C16=0,"",(D16/'Charges Summary'!D$4)/C16-1) -> -0.00369563445 | Q16: =IF(D16=0,"",(E16/'Charges Summary'!E$4)/(D16/'Charges Summary'!D$4)-1) -> 0.004784535174 | R16: =IF(E16=0,"",(F16/'Charges Summary'!F$4)/(E16/'Charges Summary'!E$4)-1) -> -0.01914382193 | S16: =IF(F16=0,"",(G16/'Charges Summary'!G$4)/(F16/'Charges Summary'!F$4)-1) -> -0.006308635806 | T16: =IF(G16=0,"",(H16/'Charges Summary'!H$4)/(G16/'Charges Summary'!G$4)-1) -> -0.008036780713
A17: ='DNSP Inputs General'!A52 -> Sodium high pressure 100 watt | C17: ='DNSP Inputs General'!E52 -> 120.0079738 | D17: =IF('DNSP Inputs General'!$B52='DNSP Inputs General'!$A$41,D$6,IF('DNSP Inputs General'!$B52='DNSP Inputs General'!$A$42,D$7,D$8))*'DNSP Inputs General'!$D52 -> 116.7059074 | E17: =IF('DNSP Inputs General'!$B52='DNSP Inputs General'!$A$41,E$6,IF('DNSP Inputs General'!$B52='DNSP Inputs General'!$A$42,E$7,E$8))*'DNSP Inputs General'!$D52 -> 120.5894657 | F17: =IF('DNSP Inputs General'!$B52='DNSP Inputs General'!$A$41,F$6,IF('DNSP Inputs General'!$B52='DNSP Inputs General'!$A$42,F$7,F$8))*'DNSP Inputs General'!$D52 -> 122.6834693 | G17: =IF('DNSP Inputs General'!$B52='DNSP Inputs General'!$A$41,G$6,IF('DNSP Inputs General'!$B52='DNSP Inputs General'!$A$42,G$7,G$8))*'DNSP Inputs General'!$D52 -> 125.8072122 | H17: =IF('DNSP Inputs General'!$B52='DNSP Inputs General'!$A$41,H$6,IF('DNSP Inputs General'!$B52='DNSP Inputs General'!$A$42,H$7,H$8))*'DNSP Inputs General'!$D52 -> 128.9365028 | J17: -0.02751539172 | K17: 0.0332764502 | L17: 0.01736473085 | M17: 0.02546180725 | N17: 0.02487369799 | P17: =IF(C17=0,"",(D17/'Charges Summary'!D$4)/C17-1) -> -0.05215925119 | Q17: =IF(D17=0,"",(E17/'Charges Summary'!E$4)/(D17/'Charges Summary'!D$4)-1) -> 0.007092056725 | R17: =IF(E17=0,"",(F17/'Charges Summary'!F$4)/(E17/'Charges Summary'!E$4)-1) -> -0.008416441671 | S17: =IF(F17=0,"",(G17/'Charges Summary'!G$4)/(F17/'Charges Summary'!F$4)-1) -> -0.0005245543339 | T17: =IF(G17=0,"",(H17/'Charges Summary'!H$4)/(G17/'Charges Summary'!G$4)-1) -> -0.001097760246
A18: ='DNSP Inputs General'!A53 -> Sodium high pressure 220 watt | C18: ='DNSP Inputs General'!E53 -> 119.6110708 | D18: =IF('DNSP Inputs General'!$B53='DNSP Inputs General'!$A$41,D$6,IF('DNSP Inputs General'!$B53='DNSP Inputs General'!$A$42,D$7,D$8))*'DNSP Inputs General'!$D53 -> 115.3457101 | E18: =IF('DNSP Inputs General'!$B53='DNSP Inputs General'!$A$41,E$6,IF('DNSP Inputs General'!$B53='DNSP Inputs General'!$A$42,E$7,E$8))*'DNSP Inputs General'!$D53 -> 119.1475262 | F18: =IF('DNSP Inputs General'!$B53='DNSP Inputs General'!$A$41,F$6,IF('DNSP Inputs General'!$B53='DNSP Inputs General'!$A$42,F$7,F$8))*'DNSP Inputs General'!$D53 -> 121.1371074 | G18: =IF('DNSP Inputs General'!$B53='DNSP Inputs General'!$A$41,G$6,IF('DNSP Inputs General'!$B53='DNSP Inputs General'!$A$42,G$7,G$8))*'DNSP Inputs General'!$D53 -> 124.1555216 | H18: =IF('DNSP Inputs General'!$B53='DNSP Inputs General'!$A$41,H$6,IF('DNSP Inputs General'!$B53='DNSP Inputs General'!$A$42,H$7,H$8))*'DNSP Inputs General'!$D53 -> 127.1802665 | J18: -0.03566024969 | K18: 0.03296018581 | L18: 0.01669846896 | M18: 0.02491733751 | N18: 0.0243625484 | P18: =IF(C18=0,"",(D18/'Charges Summary'!D$4)/C18-1) -> -0.06009770925 | Q18: =IF(D18=0,"",(E18/'Charges Summary'!E$4)/(D18/'Charges Summary'!D$4)-1) -> 0.006783806832 | R18: =IF(E18=0,"",(F18/'Charges Summary'!F$4)/(E18/'Charges Summary'!E$4)-1) -> -0.009065819727 | S18: =IF(F18=0,"",(G18/'Charges Summary'!G$4)/(F18/'Charges Summary'!F$4)-1) -> -0.001055226602 | T18: =IF(G18=0,"",(H18/'Charges Summary'!H$4)/(G18/'Charges Summary'!G$4)-1) -> -0.001595956721
A19: ='DNSP Inputs General'!A54 -> Sodium high pressure 360 watt | C19: ='DNSP Inputs General'!E54 -> 121.7597727 | D19: =IF('DNSP Inputs General'!$B54='DNSP Inputs General'!$A$41,D$6,IF('DNSP Inputs General'!$B54='DNSP Inputs General'!$A$42,D$7,D$8))*'DNSP Inputs General'!$D54 -> 117.4177888 | E19: =IF('DNSP Inputs General'!$B54='DNSP Inputs General'!$A$41,E$6,IF('DNSP Inputs General'!$B54='DNSP Inputs General'!$A$42,E$7,E$8))*'DNSP Inputs General'!$D54 -> 121.2879009 | F19: =IF('DNSP Inputs General'!$B54='DNSP Inputs General'!$A$41,F$6,IF('DNSP Inputs General'!$B54='DNSP Inputs General'!$A$42,F$7,F$8))*'DNSP Inputs General'!$D54 -> 123.3132231 | G19: =IF('DNSP Inputs General'!$B54='DNSP Inputs General'!$A$41,G$6,IF('DNSP Inputs General'!$B54='DNSP Inputs General'!$A$42,G$7,G$8))*'DNSP Inputs General'!$D54 -> 126.3858603 | H19: =IF('DNSP Inputs General'!$B54='DNSP Inputs General'!$A$41,H$6,IF('DNSP Inputs General'!$B54='DNSP Inputs General'!$A$42,H$7,H$8))*'DNSP Inputs General'!$D54 -> 129.464942 | J19: -0.03566024969 | K19: 0.03296018581 | L19: 0.01669846896 | M19: 0.02491733751 | N19: 0.0243625484 | P19: =IF(C19=0,"",(D19/'Charges Summary'!D$4)/C19-1) -> -0.06009770925 | Q19: =IF(D19=0,"",(E19/'Charges Summary'!E$4)/(D19/'Charges Summary'!D$4)-1) -> 0.006783806832 | R19: =IF(E19=0,"",(F19/'Charges Summary'!F$4)/(E19/'Charges Summary'!E$4)-1) -> -0.009065819727 | S19: =IF(F19=0,"",(G19/'Charges Summary'!G$4)/(F19/'Charges Summary'!F$4)-1) -> -0.001055226602 | T19: =IF(G19=0,"",(H19/'Charges Summary'!H$4)/(G19/'Charges Summary'!G$4)-1) -> -0.001595956721
A20: ='DNSP Inputs General'!A55 -> Sodium high pressure 400 watt | C20: ='DNSP Inputs General'!E55 -> 131.3095587 | D20: =IF('DNSP Inputs General'!$B55='DNSP Inputs General'!$A$41,D$6,IF('DNSP Inputs General'!$B55='DNSP Inputs General'!$A$42,D$7,D$8))*'DNSP Inputs General'!$D55 -> 126.6270271 | E20: =IF('DNSP Inputs General'!$B55='DNSP Inputs General'!$A$41,E$6,IF('DNSP Inputs General'!$B55='DNSP Inputs General'!$A$42,E$7,E$8))*'DNSP Inputs General'!$D55 -> 130.8006774 | F20: =IF('DNSP Inputs General'!$B55='DNSP Inputs General'!$A$41,F$6,IF('DNSP Inputs General'!$B55='DNSP Inputs General'!$A$42,F$7,F$8))*'DNSP Inputs General'!$D55 -> 132.9848485 | G20: =IF('DNSP Inputs General'!$B55='DNSP Inputs General'!$A$41,G$6,IF('DNSP Inputs General'!$B55='DNSP Inputs General'!$A$42,G$7,G$8))*'DNSP Inputs General'!$D55 -> 136.2984768 | H20: =IF('DNSP Inputs General'!$B55='DNSP Inputs General'!$A$41,H$6,IF('DNSP Inputs General'!$B55='DNSP Inputs General'!$A$42,H$7,H$8))*'DNSP Inputs General'!$D55 -> 139.6190551 | J20: -0.03566024969 | K20: 0.03296018581 | L20: 0.01669846896 | M20: 0.02491733751 | N20: 0.0243625484 | P20: =IF(C20=0,"",(D20/'Charges Summary'!D$4)/C20-1) -> -0.06009770925 | Q20: =IF(D20=0,"",(E20/'Charges Summary'!E$4)/(D20/'Charges Summary'!D$4)-1) -> 0.006783806832 | R20: =IF(E20=0,"",(F20/'Charges Summary'!F$4)/(E20/'Charges Summary'!E$4)-1) -> -0.009065819727 | S20: =IF(F20=0,"",(G20/'Charges Summary'!G$4)/(F20/'Charges Summary'!F$4)-1) -> -0.001055226602 | T20: =IF(G20=0,"",(H20/'Charges Summary'!H$4)/(G20/'Charges Summary'!G$4)-1) -> -0.001595956721
A21: ='DNSP Inputs General'!A56 -> Sodium high pressure 1000 watt | C21: ='DNSP Inputs General'!E56 -> 236.3572057 | D21: =IF('DNSP Inputs General'!$B56='DNSP Inputs General'!$A$41,D$6,IF('DNSP Inputs General'!$B56='DNSP Inputs General'!$A$42,D$7,D$8))*'DNSP Inputs General'!$D56 -> 227.9286488 | E21: =IF('DNSP Inputs General'!$B56='DNSP Inputs General'!$A$41,E$6,IF('DNSP Inputs General'!$B56='DNSP Inputs General'!$A$42,E$7,E$8))*'DNSP Inputs General'!$D56 -> 235.4412194 | F21: =IF('DNSP Inputs General'!$B56='DNSP Inputs General'!$A$41,F$6,IF('DNSP Inputs General'!$B56='DNSP Inputs General'!$A$42,F$7,F$8))*'DNSP Inputs General'!$D56 -> 239.3727273 | G21: =IF('DNSP Inputs General'!$B56='DNSP Inputs General'!$A$41,G$6,IF('DNSP Inputs General'!$B56='DNSP Inputs General'!$A$42,G$7,G$8))*'DNSP Inputs General'!$D56 -> 245.3372583 | H21: =IF('DNSP Inputs General'!$B56='DNSP Inputs General'!$A$41,H$6,IF('DNSP Inputs General'!$B56='DNSP Inputs General'!$A$42,H$7,H$8))*'DNSP Inputs General'!$D56 -> 251.3142991 | J21: -0.03566024969 | K21: 0.03296018581 | L21: 0.01669846896 | M21: 0.02491733751 | N21: 0.0243625484 | P21: =IF(C21=0,"",(D21/'Charges Summary'!D$4)/C21-1) -> -0.06009770925 | Q21: =IF(D21=0,"",(E21/'Charges Summary'!E$4)/(D21/'Charges Summary'!D$4)-1) -> 0.006783806832 | R21: =IF(E21=0,"",(F21/'Charges Summary'!F$4)/(E21/'Charges Summary'!E$4)-1) -> -0.009065819727 | S21: =IF(F21=0,"",(G21/'Charges Summary'!G$4)/(F21/'Charges Summary'!F$4)-1) -> -0.001055226602 | T21: =IF(G21=0,"",(H21/'Charges Summary'!H$4)/(G21/'Charges Summary'!G$4)-1) -> -0.001595956721
A22: ='DNSP Inputs General'!A57 -> Metal halide 70 watt | C22: ='DNSP Inputs General'!E57 -> 225.8443361 | D22: =IF('DNSP Inputs General'!$B57='DNSP Inputs General'!$A$41,D$6,IF('DNSP Inputs General'!$B57='DNSP Inputs General'!$A$42,D$7,D$8))*'DNSP Inputs General'!$D57 -> 149.670671 | E22: =IF('DNSP Inputs General'!$B57='DNSP Inputs General'!$A$41,E$6,IF('DNSP Inputs General'!$B57='DNSP Inputs General'!$A$42,E$7,E$8))*'DNSP Inputs General'!$D57 -> 154.2968318 | F22: =IF('DNSP Inputs General'!$B57='DNSP Inputs General'!$A$41,F$6,IF('DNSP Inputs General'!$B57='DNSP Inputs General'!$A$42,F$7,F$8))*'DNSP Inputs General'!$D57 -> 155.2779187 | G22: =IF('DNSP Inputs General'!$B57='DNSP Inputs General'!$A$41,G$6,IF('DNSP Inputs General'!$B57='DNSP Inputs General'!$A$42,G$7,G$8))*'DNSP Inputs General'!$D57 -> 158.3100834 | H22: =IF('DNSP Inputs General'!$B57='DNSP Inputs General'!$A$41,H$6,IF('DNSP Inputs General'!$B57='DNSP Inputs General'!$A$42,H$7,H$8))*'DNSP Inputs General'!$D57 -> 161.1207622 | J22: -0.3372839292 | K22: 0.03090893309 | L22: 0.006358438701 | M22: 0.01952733966 | N22: 0.01775426299 | P22: =IF(C22=0,"",(D22/'Charges Summary'!D$4)/C22-1) -> -0.3540779037 | Q22: =IF(D22=0,"",(E22/'Charges Summary'!E$4)/(D22/'Charges Summary'!D$4)-1) -> 0.004784535174 | R22: =IF(E22=0,"",(F22/'Charges Summary'!F$4)/(E22/'Charges Summary'!E$4)-1) -> -0.01914382193 | S22: =IF(F22=0,"",(G22/'Charges Summary'!G$4)/(F22/'Charges Summary'!F$4)-1) -> -0.006308635806 | T22: =IF(G22=0,"",(H22/'Charges Summary'!H$4)/(G22/'Charges Summary'!G$4)-1) -> -0.008036780713
A23: ='DNSP Inputs General'!A58 -> Metal halide 100 watt | C23: ='DNSP Inputs General'!E58 -> 184.7181558 | D23: =IF('DNSP Inputs General'!$B58='DNSP Inputs General'!$A$41,D$6,IF('DNSP Inputs General'!$B58='DNSP Inputs General'!$A$42,D$7,D$8))*'DNSP Inputs General'!$D58 -> 179.6355633 | E23: =IF('DNSP Inputs General'!$B58='DNSP Inputs General'!$A$41,E$6,IF('DNSP Inputs General'!$B58='DNSP Inputs General'!$A$42,E$7,E$8))*'DNSP Inputs General'!$D58 -> 185.6131972 | F23: =IF('DNSP Inputs General'!$B58='DNSP Inputs General'!$A$41,F$6,IF('DNSP Inputs General'!$B58='DNSP Inputs General'!$A$42,F$7,F$8))*'DNSP Inputs General'!$D58 -> 188.8363204 | G23: =IF('DNSP Inputs General'!$B58='DNSP Inputs General'!$A$41,G$6,IF('DNSP Inputs General'!$B58='DNSP Inputs General'!$A$42,G$7,G$8))*'DNSP Inputs General'!$D58 -> 193.6444344 | H23: =IF('DNSP Inputs General'!$B58='DNSP Inputs General'!$A$41,H$6,IF('DNSP Inputs General'!$B58='DNSP Inputs General'!$A$42,H$7,H$8))*'DNSP Inputs General'!$D58 -> 198.4610876 | J23: =IF(C23=0,"",D23/C23-1) -> -0.02751539172 | K23: =IF(D23=0,"",E23/D23-1) -> 0.0332764502 | L23: =IF(E23=0,"",F23/E23-1) -> 0.01736473085 | M23: =IF(F23=0,"",G23/F23-1) -> 0.02546180725 | N23: =IF(G23=0,"",H23/G23-1) -> 0.02487369799 | P23: =IF(C23=0,"",(D23/'Charges Summary'!D$4)/C23-1) -> -0.05215925119 | Q23: =IF(D23=0,"",(E23/'Charges Summary'!E$4)/(D23/'Charges Summary'!D$4)-1) -> 0.007092056725 | R23: =IF(E23=0,"",(F23/'Charges Summary'!F$4)/(E23/'Charges Summary'!E$4)-1) -> -0.008416441671 | S23: =IF(F23=0,"",(G23/'Charges Summary'!G$4)/(F23/'Charges Summary'!F$4)-1) -> -0.0005245543339 | T23: =IF(G23=0,"",(H23/'Charges Summary'!H$4)/(G23/'Charges Summary'!G$4)-1) -> -0.001097760246
A24: ='DNSP Inputs General'!A59 -> Metal halide 150 watt | C24: ='DNSP Inputs General'!E59 -> 185.8947045 | D24: =IF('DNSP Inputs General'!$B59='DNSP Inputs General'!$A$41,D$6,IF('DNSP Inputs General'!$B59='DNSP Inputs General'!$A$42,D$7,D$8))*'DNSP Inputs General'!$D59 -> 180.7797389 | E24: =IF('DNSP Inputs General'!$B59='DNSP Inputs General'!$A$41,E$6,IF('DNSP Inputs General'!$B59='DNSP Inputs General'!$A$42,E$7,E$8))*'DNSP Inputs General'!$D59 -> 186.7954469 | F24: =IF('DNSP Inputs General'!$B59='DNSP Inputs General'!$A$41,F$6,IF('DNSP Inputs General'!$B59='DNSP Inputs General'!$A$42,F$7,F$8))*'DNSP Inputs General'!$D59 -> 190.0390995 | G24: =IF('DNSP Inputs General'!$B59='DNSP Inputs General'!$A$41,G$6,IF('DNSP Inputs General'!$B59='DNSP Inputs General'!$A$42,G$7,G$8))*'DNSP Inputs General'!$D59 -> 194.8778385 | H24: =IF('DNSP Inputs General'!$B59='DNSP Inputs General'!$A$41,H$6,IF('DNSP Inputs General'!$B59='DNSP Inputs General'!$A$42,H$7,H$8))*'DNSP Inputs General'!$D59 -> 199.725171 | J24: -0.02751539172 | K24: 0.0332764502 | L24: 0.01736473085 | M24: 0.02546180725 | N24: 0.02487369799 | P24: =IF(C24=0,"",(D24/'Charges Summary'!D$4)/C24-1) -> -0.05215925119 | Q24: =IF(D24=0,"",(E24/'Charges Summary'!E$4)/(D24/'Charges Summary'!D$4)-1) -> 0.007092056725 | R24: =IF(E24=0,"",(F24/'Charges Summary'!F$4)/(E24/'Charges Summary'!E$4)-1) -> -0.008416441671 | S24: =IF(F24=0,"",(G24/'Charges Summary'!G$4)/(F24/'Charges Summary'!F$4)-1) -> -0.0005245543339 | T24: =IF(G24=0,"",(H24/'Charges Summary'!H$4)/(G24/'Charges Summary'!G$4)-1) -> -0.001097760246
A25: ='DNSP Inputs General'!A60 -> Metal halide 250 watt | C25: ='DNSP Inputs General'!E60 -> 143.2467914 | D25: =IF('DNSP Inputs General'!$B60='DNSP Inputs General'!$A$41,D$6,IF('DNSP Inputs General'!$B60='DNSP Inputs General'!$A$42,D$7,D$8))*'DNSP Inputs General'!$D60 -> 138.138575 | E25: =IF('DNSP Inputs General'!$B60='DNSP Inputs General'!$A$41,E$6,IF('DNSP Inputs General'!$B60='DNSP Inputs General'!$A$42,E$7,E$8))*'DNSP Inputs General'!$D60 -> 142.6916481 | F25: =IF('DNSP Inputs General'!$B60='DNSP Inputs General'!$A$41,F$6,IF('DNSP Inputs General'!$B60='DNSP Inputs General'!$A$42,F$7,F$8))*'DNSP Inputs General'!$D60 -> 145.0743802 | G25: =IF('DNSP Inputs General'!$B60='DNSP Inputs General'!$A$41,G$6,IF('DNSP Inputs General'!$B60='DNSP Inputs General'!$A$42,G$7,G$8))*'DNSP Inputs General'!$D60 -> 148.6892475 | H25: =IF('DNSP Inputs General'!$B60='DNSP Inputs General'!$A$41,H$6,IF('DNSP Inputs General'!$B60='DNSP Inputs General'!$A$42,H$7,H$8))*'DNSP Inputs General'!$D60 -> 152.3116964 | J25: -0.03566024969 | K25: 0.03296018581 | L25: 0.01669846896 | M25: 0.02491733751 | N25: 0.0243625484 | P25: =IF(C25=0,"",(D25/'Charges Summary'!D$4)/C25-1) -> -0.06009770925 | Q25: =IF(D25=0,"",(E25/'Charges Summary'!E$4)/(D25/'Charges Summary'!D$4)-1) -> 0.006783806832 | R25: =IF(E25=0,"",(F25/'Charges Summary'!F$4)/(E25/'Charges Summary'!E$4)-1) -> -0.009065819727 | S25: =IF(F25=0,"",(G25/'Charges Summary'!G$4)/(F25/'Charges Summary'!F$4)-1) -> -0.001055226602 | T25: =IF(G25=0,"",(H25/'Charges Summary'!H$4)/(G25/'Charges Summary'!G$4)-1) -> -0.001595956721
A26: ='DNSP Inputs General'!A61 -> Metal halide 400 watt | C26: ='DNSP Inputs General'!E61 -> 143.2467914 | D26: =IF('DNSP Inputs General'!$B61='DNSP Inputs General'!$A$41,D$6,IF('DNSP Inputs General'!$B61='DNSP Inputs General'!$A$42,D$7,D$8))*'DNSP Inputs General'!$D61 -> 138.138575 | E26: =IF('DNSP Inputs General'!$B61='DNSP Inputs General'!$A$41,E$6,IF('DNSP Inputs General'!$B61='DNSP Inputs General'!$A$42,E$7,E$8))*'DNSP Inputs General'!$D61 -> 142.6916481 | F26: =IF('DNSP Inputs General'!$B61='DNSP Inputs General'!$A$41,F$6,IF('DNSP Inputs General'!$B61='DNSP Inputs General'!$A$42,F$7,F$8))*'DNSP Inputs General'!$D61 -> 145.0743802 | G26: =IF('DNSP Inputs General'!$B61='DNSP Inputs General'!$A$41,G$6,IF('DNSP Inputs General'!$B61='DNSP Inputs General'!$A$42,G$7,G$8))*'DNSP Inputs General'!$D61 -> 148.6892475 | H26: =IF('DNSP Inputs General'!$B61='DNSP Inputs General'!$A$41,H$6,IF('DNSP Inputs General'!$B61='DNSP Inputs General'!$A$42,H$7,H$8))*'DNSP Inputs General'!$D61 -> 152.3116964 | J26: -0.03566024969 | K26: 0.03296018581 | L26: 0.01669846896 | M26: 0.02491733751 | N26: 0.0243625484 | P26: =IF(C26=0,"",(D26/'Charges Summary'!D$4)/C26-1) -> -0.06009770925 | Q26: =IF(D26=0,"",(E26/'Charges Summary'!E$4)/(D26/'Charges Summary'!D$4)-1) -> 0.006783806832 | R26: =IF(E26=0,"",(F26/'Charges Summary'!F$4)/(E26/'Charges Summary'!E$4)-1) -> -0.009065819727 | S26: =IF(F26=0,"",(G26/'Charges Summary'!G$4)/(F26/'Charges Summary'!F$4)-1) -> -0.001055226602 | T26: =IF(G26=0,"",(H26/'Charges Summary'!H$4)/(G26/'Charges Summary'!G$4)-1) -> -0.001595956721
A27: ='DNSP Inputs General'!A62 -> Metal halide 1000 watt | C27: ='DNSP Inputs General'!E62 -> 213.6764638 | D27: =IF('DNSP Inputs General'!$B62='DNSP Inputs General'!$A$41,D$6,IF('DNSP Inputs General'!$B62='DNSP Inputs General'!$A$42,D$7,D$8))*'DNSP Inputs General'!$D62 -> 206.0567077 | E27: =IF('DNSP Inputs General'!$B62='DNSP Inputs General'!$A$41,E$6,IF('DNSP Inputs General'!$B62='DNSP Inputs General'!$A$42,E$7,E$8))*'DNSP Inputs General'!$D62 -> 212.8483751 | F27: =IF('DNSP Inputs General'!$B62='DNSP Inputs General'!$A$41,F$6,IF('DNSP Inputs General'!$B62='DNSP Inputs General'!$A$42,F$7,F$8))*'DNSP Inputs General'!$D62 -> 216.4026171 | G27: =IF('DNSP Inputs General'!$B62='DNSP Inputs General'!$A$41,G$6,IF('DNSP Inputs General'!$B62='DNSP Inputs General'!$A$42,G$7,G$8))*'DNSP Inputs General'!$D62 -> 221.7947941 | H27: =IF('DNSP Inputs General'!$B62='DNSP Inputs General'!$A$41,H$6,IF('DNSP Inputs General'!$B62='DNSP Inputs General'!$A$42,H$7,H$8))*'DNSP Inputs General'!$D62 -> 227.1982805 | J27: -0.03566024969 | K27: 0.03296018581 | L27: 0.01669846896 | M27: 0.02491733751 | N27: 0.0243625484 | P27: =IF(C27=0,"",(D27/'Charges Summary'!D$4)/C27-1) -> -0.06009770925 | Q27: =IF(D27=0,"",(E27/'Charges Summary'!E$4)/(D27/'Charges Summary'!D$4)-1) -> 0.006783806832 | R27: =IF(E27=0,"",(F27/'Charges Summary'!F$4)/(E27/'Charges Summary'!E$4)-1) -> -0.009065819727 | S27: =IF(F27=0,"",(G27/'Charges Summary'!G$4)/(F27/'Charges Summary'!F$4)-1) -> -0.001055226602 | T27: =IF(G27=0,"",(H27/'Charges Summary'!H$4)/(G27/'Charges Summary'!G$4)-1) -> -0.001595956721
A30: ='DNSP Inputs General'!A$67 -> Energy Efficient Lights
A31: ='DNSP Inputs General'!A68 -> T5 2X14W | C31: ='DNSP Inputs General'!E68 -> 38.14547144 | D31: ='Charges Summary'!D$89 -> 49.48675133 | E31: ='Charges Summary'!E$89 -> 50.95467672 | F31: ='Charges Summary'!F$89 -> 52.39479801 | G31: ='Charges Summary'!G$89 -> 54.56900534 | H31: ='Charges Summary'!H$89 -> 56.56814914 | J31: =IF(C31=0,"",D31/C31-1) -> 0.2973165481 | K31: =IF(D31=0,"",E31/D31-1) -> 0.02966299755 | L31: =IF(E31=0,"",F31/E31-1) -> 0.02826278941 | M31: =IF(F31=0,"",G31/F31-1) -> 0.04149662578 | N31: =IF(G31=0,"",H31/G31-1) -> 0.03663515187 | P31: =IF(C31=0,"",(D31/'Charges Summary'!D$4)/C31-1) -> 0.2644410801 | Q31: =IF(D31=0,"",(E31/'Charges Summary'!E$4)/(D31/'Charges Summary'!D$4)-1) -> 0.003570173052 | R31: =IF(E31=0,"",(F31/'Charges Summary'!F$4)/(E31/'Charges Summary'!E$4)-1) -> 0.002205447768 | S31: =IF(F31=0,"",(G31/'Charges Summary'!G$4)/(F31/'Charges Summary'!F$4)-1) -> 0.01510392376 | T31: =IF(G31=0,"",(H31/'Charges Summary'!H$4)/(G31/'Charges Summary'!G$4)-1) -> 0.0103656451
A32: ='DNSP Inputs General'!A69 -> T5 2X24W | C32: ='DNSP Inputs General'!E69 -> 37.61630139 | D32: =IF('DNSP Inputs General'!$B69='DNSP Inputs General'!$A$68,D$31,D$35)*'DNSP Inputs General'!$D69 -> 48.80025028 | E32: =IF('DNSP Inputs General'!$B69='DNSP Inputs General'!$A$68,E$31,E$35)*'DNSP Inputs General'!$D69 -> 50.24781198 | F32: =IF('DNSP Inputs General'!$B69='DNSP Inputs General'!$A$68,F$31,F$35)*'DNSP Inputs General'!$D69 -> 51.66795531 | G32: =IF('DNSP Inputs General'!$B69='DNSP Inputs General'!$A$68,G$31,G$35)*'DNSP Inputs General'!$D69 -> 53.81200112 | H32: =IF('DNSP Inputs General'!$B69='DNSP Inputs General'!$A$68,H$31,H$35)*'DNSP Inputs General'!$D69 -> 55.78341195 | J32: =IF(C32=0,"",D32/C32-1) -> 0.2973165481 | K32: =IF(D32=0,"",E32/D32-1) -> 0.02966299755 | L32: =IF(E32=0,"",F32/E32-1) -> 0.02826278941 | M32: =IF(F32=0,"",G32/F32-1) -> 0.04149662578 | N32: =IF(G32=0,"",H32/G32-1) -> 0.03663515187 | P32: =IF(C32=0,"",(D32/'Charges Summary'!D$4)/C32-1) -> 0.2644410801 | Q32: =IF(D32=0,"",(E32/'Charges Summary'!E$4)/(D32/'Charges Summary'!D$4)-1) -> 0.003570173052 | R32: =IF(E32=0,"",(F32/'Charges Summary'!F$4)/(E32/'Charges Summary'!E$4)-1) -> 0.002205447768 | S32: =IF(F32=0,"",(G32/'Charges Summary'!G$4)/(F32/'Charges Summary'!F$4)-1) -> 0.01510392376 | T32: =IF(G32=0,"",(H32/'Charges Summary'!H$4)/(G32/'Charges Summary'!G$4)-1) -> 0.0103656451
A33: ='DNSP Inputs General'!A70 -> CF32 | C33: ='DNSP Inputs General'!E70 -> 36.95350299 | D33: =IF('DNSP Inputs General'!$B70='DNSP Inputs General'!$A$68,D$31,D$35)*'DNSP Inputs General'!$D70 -> 47.94039094 | E33: =IF('DNSP Inputs General'!$B70='DNSP Inputs General'!$A$68,E$31,E$35)*'DNSP Inputs General'!$D70 -> 49.36244664 | F33: =IF('DNSP Inputs General'!$B70='DNSP Inputs General'!$A$68,F$31,F$35)*'DNSP Inputs General'!$D70 -> 50.75756707 | G33: =IF('DNSP Inputs General'!$B70='DNSP Inputs General'!$A$68,G$31,G$35)*'DNSP Inputs General'!$D70 -> 52.86383484 | H33: =IF('DNSP Inputs General'!$B70='DNSP Inputs General'!$A$68,H$31,H$35)*'DNSP Inputs General'!$D70 -> 54.80050945 | J33: 0.2973165481 | K33: 0.02966299755 | L33: 0.02826278941 | M33: 0.04149662578 | N33: 0.03663515187 | P33: =IF(C33=0,"",(D33/'Charges Summary'!D$4)/C33-1) -> 0.2644410801 | Q33: =IF(D33=0,"",(E33/'Charges Summary'!E$4)/(D33/'Charges Summary'!D$4)-1) -> 0.003570173052 | R33: =IF(E33=0,"",(F33/'Charges Summary'!F$4)/(E33/'Charges Summary'!E$4)-1) -> 0.002205447768 | S33: =IF(F33=0,"",(G33/'Charges Summary'!G$4)/(F33/'Charges Summary'!F$4)-1) -> 0.01510392376 | T33: =IF(G33=0,"",(H33/'Charges Summary'!H$4)/(G33/'Charges Summary'!G$4)-1) -> 0.0103656451
A34: ='DNSP Inputs General'!A71 -> CF42 | C34: ='DNSP Inputs General'!E71 -> 36.95350299 | D34: =IF('DNSP Inputs General'!$B71='DNSP Inputs General'!$A$68,D$31,D$35)*'DNSP Inputs General'!$D71 -> 47.94039094 | E34: =IF('DNSP Inputs General'!$B71='DNSP Inputs General'!$A$68,E$31,E$35)*'DNSP Inputs General'!$D71 -> 49.36244664 | F34: =IF('DNSP Inputs General'!$B71='DNSP Inputs General'!$A$68,F$31,F$35)*'DNSP Inputs General'!$D71 -> 50.75756707 | G34: =IF('DNSP Inputs General'!$B71='DNSP Inputs General'!$A$68,G$31,G$35)*'DNSP Inputs General'!$D71 -> 52.86383484 | H34: =IF('DNSP Inputs General'!$B71='DNSP Inputs General'!$A$68,H$31,H$35)*'DNSP Inputs General'!$D71 -> 54.80050945 | J34: 0.2973165481 | K34: 0.02966299755 | L34: 0.02826278941 | M34: 0.04149662578 | N34: 0.03663515187 | P34: =IF(C34=0,"",(D34/'Charges Summary'!D$4)/C34-1) -> 0.2644410801 | Q34: =IF(D34=0,"",(E34/'Charges Summary'!E$4)/(D34/'Charges Summary'!D$4)-1) -> 0.003570173052 | R34: =IF(E34=0,"",(F34/'Charges Summary'!F$4)/(E34/'Charges Summary'!E$4)-1) -> 0.002205447768 | S34: =IF(F34=0,"",(G34/'Charges Summary'!G$4)/(F34/'Charges Summary'!F$4)-1) -> 0.01510392376 | T34: =IF(G34=0,"",(H34/'Charges Summary'!H$4)/(G34/'Charges Summary'!G$4)-1) -> 0.0103656451
A35: ='DNSP Inputs General'!A72 -> Category P LED 18 Watt | C35: ='DNSP Inputs General'!E72 -> 23.1450571 | D35: ='Charges Summary'!D$107 -> 35.85640936 | E35: ='Charges Summary'!E$107 -> 36.68883085 | F35: ='Charges Summary'!F$107 -> 37.520108 | G35: ='Charges Summary'!G$107 -> 39.13409307 | H35: ='Charges Summary'!H$107 -> 40.52313035 | J35: 0.5492037547 | K35: 0.02321541687 | L35: 0.022657499 | M35: 0.0430165359 | N35: 0.03549430091 | P35: =IF(C35=0,"",(D35/'Charges Summary'!D$4)/C35-1) -> 0.50994518 | Q35: =IF(D35=0,"",(E35/'Charges Summary'!E$4)/(D35/'Charges Summary'!D$4)-1) -> -0.002714018647 | R35: =IF(E35=0,"",(F35/'Charges Summary'!F$4)/(E35/'Charges Summary'!E$4)-1) -> -0.003257798247 | S35: =IF(F35=0,"",(G35/'Charges Summary'!G$4)/(F35/'Charges Summary'!F$4)-1) -> 0.01658531764 | T35: =IF(G35=0,"",(H35/'Charges Summary'!H$4)/(G35/'Charges Summary'!G$4)-1) -> 0.009253704589
A36: ='DNSP Inputs General'!A73 -> Category P LED 47 Watt | C36: ='DNSP Inputs General'!E73 -> 23.1450571 | D36: =IF('DNSP Inputs General'!$B73='DNSP Inputs General'!$A$68,D$31,D$35)*'DNSP Inputs General'!$D73 -> 35.85640936 | E36: =IF('DNSP Inputs General'!$B73='DNSP Inputs General'!$A$68,E$31,E$35)*'DNSP Inputs General'!$D73 -> 36.68883085 | F36: =IF('DNSP Inputs General'!$B73='DNSP Inputs General'!$A$68,F$31,F$35)*'DNSP Inputs General'!$D73 -> 37.520108 | G36: =IF('DNSP Inputs General'!$B73='DNSP Inputs General'!$A$68,G$31,G$35)*'DNSP Inputs General'!$D73 -> 39.13409307 | H36: =IF('DNSP Inputs General'!$B73='DNSP Inputs General'!$A$68,H$31,H$35)*'DNSP Inputs General'!$D73 -> 40.52313035 | J36: 0.5492037547 | K36: 0.02321541687 | L36: 0.022657499 | M36: 0.0430165359 | N36: 0.03549430091 | P36: =IF(C36=0,"",(D36/'Charges Summary'!D$4)/C36-1) -> 0.50994518 | Q36: =IF(D36=0,"",(E36/'Charges Summary'!E$4)/(D36/'Charges Summary'!D$4)-1) -> -0.002714018647 | R36: =IF(E36=0,"",(F36/'Charges Summary'!F$4)/(E36/'Charges Summary'!E$4)-1) -> -0.003257798247 | S36: =IF(F36=0,"",(G36/'Charges Summary'!G$4)/(F36/'Charges Summary'!F$4)-1) -> 0.01658531764 | T36: =IF(G36=0,"",(H36/'Charges Summary'!H$4)/(G36/'Charges Summary'!G$4)-1) -> 0.009253704589

Sheet Cashflow Summary
A1: ='DNSP Inputs O & M'!$A$3 -> CitiPower | E1: Check | F1: =SUM(C133,C139,C162) -> 9.960785974e-09
C2: ='DNSP Inputs General'!J$2 -> 2015 | D2: ='DNSP Inputs General'!K$2 -> 2016 | E2: ='DNSP Inputs General'!L$2 -> 2017 | F2: ='DNSP Inputs General'!M$2 -> 2018 | G2: ='DNSP Inputs General'!N$2 -> 2019 | H2: ='DNSP Inputs General'!O$2 -> 2020 | J2: =C2 -> 2015 | K2: =D2 -> 2016 | L2: 2017 | M2: 2018 | N2: 2019 | O2: 2020
A4: Public Lighting - Revenue | C4: Revenue - Nominal | J4: Revenue - Real 2015 $
C5: =C$2 -> 2015 | D5: =D$2 -> 2016 | E5: 2017 | F5: 2018 | G5: 2019 | H5: 2020 | J5: =J$2 -> 2015 | K5: 2016 | L5: 2017 | M5: 2018 | N5: 2019 | O5: 2020
A6: ='DNSP Inputs General'!A$40 -> Existing Lights
A7: ='DNSP Inputs General'!A$41 -> Mercury vapour 80 watt | C7: =IF('PL Tariffs'!C6=0,"",'DNSP Inputs General'!J41*'PL Tariffs'!C6) -> 355026.8313 | D7: =IF('PL Tariffs'!D6=0,"",'DNSP Inputs General'!K41*'PL Tariffs'!D6) -> 300811.1892 | E7: =IF('PL Tariffs'!E6=0,"",'DNSP Inputs General'!L41*'PL Tariffs'!E6) -> 172258.4583 | F7: =IF('PL Tariffs'!F6=0,"",'DNSP Inputs General'!M41*'PL Tariffs'!F6) -> 155317.4661 | G7: =IF('PL Tariffs'!G6=0,"",'DNSP Inputs General'!N41*'PL Tariffs'!G6) -> 141875.1132 | H7: =IF('PL Tariffs'!H6=0,"",'DNSP Inputs General'!O41*'PL Tariffs'!H6) -> 129370.7809 | J7: =C7 -> 355026.8313 | K7: =D7/'Charges Summary'!D$4 -> 293188.2935 | L7: =E7/'Charges Summary'!E$4 -> 163638.6298 | M7: =F7/'Charges Summary'!F$4 -> 143806.4 | N7: =G7/'Charges Summary'!G$4 -> 128031.4836 | O7: =H7/'Charges Summary'!H$4 -> 113788.7681
A8: ='DNSP Inputs General'!A$42 -> Sodium high pressure 150 watt | C8: =IF('PL Tariffs'!C7=0,"",'DNSP Inputs General'!J42*'PL Tariffs'!C7) -> 1269782.669 | D8: =IF('PL Tariffs'!D7=0,"",'DNSP Inputs General'!K42*'PL Tariffs'!D7) -> 1240990.961 | E8: =IF('PL Tariffs'!E7=0,"",'DNSP Inputs General'!L42*'PL Tariffs'!E7) -> 1288669.756 | F8: =IF('PL Tariffs'!F7=0,"",'DNSP Inputs General'!M42*'PL Tariffs'!F7) -> 1317573.345 | G8: =IF('PL Tariffs'!G7=0,"",'DNSP Inputs General'!N42*'PL Tariffs'!G7) -> 1357846.812 | H8: =IF('PL Tariffs'!H7=0,"",'DNSP Inputs General'!O42*'PL Tariffs'!H7) -> 1398548.756 | J8: 1269782.669 | K8: =D8/'Charges Summary'!D$4 -> 1209542.847 | L8: =E8/'Charges Summary'!E$4 -> 1224184.607 | M8: =F8/'Charges Summary'!F$4 -> 1219923.839 | N8: =G8/'Charges Summary'!G$4 -> 1225353.326 | O8: =H8/'Charges Summary'!H$4 -> 1230101.102
A9: ='DNSP Inputs General'!A$43 -> Sodium high pressure 250 watt | C9: =IF('PL Tariffs'!C8=0,"",'DNSP Inputs General'!J43*'PL Tariffs'!C8) -> 428505.4694 | D9: =IF('PL Tariffs'!D8=0,"",'DNSP Inputs General'!K43*'PL Tariffs'!D8) -> 420880.894 | E9: =IF('PL Tariffs'!E8=0,"",'DNSP Inputs General'!L43*'PL Tariffs'!E8) -> 442808.1103 | F9: =IF('PL Tariffs'!F8=0,"",'DNSP Inputs General'!M43*'PL Tariffs'!F8) -> 458543.4656 | G9: =IF('PL Tariffs'!G8=0,"",'DNSP Inputs General'!N43*'PL Tariffs'!G8) -> 478676.5162 | H9: =IF('PL Tariffs'!H8=0,"",'DNSP Inputs General'!O43*'PL Tariffs'!H8) -> 499423.0543 | J9: 428505.4694 | K9: =D9/'Charges Summary'!D$4 -> 410215.2963 | L9: =E9/'Charges Summary'!E$4 -> 420649.9533 | M9: =F9/'Charges Summary'!F$4 -> 424559.3666 | N9: =G9/'Charges Summary'!G$4 -> 431969.0969 | O9: =H9/'Charges Summary'!H$4 -> 439270.2411
A10: ='DNSP Inputs General'!A$44 -> Fluorescent 20 watt | C10: =IF('PL Tariffs'!C9=0,"",'DNSP Inputs General'!J44*'PL Tariffs'!C9) -> 687.2021847 | D10: =IF('PL Tariffs'!D9=0,"",'DNSP Inputs General'!K44*'PL Tariffs'!D9) -> 702.4637626 | E10: =IF('PL Tariffs'!E9=0,"",'DNSP Inputs General'!L44*'PL Tariffs'!E9) -> 724.176168 | F10: =IF('PL Tariffs'!F9=0,"",'DNSP Inputs General'!M44*'PL Tariffs'!F9) -> 728.7807978 | G10: =IF('PL Tariffs'!G9=0,"",'DNSP Inputs General'!N44*'PL Tariffs'!G9) -> 743.0119479 | H10: =IF('PL Tariffs'!H9=0,"",'DNSP Inputs General'!O44*'PL Tariffs'!H9) -> 756.2035775 | J10: 687.2021847 | K10: =D10/'Charges Summary'!D$4 -> 684.6625366 | L10: =E10/'Charges Summary'!E$4 -> 687.9383286 | M10: =F10/'Charges Summary'!F$4 -> 674.7685597 | N10: =G10/'Charges Summary'!G$4 -> 670.5116906 | O10: =H10/'Charges Summary'!H$4 -> 665.1229352
A11: ='DNSP Inputs General'!A$45 -> Fluorescent 40 watt | C11: =IF('PL Tariffs'!C10=0,"",'DNSP Inputs General'!J45*'PL Tariffs'!C10) -> 0 | D11: =IF('PL Tariffs'!D10=0,"",'DNSP Inputs General'!K45*'PL Tariffs'!D10) -> 0 | E11: =IF('PL Tariffs'!E10=0,"",'DNSP Inputs General'!L45*'PL Tariffs'!E10) -> 0 | F11: =IF('PL Tariffs'!F10=0,"",'DNSP Inputs General'!M45*'PL Tariffs'!F10) -> 0 | G11: =IF('PL Tariffs'!G10=0,"",'DNSP Inputs General'!N45*'PL Tariffs'!G10) -> 0 | H11: =IF('PL Tariffs'!H10=0,"",'DNSP Inputs General'!O45*'PL Tariffs'!H10) -> 0 | J11: 0 | K11: =D11/'Charges Summary'!D$4 -> 0 | L11: =E11/'Charges Summary'!E$4 -> 0 | M11: =F11/'Charges Summary'!F$4 -> 0 | N11: =G11/'Charges Summary'!G$4 -> 0 | O11: =H11/'Charges Summary'!H$4 -> 0
A12: ='DNSP Inputs General'!A$46 -> Mercury vapour 50 watt | C12: =IF('PL Tariffs'!C11=0,"",'DNSP Inputs General'!J46*'PL Tariffs'!C11) -> 18336.25031 | D12: =IF('PL Tariffs'!D11=0,"",'DNSP Inputs General'!K46*'PL Tariffs'!D11) -> 17521.87836 | E12: =IF('PL Tariffs'!E11=0,"",'DNSP Inputs General'!L46*'PL Tariffs'!E11) -> 16886.19118 | F12: =IF('PL Tariffs'!F11=0,"",'DNSP Inputs General'!M46*'PL Tariffs'!F11) -> 15886.02101 | G12: =IF('PL Tariffs'!G11=0,"",'DNSP Inputs General'!N46*'PL Tariffs'!G11) -> 15140.65791 | H12: =IF('PL Tariffs'!H11=0,"",'DNSP Inputs General'!O46*'PL Tariffs'!H11) -> 14405.17091 | J12: 18336.25031 | K12: =D12/'Charges Summary'!D$4 -> 17077.85415 | L12: =E12/'Charges Summary'!E$4 -> 16041.20468 | M12: =F12/'Charges Summary'!F$4 -> 14708.65801 | N12: =G12/'Charges Summary'!G$4 -> 13663.29056 | O12: =H12/'Charges Summary'!H$4 -> 12670.14577
A13: ='DNSP Inputs General'!A$47 -> Mercury vapour 125 watt | C13: =IF('PL Tariffs'!C12=0,"",'DNSP Inputs General'!J47*'PL Tariffs'!C12) -> 105126.8168 | D13: =IF('PL Tariffs'!D12=0,"",'DNSP Inputs General'!K47*'PL Tariffs'!D12) -> 101495.7164 | E13: =IF('PL Tariffs'!E12=0,"",'DNSP Inputs General'!L47*'PL Tariffs'!E12) -> 98824.08938 | F13: =IF('PL Tariffs'!F12=0,"",'DNSP Inputs General'!M47*'PL Tariffs'!F12) -> 93931.29693 | G13: =IF('PL Tariffs'!G12=0,"",'DNSP Inputs General'!N47*'PL Tariffs'!G12) -> 90449.04798 | H13: =IF('PL Tariffs'!H12=0,"",'DNSP Inputs General'!O47*'PL Tariffs'!H12) -> 86944.42409 | J13: 105126.8168 | K13: =D13/'Charges Summary'!D$4 -> 98923.7002 | L13: =E13/'Charges Summary'!E$4 -> 93878.92322 | M13: =F13/'Charges Summary'!F$4 -> 86969.75296 | N13: =G13/'Charges Summary'!G$4 -> 81623.37664 | O13: =H13/'Charges Summary'!H$4 -> 76472.43715
A14: ='DNSP Inputs General'!A$48 -> Mercury vapour 250 watt | C14: =IF('PL Tariffs'!C13=0,"",'DNSP Inputs General'!J48*'PL Tariffs'!C13) -> 50210.4985 | D14: =IF('PL Tariffs'!D13=0,"",'DNSP Inputs General'!K48*'PL Tariffs'!D13) -> 44083.23964 | E14: =IF('PL Tariffs'!E13=0,"",'DNSP Inputs General'!L48*'PL Tariffs'!E13) -> 41457.77462 | F14: =IF('PL Tariffs'!F13=0,"",'DNSP Inputs General'!M48*'PL Tariffs'!F13) -> 38374.88232 | G14: =IF('PL Tariffs'!G13=0,"",'DNSP Inputs General'!N48*'PL Tariffs'!G13) -> 35808.3902 | H14: =IF('PL Tariffs'!H13=0,"",'DNSP Inputs General'!O48*'PL Tariffs'!H13) -> 33395.45693 | J14: 50210.4985 | K14: =D14/'Charges Summary'!D$4 -> 42966.1205 | L14: =E14/'Charges Summary'!E$4 -> 39383.22392 | M14: =F14/'Charges Summary'!F$4 -> 35530.79905 | N14: =G14/'Charges Summary'!G$4 -> 32314.34476 | O14: =H14/'Charges Summary'!H$4 -> 29373.15427
A15: ='DNSP Inputs General'!A$49 -> Mercury vapour 400 watt | C15: =IF('PL Tariffs'!C14=0,"",'DNSP Inputs General'!J49*'PL Tariffs'!C14) -> 25102.83925 | D15: =IF('PL Tariffs'!D14=0,"",'DNSP Inputs General'!K49*'PL Tariffs'!D14) -> 22346.95644 | E15: =IF('PL Tariffs'!E14=0,"",'DNSP Inputs General'!L49*'PL Tariffs'!E14) -> 21309.21413 | F15: =IF('PL Tariffs'!F14=0,"",'DNSP Inputs General'!M49*'PL Tariffs'!F14) -> 19999.77324 | G15: =IF('PL Tariffs'!G14=0,"",'DNSP Inputs General'!N49*'PL Tariffs'!G14) -> 18922.53773 | H15: =IF('PL Tariffs'!H14=0,"",'DNSP Inputs General'!O49*'PL Tariffs'!H14) -> 17893.6336 | J15: 25102.83925 | K15: =D15/'Charges Summary'!D$4 -> 21780.6593 | L15: =E15/'Charges Summary'!E$4 -> 20242.89917 | M15: =F15/'Charges Summary'!F$4 -> 18517.52711 | N15: =G15/'Charges Summary'!G$4 -> 17076.14904 | O15: =H15/'Charges Summary'!H$4 -> 15738.44194
A16: ='DNSP Inputs General'!A$50 -> Mercury vapour 700 watt | C16: =IF('PL Tariffs'!C15=0,"",'DNSP Inputs General'!J50*'PL Tariffs'!C15) -> 0 | D16: =IF('PL Tariffs'!D15=0,"",'DNSP Inputs General'!K50*'PL Tariffs'!D15) -> 0 | E16: =IF('PL Tariffs'!E15=0,"",'DNSP Inputs General'!L50*'PL Tariffs'!E15) -> 0 | F16: =IF('PL Tariffs'!F15=0,"",'DNSP Inputs General'!M50*'PL Tariffs'!F15) -> 0 | G16: =IF('PL Tariffs'!G15=0,"",'DNSP Inputs General'!N50*'PL Tariffs'!G15) -> 0 | H16: =IF('PL Tariffs'!H15=0,"",'DNSP Inputs General'!O50*'PL Tariffs'!H15) -> 0 | J16: 0 | K16: =D16/'Charges Summary'!D$4 -> 0 | L16: =E16/'Charges Summary'!E$4 -> 0 | M16: =F16/'Charges Summary'!F$4 -> 0 | N16: =G16/'Charges Summary'!G$4 -> 0 | O16: =H16/'Charges Summary'!H$4 -> 0
A17: ='DNSP Inputs General'!A$51 -> Sodium high pressure 70 watt | C17: =IF('PL Tariffs'!C16=0,"",'DNSP Inputs General'!J51*'PL Tariffs'!C16) -> 25988.83961 | D17: =IF('PL Tariffs'!D16=0,"",'DNSP Inputs General'!K51*'PL Tariffs'!D16) -> 26196.50506 | E17: =IF('PL Tariffs'!E16=0,"",'DNSP Inputs General'!L51*'PL Tariffs'!E16) -> 26630.58642 | F17: =IF('PL Tariffs'!F16=0,"",'DNSP Inputs General'!M51*'PL Tariffs'!F16) -> 26427.16003 | G17: =IF('PL Tariffs'!G16=0,"",'DNSP Inputs General'!N51*'PL Tariffs'!G16) -> 26568.46374 | H17: =IF('PL Tariffs'!H16=0,"",'DNSP Inputs General'!O51*'PL Tariffs'!H16) -> 26664.07027 | J17: 25988.83961 | K17: =D17/'Charges Summary'!D$4 -> 25532.65601 | L17: =E17/'Charges Summary'!E$4 -> 25297.98952 | M17: =F17/'Charges Summary'!F$4 -> 24468.56005 | N17: =G17/'Charges Summary'!G$4 -> 23976.0149 | O17: =H17/'Charges Summary'!H$4 -> 23452.52682
A18: ='DNSP Inputs General'!A$52 -> Sodium high pressure 100 watt | C18: =IF('PL Tariffs'!C17=0,"",'DNSP Inputs General'!J52*'PL Tariffs'!C17) -> 30755.47201 | D18: =IF('PL Tariffs'!D17=0,"",'DNSP Inputs General'!K52*'PL Tariffs'!D17) -> 28834.88954 | E18: =IF('PL Tariffs'!E17=0,"",'DNSP Inputs General'!L52*'PL Tariffs'!E17) -> 28724.20268 | F18: =IF('PL Tariffs'!F17=0,"",'DNSP Inputs General'!M52*'PL Tariffs'!F17) -> 28173.30646 | G18: =IF('PL Tariffs'!G17=0,"",'DNSP Inputs General'!N52*'PL Tariffs'!G17) -> 27852.90311 | H18: =IF('PL Tariffs'!H17=0,"",'DNSP Inputs General'!O52*'PL Tariffs'!H17) -> 27520.35141 | J18: 30755.47201 | K18: =D18/'Charges Summary'!D$4 -> 28104.18084 | L18: =E18/'Charges Summary'!E$4 -> 27286.84104 | M18: =F18/'Charges Summary'!F$4 -> 26085.29407 | N18: =G18/'Charges Summary'!G$4 -> 25135.12361 | O18: =H18/'Charges Summary'!H$4 -> 24205.67352
A19: ='DNSP Inputs General'!A$53 -> Sodium high pressure 220 watt | C19: =IF('PL Tariffs'!C18=0,"",'DNSP Inputs General'!J53*'PL Tariffs'!C18) -> 204399.6095 | D19: =IF('PL Tariffs'!D18=0,"",'DNSP Inputs General'!K53*'PL Tariffs'!D18) -> 190733.9992 | E19: =IF('PL Tariffs'!E18=0,"",'DNSP Inputs General'!L53*'PL Tariffs'!E18) -> 190646.871 | F19: =IF('PL Tariffs'!F18=0,"",'DNSP Inputs General'!M53*'PL Tariffs'!F18) -> 187559.8323 | G19: =IF('PL Tariffs'!G18=0,"",'DNSP Inputs General'!N53*'PL Tariffs'!G18) -> 186014.4403 | H19: =IF('PL Tariffs'!H18=0,"",'DNSP Inputs General'!O53*'PL Tariffs'!H18) -> 184381.9212 | J19: 204399.6095 | K19: =D19/'Charges Summary'!D$4 -> 185900.5841 | L19: =E19/'Charges Summary'!E$4 -> 181106.8847 | M19: =F19/'Charges Summary'!F$4 -> 173659.1829 | N19: =G19/'Charges Summary'!G$4 -> 167863.8643 | O19: =H19/'Charges Summary'!H$4 -> 162174.1133
A20: ='DNSP Inputs General'!A$54 -> Sodium high pressure 360 watt | C20: =IF('PL Tariffs'!C19=0,"",'DNSP Inputs General'!J54*'PL Tariffs'!C19) -> 26123.97374 | D20: =IF('PL Tariffs'!D19=0,"",'DNSP Inputs General'!K54*'PL Tariffs'!D19) -> 25023.66782 | E20: =IF('PL Tariffs'!E19=0,"",'DNSP Inputs General'!L54*'PL Tariffs'!E19) -> 25675.34025 | F20: =IF('PL Tariffs'!F19=0,"",'DNSP Inputs General'!M54*'PL Tariffs'!F19) -> 25929.25484 | G20: =IF('PL Tariffs'!G19=0,"",'DNSP Inputs General'!N54*'PL Tariffs'!G19) -> 26397.3624 | H20: =IF('PL Tariffs'!H19=0,"",'DNSP Inputs General'!O54*'PL Tariffs'!H19) -> 26859.37393 | J20: 26123.97374 | K20: =D20/'Charges Summary'!D$4 -> 24389.53978 | L20: =E20/'Charges Summary'!E$4 -> 24390.54396 | M20: =F20/'Charges Summary'!F$4 -> 24007.55618 | N20: =G20/'Charges Summary'!G$4 -> 23821.60898 | O20: =H20/'Charges Summary'!H$4 -> 23624.30721
A21: ='DNSP Inputs General'!A$55 -> Sodium high pressure 400 watt | C21: =IF('PL Tariffs'!C20=0,"",'DNSP Inputs General'!J55*'PL Tariffs'!C20) -> 27409.42433 | D21: =IF('PL Tariffs'!D20=0,"",'DNSP Inputs General'!K55*'PL Tariffs'!D20) -> 26914.08963 | E21: =IF('PL Tariffs'!E20=0,"",'DNSP Inputs General'!L55*'PL Tariffs'!E20) -> 28308.24777 | F21: =IF('PL Tariffs'!F20=0,"",'DNSP Inputs General'!M55*'PL Tariffs'!F20) -> 29305.88689 | G21: =IF('PL Tariffs'!G20=0,"",'DNSP Inputs General'!N55*'PL Tariffs'!G20) -> 30583.93909 | H21: =IF('PL Tariffs'!H20=0,"",'DNSP Inputs General'!O55*'PL Tariffs'!H20) -> 31900.45101 | J21: 27409.42433 | K21: =D21/'Charges Summary'!D$4 -> 26232.05617 | L21: =E21/'Charges Summary'!E$4 -> 26891.70055 | M21: =F21/'Charges Summary'!F$4 -> 27133.9354 | N21: =G21/'Charges Summary'!G$4 -> 27599.67556 | O21: =H21/'Charges Summary'!H$4 -> 28058.21375
A22: ='DNSP Inputs General'!A$56 -> Sodium high pressure 1000 watt | C22: =IF('PL Tariffs'!C21=0,"",'DNSP Inputs General'!J56*'PL Tariffs'!C21) -> 0 | D22: =IF('PL Tariffs'!D21=0,"",'DNSP Inputs General'!K56*'PL Tariffs'!D21) -> 0 | E22: =IF('PL Tariffs'!E21=0,"",'DNSP Inputs General'!L56*'PL Tariffs'!E21) -> 0 | F22: =IF('PL Tariffs'!F21=0,"",'DNSP Inputs General'!M56*'PL Tariffs'!F21) -> 0 | G22: =IF('PL Tariffs'!G21=0,"",'DNSP Inputs General'!N56*'PL Tariffs'!G21) -> 0 | H22: =IF('PL Tariffs'!H21=0,"",'DNSP Inputs General'!O56*'PL Tariffs'!H21) -> 0 | J22: 0 | K22: =D22/'Charges Summary'!D$4 -> 0 | L22: =E22/'Charges Summary'!E$4 -> 0 | M22: =F22/'Charges Summary'!F$4 -> 0 | N22: =G22/'Charges Summary'!G$4 -> 0 | O22: =H22/'Charges Summary'!H$4 -> 0
A23: ='DNSP Inputs General'!A57 -> Metal halide 70 watt | C23: =IF('PL Tariffs'!C22=0,"",'DNSP Inputs General'!J57*'PL Tariffs'!C22) -> 50618.00101 | D23: =IF('PL Tariffs'!D22=0,"",'DNSP Inputs General'!K57*'PL Tariffs'!D22) -> 34933.33706 | E23: =IF('PL Tariffs'!E22=0,"",'DNSP Inputs General'!L57*'PL Tariffs'!E22) -> 37503.1683 | F23: =IF('PL Tariffs'!F22=0,"",'DNSP Inputs General'!M57*'PL Tariffs'!F22) -> 39303.22914 | G23: =IF('PL Tariffs'!G22=0,"",'DNSP Inputs General'!N57*'PL Tariffs'!G22) -> 41728.68427 | H23: =IF('PL Tariffs'!H22=0,"",'DNSP Inputs General'!O57*'PL Tariffs'!H22) -> 44226.76801 | J23: 50618.00101 | K23: =D23/'Charges Summary'!D$4 -> 34048.0868 | L23: =E23/'Charges Summary'!E$4 -> 35626.50645 | M23: =F23/'Charges Summary'!F$4 -> 36390.34316 | N23: =G23/'Charges Summary'!G$4 -> 37656.95924 | O23: =H23/'Charges Summary'!H$4 -> 38899.89234
A24: ='DNSP Inputs General'!A58 -> Metal halide 100 watt | C24: =IF('PL Tariffs'!C23=0,"",'DNSP Inputs General'!J58*'PL Tariffs'!C23) -> 10079.66422 | D24: =IF('PL Tariffs'!D23=0,"",'DNSP Inputs General'!K58*'PL Tariffs'!D23) -> 9065.948975 | E24: =IF('PL Tariffs'!E23=0,"",'DNSP Inputs General'!L58*'PL Tariffs'!E23) -> 8663.91676 | F24: =IF('PL Tariffs'!F23=0,"",'DNSP Inputs General'!M58*'PL Tariffs'!F23) -> 8152.211119 | G24: =IF('PL Tariffs'!G23=0,"",'DNSP Inputs General'!N58*'PL Tariffs'!G23) -> 7731.778028 | H24: =IF('PL Tariffs'!H23=0,"",'DNSP Inputs General'!O58*'PL Tariffs'!H23) -> 7328.822346 | J24: =C24 -> 10079.66422 | K24: =D24/'Charges Summary'!D$4 -> 8836.207578 | L24: =E24/'Charges Summary'!E$4 -> 8230.3736 | M24: =F24/'Charges Summary'!F$4 -> 7548.025102 | N24: =G24/'Charges Summary'!G$4 -> 6977.34077 | O24: =H24/'Charges Summary'!H$4 -> 6446.105223
A25: ='DNSP Inputs General'!A59 -> Metal halide 150 watt | C25: =IF('PL Tariffs'!C24=0,"",'DNSP Inputs General'!J59*'PL Tariffs'!C24) -> 12946.39944 | D25: =IF('PL Tariffs'!D24=0,"",'DNSP Inputs General'!K59*'PL Tariffs'!D24) -> 12057.20323 | E25: =IF('PL Tariffs'!E24=0,"",'DNSP Inputs General'!L59*'PL Tariffs'!E24) -> 11931.03047 | F25: =IF('PL Tariffs'!F24=0,"",'DNSP Inputs General'!M59*'PL Tariffs'!F24) -> 11624.37134 | G25: =IF('PL Tariffs'!G24=0,"",'DNSP Inputs General'!N59*'PL Tariffs'!G24) -> 11415.73313 | H25: =IF('PL Tariffs'!H24=0,"",'DNSP Inputs General'!O59*'PL Tariffs'!H24) -> 11204.41013 | J25: 12946.39944 | K25: =D25/'Charges Summary'!D$4 -> 11751.66007 | L25: =E25/'Charges Summary'!E$4 -> 11334.00065 | M25: =F25/'Charges Summary'!F$4 -> 10762.85261 | N25: =G25/'Charges Summary'!G$4 -> 10301.82966 | O25: =H25/'Charges Summary'!H$4 -> 9854.899365
A26: ='DNSP Inputs General'!A60 -> Metal halide 250 watt | C26: =IF('PL Tariffs'!C25=0,"",'DNSP Inputs General'!J60*'PL Tariffs'!C25) -> 48339.96455 | D26: =IF('PL Tariffs'!D25=0,"",'DNSP Inputs General'!K60*'PL Tariffs'!D25) -> 53145.45263 | E26: =IF('PL Tariffs'!E25=0,"",'DNSP Inputs General'!L60*'PL Tariffs'!E25) -> 62586.31858 | F26: =IF('PL Tariffs'!F25=0,"",'DNSP Inputs General'!M60*'PL Tariffs'!F25) -> 72543.96514 | G26: =IF('PL Tariffs'!G25=0,"",'DNSP Inputs General'!N60*'PL Tariffs'!G25) -> 84765.63958 | H26: =IF('PL Tariffs'!H25=0,"",'DNSP Inputs General'!O60*'PL Tariffs'!H25) -> 98992.71806 | J26: 48339.96455 | K26: =D26/'Charges Summary'!D$4 -> 51798.68678 | L26: =E26/'Charges Summary'!E$4 -> 59454.49367 | M26: =F26/'Charges Summary'!F$4 -> 67167.50363 | N26: =G26/'Charges Summary'!G$4 -> 76494.53345 | O26: =H26/'Charges Summary'!H$4 -> 87069.57909
A27: ='DNSP Inputs General'!A61 -> Metal halide 400 watt | C27: =IF('PL Tariffs'!C26=0,"",'DNSP Inputs General'!J61*'PL Tariffs'!C26) -> 137067.6782 | D27: =IF('PL Tariffs'!D26=0,"",'DNSP Inputs General'!K61*'PL Tariffs'!D26) -> 133941.9589 | E27: =IF('PL Tariffs'!E26=0,"",'DNSP Inputs General'!L61*'PL Tariffs'!E26) -> 140201.206 | F27: =IF('PL Tariffs'!F26=0,"",'DNSP Inputs General'!M61*'PL Tariffs'!F26) -> 144442.6474 | G27: =IF('PL Tariffs'!G26=0,"",'DNSP Inputs General'!N61*'PL Tariffs'!G26) -> 150015.3848 | H27: =IF('PL Tariffs'!H26=0,"",'DNSP Inputs General'!O61*'PL Tariffs'!H26) -> 155718.7873 | J27: 137067.6782 | K27: =D27/'Charges Summary'!D$4 -> 130547.7182 | L27: =E27/'Charges Summary'!E$4 -> 133185.5253 | M27: =F27/'Charges Summary'!F$4 -> 133737.5483 | N27: =G27/'Charges Summary'!G$4 -> 135377.4587 | O27: =H27/'Charges Summary'!H$4 -> 136963.2993
A28: ='DNSP Inputs General'!A62 -> Metal halide 1000 watt | C28: =IF('PL Tariffs'!C27=0,"",'DNSP Inputs General'!J62*'PL Tariffs'!C27) -> 0 | D28: =IF('PL Tariffs'!D27=0,"",'DNSP Inputs General'!K62*'PL Tariffs'!D27) -> 0 | E28: =IF('PL Tariffs'!E27=0,"",'DNSP Inputs General'!L62*'PL Tariffs'!E27) -> 0 | F28: =IF('PL Tariffs'!F27=0,"",'DNSP Inputs General'!M62*'PL Tariffs'!F27) -> 0 | G28: =IF('PL Tariffs'!G27=0,"",'DNSP Inputs General'!N62*'PL Tariffs'!G27) -> 0 | H28: =IF('PL Tariffs'!H27=0,"",'DNSP Inputs General'!O62*'PL Tariffs'!H27) -> 0 | J28: 0 | K28: =D28/'Charges Summary'!D$4 -> 0 | L28: =E28/'Charges Summary'!E$4 -> 0 | M28: =F28/'Charges Summary'!F$4 -> 0 | N28: =G28/'Charges Summary'!G$4 -> 0 | O28: =H28/'Charges Summary'!H$4 -> 0
A31: ='DNSP Inputs General'!A$67 -> Energy Efficient Lights
A32: ='DNSP Inputs General'!A68 -> T5 2X14W | C32: =IF('PL Tariffs'!C31=0,"",'DNSP Inputs General'!J68*'PL Tariffs'!C31) -> 534534.7045 | D32: =IF('PL Tariffs'!D31=0,"",'DNSP Inputs General'!K68*'PL Tariffs'!D31) -> 679591.5033 | E32: =IF('PL Tariffs'!E31=0,"",'DNSP Inputs General'!L68*'PL Tariffs'!E31) -> 685755.2199 | F32: =IF('PL Tariffs'!F31=0,"",'DNSP Inputs General'!M68*'PL Tariffs'!F31) -> 655777.015 | G32: =IF('PL Tariffs'!G31=0,"",'DNSP Inputs General'!N68*'PL Tariffs'!G31) -> 635180.28 | H32: =IF('PL Tariffs'!H31=0,"",'DNSP Inputs General'!O68*'PL Tariffs'!H31) -> 612358.6916 | J32: =C32 -> 534534.7045 | K32: =D32/'Charges Summary'!D$4 -> 662369.8863 | L32: =E32/'Charges Summary'!E$4 -> 651439.9682 | M32: =F32/'Charges Summary'!F$4 -> 607175.3171 | N32: =G32/'Charges Summary'!G$4 -> 573201.8235 | O32: =H32/'Charges Summary'!H$4 -> 538603.39
A33: ='DNSP Inputs General'!A69 -> T5 2X24W | C33: =IF('PL Tariffs'!C32=0,"",'DNSP Inputs General'!J69*'PL Tariffs'!C32) -> 93388.08196 | D33: =IF('PL Tariffs'!D32=0,"",'DNSP Inputs General'!K69*'PL Tariffs'!D32) -> 118730.826 | E33: =IF('PL Tariffs'!E32=0,"",'DNSP Inputs General'!L69*'PL Tariffs'!E32) -> 119807.6835 | F33: =IF('PL Tariffs'!F32=0,"",'DNSP Inputs General'!M69*'PL Tariffs'!F32) -> 114570.218 | G33: =IF('PL Tariffs'!G32=0,"",'DNSP Inputs General'!N69*'PL Tariffs'!G32) -> 110971.7808 | H33: =IF('PL Tariffs'!H32=0,"",'DNSP Inputs General'!O69*'PL Tariffs'!H32) -> 106984.6414 | J33: =C33 -> 93388.08196 | K33: =D33/'Charges Summary'!D$4 -> 115722.0527 | L33: =E33/'Charges Summary'!E$4 -> 113812.4964 | M33: =F33/'Charges Summary'!F$4 -> 106079.0587 | N33: =G33/'Charges Summary'!G$4 -> 100143.5799 | O33: =H33/'Charges Summary'!H$4 -> 94098.91839
A34: ='DNSP Inputs General'!A70 -> CF32 | C34: =IF('PL Tariffs'!C33=0,"",'DNSP Inputs General'!J70*'PL Tariffs'!C33) -> 13761.48451 | D34: =IF('PL Tariffs'!D33=0,"",'DNSP Inputs General'!K70*'PL Tariffs'!D33) -> 17495.94155 | E34: =IF('PL Tariffs'!E33=0,"",'DNSP Inputs General'!L70*'PL Tariffs'!E33) -> 17654.62515 | F34: =IF('PL Tariffs'!F33=0,"",'DNSP Inputs General'!M70*'PL Tariffs'!F33) -> 16882.84252 | G34: =IF('PL Tariffs'!G33=0,"",'DNSP Inputs General'!N70*'PL Tariffs'!G33) -> 16352.58387 | H34: =IF('PL Tariffs'!H33=0,"",'DNSP Inputs General'!O70*'PL Tariffs'!H33) -> 15765.04683 | J34: 13761.48451 | K34: =D34/'Charges Summary'!D$4 -> 17052.57461 | L34: =E34/'Charges Summary'!E$4 -> 16771.18615 | M34: =F34/'Charges Summary'!F$4 -> 15631.60194 | N34: =G34/'Charges Summary'!G$4 -> 14756.96143 | O34: =H34/'Charges Summary'!H$4 -> 13866.23197
A35: ='DNSP Inputs General'!A71 -> CF42 | C35: =IF('PL Tariffs'!C34=0,"",'DNSP Inputs General'!J71*'PL Tariffs'!C34) -> 4301.387748 | D35: =IF('PL Tariffs'!D34=0,"",'DNSP Inputs General'!K71*'PL Tariffs'!D34) -> 5468.656275 | E35: =IF('PL Tariffs'!E34=0,"",'DNSP Inputs General'!L71*'PL Tariffs'!E34) -> 5518.255552 | F35: =IF('PL Tariffs'!F34=0,"",'DNSP Inputs General'!M71*'PL Tariffs'!F34) -> 5277.021668 | G35: =IF('PL Tariffs'!G34=0,"",'DNSP Inputs General'!N71*'PL Tariffs'!G34) -> 5111.280243 | H35: =IF('PL Tariffs'!H34=0,"",'DNSP Inputs General'!O71*'PL Tariffs'!H34) -> 4927.635477 | J35: 4301.387748 | K35: =D35/'Charges Summary'!D$4 -> 5330.074342 | L35: =E35/'Charges Summary'!E$4 -> 5242.121557 | M35: =F35/'Charges Summary'!F$4 -> 4885.924988 | N35: =G35/'Charges Summary'!G$4 -> 4612.541112 | O35: =H35/'Charges Summary'!H$4 -> 4334.128361
A36: ='DNSP Inputs General'!A72 -> Category P LED 18 Watt | C36: =IF('PL Tariffs'!C35=0,"",'DNSP Inputs General'!J72*'PL Tariffs'!C35) -> 5646.607 | D36: =IF('PL Tariffs'!D35=0,"",'DNSP Inputs General'!K72*'PL Tariffs'!D35) -> 37144.78393 | E36: =IF('PL Tariffs'!E35=0,"",'DNSP Inputs General'!L72*'PL Tariffs'!E35) -> 100572.6687 | F36: =IF('PL Tariffs'!F35=0,"",'DNSP Inputs General'!M72*'PL Tariffs'!F35) -> 166834.526 | G36: =IF('PL Tariffs'!G35=0,"",'DNSP Inputs General'!N72*'PL Tariffs'!G35) -> 208813.4032 | H36: =IF('PL Tariffs'!H35=0,"",'DNSP Inputs General'!O72*'PL Tariffs'!H35) -> 259470.1068 | J36: 5646.607 | K36: =D36/'Charges Summary'!D$4 -> 36203.49311 | L36: =E36/'Charges Summary'!E$4 -> 95540.00349 | M36: =F36/'Charges Summary'!F$4 -> 154469.8943 | N36: =G36/'Charges Summary'!G$4 -> 188438.1919 | O36: =H36/'Charges Summary'!H$4 -> 228218.3319
A37: ='DNSP Inputs General'!A73 -> Category P LED 47 Watt | C37: =IF('PL Tariffs'!C36=0,"",'DNSP Inputs General'!J73*'PL Tariffs'!C36) -> 347.1758565 | D37: =IF('PL Tariffs'!D36=0,"",'DNSP Inputs General'!K73*'PL Tariffs'!D36) -> 537.8461404 | E37: =IF('PL Tariffs'!E36=0,"",'DNSP Inputs General'!L73*'PL Tariffs'!E36) -> 550.3324628 | F37: =IF('PL Tariffs'!F36=0,"",'DNSP Inputs General'!M73*'PL Tariffs'!F36) -> 562.80162 | G37: =IF('PL Tariffs'!G36=0,"",'DNSP Inputs General'!N73*'PL Tariffs'!G36) -> 587.0113961 | H37: =IF('PL Tariffs'!H36=0,"",'DNSP Inputs General'!O73*'PL Tariffs'!H36) -> 607.8469552 | J37: 347.1758565 | K37: =D37/'Charges Summary'!D$4 -> 524.2165111 | L37: =E37/'Charges Summary'!E$4 -> 522.7937777 | M37: =F37/'Charges Summary'!F$4 -> 521.0906211 | N37: =G37/'Charges Summary'!G$4 -> 529.7330746 | O37: =H37/'Charges Summary'!H$4 -> 534.6350679
A39: Total Revenue | C39: =IF(SUM(C7:C38)=0,"",SUM(C7:C38)) -> 3478487.045 | D39: =IF(SUM(D7:D38)=0,"",SUM(D7:D38)) -> 3548649.908 | E39: 3573667.443 | F39: 3633721.321 | G39: 3709552.755 | H39: 3795649.123 | J39: =IF(SUM(J7:J38)=0,"",SUM(J7:J38)) -> 3478487.045 | K39: =SUM(K7:K38) -> 3458723.107 | L39: =SUM(L7:L38) -> 3394840.809 | M39: =SUM(M7:M38) -> 3364414.8 | N39: =SUM(N7:N38) -> 3347588.819 | O39: =SUM(O7:O38) -> 3338483.658
A42: Public Lighting - O & M | D42: Forecast O & M - Nominal | K42: Forecast O & M - Real 2015 $
D43: =D$2 -> 2016 | E43: 2017 | F43: 2018 | G43: 2019 | H43: 2020 | K43: =K$2 -> 2016 | L43: 2017 | M43: 2018 | N43: 2019 | O43: 2020
A45: Unit cost
A46: ='DNSP Inputs General'!A$41 -> Mercury vapour 80 watt | D46: =SUM('Charges Summary'!D25,'Charges Summary'!D8) -> 44.32560599 | E46: =SUM('Charges Summary'!E25,'Charges Summary'!E8) -> 46.28370452 | F46: =SUM('Charges Summary'!F25,'Charges Summary'!F8) -> 47.83506464 | G46: =SUM('Charges Summary'!G25,'Charges Summary'!G8) -> 49.8269233 | H46: =SUM('Charges Summary'!H25,'Charges Summary'!H8) -> 51.74503784
A47: ='DNSP Inputs General'!A$42 -> Sodium high pressure 150 watt | D47: =SUM('Charges Summary'!D49,'Charges Summary'!D8) -> 83.64187376 | E47: =SUM('Charges Summary'!E49,'Charges Summary'!E8) -> 87.18565033 | F47: =SUM('Charges Summary'!F49,'Charges Summary'!F8) -> 90.51633249 | G47: =SUM('Charges Summary'!G49,'Charges Summary'!G8) -> 94.2387364 | H47: =SUM('Charges Summary'!H49,'Charges Summary'!H8) -> 98.00189669
A48: ='DNSP Inputs General'!A$43 -> Sodium high pressure 250 watt | D48: =SUM('Charges Summary'!D65,'Charges Summary'!D8) -> 83.12713803 | E48: =SUM('Charges Summary'!E65,'Charges Summary'!E8) -> 86.64707039 | F48: =SUM('Charges Summary'!F65,'Charges Summary'!F8) -> 89.96136941 | G48: =SUM('Charges Summary'!G65,'Charges Summary'!G8) -> 93.66015334 | H48: =SUM('Charges Summary'!H65,'Charges Summary'!H8) -> 97.40180835
A50: ='DNSP Inputs General'!A$40 -> Existing Lights
A51: ='DNSP Inputs General'!A$41 -> Mercury vapour 80 watt | D51: =D46*'DNSP Inputs General'!K41 -> 188863.4085 | E51: =E46*'DNSP Inputs General'!L41 -> 109543.729 | F51: =F46*'DNSP Inputs General'!M41 -> 101436.165 | G51: =G46*'DNSP Inputs General'!N41 -> 94666.77358 | H51: =H46*'DNSP Inputs General'!O41 -> 88082.42475 | K51: =D51/'Charges Summary'!D$4 -> 184077.3962 | L51: =E51/'Charges Summary'!E$4 -> 104062.1511 | M51: =F51/'Charges Summary'!F$4 -> 93918.41167 | N51: =G51/'Charges Summary'!G$4 -> 85429.55275 | O51: =H51/'Charges Summary'!H$4 -> 77473.37177
A52: ='DNSP Inputs General'!A$42 -> Sodium high pressure 150 watt | D52: =D47*'DNSP Inputs General'!K42 -> 907193.0274 | E52: =E47*'DNSP Inputs General'!L42 -> 950336.5842 | F52: =F47*'DNSP Inputs General'!M42 -> 991552.8622 | G52: =G47*'DNSP Inputs General'!N42 -> 1037468.368 | H52: =H47*'DNSP Inputs General'!O42 -> 1084267.343 | K52: =D52/'Charges Summary'!D$4 -> 884203.7304 | L52: =E52/'Charges Summary'!E$4 -> 902781.6576 | M52: =F52/'Charges Summary'!F$4 -> 918065.7597 | N52: =G52/'Charges Summary'!G$4 -> 936236.1826 | O52: =H52/'Charges Summary'!H$4 -> 953673.1899
A53: ='DNSP Inputs General'!A$43 -> Sodium high pressure 250 watt | D53: =D48*'DNSP Inputs General'!K43 -> 303926.3218 | E53: =E48*'DNSP Inputs General'!L43 -> 322665.21 | F53: =F48*'DNSP Inputs General'!M43 -> 341214.1942 | G53: =G48*'DNSP Inputs General'!N43 -> 361825.0815 | H53: =H48*'DNSP Inputs General'!O43 -> 383251.2651 | K53: =D53/'Charges Summary'!D$4 -> 296224.4852 | L53: =E53/'Charges Summary'!E$4 -> 306519.0144 | M53: =F53/'Charges Summary'!F$4 -> 315925.7366 | N53: =G53/'Charges Summary'!G$4 -> 326519.5773 | O53: =H53/'Charges Summary'!H$4 -> 337090.7173
A54: ='DNSP Inputs General'!A$44 -> Fluorescent 20 watt | D54: =IF('DNSP Inputs General'!$B44='DNSP Inputs General'!$A$41,D$46,IF('DNSP Inputs General'!$B44='DNSP Inputs General'!$A$42,D$47,D$48))*'DNSP Inputs General'!$D44*'DNSP Inputs General'!K44 -> 441.0397796 | E54: =IF('DNSP Inputs General'!$B44='DNSP Inputs General'!$A$41,E$46,IF('DNSP Inputs General'!$B44='DNSP Inputs General'!$A$42,E$47,E$48))*'DNSP Inputs General'!$D44*'DNSP Inputs General'!L44 -> 460.5228599 | F54: =IF('DNSP Inputs General'!$B44='DNSP Inputs General'!$A$41,F$46,IF('DNSP Inputs General'!$B44='DNSP Inputs General'!$A$42,F$47,F$48))*'DNSP Inputs General'!$D44*'DNSP Inputs General'!M44 -> 475.9588932 | G54: =IF('DNSP Inputs General'!$B44='DNSP Inputs General'!$A$41,G$46,IF('DNSP Inputs General'!$B44='DNSP Inputs General'!$A$42,G$47,G$48))*'DNSP Inputs General'!$D44*'DNSP Inputs General'!N44 -> 495.7778869 | H54: =IF('DNSP Inputs General'!$B44='DNSP Inputs General'!$A$41,H$46,IF('DNSP Inputs General'!$B44='DNSP Inputs General'!$A$42,H$47,H$48))*'DNSP Inputs General'!$D44*'DNSP Inputs General'!O44 -> 514.8631265 | K54: =D54/'Charges Summary'!D$4 -> 429.863333 | L54: =E54/'Charges Summary'!E$4 -> 437.4782554 | M54: =F54/'Charges Summary'!F$4 -> 440.684082 | N54: =G54/'Charges Summary'!G$4 -> 447.4017814 | O54: =H54/'Charges Summary'!H$4 -> 452.8506399
A55: ='DNSP Inputs General'!A$45 -> Fluorescent 40 watt | D55: =IF('DNSP Inputs General'!$B45='DNSP Inputs General'!$A$41,D$46,IF('DNSP Inputs General'!$B45='DNSP Inputs General'!$A$42,D$47,D$48))*'DNSP Inputs General'!$D45*'DNSP Inputs General'!K45 -> 0 | E55: =IF('DNSP Inputs General'!$B45='DNSP Inputs General'!$A$41,E$46,IF('DNSP Inputs General'!$B45='DNSP Inputs General'!$A$42,E$47,E$48))*'DNSP Inputs General'!$D45*'DNSP Inputs General'!L45 -> 0 | F55: =IF('DNSP Inputs General'!$B45='DNSP Inputs General'!$A$41,F$46,IF('DNSP Inputs General'!$B45='DNSP Inputs General'!$A$42,F$47,F$48))*'DNSP Inputs General'!$D45*'DNSP Inputs General'!M45 -> 0 | G55: =IF('DNSP Inputs General'!$B45='DNSP Inputs General'!$A$41,G$46,IF('DNSP Inputs General'!$B45='DNSP Inputs General'!$A$42,G$47,G$48))*'DNSP Inputs General'!$D45*'DNSP Inputs General'!N45 -> 0 | H55: =IF('DNSP Inputs General'!$B45='DNSP Inputs General'!$A$41,H$46,IF('DNSP Inputs General'!$B45='DNSP Inputs General'!$A$42,H$47,H$48))*'DNSP Inputs General'!$D45*'DNSP Inputs General'!O45 -> 0 | K55: =D55/'Charges Summary'!D$4 -> 0 | L55: =E55/'Charges Summary'!E$4 -> 0 | M55: =F55/'Charges Summary'!F$4 -> 0 | N55: =G55/'Charges Summary'!G$4 -> 0 | O55: =H55/'Charges Summary'!H$4 -> 0
A56: ='DNSP Inputs General'!A$46 -> Mercury vapour 50 watt | D56: =IF('DNSP Inputs General'!$B46='DNSP Inputs General'!$A$41,D$46,IF('DNSP Inputs General'!$B46='DNSP Inputs General'!$A$42,D$47,D$48))*'DNSP Inputs General'!$D46*'DNSP Inputs General'!K46 -> 11001.0591 | E56: =IF('DNSP Inputs General'!$B46='DNSP Inputs General'!$A$41,E$46,IF('DNSP Inputs General'!$B46='DNSP Inputs General'!$A$42,E$47,E$48))*'DNSP Inputs General'!$D46*'DNSP Inputs General'!L46 -> 10738.37748 | F56: =IF('DNSP Inputs General'!$B46='DNSP Inputs General'!$A$41,F$46,IF('DNSP Inputs General'!$B46='DNSP Inputs General'!$A$42,F$47,F$48))*'DNSP Inputs General'!$D46*'DNSP Inputs General'!M46 -> 10374.9893 | G56: =IF('DNSP Inputs General'!$B46='DNSP Inputs General'!$A$41,G$46,IF('DNSP Inputs General'!$B46='DNSP Inputs General'!$A$42,G$47,G$48))*'DNSP Inputs General'!$D46*'DNSP Inputs General'!N46 -> 10102.66848 | H56: =IF('DNSP Inputs General'!$B46='DNSP Inputs General'!$A$41,H$46,IF('DNSP Inputs General'!$B46='DNSP Inputs General'!$A$42,H$47,H$48))*'DNSP Inputs General'!$D46*'DNSP Inputs General'!O46 -> 9807.7972 | K56: =D56/'Charges Summary'!D$4 -> 10722.27983 | L56: =E56/'Charges Summary'!E$4 -> 10201.02813 | M56: =F56/'Charges Summary'!F$4 -> 9606.066197 | N56: =G56/'Charges Summary'!G$4 -> 9116.888817 | O56: =H56/'Charges Summary'!H$4 -> 8626.500927
A57: ='DNSP Inputs General'!A$47 -> Mercury vapour 125 watt | D57: =IF('DNSP Inputs General'!$B47='DNSP Inputs General'!$A$41,D$46,IF('DNSP Inputs General'!$B47='DNSP Inputs General'!$A$42,D$47,D$48))*'DNSP Inputs General'!$D47*'DNSP Inputs General'!K47 -> 63723.78303 | E57: =IF('DNSP Inputs General'!$B47='DNSP Inputs General'!$A$41,E$46,IF('DNSP Inputs General'!$B47='DNSP Inputs General'!$A$42,E$47,E$48))*'DNSP Inputs General'!$D47*'DNSP Inputs General'!L47 -> 62844.86329 | F57: =IF('DNSP Inputs General'!$B47='DNSP Inputs General'!$A$41,F$46,IF('DNSP Inputs General'!$B47='DNSP Inputs General'!$A$42,F$47,F$48))*'DNSP Inputs General'!$D47*'DNSP Inputs General'!M47 -> 61345.51879 | G57: =IF('DNSP Inputs General'!$B47='DNSP Inputs General'!$A$41,G$46,IF('DNSP Inputs General'!$B47='DNSP Inputs General'!$A$42,G$47,G$48))*'DNSP Inputs General'!$D47*'DNSP Inputs General'!N47 -> 60352.5125 | H57: =IF('DNSP Inputs General'!$B47='DNSP Inputs General'!$A$41,H$46,IF('DNSP Inputs General'!$B47='DNSP Inputs General'!$A$42,H$47,H$48))*'DNSP Inputs General'!$D47*'DNSP Inputs General'!O47 -> 59196.33198 | K57: =D57/'Charges Summary'!D$4 -> 62108.95032 | L57: =E57/'Charges Summary'!E$4 -> 59700.10078 | M57: =F57/'Charges Summary'!F$4 -> 56799.00937 | N57: =G57/'Charges Summary'!G$4 -> 54463.54571 | O57: =H57/'Charges Summary'!H$4 -> 52066.45308
A58: ='DNSP Inputs General'!A$48 -> Mercury vapour 250 watt | D58: =IF('DNSP Inputs General'!$B48='DNSP Inputs General'!$A$41,D$46,IF('DNSP Inputs General'!$B48='DNSP Inputs General'!$A$42,D$47,D$48))*'DNSP Inputs General'!$D48*'DNSP Inputs General'!K48 -> 31833.36917 | E58: =IF('DNSP Inputs General'!$B48='DNSP Inputs General'!$A$41,E$46,IF('DNSP Inputs General'!$B48='DNSP Inputs General'!$A$42,E$47,E$48))*'DNSP Inputs General'!$D48*'DNSP Inputs General'!L48 -> 30209.43213 | F58: =IF('DNSP Inputs General'!$B48='DNSP Inputs General'!$A$41,F$46,IF('DNSP Inputs General'!$B48='DNSP Inputs General'!$A$42,F$47,F$48))*'DNSP Inputs General'!$D48*'DNSP Inputs General'!M48 -> 28555.75431 | G58: =IF('DNSP Inputs General'!$B48='DNSP Inputs General'!$A$41,G$46,IF('DNSP Inputs General'!$B48='DNSP Inputs General'!$A$42,G$47,G$48))*'DNSP Inputs General'!$D48*'DNSP Inputs General'!N48 -> 27067.07612 | H58: =IF('DNSP Inputs General'!$B48='DNSP Inputs General'!$A$41,H$46,IF('DNSP Inputs General'!$B48='DNSP Inputs General'!$A$42,H$47,H$48))*'DNSP Inputs General'!$D48*'DNSP Inputs General'!O48 -> 25627.27332 | K58: =D58/'Charges Summary'!D$4 -> 31026.67561 | L58: =E58/'Charges Summary'!E$4 -> 28697.74948 | M58: =F58/'Charges Summary'!F$4 -> 26439.39751 | N58: =G58/'Charges Summary'!G$4 -> 24425.97461 | O58: =H58/'Charges Summary'!H$4 -> 22540.60647
A59: ='DNSP Inputs General'!A$49 -> Mercury vapour 400 watt | D59: =IF('DNSP Inputs General'!$B49='DNSP Inputs General'!$A$41,D$46,IF('DNSP Inputs General'!$B49='DNSP Inputs General'!$A$42,D$47,D$48))*'DNSP Inputs General'!$D49*'DNSP Inputs General'!K49 -> 16137.17413 | E59: =IF('DNSP Inputs General'!$B49='DNSP Inputs General'!$A$41,E$46,IF('DNSP Inputs General'!$B49='DNSP Inputs General'!$A$42,E$47,E$48))*'DNSP Inputs General'!$D49*'DNSP Inputs General'!L49 -> 15527.58834 | F59: =IF('DNSP Inputs General'!$B49='DNSP Inputs General'!$A$41,F$46,IF('DNSP Inputs General'!$B49='DNSP Inputs General'!$A$42,F$47,F$48))*'DNSP Inputs General'!$D49*'DNSP Inputs General'!M49 -> 14882.35472 | G59: =IF('DNSP Inputs General'!$B49='DNSP Inputs General'!$A$41,G$46,IF('DNSP Inputs General'!$B49='DNSP Inputs General'!$A$42,G$47,G$48))*'DNSP Inputs General'!$D49*'DNSP Inputs General'!N49 -> 14303.28943 | H59: =IF('DNSP Inputs General'!$B49='DNSP Inputs General'!$A$41,H$46,IF('DNSP Inputs General'!$B49='DNSP Inputs General'!$A$42,H$47,H$48))*'DNSP Inputs General'!$D49*'DNSP Inputs General'!O49 -> 13731.35992 | K59: =D59/'Charges Summary'!D$4 -> 15728.23989 | L59: =E59/'Charges Summary'!E$4 -> 14750.58645 | M59: =F59/'Charges Summary'!F$4 -> 13779.37658 | N59: =G59/'Charges Summary'!G$4 -> 12907.62929 | O59: =H59/'Charges Summary'!H$4 -> 12077.49168
A60: ='DNSP Inputs General'!A$50 -> Mercury vapour 700 watt | D60: =IF('DNSP Inputs General'!$B50='DNSP Inputs General'!$A$41,D$46,IF('DNSP Inputs General'!$B50='DNSP Inputs General'!$A$42,D$47,D$48))*'DNSP Inputs General'!$D50*'DNSP Inputs General'!K50 -> 0 | E60: =IF('DNSP Inputs General'!$B50='DNSP Inputs General'!$A$41,E$46,IF('DNSP Inputs General'!$B50='DNSP Inputs General'!$A$42,E$47,E$48))*'DNSP Inputs General'!$D50*'DNSP Inputs General'!L50 -> 0 | F60: =IF('DNSP Inputs General'!$B50='DNSP Inputs General'!$A$41,F$46,IF('DNSP Inputs General'!$B50='DNSP Inputs General'!$A$42,F$47,F$48))*'DNSP Inputs General'!$D50*'DNSP Inputs General'!M50 -> 0 | G60: =IF('DNSP Inputs General'!$B50='DNSP Inputs General'!$A$41,G$46,IF('DNSP Inputs General'!$B50='DNSP Inputs General'!$A$42,G$47,G$48))*'DNSP Inputs General'!$D50*'DNSP Inputs General'!N50 -> 0 | H60: =IF('DNSP Inputs General'!$B50='DNSP Inputs General'!$A$41,H$46,IF('DNSP Inputs General'!$B50='DNSP Inputs General'!$A$42,H$47,H$48))*'DNSP Inputs General'!$D50*'DNSP Inputs General'!O50 -> 0 | K60: =D60/'Charges Summary'!D$4 -> 0 | L60: =E60/'Charges Summary'!E$4 -> 0 | M60: =F60/'Charges Summary'!F$4 -> 0 | N60: =G60/'Charges Summary'!G$4 -> 0 | O60: =H60/'Charges Summary'!H$4 -> 0
A61: ='DNSP Inputs General'!A$51 -> Sodium high pressure 70 watt | D61: =IF('DNSP Inputs General'!$B51='DNSP Inputs General'!$A$41,D$46,IF('DNSP Inputs General'!$B51='DNSP Inputs General'!$A$42,D$47,D$48))*'DNSP Inputs General'!$D51*'DNSP Inputs General'!K51 -> 16447.39762 | E61: =IF('DNSP Inputs General'!$B51='DNSP Inputs General'!$A$41,E$46,IF('DNSP Inputs General'!$B51='DNSP Inputs General'!$A$42,E$47,E$48))*'DNSP Inputs General'!$D51*'DNSP Inputs General'!L51 -> 16935.09723 | F61: =IF('DNSP Inputs General'!$B51='DNSP Inputs General'!$A$41,F$46,IF('DNSP Inputs General'!$B51='DNSP Inputs General'!$A$42,F$47,F$48))*'DNSP Inputs General'!$D51*'DNSP Inputs General'!M51 -> 17259.29371 | G61: =IF('DNSP Inputs General'!$B51='DNSP Inputs General'!$A$41,G$46,IF('DNSP Inputs General'!$B51='DNSP Inputs General'!$A$42,G$47,G$48))*'DNSP Inputs General'!$D51*'DNSP Inputs General'!N51 -> 17727.92059 | H61: =IF('DNSP Inputs General'!$B51='DNSP Inputs General'!$A$41,H$46,IF('DNSP Inputs General'!$B51='DNSP Inputs General'!$A$42,H$47,H$48))*'DNSP Inputs General'!$D51*'DNSP Inputs General'!O51 -> 18154.29997 | K61: =D61/'Charges Summary'!D$4 -> 16030.60197 | L61: =E61/'Charges Summary'!E$4 -> 16087.66347 | M61: =F61/'Charges Summary'!F$4 -> 15980.15315 | N61: =G61/'Charges Summary'!G$4 -> 15998.09806 | O61: =H61/'Charges Summary'!H$4 -> 15967.71246
A62: ='DNSP Inputs General'!A$52 -> Sodium high pressure 100 watt | D62: =IF('DNSP Inputs General'!$B52='DNSP Inputs General'!$A$41,D$46,IF('DNSP Inputs General'!$B52='DNSP Inputs General'!$A$42,D$47,D$48))*'DNSP Inputs General'!$D52*'DNSP Inputs General'!K52 -> 21078.9696 | E62: =IF('DNSP Inputs General'!$B52='DNSP Inputs General'!$A$41,E$46,IF('DNSP Inputs General'!$B52='DNSP Inputs General'!$A$42,E$47,E$48))*'DNSP Inputs General'!$D52*'DNSP Inputs General'!L52 -> 21182.82092 | F62: =IF('DNSP Inputs General'!$B52='DNSP Inputs General'!$A$41,F$46,IF('DNSP Inputs General'!$B52='DNSP Inputs General'!$A$42,F$47,F$48))*'DNSP Inputs General'!$D52*'DNSP Inputs General'!M52 -> 21202.10063 | G62: =IF('DNSP Inputs General'!$B52='DNSP Inputs General'!$A$41,G$46,IF('DNSP Inputs General'!$B52='DNSP Inputs General'!$A$42,G$47,G$48))*'DNSP Inputs General'!$D52*'DNSP Inputs General'!N52 -> 21281.12368 | H62: =IF('DNSP Inputs General'!$B52='DNSP Inputs General'!$A$41,H$46,IF('DNSP Inputs General'!$B52='DNSP Inputs General'!$A$42,H$47,H$48))*'DNSP Inputs General'!$D52*'DNSP Inputs General'!O52 -> 21335.98717 | K62: =D62/'Charges Summary'!D$4 -> 20544.80468 | L62: =E62/'Charges Summary'!E$4 -> 20122.83069 | M62: =F62/'Charges Summary'!F$4 -> 19630.74624 | N62: =G62/'Charges Summary'!G$4 -> 19204.59322 | O62: =H62/'Charges Summary'!H$4 -> 18766.18259
A63: ='DNSP Inputs General'!A$53 -> Sodium high pressure 220 watt | D63: =IF('DNSP Inputs General'!$B53='DNSP Inputs General'!$A$41,D$46,IF('DNSP Inputs General'!$B53='DNSP Inputs General'!$A$42,D$47,D$48))*'DNSP Inputs General'!$D53*'DNSP Inputs General'!K53 -> 137732.7497 | E63: =IF('DNSP Inputs General'!$B53='DNSP Inputs General'!$A$41,E$46,IF('DNSP Inputs General'!$B53='DNSP Inputs General'!$A$42,E$47,E$48))*'DNSP Inputs General'!$D53*'DNSP Inputs General'!L53 -> 138920.4742 | F63: =IF('DNSP Inputs General'!$B53='DNSP Inputs General'!$A$41,F$46,IF('DNSP Inputs General'!$B53='DNSP Inputs General'!$A$42,F$47,F$48))*'DNSP Inputs General'!$D53*'DNSP Inputs General'!M53 -> 139568.1802 | G63: =IF('DNSP Inputs General'!$B53='DNSP Inputs General'!$A$41,G$46,IF('DNSP Inputs General'!$B53='DNSP Inputs General'!$A$42,G$47,G$48))*'DNSP Inputs General'!$D53*'DNSP Inputs General'!N53 -> 140605.7906 | H63: =IF('DNSP Inputs General'!$B53='DNSP Inputs General'!$A$41,H$46,IF('DNSP Inputs General'!$B53='DNSP Inputs General'!$A$42,H$47,H$48))*'DNSP Inputs General'!$D53*'DNSP Inputs General'!O53 -> 141492.4761 | K63: =D63/'Charges Summary'!D$4 -> 134242.4461 | L63: =E63/'Charges Summary'!E$4 -> 131968.8814 | M63: =F63/'Charges Summary'!F$4 -> 129224.3432 | N63: =G63/'Charges Summary'!G$4 -> 126886.0166 | O63: =H63/'Charges Summary'!H$4 -> 124450.4705
A64: ='DNSP Inputs General'!A$54 -> Sodium high pressure 360 watt | D64: =IF('DNSP Inputs General'!$B54='DNSP Inputs General'!$A$41,D$46,IF('DNSP Inputs General'!$B54='DNSP Inputs General'!$A$42,D$47,D$48))*'DNSP Inputs General'!$D54*'DNSP Inputs General'!K54 -> 18070.07975 | E64: =IF('DNSP Inputs General'!$B54='DNSP Inputs General'!$A$41,E$46,IF('DNSP Inputs General'!$B54='DNSP Inputs General'!$A$42,E$47,E$48))*'DNSP Inputs General'!$D54*'DNSP Inputs General'!L54 -> 18709.09512 | F64: =IF('DNSP Inputs General'!$B54='DNSP Inputs General'!$A$41,F$46,IF('DNSP Inputs General'!$B54='DNSP Inputs General'!$A$42,F$47,F$48))*'DNSP Inputs General'!$D54*'DNSP Inputs General'!M54 -> 19294.63717 | G64: =IF('DNSP Inputs General'!$B54='DNSP Inputs General'!$A$41,G$46,IF('DNSP Inputs General'!$B54='DNSP Inputs General'!$A$42,G$47,G$48))*'DNSP Inputs General'!$D54*'DNSP Inputs General'!N54 -> 19953.40794 | H64: =IF('DNSP Inputs General'!$B54='DNSP Inputs General'!$A$41,H$46,IF('DNSP Inputs General'!$B54='DNSP Inputs General'!$A$42,H$47,H$48))*'DNSP Inputs General'!$D54*'DNSP Inputs General'!O54 -> 20611.56158 | K64: =D64/'Charges Summary'!D$4 -> 17612.16349 | L64: =E64/'Charges Summary'!E$4 -> 17772.89035 | M64: =F64/'Charges Summary'!F$4 -> 17864.6509 | N64: =G64/'Charges Summary'!G$4 -> 18006.4309 | O64: =H64/'Charges Summary'!H$4 -> 18129.01016
A65: ='DNSP Inputs General'!A$55 -> Sodium high pressure 400 watt | D65: =IF('DNSP Inputs General'!$B55='DNSP Inputs General'!$A$41,D$46,IF('DNSP Inputs General'!$B55='DNSP Inputs General'!$A$42,D$47,D$48))*'DNSP Inputs General'!$D55*'DNSP Inputs General'!K55 -> 19435.1903 | E65: =IF('DNSP Inputs General'!$B55='DNSP Inputs General'!$A$41,E$46,IF('DNSP Inputs General'!$B55='DNSP Inputs General'!$A$42,E$47,E$48))*'DNSP Inputs General'!$D55*'DNSP Inputs General'!L55 -> 20627.64096 | F65: =IF('DNSP Inputs General'!$B55='DNSP Inputs General'!$A$41,F$46,IF('DNSP Inputs General'!$B55='DNSP Inputs General'!$A$42,F$47,F$48))*'DNSP Inputs General'!$D55*'DNSP Inputs General'!M55 -> 21807.27745 | G65: =IF('DNSP Inputs General'!$B55='DNSP Inputs General'!$A$41,G$46,IF('DNSP Inputs General'!$B55='DNSP Inputs General'!$A$42,G$47,G$48))*'DNSP Inputs General'!$D55*'DNSP Inputs General'!N55 -> 23117.98444 | H65: =IF('DNSP Inputs General'!$B55='DNSP Inputs General'!$A$41,H$46,IF('DNSP Inputs General'!$B55='DNSP Inputs General'!$A$42,H$47,H$48))*'DNSP Inputs General'!$D55*'DNSP Inputs General'!O55 -> 24480.0237 | K65: =D65/'Charges Summary'!D$4 -> 18942.6806 | L65: =E65/'Charges Summary'!E$4 -> 19595.43198 | M65: =F65/'Charges Summary'!F$4 -> 20191.0715 | N65: =G65/'Charges Summary'!G$4 -> 20862.22015 | O65: =H65/'Charges Summary'!H$4 -> 21531.53688
A66: ='DNSP Inputs General'!A$56 -> Sodium high pressure 1000 watt | D66: =IF('DNSP Inputs General'!$B56='DNSP Inputs General'!$A$41,D$46,IF('DNSP Inputs General'!$B56='DNSP Inputs General'!$A$42,D$47,D$48))*'DNSP Inputs General'!$D56*'DNSP Inputs General'!K56 -> 0 | E66: =IF('DNSP Inputs General'!$B56='DNSP Inputs General'!$A$41,E$46,IF('DNSP Inputs General'!$B56='DNSP Inputs General'!$A$42,E$47,E$48))*'DNSP Inputs General'!$D56*'DNSP Inputs General'!L56 -> 0 | F66: =IF('DNSP Inputs General'!$B56='DNSP Inputs General'!$A$41,F$46,IF('DNSP Inputs General'!$B56='DNSP Inputs General'!$A$42,F$47,F$48))*'DNSP Inputs General'!$D56*'DNSP Inputs General'!M56 -> 0 | G66: =IF('DNSP Inputs General'!$B56='DNSP Inputs General'!$A$41,G$46,IF('DNSP Inputs General'!$B56='DNSP Inputs General'!$A$42,G$47,G$48))*'DNSP Inputs General'!$D56*'DNSP Inputs General'!N56 -> 0 | H66: =IF('DNSP Inputs General'!$B56='DNSP Inputs General'!$A$41,H$46,IF('DNSP Inputs General'!$B56='DNSP Inputs General'!$A$42,H$47,H$48))*'DNSP Inputs General'!$D56*'DNSP Inputs General'!O56 -> 0 | K66: =D66/'Charges Summary'!D$4 -> 0 | L66: =E66/'Charges Summary'!E$4 -> 0 | M66: =F66/'Charges Summary'!F$4 -> 0 | N66: =G66/'Charges Summary'!G$4 -> 0 | O66: =H66/'Charges Summary'!H$4 -> 0
A67: ='DNSP Inputs General'!$A57 -> Metal halide 70 watt | D67: =IF('DNSP Inputs General'!$B57='DNSP Inputs General'!$A$41,D$46,IF('DNSP Inputs General'!$B57='DNSP Inputs General'!$A$42,D$47,D$48))*'DNSP Inputs General'!$D57*'DNSP Inputs General'!K57 -> 21932.79155 | E67: =IF('DNSP Inputs General'!$B57='DNSP Inputs General'!$A$41,E$46,IF('DNSP Inputs General'!$B57='DNSP Inputs General'!$A$42,E$47,E$48))*'DNSP Inputs General'!$D57*'DNSP Inputs General'!L57 -> 23849.26084 | F67: =IF('DNSP Inputs General'!$B57='DNSP Inputs General'!$A$41,F$46,IF('DNSP Inputs General'!$B57='DNSP Inputs General'!$A$42,F$47,F$48))*'DNSP Inputs General'!$D57*'DNSP Inputs General'!M57 -> 25668.51582 | G67: =IF('DNSP Inputs General'!$B57='DNSP Inputs General'!$A$41,G$46,IF('DNSP Inputs General'!$B57='DNSP Inputs General'!$A$42,G$47,G$48))*'DNSP Inputs General'!$D57*'DNSP Inputs General'!N57 -> 27843.64231 | H67: =IF('DNSP Inputs General'!$B57='DNSP Inputs General'!$A$41,H$46,IF('DNSP Inputs General'!$B57='DNSP Inputs General'!$A$42,H$47,H$48))*'DNSP Inputs General'!$D57*'DNSP Inputs General'!O57 -> 30111.90734 | K67: =D67/'Charges Summary'!D$4 -> 21376.98982 | L67: =E67/'Charges Summary'!E$4 -> 22655.84172 | M67: =F67/'Charges Summary'!F$4 -> 23766.14135 | N67: =G67/'Charges Summary'!G$4 -> 25126.76644 | O67: =H67/'Charges Summary'!H$4 -> 26485.09051
A68: ='DNSP Inputs General'!$A58 -> Metal halide 100 watt | D68: =IF('DNSP Inputs General'!$B58='DNSP Inputs General'!$A$41,D$46,IF('DNSP Inputs General'!$B58='DNSP Inputs General'!$A$42,D$47,D$48))*'DNSP Inputs General'!$D58*'DNSP Inputs General'!K58 -> 6627.417893 | E68: =IF('DNSP Inputs General'!$B58='DNSP Inputs General'!$A$41,E$46,IF('DNSP Inputs General'!$B58='DNSP Inputs General'!$A$42,E$47,E$48))*'DNSP Inputs General'!$D58*'DNSP Inputs General'!L58 -> 6389.252966 | F68: =IF('DNSP Inputs General'!$B58='DNSP Inputs General'!$A$41,F$46,IF('DNSP Inputs General'!$B58='DNSP Inputs General'!$A$42,F$47,F$48))*'DNSP Inputs General'!$D58*'DNSP Inputs General'!M58 -> 6135.027167 | G68: =IF('DNSP Inputs General'!$B58='DNSP Inputs General'!$A$41,G$46,IF('DNSP Inputs General'!$B58='DNSP Inputs General'!$A$42,G$47,G$48))*'DNSP Inputs General'!$D58*'DNSP Inputs General'!N58 -> 5907.496387 | H68: =IF('DNSP Inputs General'!$B58='DNSP Inputs General'!$A$41,H$46,IF('DNSP Inputs General'!$B58='DNSP Inputs General'!$A$42,H$47,H$48))*'DNSP Inputs General'!$D58*'DNSP Inputs General'!O58 -> 5681.891818 | K68: =D68/'Charges Summary'!D$4 -> 6459.471631 | L68: =E68/'Charges Summary'!E$4 -> 6069.534183 | M68: =F68/'Charges Summary'!F$4 -> 5680.341 | N68: =G68/'Charges Summary'!G$4 -> 5331.065538 | O68: =H68/'Charges Summary'!H$4 -> 4997.538595
A69: ='DNSP Inputs General'!$A59 -> Metal halide 150 watt | D69: =IF('DNSP Inputs General'!$B59='DNSP Inputs General'!$A$41,D$46,IF('DNSP Inputs General'!$B59='DNSP Inputs General'!$A$42,D$47,D$48))*'DNSP Inputs General'!$D59*'DNSP Inputs General'!K59 -> 8814.093773 | E69: =IF('DNSP Inputs General'!$B59='DNSP Inputs General'!$A$41,E$46,IF('DNSP Inputs General'!$B59='DNSP Inputs General'!$A$42,E$47,E$48))*'DNSP Inputs General'!$D59*'DNSP Inputs General'!L59 -> 8798.603905 | F69: =IF('DNSP Inputs General'!$B59='DNSP Inputs General'!$A$41,F$46,IF('DNSP Inputs General'!$B59='DNSP Inputs General'!$A$42,F$47,F$48))*'DNSP Inputs General'!$D59*'DNSP Inputs General'!M59 -> 8748.035711 | G69: =IF('DNSP Inputs General'!$B59='DNSP Inputs General'!$A$41,G$46,IF('DNSP Inputs General'!$B59='DNSP Inputs General'!$A$42,G$47,G$48))*'DNSP Inputs General'!$D59*'DNSP Inputs General'!N59 -> 8722.237236 | H69: =IF('DNSP Inputs General'!$B59='DNSP Inputs General'!$A$41,H$46,IF('DNSP Inputs General'!$B59='DNSP Inputs General'!$A$42,H$47,H$48))*'DNSP Inputs General'!$D59*'DNSP Inputs General'!O59 -> 8686.558804 | K69: =D69/'Charges Summary'!D$4 -> 8590.734672 | L69: =E69/'Charges Summary'!E$4 -> 8358.320988 | M69: =F69/'Charges Summary'!F$4 -> 8099.691258 | N69: =G69/'Charges Summary'!G$4 -> 7871.154766 | O69: =H69/'Charges Summary'!H$4 -> 7640.309648
A70: ='DNSP Inputs General'!$A60 -> Metal halide 250 watt | D70: =IF('DNSP Inputs General'!$B60='DNSP Inputs General'!$A$41,D$46,IF('DNSP Inputs General'!$B60='DNSP Inputs General'!$A$42,D$47,D$48))*'DNSP Inputs General'!$D60*'DNSP Inputs General'!K60 -> 38377.37034 | E70: =IF('DNSP Inputs General'!$B60='DNSP Inputs General'!$A$41,E$46,IF('DNSP Inputs General'!$B60='DNSP Inputs General'!$A$42,E$47,E$48))*'DNSP Inputs General'!$D60*'DNSP Inputs General'!L60 -> 45605.36982 | F70: =IF('DNSP Inputs General'!$B60='DNSP Inputs General'!$A$41,F$46,IF('DNSP Inputs General'!$B60='DNSP Inputs General'!$A$42,F$47,F$48))*'DNSP Inputs General'!$D60*'DNSP Inputs General'!M60 -> 53981.86314 | G70: =IF('DNSP Inputs General'!$B60='DNSP Inputs General'!$A$41,G$46,IF('DNSP Inputs General'!$B60='DNSP Inputs General'!$A$42,G$47,G$48))*'DNSP Inputs General'!$D60*'DNSP Inputs General'!N60 -> 64073.19644 | H70: =IF('DNSP Inputs General'!$B60='DNSP Inputs General'!$A$41,H$46,IF('DNSP Inputs General'!$B60='DNSP Inputs General'!$A$42,H$47,H$48))*'DNSP Inputs General'!$D60*'DNSP Inputs General'!O60 -> 75965.82516 | K70: =D70/'Charges Summary'!D$4 -> 37404.84439 | L70: =E70/'Charges Summary'!E$4 -> 43323.27308 | M70: =F70/'Charges Summary'!F$4 -> 49981.09741 | N70: =G70/'Charges Summary'!G$4 -> 57821.17958 | O70: =H70/'Charges Summary'!H$4 -> 66816.15125
A71: ='DNSP Inputs General'!$A61 -> Metal halide 400 watt | D71: =IF('DNSP Inputs General'!$B61='DNSP Inputs General'!$A$41,D$46,IF('DNSP Inputs General'!$B61='DNSP Inputs General'!$A$42,D$47,D$48))*'DNSP Inputs General'!$D61*'DNSP Inputs General'!K61 -> 96722.10707 | E71: =IF('DNSP Inputs General'!$B61='DNSP Inputs General'!$A$41,E$46,IF('DNSP Inputs General'!$B61='DNSP Inputs General'!$A$42,E$47,E$48))*'DNSP Inputs General'!$D61*'DNSP Inputs General'!L61 -> 102161.7503 | F71: =IF('DNSP Inputs General'!$B61='DNSP Inputs General'!$A$41,F$46,IF('DNSP Inputs General'!$B61='DNSP Inputs General'!$A$42,F$47,F$48))*'DNSP Inputs General'!$D61*'DNSP Inputs General'!M61 -> 107483.5544 | G71: =IF('DNSP Inputs General'!$B61='DNSP Inputs General'!$A$41,G$46,IF('DNSP Inputs General'!$B61='DNSP Inputs General'!$A$42,G$47,G$48))*'DNSP Inputs General'!$D61*'DNSP Inputs General'!N61 -> 113394.5932 | H71: =IF('DNSP Inputs General'!$B61='DNSP Inputs General'!$A$41,H$46,IF('DNSP Inputs General'!$B61='DNSP Inputs General'!$A$42,H$47,H$48))*'DNSP Inputs General'!$D61*'DNSP Inputs General'!O61 -> 119496.7307 | K71: =D71/'Charges Summary'!D$4 -> 94271.05953 | L71: =E71/'Charges Summary'!E$4 -> 97049.56725 | M71: =F71/'Charges Summary'!F$4 -> 99517.60999 | N71: =G71/'Charges Summary'!G$4 -> 102329.9835 | O71: =H71/'Charges Summary'!H$4 -> 105103.994
A72: ='DNSP Inputs General'!$A62 -> Metal halide 1000 watt | D72: =IF('DNSP Inputs General'!$B62='DNSP Inputs General'!$A$41,D$46,IF('DNSP Inputs General'!$B62='DNSP Inputs General'!$A$42,D$47,D$48))*'DNSP Inputs General'!$D62*'DNSP Inputs General'!K62 -> 0 | E72: =IF('DNSP Inputs General'!$B62='DNSP Inputs General'!$A$41,E$46,IF('DNSP Inputs General'!$B62='DNSP Inputs General'!$A$42,E$47,E$48))*'DNSP Inputs General'!$D62*'DNSP Inputs General'!L62 -> 0 | F72: =IF('DNSP Inputs General'!$B62='DNSP Inputs General'!$A$41,F$46,IF('DNSP Inputs General'!$B62='DNSP Inputs General'!$A$42,F$47,F$48))*'DNSP Inputs General'!$D62*'DNSP Inputs General'!M62 -> 0 | G72: =IF('DNSP Inputs General'!$B62='DNSP Inputs General'!$A$41,G$46,IF('DNSP Inputs General'!$B62='DNSP Inputs General'!$A$42,G$47,G$48))*'DNSP Inputs General'!$D62*'DNSP Inputs General'!N62 -> 0 | H72: =IF('DNSP Inputs General'!$B62='DNSP Inputs General'!$A$41,H$46,IF('DNSP Inputs General'!$B62='DNSP Inputs General'!$A$42,H$47,H$48))*'DNSP Inputs General'!$D62*'DNSP Inputs General'!O62 -> 0 | K72: =D72/'Charges Summary'!D$4 -> 0 | L72: =E72/'Charges Summary'!E$4 -> 0 | M72: =F72/'Charges Summary'!F$4 -> 0 | N72: =G72/'Charges Summary'!G$4 -> 0 | O72: =H72/'Charges Summary'!H$4 -> 0
A75: ='DNSP Inputs General'!A$67 -> Energy Efficient Lights
A76: ='DNSP Inputs General'!$A68 -> T5 2X14W | D76: =SUM('Charges Summary'!D83,'Charges Summary'!D8)*'DNSP Inputs General'!$D68*'DNSP Inputs General'!K68 -> 566468.0662 | E76: =SUM('Charges Summary'!E83,'Charges Summary'!E8)*'DNSP Inputs General'!$D68*'DNSP Inputs General'!L68 -> 579802.3524 | F76: =SUM('Charges Summary'!F83,'Charges Summary'!F8)*'DNSP Inputs General'!$D68*'DNSP Inputs General'!M68 -> 557453.5238 | G76: =SUM('Charges Summary'!G83,'Charges Summary'!G8)*'DNSP Inputs General'!$D68*'DNSP Inputs General'!N68 -> 540159.7849 | H76: =SUM('Charges Summary'!H83,'Charges Summary'!H8)*'DNSP Inputs General'!$D68*'DNSP Inputs General'!O68 -> 521824.2823 | K76: =D76/'Charges Summary'!D$4 -> 552113.125 | L76: =E76/'Charges Summary'!E$4 -> 550788.9915 | M76: =F76/'Charges Summary'!F$4 -> 516138.8891 | N76: =G76/'Charges Summary'!G$4 -> 487453.064 | O76: =H76/'Charges Summary'!H$4 -> 458973.362
A77: ='DNSP Inputs General'!$A69 -> T5 2X24W | D77: =SUM('Charges Summary'!D83,'Charges Summary'!D8)*'DNSP Inputs General'!$D69*'DNSP Inputs General'!K69 -> 98967.13114 | E77: =SUM('Charges Summary'!E83,'Charges Summary'!E8)*'DNSP Inputs General'!$D69*'DNSP Inputs General'!L69 -> 101296.7524 | F77: =SUM('Charges Summary'!F83,'Charges Summary'!F8)*'DNSP Inputs General'!$D69*'DNSP Inputs General'!M69 -> 97392.20846 | G77: =SUM('Charges Summary'!G83,'Charges Summary'!G8)*'DNSP Inputs General'!$D69*'DNSP Inputs General'!N69 -> 94370.83476 | H77: =SUM('Charges Summary'!H83,'Charges Summary'!H8)*'DNSP Inputs General'!$D69*'DNSP Inputs General'!O69 -> 91167.45542 | K77: =D77/'Charges Summary'!D$4 -> 96459.19214 | L77: =E77/'Charges Summary'!E$4 -> 96227.85397 | M77: =F77/'Charges Summary'!F$4 -> 90174.16544 | N77: =G77/'Charges Summary'!G$4 -> 85162.4905 | O77: =H77/'Charges Summary'!H$4 -> 80186.82714
A78: ='DNSP Inputs General'!$A70 -> CF32 | D78: =SUM('Charges Summary'!D83,'Charges Summary'!D8)*'DNSP Inputs General'!$D70*'DNSP Inputs General'!K70 -> 14583.60225 | E78: =SUM('Charges Summary'!E83,'Charges Summary'!E8)*'DNSP Inputs General'!$D70*'DNSP Inputs General'!L70 -> 14926.89067 | F78: =SUM('Charges Summary'!F83,'Charges Summary'!F8)*'DNSP Inputs General'!$D70*'DNSP Inputs General'!M70 -> 14351.52474 | G78: =SUM('Charges Summary'!G83,'Charges Summary'!G8)*'DNSP Inputs General'!$D70*'DNSP Inputs General'!N70 -> 13906.30104 | H78: =SUM('Charges Summary'!H83,'Charges Summary'!H8)*'DNSP Inputs General'!$D70*'DNSP Inputs General'!O70 -> 13434.25734 | K78: =D78/'Charges Summary'!D$4 -> 14214.03728 | L78: =E78/'Charges Summary'!E$4 -> 14179.94774 | M78: =F78/'Charges Summary'!F$4 -> 13287.88808 | N78: =G78/'Charges Summary'!G$4 -> 12549.37749 | O78: =H78/'Charges Summary'!H$4 -> 11816.1735
A79: ='DNSP Inputs General'!$A71 -> CF42 | D79: =SUM('Charges Summary'!D83,'Charges Summary'!D8)*'DNSP Inputs General'!$D71*'DNSP Inputs General'!K71 -> 4558.354732 | E79: =SUM('Charges Summary'!E83,'Charges Summary'!E8)*'DNSP Inputs General'!$D71*'DNSP Inputs General'!L71 -> 4665.655408 | F79: =SUM('Charges Summary'!F83,'Charges Summary'!F8)*'DNSP Inputs General'!$D71*'DNSP Inputs General'!M71 -> 4485.814928 | G79: =SUM('Charges Summary'!G83,'Charges Summary'!G8)*'DNSP Inputs General'!$D71*'DNSP Inputs General'!N71 -> 4346.652633 | H79: =SUM('Charges Summary'!H83,'Charges Summary'!H8)*'DNSP Inputs General'!$D71*'DNSP Inputs General'!O71 -> 4199.10729 | K79: =D79/'Charges Summary'!D$4 -> 4442.840869 | L79: =E79/'Charges Summary'!E$4 -> 4432.1856 | M79: =F79/'Charges Summary'!F$4 -> 4153.357069 | N79: =G79/'Charges Summary'!G$4 -> 3922.522933 | O79: =H79/'Charges Summary'!H$4 -> 3693.347465
A80: ='DNSP Inputs General'!$A72 -> Category P LED 18 Watt | D80: =SUM('Charges Summary'!D101,'Charges Summary'!D8)*'DNSP Inputs General'!$D72*'DNSP Inputs General'!K72 -> 27257.48628 | E80: =SUM('Charges Summary'!E101,'Charges Summary'!E8)*'DNSP Inputs General'!$D72*'DNSP Inputs General'!L72 -> 75582.42817 | F80: =SUM('Charges Summary'!F101,'Charges Summary'!F8)*'DNSP Inputs General'!$D72*'DNSP Inputs General'!M72 -> 126375.3732 | G80: =SUM('Charges Summary'!G101,'Charges Summary'!G8)*'DNSP Inputs General'!$D72*'DNSP Inputs General'!N72 -> 158333.2606 | H80: =SUM('Charges Summary'!H101,'Charges Summary'!H8)*'DNSP Inputs General'!$D72*'DNSP Inputs General'!O72 -> 197381.6459 | K80: =D80/'Charges Summary'!D$4 -> 26566.75076 | L80: =E80/'Charges Summary'!E$4 -> 71800.27679 | M80: =F80/'Charges Summary'!F$4 -> 117009.2967 | N80: =G80/'Charges Summary'!G$4 -> 142883.708 | O80: =H80/'Charges Summary'!H$4 -> 173608.0913
A81: ='DNSP Inputs General'!$A73 -> Category P LED 47 Watt | D81: =SUM('Charges Summary'!D101,'Charges Summary'!D8)*'DNSP Inputs General'!$D73*'DNSP Inputs General'!K73 -> 394.6808203 | E81: =SUM('Charges Summary'!E101,'Charges Summary'!E8)*'DNSP Inputs General'!$D73*'DNSP Inputs General'!L73 -> 413.5861598 | F81: =SUM('Charges Summary'!F101,'Charges Summary'!F8)*'DNSP Inputs General'!$D73*'DNSP Inputs General'!M73 -> 426.3162218 | G81: =SUM('Charges Summary'!G101,'Charges Summary'!G8)*'DNSP Inputs General'!$D73*'DNSP Inputs General'!N73 -> 445.10279 | H81: =SUM('Charges Summary'!H101,'Charges Summary'!H8)*'DNSP Inputs General'!$D73*'DNSP Inputs General'!O73 -> 462.3955876 | K81: =D81/'Charges Summary'!D$4 -> 384.6791621 | L81: =E81/'Charges Summary'!E$4 -> 392.8902719 | M81: =F81/'Charges Summary'!F$4 -> 394.7205852 | N81: =G81/'Charges Summary'!G$4 -> 401.6713662 | O81: =H81/'Charges Summary'!H$4 -> 406.7025331
A85: Total O & M | D85: =SUM(D51:D84) -> 2620586.672 | E85: =SUM(E51:E84) -> 2682193.339 | F85: =SUM(F51:F84) -> 2771471.044 | G85: =SUM(G51:G84) -> 2860470.878 | H85: =SUM(H51:H84) -> 2958965.065 | K85: =SUM(K51:K84) -> 2554178.043 | L85: =SUM(L51:L84) -> 2547976.147 | M85: =SUM(M51:M84) -> 2566068.605 | N85: =SUM(N51:N84) -> 2581357.096 | O85: =SUM(O51:O84) -> 2602573.682
A88: Public Lighting - Capital Charge | D88: Capital Charge - Nominal | K88: Capital Charge - Real 2015 $
D89: =D$2 -> 2016 | E89: 2017 | F89: 2018 | G89: 2019 | H89: 2020 | K89: =K$2 -> 2016 | L89: 2017 | M89: 2018 | N89: 2019 | O89: 2020
A91: Unit cost
A92: ='DNSP Inputs General'!A$41 -> Mercury vapour 80 watt | D92: =SUM('Charges Summary'!D27,'Charges Summary'!D11) -> 26.27376713 | E92: =SUM('Charges Summary'!E27,'Charges Summary'!E11) -> 26.4978199 | F92: =SUM('Charges Summary'!F27,'Charges Summary'!F11) -> 25.40923664 | G92: =SUM('Charges Summary'!G27,'Charges Summary'!G11) -> 24.84764433 | H92: =SUM('Charges Summary'!H27,'Charges Summary'!H11) -> 24.25532171
A93: ='DNSP Inputs General'!A$42 -> Sodium high pressure 150 watt | D93: =SUM('Charges Summary'!D51,'Charges Summary'!D11) -> 30.77568251 | E93: =SUM('Charges Summary'!E51,'Charges Summary'!E11) -> 31.03931605 | F93: =SUM('Charges Summary'!F51,'Charges Summary'!F11) -> 29.76157861 | G93: =SUM('Charges Summary'!G51,'Charges Summary'!G11) -> 29.10166769 | H93: =SUM('Charges Summary'!H51,'Charges Summary'!H11) -> 28.40643936
A94: ='DNSP Inputs General'!A$43 -> Sodium high pressure 250 watt | D94: =SUM('Charges Summary'!D67,'Charges Summary'!D11) -> 31.98834115 | E94: =SUM('Charges Summary'!E67,'Charges Summary'!E11) -> 32.26263637 | F94: =SUM('Charges Summary'!F67,'Charges Summary'!F11) -> 30.9339474 | G94: =SUM('Charges Summary'!G67,'Charges Summary'!G11) -> 30.24755288 | H94: =SUM('Charges Summary'!H67,'Charges Summary'!H11) -> 29.52460536
A96: ='DNSP Inputs General'!A$40 -> Existing Lights
A97: ='DNSP Inputs General'!A$41 -> Mercury vapour 80 watt | D97: =D92*'DNSP Inputs General'!K41 -> 111947.7806 | E97: =E92*'DNSP Inputs General'!L41 -> 62714.72934 | F97: =F92*'DNSP Inputs General'!M41 -> 53881.3011 | G97: =G92*'DNSP Inputs General'!N41 -> 47208.33967 | H97: =H92*'DNSP Inputs General'!O41 -> 41288.3561 | K97: =D97/'Charges Summary'!D$4 -> 109110.8973 | L97: =E97/'Charges Summary'!E$4 -> 59576.47875 | M97: =F97/'Charges Summary'!F$4 -> 49887.98834 | N97: =G97/'Charges Summary'!G$4 -> 42601.93087 | O97: =H97/'Charges Summary'!H$4 -> 36315.3963
A98: ='DNSP Inputs General'!A$42 -> Sodium high pressure 150 watt | D98: =D93*'DNSP Inputs General'!K42 -> 333797.9331 | E98: =E93*'DNSP Inputs General'!L42 -> 338333.1716 | F98: =F93*'DNSP Inputs General'!M42 -> 326020.4831 | G98: =G93*'DNSP Inputs General'!N42 -> 320378.4436 | H98: =H93*'DNSP Inputs General'!O42 -> 314281.4127 | K98: =D98/'Charges Summary'!D$4 -> 325339.1161 | L98: =E98/'Charges Summary'!E$4 -> 321402.9498 | M98: =F98/'Charges Summary'!F$4 -> 301858.0793 | N98: =G98/'Charges Summary'!G$4 -> 289117.1433 | O98: =H98/'Charges Summary'!H$4 -> 276427.9117
A99: ='DNSP Inputs General'!A$43 -> Sodium high pressure 250 watt | D99: =D94*'DNSP Inputs General'!K43 -> 116954.5722 | E99: =E94*'DNSP Inputs General'!L43 -> 120142.9003 | F99: =F94*'DNSP Inputs General'!M43 -> 117329.2715 | G99: =G94*'DNSP Inputs General'!N43 -> 116851.4347 | H99: =H94*'DNSP Inputs General'!O43 -> 116171.7893 | K99: =D99/'Charges Summary'!D$4 -> 113990.8111 | L99: =E99/'Charges Summary'!E$4 -> 114130.9389 | M99: =F99/'Charges Summary'!F$4 -> 108633.63 | N99: =G99/'Charges Summary'!G$4 -> 105449.5197 | O99: =H99/'Charges Summary'!H$4 -> 102179.5238
A100: ='DNSP Inputs General'!A$44 -> Fluorescent 20 watt | D100: =IF('DNSP Inputs General'!$B44='DNSP Inputs General'!$A$41,D$92,IF('DNSP Inputs General'!$B44='DNSP Inputs General'!$A$42,D$93,D$94))*'DNSP Inputs General'!$D44*'DNSP Inputs General'!K44 -> 261.4239829 | E100: =IF('DNSP Inputs General'!$B44='DNSP Inputs General'!$A$41,E$92,IF('DNSP Inputs General'!$B44='DNSP Inputs General'!$A$42,E$93,E$94))*'DNSP Inputs General'!$D44*'DNSP Inputs General'!L44 -> 263.653308 | F100: =IF('DNSP Inputs General'!$B44='DNSP Inputs General'!$A$41,F$92,IF('DNSP Inputs General'!$B44='DNSP Inputs General'!$A$42,F$93,F$94))*'DNSP Inputs General'!$D44*'DNSP Inputs General'!M44 -> 252.8219046 | G100: =IF('DNSP Inputs General'!$B44='DNSP Inputs General'!$A$41,G$92,IF('DNSP Inputs General'!$B44='DNSP Inputs General'!$A$42,G$93,G$94))*'DNSP Inputs General'!$D44*'DNSP Inputs General'!N44 -> 247.2340611 | H100: =IF('DNSP Inputs General'!$B44='DNSP Inputs General'!$A$41,H$92,IF('DNSP Inputs General'!$B44='DNSP Inputs General'!$A$42,H$93,H$94))*'DNSP Inputs General'!$D44*'DNSP Inputs General'!O44 -> 241.340451 | K100: =D100/'Charges Summary'!D$4 -> 254.7992037 | L100: =E100/'Charges Summary'!E$4 -> 250.4600732 | M100: =F100/'Charges Summary'!F$4 -> 234.0844777 | N100: =G100/'Charges Summary'!G$4 -> 223.1099092 | O100: =H100/'Charges Summary'!H$4 -> 212.2722953
A101: ='DNSP Inputs General'!A$45 -> Fluorescent 40 watt | D101: =IF('DNSP Inputs General'!$B45='DNSP Inputs General'!$A$41,D$92,IF('DNSP Inputs General'!$B45='DNSP Inputs General'!$A$42,D$93,D$94))*'DNSP Inputs General'!$D45*'DNSP Inputs General'!K45 -> 0 | E101: =IF('DNSP Inputs General'!$B45='DNSP Inputs General'!$A$41,E$92,IF('DNSP Inputs General'!$B45='DNSP Inputs General'!$A$42,E$93,E$94))*'DNSP Inputs General'!$D45*'DNSP Inputs General'!L45 -> 0 | F101: =IF('DNSP Inputs General'!$B45='DNSP Inputs General'!$A$41,F$92,IF('DNSP Inputs General'!$B45='DNSP Inputs General'!$A$42,F$93,F$94))*'DNSP Inputs General'!$D45*'DNSP Inputs General'!M45 -> 0 | G101: =IF('DNSP Inputs General'!$B45='DNSP Inputs General'!$A$41,G$92,IF('DNSP Inputs General'!$B45='DNSP Inputs General'!$A$42,G$93,G$94))*'DNSP Inputs General'!$D45*'DNSP Inputs General'!N45 -> 0 | H101: =IF('DNSP Inputs General'!$B45='DNSP Inputs General'!$A$41,H$92,IF('DNSP Inputs General'!$B45='DNSP Inputs General'!$A$42,H$93,H$94))*'DNSP Inputs General'!$D45*'DNSP Inputs General'!O45 -> 0 | K101: =D101/'Charges Summary'!D$4 -> 0 | L101: =E101/'Charges Summary'!E$4 -> 0 | M101: =F101/'Charges Summary'!F$4 -> 0 | N101: =G101/'Charges Summary'!G$4 -> 0 | O101: =H101/'Charges Summary'!H$4 -> 0
A102: ='DNSP Inputs General'!A$46 -> Mercury vapour 50 watt | D102: =IF('DNSP Inputs General'!$B46='DNSP Inputs General'!$A$41,D$92,IF('DNSP Inputs General'!$B46='DNSP Inputs General'!$A$42,D$93,D$94))*'DNSP Inputs General'!$D46*'DNSP Inputs General'!K46 -> 6520.819254 | E102: =IF('DNSP Inputs General'!$B46='DNSP Inputs General'!$A$41,E$92,IF('DNSP Inputs General'!$B46='DNSP Inputs General'!$A$42,E$93,E$94))*'DNSP Inputs General'!$D46*'DNSP Inputs General'!L46 -> 6147.813697 | F102: =IF('DNSP Inputs General'!$B46='DNSP Inputs General'!$A$41,F$92,IF('DNSP Inputs General'!$B46='DNSP Inputs General'!$A$42,F$93,F$94))*'DNSP Inputs General'!$D46*'DNSP Inputs General'!M46 -> 5511.031713 | G102: =IF('DNSP Inputs General'!$B46='DNSP Inputs General'!$A$41,G$92,IF('DNSP Inputs General'!$B46='DNSP Inputs General'!$A$42,G$93,G$94))*'DNSP Inputs General'!$D46*'DNSP Inputs General'!N46 -> 5037.989432 | H102: =IF('DNSP Inputs General'!$B46='DNSP Inputs General'!$A$41,H$92,IF('DNSP Inputs General'!$B46='DNSP Inputs General'!$A$42,H$93,H$94))*'DNSP Inputs General'!$D46*'DNSP Inputs General'!O46 -> 4597.373705 | K102: =D102/'Charges Summary'!D$4 -> 6355.574322 | L102: =E102/'Charges Summary'!E$4 -> 5840.176557 | M102: =F102/'Charges Summary'!F$4 -> 5102.591812 | N102: =G102/'Charges Summary'!G$4 -> 4546.401738 | O102: =H102/'Charges Summary'!H$4 -> 4043.644838
A103: ='DNSP Inputs General'!A$47 -> Mercury vapour 125 watt | D103: =IF('DNSP Inputs General'!$B47='DNSP Inputs General'!$A$41,D$92,IF('DNSP Inputs General'!$B47='DNSP Inputs General'!$A$42,D$93,D$94))*'DNSP Inputs General'!$D47*'DNSP Inputs General'!K47 -> 37771.93337 | E103: =IF('DNSP Inputs General'!$B47='DNSP Inputs General'!$A$41,E$92,IF('DNSP Inputs General'!$B47='DNSP Inputs General'!$A$42,E$93,E$94))*'DNSP Inputs General'!$D47*'DNSP Inputs General'!L47 -> 35979.22609 | F103: =IF('DNSP Inputs General'!$B47='DNSP Inputs General'!$A$41,F$92,IF('DNSP Inputs General'!$B47='DNSP Inputs General'!$A$42,F$93,F$94))*'DNSP Inputs General'!$D47*'DNSP Inputs General'!M47 -> 32585.77814 | G103: =IF('DNSP Inputs General'!$B47='DNSP Inputs General'!$A$41,G$92,IF('DNSP Inputs General'!$B47='DNSP Inputs General'!$A$42,G$93,G$94))*'DNSP Inputs General'!$D47*'DNSP Inputs General'!N47 -> 30096.53548 | H103: =IF('DNSP Inputs General'!$B47='DNSP Inputs General'!$A$41,H$92,IF('DNSP Inputs General'!$B47='DNSP Inputs General'!$A$42,H$93,H$94))*'DNSP Inputs General'!$D47*'DNSP Inputs General'!O47 -> 27748.09211 | K103: =D103/'Charges Summary'!D$4 -> 36814.74987 | L103: =E103/'Charges Summary'!E$4 -> 34178.82244 | M103: =F103/'Charges Summary'!F$4 -> 30170.74359 | N103: =G103/'Charges Summary'!G$4 -> 27159.83093 | O103: =H103/'Charges Summary'!H$4 -> 24405.98408
A104: ='DNSP Inputs General'!A$48 -> Mercury vapour 250 watt | D104: =IF('DNSP Inputs General'!$B48='DNSP Inputs General'!$A$41,D$92,IF('DNSP Inputs General'!$B48='DNSP Inputs General'!$A$42,D$93,D$94))*'DNSP Inputs General'!$D48*'DNSP Inputs General'!K48 -> 12249.87046 | E104: =IF('DNSP Inputs General'!$B48='DNSP Inputs General'!$A$41,E$92,IF('DNSP Inputs General'!$B48='DNSP Inputs General'!$A$42,E$93,E$94))*'DNSP Inputs General'!$D48*'DNSP Inputs General'!L48 -> 11248.34249 | F104: =IF('DNSP Inputs General'!$B48='DNSP Inputs General'!$A$41,F$92,IF('DNSP Inputs General'!$B48='DNSP Inputs General'!$A$42,F$93,F$94))*'DNSP Inputs General'!$D48*'DNSP Inputs General'!M48 -> 9819.128007 | G104: =IF('DNSP Inputs General'!$B48='DNSP Inputs General'!$A$41,G$92,IF('DNSP Inputs General'!$B48='DNSP Inputs General'!$A$42,G$93,G$94))*'DNSP Inputs General'!$D48*'DNSP Inputs General'!N48 -> 8741.314073 | H104: =IF('DNSP Inputs General'!$B48='DNSP Inputs General'!$A$41,H$92,IF('DNSP Inputs General'!$B48='DNSP Inputs General'!$A$42,H$93,H$94))*'DNSP Inputs General'!$D48*'DNSP Inputs General'!O48 -> 7768.18361 | K104: =D104/'Charges Summary'!D$4 -> 11939.4449 | L104: =E104/'Charges Summary'!E$4 -> 10685.47444 | M104: =F104/'Charges Summary'!F$4 -> 9091.401535 | N104: =G104/'Charges Summary'!G$4 -> 7888.370158 | O104: =H104/'Charges Summary'!H$4 -> 6832.547793
A105: ='DNSP Inputs General'!A$49 -> Mercury vapour 400 watt | D105: =IF('DNSP Inputs General'!$B49='DNSP Inputs General'!$A$41,D$92,IF('DNSP Inputs General'!$B49='DNSP Inputs General'!$A$42,D$93,D$94))*'DNSP Inputs General'!$D49*'DNSP Inputs General'!K49 -> 6209.78231 | E105: =IF('DNSP Inputs General'!$B49='DNSP Inputs General'!$A$41,E$92,IF('DNSP Inputs General'!$B49='DNSP Inputs General'!$A$42,E$93,E$94))*'DNSP Inputs General'!$D49*'DNSP Inputs General'!L49 -> 5781.625785 | F105: =IF('DNSP Inputs General'!$B49='DNSP Inputs General'!$A$41,F$92,IF('DNSP Inputs General'!$B49='DNSP Inputs General'!$A$42,F$93,F$94))*'DNSP Inputs General'!$D49*'DNSP Inputs General'!M49 -> 5117.418521 | G105: =IF('DNSP Inputs General'!$B49='DNSP Inputs General'!$A$41,G$92,IF('DNSP Inputs General'!$B49='DNSP Inputs General'!$A$42,G$93,G$94))*'DNSP Inputs General'!$D49*'DNSP Inputs General'!N49 -> 4619.248294 | H105: =IF('DNSP Inputs General'!$B49='DNSP Inputs General'!$A$41,H$92,IF('DNSP Inputs General'!$B49='DNSP Inputs General'!$A$42,H$93,H$94))*'DNSP Inputs General'!$D49*'DNSP Inputs General'!O49 -> 4162.273675 | K105: =D105/'Charges Summary'!D$4 -> 6052.419405 | L105: =E105/'Charges Summary'!E$4 -> 5492.31272 | M105: =F105/'Charges Summary'!F$4 -> 4738.150532 | N105: =G105/'Charges Summary'!G$4 -> 4168.519755 | O105: =H105/'Charges Summary'!H$4 -> 3660.95026
A106: ='DNSP Inputs General'!A$50 -> Mercury vapour 700 watt | D106: =IF('DNSP Inputs General'!$B50='DNSP Inputs General'!$A$41,D$92,IF('DNSP Inputs General'!$B50='DNSP Inputs General'!$A$42,D$93,D$94))*'DNSP Inputs General'!$D50*'DNSP Inputs General'!K50 -> 0 | E106: =IF('DNSP Inputs General'!$B50='DNSP Inputs General'!$A$41,E$92,IF('DNSP Inputs General'!$B50='DNSP Inputs General'!$A$42,E$93,E$94))*'DNSP Inputs General'!$D50*'DNSP Inputs General'!L50 -> 0 | F106: =IF('DNSP Inputs General'!$B50='DNSP Inputs General'!$A$41,F$92,IF('DNSP Inputs General'!$B50='DNSP Inputs General'!$A$42,F$93,F$94))*'DNSP Inputs General'!$D50*'DNSP Inputs General'!M50 -> 0 | G106: =IF('DNSP Inputs General'!$B50='DNSP Inputs General'!$A$41,G$92,IF('DNSP Inputs General'!$B50='DNSP Inputs General'!$A$42,G$93,G$94))*'DNSP Inputs General'!$D50*'DNSP Inputs General'!N50 -> 0 | H106: =IF('DNSP Inputs General'!$B50='DNSP Inputs General'!$A$41,H$92,IF('DNSP Inputs General'!$B50='DNSP Inputs General'!$A$42,H$93,H$94))*'DNSP Inputs General'!$D50*'DNSP Inputs General'!O50 -> 0 | K106: =D106/'Charges Summary'!D$4 -> 0 | L106: =E106/'Charges Summary'!E$4 -> 0 | M106: =F106/'Charges Summary'!F$4 -> 0 | N106: =G106/'Charges Summary'!G$4 -> 0 | O106: =H106/'Charges Summary'!H$4 -> 0
A107: ='DNSP Inputs General'!A$51 -> Sodium high pressure 70 watt | D107: =IF('DNSP Inputs General'!$B51='DNSP Inputs General'!$A$41,D$92,IF('DNSP Inputs General'!$B51='DNSP Inputs General'!$A$42,D$93,D$94))*'DNSP Inputs General'!$D51*'DNSP Inputs General'!K51 -> 9749.107439 | E107: =IF('DNSP Inputs General'!$B51='DNSP Inputs General'!$A$41,E$92,IF('DNSP Inputs General'!$B51='DNSP Inputs General'!$A$42,E$93,E$94))*'DNSP Inputs General'!$D51*'DNSP Inputs General'!L51 -> 9695.489184 | F107: =IF('DNSP Inputs General'!$B51='DNSP Inputs General'!$A$41,F$92,IF('DNSP Inputs General'!$B51='DNSP Inputs General'!$A$42,F$93,F$94))*'DNSP Inputs General'!$D51*'DNSP Inputs General'!M51 -> 9167.866321 | G107: =IF('DNSP Inputs General'!$B51='DNSP Inputs General'!$A$41,G$92,IF('DNSP Inputs General'!$B51='DNSP Inputs General'!$A$42,G$93,G$94))*'DNSP Inputs General'!$D51*'DNSP Inputs General'!N51 -> 8840.543149 | H107: =IF('DNSP Inputs General'!$B51='DNSP Inputs General'!$A$41,H$92,IF('DNSP Inputs General'!$B51='DNSP Inputs General'!$A$42,H$93,H$94))*'DNSP Inputs General'!$D51*'DNSP Inputs General'!O51 -> 8509.7703 | K107: =D107/'Charges Summary'!D$4 -> 9502.054034 | L107: =E107/'Charges Summary'!E$4 -> 9210.326049 | M107: =F107/'Charges Summary'!F$4 -> 8488.406902 | N107: =G107/'Charges Summary'!G$4 -> 7977.916842 | O107: =H107/'Charges Summary'!H$4 -> 7484.814365
A108: ='DNSP Inputs General'!A$52 -> Sodium high pressure 100 watt | D108: =IF('DNSP Inputs General'!$B52='DNSP Inputs General'!$A$41,D$92,IF('DNSP Inputs General'!$B52='DNSP Inputs General'!$A$42,D$93,D$94))*'DNSP Inputs General'!$D52*'DNSP Inputs General'!K52 -> 7755.919935 | E108: =IF('DNSP Inputs General'!$B52='DNSP Inputs General'!$A$41,E$92,IF('DNSP Inputs General'!$B52='DNSP Inputs General'!$A$42,E$93,E$94))*'DNSP Inputs General'!$D52*'DNSP Inputs General'!L52 -> 7541.381761 | F108: =IF('DNSP Inputs General'!$B52='DNSP Inputs General'!$A$41,F$92,IF('DNSP Inputs General'!$B52='DNSP Inputs General'!$A$42,F$93,F$94))*'DNSP Inputs General'!$D52*'DNSP Inputs General'!M52 -> 6971.205827 | G108: =IF('DNSP Inputs General'!$B52='DNSP Inputs General'!$A$41,G$92,IF('DNSP Inputs General'!$B52='DNSP Inputs General'!$A$42,G$93,G$94))*'DNSP Inputs General'!$D52*'DNSP Inputs General'!N52 -> 6571.779429 | H108: =IF('DNSP Inputs General'!$B52='DNSP Inputs General'!$A$41,H$92,IF('DNSP Inputs General'!$B52='DNSP Inputs General'!$A$42,H$93,H$94))*'DNSP Inputs General'!$D52*'DNSP Inputs General'!O52 -> 6184.364244 | K108: =D108/'Charges Summary'!D$4 -> 7559.376155 | L108: =E108/'Charges Summary'!E$4 -> 7164.010352 | M108: =F108/'Charges Summary'!F$4 -> 6454.547828 | N108: =G108/'Charges Summary'!G$4 -> 5930.530387 | O108: =H108/'Charges Summary'!H$4 -> 5439.490926
A109: ='DNSP Inputs General'!A$53 -> Sodium high pressure 220 watt | D109: =IF('DNSP Inputs General'!$B53='DNSP Inputs General'!$A$41,D$92,IF('DNSP Inputs General'!$B53='DNSP Inputs General'!$A$42,D$93,D$94))*'DNSP Inputs General'!$D53*'DNSP Inputs General'!K53 -> 53001.24953 | E109: =IF('DNSP Inputs General'!$B53='DNSP Inputs General'!$A$41,E$92,IF('DNSP Inputs General'!$B53='DNSP Inputs General'!$A$42,E$93,E$94))*'DNSP Inputs General'!$D53*'DNSP Inputs General'!L53 -> 51726.39679 | F109: =IF('DNSP Inputs General'!$B53='DNSP Inputs General'!$A$41,F$92,IF('DNSP Inputs General'!$B53='DNSP Inputs General'!$A$42,F$93,F$94))*'DNSP Inputs General'!$D53*'DNSP Inputs General'!M53 -> 47991.65211 | G109: =IF('DNSP Inputs General'!$B53='DNSP Inputs General'!$A$41,G$92,IF('DNSP Inputs General'!$B53='DNSP Inputs General'!$A$42,G$93,G$94))*'DNSP Inputs General'!$D53*'DNSP Inputs General'!N53 -> 45408.64963 | H109: =IF('DNSP Inputs General'!$B53='DNSP Inputs General'!$A$41,H$92,IF('DNSP Inputs General'!$B53='DNSP Inputs General'!$A$42,H$93,H$94))*'DNSP Inputs General'!$D53*'DNSP Inputs General'!O53 -> 42889.44515 | K109: =D109/'Charges Summary'!D$4 -> 51658.13794 | L109: =E109/'Charges Summary'!E$4 -> 49138.00333 | M109: =F109/'Charges Summary'!F$4 -> 44434.83976 | N109: =G109/'Charges Summary'!G$4 -> 40977.84769 | O109: =H109/'Charges Summary'!H$4 -> 37723.64281
A110: ='DNSP Inputs General'!A$54 -> Sodium high pressure 360 watt | D110: =IF('DNSP Inputs General'!$B54='DNSP Inputs General'!$A$41,D$92,IF('DNSP Inputs General'!$B54='DNSP Inputs General'!$A$42,D$93,D$94))*'DNSP Inputs General'!$D54*'DNSP Inputs General'!K54 -> 6953.588072 | E110: =IF('DNSP Inputs General'!$B54='DNSP Inputs General'!$A$41,E$92,IF('DNSP Inputs General'!$B54='DNSP Inputs General'!$A$42,E$93,E$94))*'DNSP Inputs General'!$D54*'DNSP Inputs General'!L54 -> 6966.245135 | F110: =IF('DNSP Inputs General'!$B54='DNSP Inputs General'!$A$41,F$92,IF('DNSP Inputs General'!$B54='DNSP Inputs General'!$A$42,F$93,F$94))*'DNSP Inputs General'!$D54*'DNSP Inputs General'!M54 -> 6634.617671 | G110: =IF('DNSP Inputs General'!$B54='DNSP Inputs General'!$A$41,G$92,IF('DNSP Inputs General'!$B54='DNSP Inputs General'!$A$42,G$93,G$94))*'DNSP Inputs General'!$D54*'DNSP Inputs General'!N54 -> 6443.954451 | H110: =IF('DNSP Inputs General'!$B54='DNSP Inputs General'!$A$41,H$92,IF('DNSP Inputs General'!$B54='DNSP Inputs General'!$A$42,H$93,H$94))*'DNSP Inputs General'!$D54*'DNSP Inputs General'!O54 -> 6247.812353 | K110: =D110/'Charges Summary'!D$4 -> 6777.376289 | L110: =E110/'Charges Summary'!E$4 -> 6617.653613 | M110: =F110/'Charges Summary'!F$4 -> 6142.90528 | N110: =G110/'Charges Summary'!G$4 -> 5815.178081 | O110: =H110/'Charges Summary'!H$4 -> 5495.297053
A111: ='DNSP Inputs General'!A$55 -> Sodium high pressure 400 watt | D111: =IF('DNSP Inputs General'!$B55='DNSP Inputs General'!$A$41,D$92,IF('DNSP Inputs General'!$B55='DNSP Inputs General'!$A$42,D$93,D$94))*'DNSP Inputs General'!$D55*'DNSP Inputs General'!K55 -> 7478.899337 | E111: =IF('DNSP Inputs General'!$B55='DNSP Inputs General'!$A$41,E$92,IF('DNSP Inputs General'!$B55='DNSP Inputs General'!$A$42,E$93,E$94))*'DNSP Inputs General'!$D55*'DNSP Inputs General'!L55 -> 7680.606815 | F111: =IF('DNSP Inputs General'!$B55='DNSP Inputs General'!$A$41,F$92,IF('DNSP Inputs General'!$B55='DNSP Inputs General'!$A$42,F$93,F$94))*'DNSP Inputs General'!$D55*'DNSP Inputs General'!M55 -> 7498.609437 | G111: =IF('DNSP Inputs General'!$B55='DNSP Inputs General'!$A$41,G$92,IF('DNSP Inputs General'!$B55='DNSP Inputs General'!$A$42,G$93,G$94))*'DNSP Inputs General'!$D55*'DNSP Inputs General'!N55 -> 7465.954646 | H111: =IF('DNSP Inputs General'!$B55='DNSP Inputs General'!$A$41,H$92,IF('DNSP Inputs General'!$B55='DNSP Inputs General'!$A$42,H$93,H$94))*'DNSP Inputs General'!$D55*'DNSP Inputs General'!O55 -> 7420.427312 | K111: =D111/'Charges Summary'!D$4 -> 7289.375572 | L111: =E111/'Charges Summary'!E$4 -> 7296.268572 | M111: =F111/'Charges Summary'!F$4 -> 6942.863897 | N111: =G111/'Charges Summary'!G$4 -> 6737.455414 | O111: =H111/'Charges Summary'!H$4 -> 6526.676865
A112: ='DNSP Inputs General'!A$56 -> Sodium high pressure 1000 watt | D112: =IF('DNSP Inputs General'!$B56='DNSP Inputs General'!$A$41,D$92,IF('DNSP Inputs General'!$B56='DNSP Inputs General'!$A$42,D$93,D$94))*'DNSP Inputs General'!$D56*'DNSP Inputs General'!K56 -> 0 | E112: =IF('DNSP Inputs General'!$B56='DNSP Inputs General'!$A$41,E$92,IF('DNSP Inputs General'!$B56='DNSP Inputs General'!$A$42,E$93,E$94))*'DNSP Inputs General'!$D56*'DNSP Inputs General'!L56 -> 0 | F112: =IF('DNSP Inputs General'!$B56='DNSP Inputs General'!$A$41,F$92,IF('DNSP Inputs General'!$B56='DNSP Inputs General'!$A$42,F$93,F$94))*'DNSP Inputs General'!$D56*'DNSP Inputs General'!M56 -> 0 | G112: =IF('DNSP Inputs General'!$B56='DNSP Inputs General'!$A$41,G$92,IF('DNSP Inputs General'!$B56='DNSP Inputs General'!$A$42,G$93,G$94))*'DNSP Inputs General'!$D56*'DNSP Inputs General'!N56 -> 0 | H112: =IF('DNSP Inputs General'!$B56='DNSP Inputs General'!$A$41,H$92,IF('DNSP Inputs General'!$B56='DNSP Inputs General'!$A$42,H$93,H$94))*'DNSP Inputs General'!$D56*'DNSP Inputs General'!O56 -> 0 | K112: =D112/'Charges Summary'!D$4 -> 0 | L112: =E112/'Charges Summary'!E$4 -> 0 | M112: =F112/'Charges Summary'!F$4 -> 0 | N112: =G112/'Charges Summary'!G$4 -> 0 | O112: =H112/'Charges Summary'!H$4 -> 0
A113: ='DNSP Inputs General'!A57 -> Metal halide 70 watt | D113: =IF('DNSP Inputs General'!$B57='DNSP Inputs General'!$A$41,D$92,IF('DNSP Inputs General'!$B57='DNSP Inputs General'!$A$42,D$93,D$94))*'DNSP Inputs General'!$D57*'DNSP Inputs General'!K57 -> 13000.54551 | E113: =IF('DNSP Inputs General'!$B57='DNSP Inputs General'!$A$41,E$92,IF('DNSP Inputs General'!$B57='DNSP Inputs General'!$A$42,E$93,E$94))*'DNSP Inputs General'!$D57*'DNSP Inputs General'!L57 -> 13653.90746 | F113: =IF('DNSP Inputs General'!$B57='DNSP Inputs General'!$A$41,F$92,IF('DNSP Inputs General'!$B57='DNSP Inputs General'!$A$42,F$93,F$94))*'DNSP Inputs General'!$D57*'DNSP Inputs General'!M57 -> 13634.71331 | G113: =IF('DNSP Inputs General'!$B57='DNSP Inputs General'!$A$41,G$92,IF('DNSP Inputs General'!$B57='DNSP Inputs General'!$A$42,G$93,G$94))*'DNSP Inputs General'!$D57*'DNSP Inputs General'!N57 -> 13885.04196 | H113: =IF('DNSP Inputs General'!$B57='DNSP Inputs General'!$A$41,H$92,IF('DNSP Inputs General'!$B57='DNSP Inputs General'!$A$42,H$93,H$94))*'DNSP Inputs General'!$D57*'DNSP Inputs General'!O57 -> 14114.86067 | K113: =D113/'Charges Summary'!D$4 -> 12671.09698 | L113: =E113/'Charges Summary'!E$4 -> 12970.66473 | M113: =F113/'Charges Summary'!F$4 -> 12624.20181 | N113: =G113/'Charges Summary'!G$4 -> 12530.1928 | O113: =H113/'Charges Summary'!H$4 -> 12414.80184
A114: ='DNSP Inputs General'!A58 -> Metal halide 100 watt | D114: =IF('DNSP Inputs General'!$B58='DNSP Inputs General'!$A$41,D$92,IF('DNSP Inputs General'!$B58='DNSP Inputs General'!$A$42,D$93,D$94))*'DNSP Inputs General'!$D58*'DNSP Inputs General'!K58 -> 2438.531082 | E114: =IF('DNSP Inputs General'!$B58='DNSP Inputs General'!$A$41,E$92,IF('DNSP Inputs General'!$B58='DNSP Inputs General'!$A$42,E$93,E$94))*'DNSP Inputs General'!$D58*'DNSP Inputs General'!L58 -> 2274.663794 | F114: =IF('DNSP Inputs General'!$B58='DNSP Inputs General'!$A$41,F$92,IF('DNSP Inputs General'!$B58='DNSP Inputs General'!$A$42,F$93,F$94))*'DNSP Inputs General'!$D58*'DNSP Inputs General'!M58 -> 2017.183952 | G114: =IF('DNSP Inputs General'!$B58='DNSP Inputs General'!$A$41,G$92,IF('DNSP Inputs General'!$B58='DNSP Inputs General'!$A$42,G$93,G$94))*'DNSP Inputs General'!$D58*'DNSP Inputs General'!N58 -> 1824.281641 | H114: =IF('DNSP Inputs General'!$B58='DNSP Inputs General'!$A$41,H$92,IF('DNSP Inputs General'!$B58='DNSP Inputs General'!$A$42,H$93,H$94))*'DNSP Inputs General'!$D58*'DNSP Inputs General'!O58 -> 1646.930527 | K114: =D114/'Charges Summary'!D$4 -> 2376.735947 | L114: =E114/'Charges Summary'!E$4 -> 2160.839417 | M114: =F114/'Charges Summary'!F$4 -> 1867.684102 | N114: =G114/'Charges Summary'!G$4 -> 1646.275233 | O114: =H114/'Charges Summary'!H$4 -> 1448.566628
A115: ='DNSP Inputs General'!A59 -> Metal halide 150 watt | D115: =IF('DNSP Inputs General'!$B59='DNSP Inputs General'!$A$41,D$92,IF('DNSP Inputs General'!$B59='DNSP Inputs General'!$A$42,D$93,D$94))*'DNSP Inputs General'!$D59*'DNSP Inputs General'!K59 -> 3243.109454 | E115: =IF('DNSP Inputs General'!$B59='DNSP Inputs General'!$A$41,E$92,IF('DNSP Inputs General'!$B59='DNSP Inputs General'!$A$42,E$93,E$94))*'DNSP Inputs General'!$D59*'DNSP Inputs General'!L59 -> 3132.426567 | F115: =IF('DNSP Inputs General'!$B59='DNSP Inputs General'!$A$41,F$92,IF('DNSP Inputs General'!$B59='DNSP Inputs General'!$A$42,F$93,F$94))*'DNSP Inputs General'!$D59*'DNSP Inputs General'!M59 -> 2876.335632 | G115: =IF('DNSP Inputs General'!$B59='DNSP Inputs General'!$A$41,G$92,IF('DNSP Inputs General'!$B59='DNSP Inputs General'!$A$42,G$93,G$94))*'DNSP Inputs General'!$D59*'DNSP Inputs General'!N59 -> 2693.495894 | H115: =IF('DNSP Inputs General'!$B59='DNSP Inputs General'!$A$41,H$92,IF('DNSP Inputs General'!$B59='DNSP Inputs General'!$A$42,H$93,H$94))*'DNSP Inputs General'!$D59*'DNSP Inputs General'!O59 -> 2517.85133 | K115: =D115/'Charges Summary'!D$4 -> 3160.925394 | L115: =E115/'Charges Summary'!E$4 -> 2975.679665 | M115: =F115/'Charges Summary'!F$4 -> 2663.161348 | N115: =G115/'Charges Summary'!G$4 -> 2430.674891 | O115: =H115/'Charges Summary'!H$4 -> 2214.589718
A116: ='DNSP Inputs General'!A60 -> Metal halide 250 watt | D116: =IF('DNSP Inputs General'!$B60='DNSP Inputs General'!$A$41,D$92,IF('DNSP Inputs General'!$B60='DNSP Inputs General'!$A$42,D$93,D$94))*'DNSP Inputs General'!$D60*'DNSP Inputs General'!K60 -> 14768.08229 | E116: =IF('DNSP Inputs General'!$B60='DNSP Inputs General'!$A$41,E$92,IF('DNSP Inputs General'!$B60='DNSP Inputs General'!$A$42,E$93,E$94))*'DNSP Inputs General'!$D60*'DNSP Inputs General'!L60 -> 16980.94876 | F116: =IF('DNSP Inputs General'!$B60='DNSP Inputs General'!$A$41,F$92,IF('DNSP Inputs General'!$B60='DNSP Inputs General'!$A$42,F$93,F$94))*'DNSP Inputs General'!$D60*'DNSP Inputs General'!M60 -> 18562.102 | G116: =IF('DNSP Inputs General'!$B60='DNSP Inputs General'!$A$41,G$92,IF('DNSP Inputs General'!$B60='DNSP Inputs General'!$A$42,G$93,G$94))*'DNSP Inputs General'!$D60*'DNSP Inputs General'!N60 -> 20692.44314 | H116: =IF('DNSP Inputs General'!$B60='DNSP Inputs General'!$A$41,H$92,IF('DNSP Inputs General'!$B60='DNSP Inputs General'!$A$42,H$93,H$94))*'DNSP Inputs General'!$D60*'DNSP Inputs General'!O60 -> 23026.89289 | K116: =D116/'Charges Summary'!D$4 -> 14393.84239 | L116: =E116/'Charges Summary'!E$4 -> 16131.22059 | M116: =F116/'Charges Summary'!F$4 -> 17186.40622 | N116: =G116/'Charges Summary'!G$4 -> 18673.35387 | O116: =H116/'Charges Summary'!H$4 -> 20253.42784
A117: ='DNSP Inputs General'!A61 -> Metal halide 400 watt | D117: =IF('DNSP Inputs General'!$B61='DNSP Inputs General'!$A$41,D$92,IF('DNSP Inputs General'!$B61='DNSP Inputs General'!$A$42,D$93,D$94))*'DNSP Inputs General'!$D61*'DNSP Inputs General'!K61 -> 37219.8518 | E117: =IF('DNSP Inputs General'!$B61='DNSP Inputs General'!$A$41,E$92,IF('DNSP Inputs General'!$B61='DNSP Inputs General'!$A$42,E$93,E$94))*'DNSP Inputs General'!$D61*'DNSP Inputs General'!L61 -> 38039.45574 | F117: =IF('DNSP Inputs General'!$B61='DNSP Inputs General'!$A$41,F$92,IF('DNSP Inputs General'!$B61='DNSP Inputs General'!$A$42,F$93,F$94))*'DNSP Inputs General'!$D61*'DNSP Inputs General'!M61 -> 36959.093 | G117: =IF('DNSP Inputs General'!$B61='DNSP Inputs General'!$A$41,G$92,IF('DNSP Inputs General'!$B61='DNSP Inputs General'!$A$42,G$93,G$94))*'DNSP Inputs General'!$D61*'DNSP Inputs General'!N61 -> 36620.79158 | H117: =IF('DNSP Inputs General'!$B61='DNSP Inputs General'!$A$41,H$92,IF('DNSP Inputs General'!$B61='DNSP Inputs General'!$A$42,H$93,H$94))*'DNSP Inputs General'!$D61*'DNSP Inputs General'!O61 -> 36222.05662 | K117: =D117/'Charges Summary'!D$4 -> 36276.65867 | L117: =E117/'Charges Summary'!E$4 -> 36135.95802 | M117: =F117/'Charges Summary'!F$4 -> 34219.93833 | N117: =G117/'Charges Summary'!G$4 -> 33047.47514 | O117: =H117/'Charges Summary'!H$4 -> 31859.30526
A118: ='DNSP Inputs General'!A62 -> Metal halide 1000 watt | D118: =IF('DNSP Inputs General'!$B62='DNSP Inputs General'!$A$41,D$92,IF('DNSP Inputs General'!$B62='DNSP Inputs General'!$A$42,D$93,D$94))*'DNSP Inputs General'!$D62*'DNSP Inputs General'!K62 -> 0 | E118: =IF('DNSP Inputs General'!$B62='DNSP Inputs General'!$A$41,E$92,IF('DNSP Inputs General'!$B62='DNSP Inputs General'!$A$42,E$93,E$94))*'DNSP Inputs General'!$D62*'DNSP Inputs General'!L62 -> 0 | F118: =IF('DNSP Inputs General'!$B62='DNSP Inputs General'!$A$41,F$92,IF('DNSP Inputs General'!$B62='DNSP Inputs General'!$A$42,F$93,F$94))*'DNSP Inputs General'!$D62*'DNSP Inputs General'!M62 -> 0 | G118: =IF('DNSP Inputs General'!$B62='DNSP Inputs General'!$A$41,G$92,IF('DNSP Inputs General'!$B62='DNSP Inputs General'!$A$42,G$93,G$94))*'DNSP Inputs General'!$D62*'DNSP Inputs General'!N62 -> 0 | H118: =IF('DNSP Inputs General'!$B62='DNSP Inputs General'!$A$41,H$92,IF('DNSP Inputs General'!$B62='DNSP Inputs General'!$A$42,H$93,H$94))*'DNSP Inputs General'!$D62*'DNSP Inputs General'!O62 -> 0 | K118: =D118/'Charges Summary'!D$4 -> 0 | L118: =E118/'Charges Summary'!E$4 -> 0 | M118: =F118/'Charges Summary'!F$4 -> 0 | N118: =G118/'Charges Summary'!G$4 -> 0 | O118: =H118/'Charges Summary'!H$4 -> 0
A121: ='DNSP Inputs General'!A$67 -> Energy Efficient Lights
A122: ='DNSP Inputs General'!A68 -> T5 2X14W | D122: =SUM('Charges Summary'!D$85,'Charges Summary'!D$11)*'DNSP Inputs General'!$D68*'DNSP Inputs General'!K68 -> 113123.4371 | E122: =SUM('Charges Summary'!E$85,'Charges Summary'!E$11)*'DNSP Inputs General'!$D68*'DNSP Inputs General'!L68 -> 105952.8675 | F122: =SUM('Charges Summary'!F$85,'Charges Summary'!F$11)*'DNSP Inputs General'!$D68*'DNSP Inputs General'!M68 -> 98323.49129 | G122: =SUM('Charges Summary'!G$85,'Charges Summary'!G$11)*'DNSP Inputs General'!$D68*'DNSP Inputs General'!N68 -> 95020.4951 | H122: =SUM('Charges Summary'!H$85,'Charges Summary'!H$11)*'DNSP Inputs General'!$D68*'DNSP Inputs General'!O68 -> 90534.40936 | K122: =D122/'Charges Summary'!D$4 -> 110256.7613 | L122: =E122/'Charges Summary'!E$4 -> 100650.9767 | M122: =F122/'Charges Summary'!F$4 -> 91036.42797 | N122: =G122/'Charges Summary'!G$4 -> 85748.75948 | O122: =H122/'Charges Summary'!H$4 -> 79630.02806
A123: ='DNSP Inputs General'!A69 -> T5 2X24W | D123: =SUM('Charges Summary'!D$85,'Charges Summary'!D$11)*'DNSP Inputs General'!$D69*'DNSP Inputs General'!K69 -> 19763.69491 | E123: =SUM('Charges Summary'!E$85,'Charges Summary'!E$11)*'DNSP Inputs General'!$D69*'DNSP Inputs General'!L69 -> 18510.93108 | F123: =SUM('Charges Summary'!F$85,'Charges Summary'!F$11)*'DNSP Inputs General'!$D69*'DNSP Inputs General'!M69 -> 17178.00956 | G123: =SUM('Charges Summary'!G$85,'Charges Summary'!G$11)*'DNSP Inputs General'!$D69*'DNSP Inputs General'!N69 -> 16600.94604 | H123: =SUM('Charges Summary'!H$85,'Charges Summary'!H$11)*'DNSP Inputs General'!$D69*'DNSP Inputs General'!O69 -> 15817.18599 | K123: =D123/'Charges Summary'!D$4 -> 19262.86053 | L123: =E123/'Charges Summary'!E$4 -> 17584.64245 | M123: =F123/'Charges Summary'!F$4 -> 15904.89322 | N123: =G123/'Charges Summary'!G$4 -> 14981.08937 | O123: =H123/'Charges Summary'!H$4 -> 13912.09125
A124: ='DNSP Inputs General'!A70 -> CF32 | D124: =SUM('Charges Summary'!D$85,'Charges Summary'!D$11)*'DNSP Inputs General'!$D70*'DNSP Inputs General'!K70 -> 2912.339301 | E124: =SUM('Charges Summary'!E$85,'Charges Summary'!E$11)*'DNSP Inputs General'!$D70*'DNSP Inputs General'!L70 -> 2727.734482 | F124: =SUM('Charges Summary'!F$85,'Charges Summary'!F$11)*'DNSP Inputs General'!$D70*'DNSP Inputs General'!M70 -> 2531.317782 | G124: =SUM('Charges Summary'!G$85,'Charges Summary'!G$11)*'DNSP Inputs General'!$D70*'DNSP Inputs General'!N70 -> 2446.282834 | H124: =SUM('Charges Summary'!H$85,'Charges Summary'!H$11)*'DNSP Inputs General'!$D70*'DNSP Inputs General'!O70 -> 2330.789492 | K124: =D124/'Charges Summary'!D$4 -> 2838.53733 | L124: =E124/'Charges Summary'!E$4 -> 2591.238407 | M124: =F124/'Charges Summary'!F$4 -> 2343.713856 | N124: =G124/'Charges Summary'!G$4 -> 2207.583933 | O124: =H124/'Charges Summary'!H$4 -> 2050.058469
A125: ='DNSP Inputs General'!A71 -> CF42 | D125: =SUM('Charges Summary'!D$85,'Charges Summary'!D$11)*'DNSP Inputs General'!$D71*'DNSP Inputs General'!K71 -> 910.3015431 | E125: =SUM('Charges Summary'!E$85,'Charges Summary'!E$11)*'DNSP Inputs General'!$D71*'DNSP Inputs General'!L71 -> 852.6001442 | F125: =SUM('Charges Summary'!F$85,'Charges Summary'!F$11)*'DNSP Inputs General'!$D71*'DNSP Inputs General'!M71 -> 791.2067396 | G125: =SUM('Charges Summary'!G$85,'Charges Summary'!G$11)*'DNSP Inputs General'!$D71*'DNSP Inputs General'!N71 -> 764.6276097 | H125: =SUM('Charges Summary'!H$85,'Charges Summary'!H$11)*'DNSP Inputs General'!$D71*'DNSP Inputs General'!O71 -> 728.528187 | K125: =D125/'Charges Summary'!D$4 -> 887.2334728 | L125: =E125/'Charges Summary'!E$4 -> 809.9359576 | M125: =F125/'Charges Summary'!F$4 -> 732.5679186 | N125: =G125/'Charges Summary'!G$4 -> 690.018179 | O125: =H125/'Charges Summary'!H$4 -> 640.7808963
A126: ='DNSP Inputs General'!A72 -> Category P LED 18 Watt | D126: =SUM('Charges Summary'!D$103,'Charges Summary'!D$11)*'DNSP Inputs General'!$D72*'DNSP Inputs General'!K72 -> 9887.297654 | E126: =SUM('Charges Summary'!E$103,'Charges Summary'!E$11)*'DNSP Inputs General'!$D72*'DNSP Inputs General'!L72 -> 24990.24054 | F126: =SUM('Charges Summary'!F$103,'Charges Summary'!F$11)*'DNSP Inputs General'!$D72*'DNSP Inputs General'!M72 -> 40459.15274 | G126: =SUM('Charges Summary'!G$103,'Charges Summary'!G$11)*'DNSP Inputs General'!$D72*'DNSP Inputs General'!N72 -> 50480.14261 | H126: =SUM('Charges Summary'!H$103,'Charges Summary'!H$11)*'DNSP Inputs General'!$D72*'DNSP Inputs General'!O72 -> 62088.46083 | K126: =D126/'Charges Summary'!D$4 -> 9636.742353 | L126: =E126/'Charges Summary'!E$4 -> 23739.7267 | M126: =F126/'Charges Summary'!F$4 -> 37460.59762 | N126: =G126/'Charges Summary'!G$4 -> 45554.48382 | O126: =H126/'Charges Summary'!H$4 -> 54610.24061
A127: ='DNSP Inputs General'!A73 -> Category P LED 47 Watt | D127: =SUM('Charges Summary'!D$103,'Charges Summary'!D$11)*'DNSP Inputs General'!$D73*'DNSP Inputs General'!K73 -> 143.1653201 | E127: =SUM('Charges Summary'!E$103,'Charges Summary'!E$11)*'DNSP Inputs General'!$D73*'DNSP Inputs General'!L73 -> 136.7463029 | F127: =SUM('Charges Summary'!F$103,'Charges Summary'!F$11)*'DNSP Inputs General'!$D73*'DNSP Inputs General'!M73 -> 136.4853982 | G127: =SUM('Charges Summary'!G$103,'Charges Summary'!G$11)*'DNSP Inputs General'!$D73*'DNSP Inputs General'!N73 -> 141.9086061 | H127: =SUM('Charges Summary'!H$103,'Charges Summary'!H$11)*'DNSP Inputs General'!$D73*'DNSP Inputs General'!O73 -> 145.4513676 | K127: =D127/'Charges Summary'!D$4 -> 139.537349 | L127: =E127/'Charges Summary'!E$4 -> 129.9035059 | M127: =F127/'Charges Summary'!F$4 -> 126.3700359 | N127: =G127/'Charges Summary'!G$4 -> 128.0617084 | O127: =H127/'Charges Summary'!H$4 -> 127.9325349
A131: Total Capital Charge | D131: =SUM(D97:D130) -> 928063.2356 | E131: =SUM(E97:E130) -> 891474.1046 | F131: =SUM(F97:F130) -> 862250.2768 | G131: =SUM(G97:G130) -> 849081.8776 | H131: =SUM(H97:H130) -> 836684.0583 | K131: =SUM(K97:K130) -> 904545.0639 | L131: =SUM(L97:L130) -> 846864.6617 | M131: =SUM(M97:M130) -> 798346.1957 | N131: =SUM(N97:N130) -> 766231.7232 | O131: =SUM(O97:O130) -> 735909.9762
A133: Check | C133: =SUM(D133:O133) -> 8.847564459e-09 | D133: =ABS(D39-SUM(D85,D131)) -> 9.313225746e-10 | E133: =ABS(E39-SUM(E85,E131)) -> 0 | F133: =ABS(F39-SUM(F85,F131)) -> 4.656612873e-10 | G133: =ABS(G39-SUM(G85,G131)) -> 2.328306437e-09 | H133: =ABS(H39-SUM(H85,H131)) -> 4.656612873e-10 | K133: =ABS(K39-SUM(K85,K131)) -> 1.396983862e-09 | L133: =ABS(L39-SUM(L85,L131)) -> 9.313225746e-10 | M133: =ABS(M39-SUM(M85,M131)) -> 9.313225746e-10 | N133: =ABS(N39-SUM(N85,N131)) -> 4.656612873e-10 | O133: =ABS(O39-SUM(O85,O131)) -> 9.313225746e-10
A135: Public Lighting - Capital Expenditure | D135: Forecast Capital Expenditure - Nominal | K135: Forecast Capital Expenditure - Real 2015 $
D136: =D$2 -> 2016 | E136: 2017 | F136: 2018 | G136: 2019 | H136: 2020 | K136: =K$2 -> 2016 | L136: 2017 | M136: 2018 | N136: 2019 | O136: 2020
A138: Total Capital Expenditure | D138: =K138*'Charges Summary'!D$4 -> 84106.87974 | E138: =L138*'Charges Summary'!E$4 -> -38180.00725 | F138: =M138*'Charges Summary'!F$4 -> 196754.4551 | G138: =N138*'Charges Summary'!G$4 -> 209306.8855 | H138: =O138*'Charges Summary'!H$4 -> 221292.7922 | K138: ='DNSP Inputs General'!K14 -> 81975.51631 | L138: ='DNSP Inputs General'!L14 -> -36269.47631 | M138: ='DNSP Inputs General'!M14 -> 182172.3633 | N138: ='DNSP Inputs General'!N14 -> 188883.5221 | O138: ='DNSP Inputs General'!O14 -> 194639.269
A139: Check | C139: =SUM(D139:H139) -> 6.548361853e-11 | D139: =ABS(D138-D146) -> 0 | E139: =ABS(E138-E146) -> 7.275957614e-12 | F139: =ABS(F138-F146) -> 2.910383046e-11 | G139: =ABS(G138-G146) -> 2.910383046e-11 | H139: =ABS(H138-H146) -> 0
A142: Public Lighting - RAB | D142: RAB - Historical Cost ($)
D143: =D$2 -> 2016 | E143: 2017 | F143: 2018 | G143: 2019 | H143: 2020
A145: Opening RAB | D145: ='Total RAB'!N139 -> 5635382.439 | E145: =D148 -> 5251608.992 | F145: =E148 -> 4744480.187 | G145: 4468404.347 | H145: 4194815.527
A146: Capex | D146: ='Total RAB'!N140 -> 84106.87974 | E146: ='Total RAB'!O140 -> -38180.00725 | F146: ='Total RAB'!P140 -> 196754.4551 | G146: ='Total RAB'!Q140 -> 209306.8855 | H146: ='Total RAB'!R140 -> 221292.7922
A147: Depreciation | D147: ='Total RAB'!N141 -> 467880.3267 | E147: ='Total RAB'!O141 -> 468948.7977 | F147: ='Total RAB'!P141 -> 472830.2951 | G147: ='Total RAB'!Q141 -> 482895.7051 | H147: ='Total RAB'!R141 -> 493571.1803
A148: Closing RAB | D148: =D145+D146-D147 -> 5251608.992 | E148: =E145+E146-E147 -> 4744480.187 | F148: =F145+F146-F147 -> 4468404.347 | G148: =G145+G146-G147 -> 4194815.527 | H148: =H145+H146-H147 -> 3922537.139
A150: Average RAB | D150: =SUM(D145,D148)/2 -> 5443495.715 | E150: =SUM(E145,E148)/2 -> 4998044.589 | F150: =SUM(F145,F148)/2 -> 4606442.267 | G150: =SUM(G145,G148)/2 -> 4331609.937 | H150: =SUM(H145,H148)/2 -> 4058676.333
A152: =WACC!A$8 -> Nominal Pre Tax WACC | D152: =WACC!E$8 -> 0.08453812274 | E152: =WACC!F$8 -> 0.08453812274 | F152: =WACC!G$8 -> 0.08453812274 | G152: =WACC!H$8 -> 0.08453812274 | H152: =WACC!I$8 -> 0.08453812274
A154: Capital Charge | D154: Capital Charge - Nominal
D155: =D$2 -> 2016 | E155: 2017 | F155: 2018 | G155: 2019 | H155: 2020
A157: Depreciation | D157: =D147 -> 467880.3267 | E157: =E147 -> 468948.7977 | F157: =F147 -> 472830.2951 | G157: =G147 -> 482895.7051 | H157: =H147 -> 493571.1803
A158: Return | D158: =D152*D150 -> 460182.9089 | E158: =E152*E150 -> 422525.3069 | F158: =F152*F150 -> 389419.9817 | G158: =G152*G150 -> 366186.1725 | H158: =H152*H150 -> 343112.878
D160: =SUM(D157:D159) -> 928063.2356 | E160: =SUM(E157:E159) -> 891474.1046 | F160: =SUM(F157:F159) -> 862250.2768 | G160: =SUM(G157:G159) -> 849081.8776 | H160: =SUM(H157:H159) -> 836684.0583
A162: Check | C162: =SUM(D162:H162) -> 1.047737896e-09 | D162: =ABS(D131-D160)*IF('DNSP Inputs General'!K76=0,0,1) -> 3.492459655e-10 | E162: =ABS(E131-E160)*IF('DNSP Inputs General'!L76=0,0,1) -> 2.328306437e-10 | F162: =ABS(F131-F160)*IF('DNSP Inputs General'!M76=0,0,1) -> 0 | G162: =ABS(G131-G160)*IF('DNSP Inputs General'!N76=0,0,1) -> 3.492459655e-10 | H162: =ABS(H131-H160)*IF('DNSP Inputs General'!O76=0,0,1) -> 1.164153218e-10

Sheet Charges Summary
A1: ='DNSP Inputs O & M'!$A$3 -> CitiPower | D1: ='DNSP Inputs General'!K$2 -> 2016 | E1: ='DNSP Inputs General'!L$2 -> 2017 | F1: ='DNSP Inputs General'!M$2 -> 2018 | G1: ='DNSP Inputs General'!N$2 -> 2019 | H1: ='DNSP Inputs General'!O$2 -> 2020
A2: Nominal $
A4: ='Total RAB'!A20 -> CPI Index | D4: =(1+WACC!E6) -> 1.026 | E4: =D4*(1+WACC!F6) -> 1.052676 | F4: =E4*(1+WACC!G6) -> 1.080045576 | G4: =F4*(1+WACC!H6) -> 1.108126761 | H4: =G4*(1+WACC!I6) -> 1.136938057
A6: ='DNSP Inputs General'!$A$6 -> Poles and Brackets | D6: ='DNSP Inputs General'!K$2 -> 2016 | E6: ='DNSP Inputs General'!L$2 -> 2017 | F6: ='DNSP Inputs General'!M$2 -> 2018 | G6: ='DNSP Inputs General'!N$2 -> 2019 | H6: ='DNSP Inputs General'!O$2 -> 2020
A7: O & M
A8: ='O & M 2016-2020'!A$10 -> Dedicated poles - inspection | D8: ='O & M 2016-2020'!$B$10*D$4 -> 0 | E8: ='O & M 2016-2020'!$J$10*E$4 -> 0 | F8: ='O & M 2016-2020'!$R$10*F$4 -> 0 | G8: ='O & M 2016-2020'!$Z$10*G$4 -> 0 | H8: ='O & M 2016-2020'!$AH$10*H$4 -> 0
A10: Capital Charge
A11: Depreciation and Return | D11: ='Depn & WACC Post 2004'!H$81 -> 0.7146393313 | E11: ='Depn & WACC Post 2004'!H$131 -> 0.7139766524 | F11: ='Depn & WACC Post 2004'!H$181 -> 0.6992953669 | G11: ='Depn & WACC Post 2004'!H$231 -> 0.6958961177 | H11: ='Depn & WACC Post 2004'!H$281 -> 0.6878092611
A13: Total Charge | D13: =SUM(D8,D11) -> 0.7146393313 | E13: =SUM(E8,E11) -> 0.7139766524 | F13: =SUM(F8,F11) -> 0.6992953669 | G13: =SUM(G8,G11) -> 0.6958961177 | H13: =SUM(H8,H11) -> 0.6878092611
A18: ='DNSP Inputs General'!$A$8 -> Existing Lights
A20: ='O & M 2016-2020'!$A$8 -> MV80 | D20: =D$1 -> 2016 | E20: =E$1 -> 2017 | F20: 2018 | G20: 2019 | H20: 2020
A22: O & M Charge
A23: ='O & M 2016-2020'!A$9 -> Bulk change & repairs | D23: ='O & M 2016-2020'!$B$9*D$4 -> 40.04851659 | E23: ='O & M 2016-2020'!$J$9*E$4 -> 41.74440833 | F23: ='O & M 2016-2020'!$R$9*F$4 -> 43.1144682 | G23: ='O & M 2016-2020'!$Z$9*G$4 -> 44.83645315 | H23: ='O & M 2016-2020'!$AH$9*H$4 -> 46.50599717
A24: ='O & M 2016-2020'!A$11 -> Other costs | D24: ='O & M 2016-2020'!$B$11*D$4 -> 4.277089403 | E24: ='O & M 2016-2020'!$J$11*E$4 -> 4.539296189 | F24: ='O & M 2016-2020'!$R$11*F$4 -> 4.720596445 | G24: ='O & M 2016-2020'!$Z$11*G$4 -> 4.990470157 | H24: ='O & M 2016-2020'!$AH$11*H$4 -> 5.239040671
D25: =SUM(D23:D24) -> 44.32560599 | E25: =SUM(E23:E24) -> 46.28370452 | F25: =SUM(F23:F24) -> 47.83506464 | G25: =SUM(G23:G24) -> 49.8269233 | H25: =SUM(H23:H24) -> 51.74503784
A26: Capital Charge
A27: Depreciation and Return | D27: ='Depn & WACC Post 2004'!H$40 -> 25.5591278 | E27: ='Depn & WACC Post 2004'!H$90 -> 25.78384325 | F27: ='Depn & WACC Post 2004'!H$140 -> 24.70994127 | G27: ='Depn & WACC Post 2004'!H$190 -> 24.15174821 | H27: ='Depn & WACC Post 2004'!H$240 -> 23.56751244
A29: Poles & Brackets Charge | D29: =D$13 -> 0.7146393313 | E29: =E$13 -> 0.7139766524 | F29: =F$13 -> 0.6992953669 | G29: =G$13 -> 0.6958961177 | H29: =H$13 -> 0.6878092611
A31: Total Charge | D31: =SUM(D25,D27,D29) -> 70.59937312 | E31: =SUM(E25,E27,E29) -> 72.78152442 | F31: =SUM(F25,F27,F29) -> 73.24430128 | G31: =SUM(G25,G27,G29) -> 74.67456763 | H31: =SUM(H25,H27,H29) -> 76.00035954
A33: WDV RAB - MV 80 Luminair
A34: RAB WDV | D34: =MAX(0,'Depn & WACC Post 2004'!$I$8) -> 145.9247684 | E34: =MAX(0,'Depn & WACC Post 2004'!I$40) -> 137.1273855 | F34: =MAX(0,'Depn & WACC Post 2004'!I$90) -> 127.6098359 | G34: =MAX(0,'Depn & WACC Post 2004'!I$140) -> 118.029023 | H34: =MAX(0,'Depn & WACC Post 2004'!I$190) -> 108.2246119
A36: Avoided Costs - MV 80 O & M
A37: Materials & labour - bulk lamp change | D37: ='O & M 2016-2020'!$G$9*D$4 -> -27.28332334 | E37: ='O & M 2016-2020'!$O$9*E$4 -> -28.33439843 | F37: ='O & M 2016-2020'!$W$9*F$4 -> -29.40810359 | G37: ='O & M 2016-2020'!$AE$9*G$4 -> -30.52338531 | H37: ='O & M 2016-2020'!$AM$9*H$4 -> -31.684386
A38: Materials & Labour - repair of faults | D38: ='O & M 2016-2020'!$G$10*D$4 -> -9.361404037 | E38: ='O & M 2016-2020'!$O$10*E$4 -> -9.783887075 | F38: ='O & M 2016-2020'!$W$10*F$4 -> -10.06905509 | G38: ='O & M 2016-2020'!$AE$10*G$4 -> -10.48602984 | H38: ='O & M 2016-2020'!$AM$10*H$4 -> -10.87038526
D39: =SUM(D37:D38) -> -36.64472738 | E39: =SUM(E37:E38) -> -38.1182855 | F39: =SUM(F37:F38) -> -39.47715868 | G39: =SUM(G37:G38) -> -41.00941515 | H39: =SUM(H37:H38) -> -42.55477126
A44: ='O & M 2016-2020'!$A$14 -> S-HP 150 | D44: =D$1 -> 2016 | E44: =E$1 -> 2017 | F44: 2018 | G44: 2019 | H44: 2020
A46: O & M Charge
A47: ='O & M 2016-2020'!A$15 -> Patrols and repairs | D47: ='O & M 2016-2020'!$B$15*D$4 -> 79.36478436 | E47: ='O & M 2016-2020'!$J$15*E$4 -> 82.64635414 | F47: ='O & M 2016-2020'!$R$15*F$4 -> 85.79573605 | G47: ='O & M 2016-2020'!$Z$15*G$4 -> 89.24826625 | H47: ='O & M 2016-2020'!$AH$15*H$4 -> 92.76285602
A48: ='O & M 2016-2020'!A$17 -> Other costs | D48: ='O & M 2016-2020'!$B$17*D$4 -> 4.277089403 | E48: ='O & M 2016-2020'!$J$17*E$4 -> 4.539296189 | F48: ='O & M 2016-2020'!$R$17*F$4 -> 4.720596445 | G48: ='O & M 2016-2020'!$Z$17*G$4 -> 4.990470157 | H48: ='O & M 2016-2020'!$AH$17*H$4 -> 5.239040671
D49: =SUM(D47:D48) -> 83.64187376 | E49: =SUM(E47:E48) -> 87.18565033 | F49: =SUM(F47:F48) -> 90.51633249 | G49: =SUM(G47:G48) -> 94.2387364 | H49: =SUM(H47:H48) -> 98.00189669
A50: Capital Charge
A51: Depreciation and Return | D51: ='Depn & WACC Post 2004'!H$41 -> 30.06104318 | E51: ='Depn & WACC Post 2004'!H$91 -> 30.3253394 | F51: ='Depn & WACC Post 2004'!H$141 -> 29.06228324 | G51: ='Depn & WACC Post 2004'!H$191 -> 28.40577157 | H51: ='Depn & WACC Post 2004'!H$241 -> 27.7186301
A53: Poles & Brackets Charge | D53: =D$13 -> 0.7146393313 | E53: =E$13 -> 0.7139766524 | F53: =F$13 -> 0.6992953669 | G53: =G$13 -> 0.6958961177 | H53: =H$13 -> 0.6878092611
A55: Total Charge | D55: =SUM(D49,D51,D53) -> 114.4175563 | E55: =SUM(E49,E51,E53) -> 118.2249664 | F55: =SUM(F49,F51,F53) -> 120.2779111 | G55: =SUM(G49,G51,G53) -> 123.3404041 | H55: =SUM(H49,H51,H53) -> 126.4083361
A60: ='O & M 2016-2020'!$A$20 -> S-HP 250 | D60: =D$1 -> 2016 | E60: =E$1 -> 2017 | F60: 2018 | G60: 2019 | H60: 2020
A62: O & M Charge
A63: ='O & M 2016-2020'!A$21 -> Patrols and repairs | D63: ='O & M 2016-2020'!$B$21*D$4 -> 78.85004862 | E63: ='O & M 2016-2020'!$J$21*E$4 -> 82.1077742 | F63: ='O & M 2016-2020'!$R$21*F$4 -> 85.24077296 | G63: ='O & M 2016-2020'!$Z$21*G$4 -> 88.66968318 | H63: ='O & M 2016-2020'!$AH$21*H$4 -> 92.16276768
A64: ='O & M 2016-2020'!A$23 -> Other costs | D64: ='O & M 2016-2020'!$B$23*D$4 -> 4.277089403 | E64: ='O & M 2016-2020'!$J$23*E$4 -> 4.539296189 | F64: ='O & M 2016-2020'!$R$23*F$4 -> 4.720596445 | G64: ='O & M 2016-2020'!$Z$23*G$4 -> 4.990470157 | H64: ='O & M 2016-2020'!$AH$23*H$4 -> 5.239040671
D65: =SUM(D63:D64) -> 83.12713803 | E65: =SUM(E63:E64) -> 86.64707039 | F65: =SUM(F63:F64) -> 89.96136941 | G65: =SUM(G63:G64) -> 93.66015334 | H65: =SUM(H63:H64) -> 97.40180835
A66: Capital Charge
A67: Depreciation and Return | D67: ='Depn & WACC Post 2004'!H$42 -> 31.27370182 | E67: ='Depn & WACC Post 2004'!H$92 -> 31.54865971 | F67: ='Depn & WACC Post 2004'!H$142 -> 30.23465203 | G67: ='Depn & WACC Post 2004'!H$192 -> 29.55165676 | H67: ='Depn & WACC Post 2004'!H$242 -> 28.8367961
A69: Poles & Brackets Charge | D69: =D$13 -> 0.7146393313 | E69: =E$13 -> 0.7139766524 | F69: =F$13 -> 0.6992953669 | G69: =G$13 -> 0.6958961177 | H69: =H$13 -> 0.6878092611
A71: Total Charge | D71: =SUM(D65,D67,D69) -> 115.1154792 | E71: =SUM(E65,E67,E69) -> 118.9097068 | F71: =SUM(F65,F67,F69) -> 120.8953168 | G71: =SUM(G65,G67,G69) -> 123.9077062 | H71: =SUM(H65,H67,H69) -> 126.9264137
A76: ='DNSP Inputs General'!$A$11 -> Energy Efficient Lights
A78: ='O & M 2016-2020'!$A$26 -> T5 2X14W | D78: =D$1 -> 2016 | E78: =E$1 -> 2017 | F78: 2018 | G78: 2019 | H78: 2020
A80: O & M Charge
A81: ='O & M 2016-2020'!A$27 -> Bulk change & repairs | D81: ='O & M 2016-2020'!$B$27*D$4 -> 36.97219667 | E81: ='O & M 2016-2020'!$J$27*E$4 -> 38.54260909 | F81: ='O & M 2016-2020'!$R$27*F$4 -> 39.81842232 | G81: ='O & M 2016-2020'!$Z$27*G$4 -> 41.4152246 | H81: ='O & M 2016-2020'!$AH$27*H$4 -> 42.96576842
A82: ='O & M 2016-2020'!A$29 -> Other costs | D82: ='O & M 2016-2020'!$B$29*D$4 -> 4.277089403 | E82: ='O & M 2016-2020'!$J$29*E$4 -> 4.539296189 | F82: ='O & M 2016-2020'!$R$29*F$4 -> 4.720596445 | G82: ='O & M 2016-2020'!$Z$29*G$4 -> 4.990470157 | H82: ='O & M 2016-2020'!$AH$29*H$4 -> 5.239040671
D83: =SUM(D81:D82) -> 41.24928607 | E83: =SUM(E81:E82) -> 43.08190528 | F83: =SUM(F81:F82) -> 44.53901877 | G83: =SUM(G81:G82) -> 46.40569475 | H83: =SUM(H81:H82) -> 48.20480909
A84: Capital Charge
A85: Depreciation and Return | D85: ='Depn & WACC Post 2004'!$H$69 -> 7.522825932 | E85: ='Depn & WACC Post 2004'!$H$119 -> 7.158794788 | F85: ='Depn & WACC Post 2004'!$H$169 -> 7.156483881 | G85: ='Depn & WACC Post 2004'!$H$219 -> 7.467414469 | H85: ='Depn & WACC Post 2004'!$H$269 -> 7.675530789
A87: Poles & Brackets Charge | D87: =D$13 -> 0.7146393313 | E87: =E$13 -> 0.7139766524 | F87: =F$13 -> 0.6992953669 | G87: =G$13 -> 0.6958961177 | H87: =H$13 -> 0.6878092611
A89: Total Charge | D89: =SUM(D83,D85,D87) -> 49.48675133 | E89: =SUM(E83,E85,E87) -> 50.95467672 | F89: =SUM(F83,F85,F87) -> 52.39479801 | G89: =SUM(G83,G85,G87) -> 54.56900534 | H89: =SUM(H83,H85,H87) -> 56.56814914
A94: ='DNSP Inputs General'!$A$11 -> Energy Efficient Lights
A96: ='O & M 2016-2020'!$A$32 -> Category P LED 18 Watt | D96: =D$1 -> 2016 | E96: =E$1 -> 2017 | F96: 2018 | G96: 2019 | H96: 2020
A98: O & M Charge
A99: ='O & M 2016-2020'!A$27 -> Bulk change & repairs | D99: ='O & M 2016-2020'!B$33*D$4 -> 22.03496528 | E99: ='O & M 2016-2020'!$J$33*E$4 -> 23.03311447 | F99: ='O & M 2016-2020'!$R$33*F$4 -> 23.70048501 | G99: ='O & M 2016-2020'!$Z$33*G$4 -> 24.68304917 | H99: ='O & M 2016-2020'!$AH$33*H$4 -> 25.58733184
A100: ='O & M 2016-2020'!A$29 -> Other costs | D100: ='O & M 2016-2020'!$B$35*D$4 -> 4.277089403 | E100: ='O & M 2016-2020'!$J$35*E$4 -> 4.539296189 | F100: ='O & M 2016-2020'!$R$35*F$4 -> 4.720596445 | G100: ='O & M 2016-2020'!$Z$35*G$4 -> 4.990470157 | H100: ='O & M 2016-2020'!$AH$35*H$4 -> 5.239040671
D101: =SUM(D99:D100) -> 26.31205469 | E101: =SUM(E99:E100) -> 27.57241066 | F101: =SUM(F99:F100) -> 28.42108145 | G101: =SUM(G99:G100) -> 29.67351933 | H101: =SUM(H99:H100) -> 30.82637251
A102: Capital Charge
A103: Depreciation and Return | D103: ='Depn & WACC Post 2004'!$H$73 -> 8.829715343 | E103: ='Depn & WACC Post 2004'!$H$123 -> 8.402443543 | F103: ='Depn & WACC Post 2004'!$H$173 -> 8.399731178 | G103: ='Depn & WACC Post 2004'!$H$223 -> 8.764677623 | H103: ='Depn & WACC Post 2004'!$H$273 -> 9.008948577
A105: Poles & Brackets Charge | D105: =D$13 -> 0.7146393313 | E105: =E$13 -> 0.7139766524 | F105: =F$13 -> 0.6992953669 | G105: =G$13 -> 0.6958961177 | H105: =H$13 -> 0.6878092611
A107: Total Charge | D107: =SUM(D101,D103,D105) -> 35.85640936 | E107: =SUM(E101,E103,E105) -> 36.68883085 | F107: =SUM(F101,F103,F105) -> 37.520108 | G107: =SUM(G101,G103,G105) -> 39.13409307 | H107: =SUM(H101,H103,H105) -> 40.52313035

Sheet O & M 2016-2020
A1: ='DNSP Inputs O & M'!$A$3 -> CitiPower
A3: Public Lighting O & M Costs | B3: Year | C3: 2016 | J3: Year | K3: =C3+1 -> 2017 | R3: Year | S3: =K3+1 -> 2018 | Z3: Year | AA3: =S3+1 -> 2019 | AH3: Year | AI3: =AA3+1 -> 2020
A4: ='DNSP Inputs O & M'!C5 -> Real 2015 $
A6: Summary
A8: =$A$64 -> MV80 | D8: Avoided Costs - MV 80 O & M | L8: Avoided Costs - MV 80 O & M | T8: Avoided Costs - MV 80 O & M | AB8: Avoided Costs - MV 80 O & M | AJ8: Avoided Costs - MV 80 O & M
A9: =$A$65 -> Bulk change & repairs | B9: =G85 -> 39.0336419 | D9: Materials & labour - bulk lamp change | G9: =-(G67+G76)*2 -> -26.59193308 | J9: =O85 -> 39.65551445 | L9: Materials & labour - bulk lamp change | O9: =-(O67+O76)*2 -> -26.91654263 | R9: =W85 -> 39.9191193 | T9: Materials & labour - bulk lamp change | W9: =-(W67+W76)*2 -> -27.2285765 | Z9: =AE85 -> 40.46148394 | AB9: Materials & labour - bulk lamp change | AE9: =-(AE67+AE76)*2 -> -27.5450304 | AH9: =AM85 -> 40.90460064 | AJ9: Materials & labour - bulk lamp change | AM9: =-(AM67+AM76)*2 -> -27.8681726
A10: =A87 -> Dedicated poles - inspection | B10: =G88 -> 0 | D10: Materials & Labour - repair of faults | G10: =-(G71+G79+G81)/2 -> -9.124175475 | J10: =O88 -> 0 | L10: Materials & Labour - repair of faults | O10: =-(O71+O79+O81)/2 -> -9.294300502 | R10: =W88 -> 0 | T10: Materials & Labour - repair of faults | W10: =-(W71+W79+W81)/2 -> -9.322805731 | Z10: =AE88 -> 0 | AB10: Materials & Labour - repair of faults | AE10: =-(AE71+AE79+AE81)/2 -> -9.462843247 | AH10: =AM88 -> 0 | AJ10: Materials & Labour - repair of faults | AM10: =-(AM71+AM79+AM81)/2 -> -9.561105989
A11: Other costs | B11: =IF(C48=0,0,C46/C48) -> 4.168703122 | G11: =SUM(G9:G10) -> -35.71610855 | J11: =IF(K48=0,0,K46/K48) -> 4.312149407 | O11: =SUM(O9:O10) -> -36.21084313 | R11: =IF(S48=0,0,S46/S48) -> 4.370738189 | W11: =SUM(W9:W10) -> -36.55138223 | Z11: =IF(AA48=0,0,AA46/AA48) -> 4.503519212 | AE11: =SUM(AE9:AE10) -> -37.00787364 | AH11: =IF(AI48=0,0,AI46/AI48) -> 4.608026479 | AM11: =SUM(AM9:AM10) -> -37.42927859
A14: =$A$105 -> S-HP 150
A15: =$A$106 -> Patrols and repairs | B15: =G122 -> 77.35359099 | J15: =O122 -> 78.51072328 | R15: =W122 -> 79.43714409 | Z15: =AE122 -> 80.53976259 | AH15: =AM122 -> 81.59007034
A16: =$A$10 -> Dedicated poles - inspection | B16: =B10 -> 0 | J16: =J10 -> 0 | R16: =R10 -> 0 | Z16: =Z10 -> 0 | AH16: =AH10 -> 0
A17: =$A$11 -> Other costs | B17: =B11 -> 4.168703122 | J17: =J11 -> 4.312149407 | R17: =R11 -> 4.370738189 | Z17: =Z11 -> 4.503519212 | AH17: =AH11 -> 4.608026479
A20: =$A$137 -> S-HP 250
A21: =$A$138 -> Patrols and repairs | B21: =G154 -> 76.85189924 | J21: =O154 -> 77.99909393 | R21: =W154 -> 78.92331107 | Z21: =AE154 -> 80.01763544 | AH21: =AM154 -> 81.0622594
A22: =$A$10 -> Dedicated poles - inspection | B22: =B10 -> 0 | J22: =J10 -> 0 | R22: =R10 -> 0 | Z22: =Z10 -> 0 | AH22: =AH10 -> 0
A23: =$A$11 -> Other costs | B23: =B11 -> 4.168703122 | J23: =J11 -> 4.312149407 | R23: =R11 -> 4.370738189 | Z23: =Z11 -> 4.503519212 | AH23: =AH11 -> 4.608026479
A26: =$A$171 -> T5 2X14W
A27: =$A$172 -> Bulk change & repairs | B27: =G192 -> 36.0352794 | J27: =O192 -> 36.61393352 | R27: =W192 -> 36.86735375 | Z27: =AE192 -> 37.37408576 | AH27: =AM192 -> 37.79077335
A28: =$A$10 -> Dedicated poles - inspection | B28: =B10 -> 0 | J28: =J10 -> 0 | R28: =R10 -> 0 | Z28: =Z10 -> 0 | AH28: =AH10 -> 0
A29: =$A$11 -> Other costs | B29: =B11 -> 4.168703122 | J29: =J11 -> 4.312149407 | R29: =R11 -> 4.370738189 | Z29: =Z11 -> 4.503519212 | AH29: =AH11 -> 4.608026479
A32: =$A$208 -> Category P LED 18 Watt
A33: =$A$172 -> Bulk change & repairs | B33: =G229 -> 21.47657435 | J33: =O229 -> 21.88053539 | R33: =W229 -> 21.94396749 | Z33: =AE229 -> 22.27457187 | AH33: =AM229 -> 22.50547573
A34: =$A$10 -> Dedicated poles - inspection | B34: =B10 -> 0 | J34: =J10 -> 0 | R34: =R10 -> 0 | Z34: =Z10 -> 0 | AH34: =AH10 -> 0
A35: =$A$11 -> Other costs | B35: =B11 -> 4.168703122 | J35: =J11 -> 4.312149407 | R35: =R11 -> 4.370738189 | Z35: =Z11 -> 4.503519212 | AH35: =AH11 -> 4.608026479
A39: ='DNSP Inputs O & M'!A100 -> Proportion of lights on dedicated poles | C39: ='DNSP Inputs O & M'!$D$100 -> 0 | K39: ='DNSP Inputs O & M'!$E$100 -> 0 | S39: ='DNSP Inputs O & M'!$F$100 -> 0 | AA39: ='DNSP Inputs O & M'!$G$100 -> 0 | AI39: ='DNSP Inputs O & M'!$H$100 -> 0
A41: ='DNSP Inputs O & M'!A104 -> Other direct costs
A42: ='DNSP Inputs O & M'!$A$105 -> Call centre | C42: ='DNSP Inputs O & M'!$D$108 -> 52373.93799 | K42: ='DNSP Inputs O & M'!$E$108 -> 54153.14244 | S42: ='DNSP Inputs O & M'!$F$108 -> 55992.78856 | AA42: ='DNSP Inputs O & M'!$G$108 -> 57894.92963 | AI42: ='DNSP Inputs O & M'!$H$108 -> 59861.68868
A43: ='DNSP Inputs O & M'!$A$110 -> GIS and other | C43: ='DNSP Inputs O & M'!$D$110 -> 95801.5792 | K43: ='DNSP Inputs O & M'!$E$110 -> 97415.23552 | S43: ='DNSP Inputs O & M'!$F$110 -> 99056.07184 | AA43: ='DNSP Inputs O & M'!$G$110 -> 100724.546 | AI43: ='DNSP Inputs O & M'!$H$110 -> 102421.1234
A44: ='DNSP Inputs O & M'!A111 -> Complaints handling | C44: ='DNSP Inputs O & M'!$D$111 -> 28740.47376 | K44: ='DNSP Inputs O & M'!$E$111 -> 29224.57066 | S44: ='DNSP Inputs O & M'!$F$111 -> 29716.82155 | AA44: ='DNSP Inputs O & M'!$G$111 -> 30217.36379 | AI44: ='DNSP Inputs O & M'!$H$111 -> 30726.33703
A45: Accounts Manager | C45: ='DNSP Inputs O & M'!$D$112 -> 0 | K45: ='DNSP Inputs O & M'!$E$112 -> 0 | S45: ='DNSP Inputs O & M'!$F$112 -> 0 | AA45: ='DNSP Inputs O & M'!$G$112 -> 0 | AI45: ='DNSP Inputs O & M'!$H$112 -> 0
C46: =SUM(C42:C45) -> 176915.991 | K46: =SUM(K42:K45) -> 180792.9486 | S46: =SUM(S42:S45) -> 184765.682 | AA46: =SUM(AA42:AA45) -> 188836.8394 | AI46: =SUM(AI42:AI45) -> 193009.1492
A48: ='DNSP Inputs General'!A76 -> Total Number of Lights | C48: ='DNSP Inputs General'!$K$76 -> 42439.09575 | K48: ='DNSP Inputs General'!$L$76 -> 41926.41107 | S48: ='DNSP Inputs General'!$M$76 -> 42273.33552 | AA48: ='DNSP Inputs General'!$N$76 -> 41930.95011 | AI48: ='DNSP Inputs General'!$O$76 -> 41885.42536
A52: Mercury Vapour 80 Watt Standard Light Type - Cost build-up
A54: Addiitonal assumptions
A55: Proportion of lamps that will fail before bulk change | D55: ='DNSP Inputs O & M'!$D$26 -> 0.2313269938 | L55: ='DNSP Inputs O & M'!$E$26 -> 0.2313269938 | T55: ='DNSP Inputs O & M'!$F$26 -> 0.2313269938 | AB55: ='DNSP Inputs O & M'!$G$26 -> 0.2313269938 | AJ55: ='DNSP Inputs O & M'!$H$26 -> 0.2313269938
A56: Proportion of lamps that will fail before bulk change (per year) | D56: =D55/'DNSP Inputs O & M'!$D$24 -> 0.05783174846 | L56: =L55/'DNSP Inputs O & M'!$E$24 -> 0.05783174846 | T56: =T55/'DNSP Inputs O & M'!$F$24 -> 0.05783174846 | AB56: =AB55/'DNSP Inputs O & M'!$G$24 -> 0.05783174846 | AJ56: =AJ55/'DNSP Inputs O & M'!$H$24 -> 0.05783174846
A57: Overheads are applied to material and labour components
A58: All costs and charges are exclusive of GST
B60: Urban | J60: Urban | R60: Urban | Z60: Urban | AH60: Urban
B62: Unit rate | C62: Number | D62: Hours | E62: Cost | F62: Annualised | G62: Annualised | J62: Unit rate | K62: Number | L62: Hours | M62: Cost | N62: Annualised | O62: Annualised | R62: Unit rate | S62: Number | T62: Hours | U62: Cost | V62: Annualised | W62: Annualised | Z62: Unit rate | AA62: Number | AB62: Hours | AC62: Cost | AD62: Annualised | AE62: Annualised | AH62: Unit rate | AI62: Number | AJ62: Hours | AK62: Cost | AL62: Annualised | AM62: Annualised
F63: cost | G63: unit cost | N63: cost | O63: unit cost | V63: cost | W63: unit cost | AD63: cost | AE63: unit cost | AL63: cost | AM63: unit cost
A64: MV80
A65: Bulk change & repairs
A66: Materials - bulk lamp change
A67: Lamp | B67: ='DNSP Inputs O & M'!$D$27 -> 5.694427666 | C67: ='DNSP Inputs O & M'!$D$33 -> 86.4 | E67: =B67*C67 -> 491.9985503 | F67: =E67/'DNSP Inputs O & M'!$D$24*0.8 -> 98.39971007 | G67: =(F67+F68+F69)/C67 -> 4.26178692 | J67: ='DNSP Inputs O & M'!$E$27 -> 5.694427666 | K67: ='DNSP Inputs O & M'!$E$33 -> 86.4 | M67: =J67*K67 -> 491.9985503 | N67: =M67/'DNSP Inputs O & M'!$E$24*0.8 -> 98.39971007 | O67: =(N67+N68+N69)/K67 -> 4.26178692 | R67: ='DNSP Inputs O & M'!$F$27 -> 5.694427666 | S67: ='DNSP Inputs O & M'!$F$33 -> 86.4 | U67: =R67*S67 -> 491.9985503 | V67: =U67/'DNSP Inputs O & M'!$F$24*0.8 -> 98.39971007 | W67: =(V67+V68+V69)/S67 -> 4.26178692 | Z67: ='DNSP Inputs O & M'!$G$27 -> 5.694427666 | AA67: ='DNSP Inputs O & M'!$G$33 -> 86.4 | AC67: =Z67*AA67 -> 491.9985503 | AD67: =AC67/'DNSP Inputs O & M'!$G$24*0.8 -> 98.39971007 | AE67: =(AD67+AD68+AD69)/AA67 -> 4.26178692 | AH67: ='DNSP Inputs O & M'!$H$27 -> 5.694427666 | AI67: ='DNSP Inputs O & M'!$H$33 -> 86.4 | AK67: =AH67*AI67 -> 491.9985503 | AL67: =AK67/'DNSP Inputs O & M'!$H$24*0.8 -> 98.39971007 | AM67: =(AL67+AL68+AL69)/AI67 -> 4.26178692
A68: PE cell | B68: ='DNSP Inputs O & M'!$D$28 -> 22.98953839 | C68: =C67*'DNSP Inputs O & M'!$D$24/'DNSP Inputs O & M'!$D$25 -> 43.2 | E68: =B68*C68 -> 993.1480584 | F68: =E68/'DNSP Inputs O & M'!$D$24 -> 248.2870146 | J68: ='DNSP Inputs O & M'!$E$28 -> 22.98953839 | K68: =K67*'DNSP Inputs O & M'!$E$24/'DNSP Inputs O & M'!$E$25 -> 43.2 | M68: =J68*K68 -> 993.1480584 | N68: =M68/'DNSP Inputs O & M'!$E$24 -> 248.2870146 | R68: ='DNSP Inputs O & M'!$F$28 -> 22.98953839 | S68: =S67*'DNSP Inputs O & M'!$F$24/'DNSP Inputs O & M'!$F$25 -> 43.2 | U68: =R68*S68 -> 993.1480584 | V68: =U68/'DNSP Inputs O & M'!$F$24 -> 248.2870146 | Z68: ='DNSP Inputs O & M'!$G$28 -> 22.98953839 | AA68: =AA67*'DNSP Inputs O & M'!$G$24/'DNSP Inputs O & M'!$G$25 -> 43.2 | AC68: =Z68*AA68 -> 993.1480584 | AD68: =AC68/'DNSP Inputs O & M'!$G$24 -> 248.2870146 | AH68: ='DNSP Inputs O & M'!$H$28 -> 22.98953839 | AI68: =AI67*'DNSP Inputs O & M'!$H$24/'DNSP Inputs O & M'!$H$25 -> 43.2 | AK68: =AH68*AI68 -> 993.1480584 | AL68: =AK68/'DNSP Inputs O & M'!$H$24 -> 248.2870146
A69: Miscellaneous | B69: ='DNSP Inputs O & M'!$D$30 -> 1.246045441 | C69: ='DNSP Inputs O & M'!$D$33 -> 86.4 | E69: =B69*C69 -> 107.6583261 | F69: =E69/'DNSP Inputs O & M'!$D$24*0.8 -> 21.53166522 | J69: ='DNSP Inputs O & M'!$E$30 -> 1.246045441 | K69: ='DNSP Inputs O & M'!$E$33 -> 86.4 | M69: =J69*K69 -> 107.6583261 | N69: =M69/'DNSP Inputs O & M'!$E$24*0.8 -> 21.53166522 | R69: ='DNSP Inputs O & M'!$F$30 -> 1.246045441 | S69: ='DNSP Inputs O & M'!$F$33 -> 86.4 | U69: =R69*S69 -> 107.6583261 | V69: =U69/'DNSP Inputs O & M'!$F$24*0.8 -> 21.53166522 | Z69: ='DNSP Inputs O & M'!$G$30 -> 1.246045441 | AA69: ='DNSP Inputs O & M'!$G$33 -> 86.4 | AC69: =Z69*AA69 -> 107.6583261 | AD69: =AC69/'DNSP Inputs O & M'!$G$24*0.8 -> 21.53166522 | AH69: ='DNSP Inputs O & M'!$H$30 -> 1.246045441 | AI69: ='DNSP Inputs O & M'!$H$33 -> 86.4 | AK69: =AH69*AI69 -> 107.6583261 | AL69: =AK69/'DNSP Inputs O & M'!$H$24*0.8 -> 21.53166522
A70: Materials - repair of faults
A71: Lamp | B71: ='DNSP Inputs O & M'!$D$27 -> 5.694427666 | C71: ='DNSP Inputs O & M'!$D$34*'DNSP Inputs O & M'!$D$35 -> 17.28 | E71: =B71*C71 -> 98.39971007 | F71: =(E71+E72+E73+E74)/'DNSP Inputs O & M'!$D$34 -> 45.79154694 | G71: =F71*D56 -> 2.648205224 | J71: ='DNSP Inputs O & M'!$E$27 -> 5.694427666 | K71: ='DNSP Inputs O & M'!$E$34*'DNSP Inputs O & M'!$E$35 -> 17.28 | M71: =J71*K71 -> 98.39971007 | N71: =(M71+M72+M73+M74)/'DNSP Inputs O & M'!$E$34 -> 45.79154694 | O71: =N71*L56 -> 2.648205224 | R71: ='DNSP Inputs O & M'!$F$27 -> 5.694427666 | S71: ='DNSP Inputs O & M'!$F$34*'DNSP Inputs O & M'!$F$35 -> 17.28 | U71: =R71*S71 -> 98.39971007 | V71: =(U71+U72+U73+U74)/'DNSP Inputs O & M'!$F$34 -> 45.79154694 | W71: =V71*T56 -> 2.648205224 | Z71: ='DNSP Inputs O & M'!$G$27 -> 5.694427666 | AA71: ='DNSP Inputs O & M'!$G$34*'DNSP Inputs O & M'!$G$35 -> 17.28 | AC71: =Z71*AA71 -> 98.39971007 | AD71: =(AC71+AC72+AC73+AC74)/'DNSP Inputs O & M'!$G$34 -> 45.79154694 | AE71: =AD71*AB56 -> 2.648205224 | AH71: ='DNSP Inputs O & M'!$H$27 -> 5.694427666 | AI71: ='DNSP Inputs O & M'!$H$34*'DNSP Inputs O & M'!$H$35 -> 17.28 | AK71: =AH71*AI71 -> 98.39971007 | AL71: =(AK71+AK72+AK73+AK74)/'DNSP Inputs O & M'!$H$34 -> 45.79154694 | AM71: =AL71*AJ56 -> 2.648205224
A72: PE cell | B72: ='DNSP Inputs O & M'!$D$28 -> 22.98953839 | C72: ='DNSP Inputs O & M'!$D$34*'DNSP Inputs O & M'!$D$36 -> 14.4 | E72: =B72*C72 -> 331.0493528 | J72: ='DNSP Inputs O & M'!$E$28 -> 22.98953839 | K72: ='DNSP Inputs O & M'!$E$34*'DNSP Inputs O & M'!$E$36 -> 14.4 | M72: =J72*K72 -> 331.0493528 | R72: ='DNSP Inputs O & M'!$F$28 -> 22.98953839 | S72: ='DNSP Inputs O & M'!$F$34*'DNSP Inputs O & M'!$F$36 -> 14.4 | U72: =R72*S72 -> 331.0493528 | Z72: ='DNSP Inputs O & M'!$G$28 -> 22.98953839 | AA72: ='DNSP Inputs O & M'!$G$34*'DNSP Inputs O & M'!$G$36 -> 14.4 | AC72: =Z72*AA72 -> 331.0493528 | AH72: ='DNSP Inputs O & M'!$H$28 -> 22.98953839 | AI72: ='DNSP Inputs O & M'!$H$34*'DNSP Inputs O & M'!$H$36 -> 14.4 | AK72: =AH72*AI72 -> 331.0493528
A73: Luminaire | B73: ='DNSP Inputs O & M'!$D$29 -> 197.5605047 | C73: ='DNSP Inputs O & M'!$D$34*'DNSP Inputs O & M'!$D$37 -> 4.32 | E73: =B73*C73 -> 853.4613803 | J73: ='DNSP Inputs O & M'!$E$29 -> 197.5605047 | K73: ='DNSP Inputs O & M'!$E$34*'DNSP Inputs O & M'!$E$37 -> 4.32 | M73: =J73*K73 -> 853.4613803 | R73: ='DNSP Inputs O & M'!$F$29 -> 197.5605047 | S73: ='DNSP Inputs O & M'!$F$34*'DNSP Inputs O & M'!$F$37 -> 4.32 | U73: =R73*S73 -> 853.4613803 | Z73: ='DNSP Inputs O & M'!$G$29 -> 197.5605047 | AA73: ='DNSP Inputs O & M'!$G$34*'DNSP Inputs O & M'!$G$37 -> 4.32 | AC73: =Z73*AA73 -> 853.4613803 | AH73: ='DNSP Inputs O & M'!$H$29 -> 197.5605047 | AI73: ='DNSP Inputs O & M'!$H$34*'DNSP Inputs O & M'!$H$37 -> 4.32 | AK73: =AH73*AI73 -> 853.4613803
A74: Miscellaneous | B74: ='DNSP Inputs O & M'!$D$31 -> 12.46045441 | C74: ='DNSP Inputs O & M'!$D$34*'DNSP Inputs O & M'!$D$38 -> 2.88 | E74: =B74*C74 -> 35.8861087 | J74: ='DNSP Inputs O & M'!$E$31 -> 12.46045441 | K74: ='DNSP Inputs O & M'!$E$34*'DNSP Inputs O & M'!$E$38 -> 2.88 | M74: =J74*K74 -> 35.8861087 | R74: ='DNSP Inputs O & M'!$F$31 -> 12.46045441 | S74: ='DNSP Inputs O & M'!$F$34*'DNSP Inputs O & M'!$F$38 -> 2.88 | U74: =R74*S74 -> 35.8861087 | Z74: ='DNSP Inputs O & M'!$G$31 -> 12.46045441 | AA74: ='DNSP Inputs O & M'!$G$34*'DNSP Inputs O & M'!$G$38 -> 2.88 | AC74: =Z74*AA74 -> 35.8861087 | AH74: ='DNSP Inputs O & M'!$H$31 -> 12.46045441 | AI74: ='DNSP Inputs O & M'!$H$34*'DNSP Inputs O & M'!$H$38 -> 2.88 | AK74: =AH74*AI74 -> 35.8861087
A75: Labour - bulk lamp change
A76: Crew costs | B76: ='DNSP Inputs O & M'!$D$11 -> 123.7674125 | C76: ='DNSP Inputs O & M'!$D$32 -> 2 | D76: ='DNSP Inputs O & M'!$D$16 -> 8 | E76: =B76*C76*D76 -> 1980.278601 | F76: =E76/'DNSP Inputs O & M'!$D$24*(C67+C68)/C67*0.8 -> 594.0835802 | G76: =(F76+F77)/C67 -> 9.034179619 | J76: ='DNSP Inputs O & M'!$E$11 -> 125.8521179 | K76: ='DNSP Inputs O & M'!$E$32 -> 2 | L76: ='DNSP Inputs O & M'!$E$16 -> 8 | M76: =J76*K76*L76 -> 2013.633887 | N76: =M76/'DNSP Inputs O & M'!$E$24*(K67+K68)/K67*0.8 -> 604.090166 | O76: =(N76+N77)/K67 -> 9.196484393 | R76: ='DNSP Inputs O & M'!$F$11 -> 127.9719375 | S76: ='DNSP Inputs O & M'!$F$32 -> 2 | T76: ='DNSP Inputs O & M'!$F$16 -> 8 | U76: =R76*S76*T76 -> 2047.551 | V76: =U76/'DNSP Inputs O & M'!$F$24*(S67+S68)/S67*0.8 -> 614.2653001 | W76: =(V76+V77)/S67 -> 9.352501331 | Z76: ='DNSP Inputs O & M'!$G$11 -> 130.1274628 | AA76: ='DNSP Inputs O & M'!$G$32 -> 2 | AB76: ='DNSP Inputs O & M'!$G$16 -> 8 | AC76: =Z76*AA76*AB76 -> 2082.039405 | AD76: =AC76/'DNSP Inputs O & M'!$G$24*(AA67+AA68)/AA67*0.8 -> 624.6118215 | AE76: =(AD76+AD77)/AA67 -> 9.510728278 | AH76: ='DNSP Inputs O & M'!$H$11 -> 132.3192952 | AI76: ='DNSP Inputs O & M'!$H$32 -> 2 | AJ76: ='DNSP Inputs O & M'!$H$16 -> 8 | AK76: =AH76*AI76*AJ76 -> 2117.108723 | AL76: =AK76/'DNSP Inputs O & M'!$H$24*(AI67+AI68)/AI67*0.8 -> 635.1326169 | AM76: =(AL76+AL77)/AI67 -> 9.672299379
A77: Elevated platform costs | B77: ='DNSP Inputs O & M'!$D$13 -> 77.69564122 | C77: 1 | D77: ='DNSP Inputs O & M'!$D$16 -> 8 | E77: =B77*C77*D77 -> 621.5651298 | F77: =E77/'DNSP Inputs O & M'!$D$24*(C67+C68)/C67*0.8 -> 186.4695389 | J77: ='DNSP Inputs O & M'!$E$13 -> 79.36920231 | K77: 1 | L77: ='DNSP Inputs O & M'!$E$16 -> 8 | M77: =J77*K77*L77 -> 634.9536185 | N77: =M77/'DNSP Inputs O & M'!$E$24*(K67+K68)/K67*0.8 -> 190.4860855 | R77: ='DNSP Inputs O & M'!$F$13 -> 80.74617287 | S77: 1 | T77: ='DNSP Inputs O & M'!$F$16 -> 8 | U77: =R77*S77*T77 -> 645.969383 | V77: =U77/'DNSP Inputs O & M'!$F$24*(S67+S68)/S67*0.8 -> 193.7908149 | Z77: ='DNSP Inputs O & M'!$G$13 -> 82.13129241 | AA77: 1 | AB77: ='DNSP Inputs O & M'!$G$16 -> 8 | AC77: =Z77*AA77*AB77 -> 657.0503393 | AD77: =AC77/'DNSP Inputs O & M'!$G$24*(AA67+AA68)/AA67*0.8 -> 197.1151018 | AH77: ='DNSP Inputs O & M'!$H$13 -> 83.56418727 | AI77: 1 | AJ77: ='DNSP Inputs O & M'!$H$16 -> 8 | AK77: =AH77*AI77*AJ77 -> 668.5134982 | AL77: =AK77/'DNSP Inputs O & M'!$H$24*(AI67+AI68)/AI67*0.8 -> 200.5540495
A78: Labour - repair of faults
A79: Crew costs | B79: ='DNSP Inputs O & M'!$D$11 -> 123.7674125 | C79: ='DNSP Inputs O & M'!$D$32 -> 2 | D79: ='DNSP Inputs O & M'!$D$16 -> 8 | E79: =B79*C79*D79 -> 1980.278601 | F79: =(E79+E80)/'DNSP Inputs O & M'!$D$34 -> 90.34179619 | G79: =F79*D56 -> 5.224624033 | J79: ='DNSP Inputs O & M'!$E$11 -> 125.8521179 | K79: ='DNSP Inputs O & M'!$E$32 -> 2 | L79: ='DNSP Inputs O & M'!$E$16 -> 8 | M79: =J79*K79*L79 -> 2013.633887 | N79: =(M79+M80)/'DNSP Inputs O & M'!$E$34 -> 91.96484393 | O79: =N79*L56 -> 5.318487721 | R79: ='DNSP Inputs O & M'!$F$11 -> 127.9719375 | S79: ='DNSP Inputs O & M'!$F$32 -> 2 | T79: ='DNSP Inputs O & M'!$F$16 -> 8 | U79: =R79*S79*T79 -> 2047.551 | V79: =(U79+U80)/'DNSP Inputs O & M'!$F$34 -> 93.52501331 | W79: =V79*T56 -> 5.408715044 | Z79: ='DNSP Inputs O & M'!$G$11 -> 130.1274628 | AA79: ='DNSP Inputs O & M'!$G$32 -> 2 | AB79: ='DNSP Inputs O & M'!$G$16 -> 8 | AC79: =Z79*AA79*AB79 -> 2082.039405 | AD79: =(AC79+AC80)/'DNSP Inputs O & M'!$G$34 -> 95.10728278 | AE79: =AD79*AB56 -> 5.500220454 | AH79: ='DNSP Inputs O & M'!$H$11 -> 132.3192952 | AI79: ='DNSP Inputs O & M'!$H$32 -> 2 | AJ79: ='DNSP Inputs O & M'!$H$16 -> 8 | AK79: =AH79*AI79*AJ79 -> 2117.108723 | AL79: =(AK79+AK80)/'DNSP Inputs O & M'!$H$34 -> 96.72299379 | AM79: =AL79*AJ56 -> 5.593659847
A80: Elevated platform costs | B80: ='DNSP Inputs O & M'!$D$13 -> 77.69564122 | C80: 1 | D80: ='DNSP Inputs O & M'!$D$16 -> 8 | E80: =B80*C80*D80 -> 621.5651298 | J80: ='DNSP Inputs O & M'!$E$13 -> 79.36920231 | K80: 1 | L80: ='DNSP Inputs O & M'!$E$16 -> 8 | M80: =J80*K80*L80 -> 634.9536185 | R80: ='DNSP Inputs O & M'!$F$13 -> 80.74617287 | S80: 1 | T80: ='DNSP Inputs O & M'!$F$16 -> 8 | U80: =R80*S80*T80 -> 645.969383 | Z80: ='DNSP Inputs O & M'!$G$13 -> 82.13129241 | AA80: 1 | AB80: ='DNSP Inputs O & M'!$G$16 -> 8 | AC80: =Z80*AA80*AB80 -> 657.0503393 | AH80: ='DNSP Inputs O & M'!$H$13 -> 83.56418727 | AI80: 1 | AJ80: ='DNSP Inputs O & M'!$H$16 -> 8 | AK80: =AH80*AI80*AJ80 -> 668.5134982
A81: Other Maintenance and Repair costs | G81: ='DNSP Inputs O & M'!$D$45 -> 10.37552169 | O81: ='DNSP Inputs O & M'!$E$45 -> 10.62190806 | W81: ='DNSP Inputs O & M'!$F$45 -> 10.58869119 | AE81: ='DNSP Inputs O & M'!$G$45 -> 10.77726082 | AM81: ='DNSP Inputs O & M'!$H$45 -> 10.88034691
A83: Overheads | B83: ='DNSP Inputs O & M'!$D$17 -> 0.2374223 | G83: =B83*SUM(G67:G81) -> 7.48932441 | J83: ='DNSP Inputs O & M'!$E$17 -> 0.2374223 | O83: =J83*SUM(O67:O81) -> 7.608642133 | R83: ='DNSP Inputs O & M'!$F$17 -> 0.2374223 | W83: =R83*SUM(W67:W81) -> 7.659219588 | Z83: ='DNSP Inputs O & M'!$G$17 -> 0.2374223 | AE83: =Z83*SUM(AE67:AE81) -> 7.763282251 | AH83: ='DNSP Inputs O & M'!$H$17 -> 0.2374223 | AM83: =AH83*SUM(AM67:AM81) -> 7.848302366
G85: =SUM(G67,G71,G76,G79,G81,G83) -> 39.0336419 | O85: =SUM(O67,O71,O76,O79,O81,O83) -> 39.65551445 | W85: =SUM(W67,W71,W76,W79,W81,W83) -> 39.9191193 | AE85: =SUM(AE67,AE71,AE76,AE79,AE81,AE83) -> 40.46148394 | AM85: =SUM(AM67,AM71,AM76,AM79,AM81,AM83) -> 40.90460064
A87: Dedicated poles - inspection
A95: Sodium High Pressure 150 Watt Standard Light Type - Cost build-up
A97: Addiitonal assumptions
A98: Overheads are applied to material and labour components
A99: All costs and charges are exclusive of GST
B101: Urban | J101: Urban | R101: Urban | Z101: Urban | AH101: Urban
B103: Unit rate | C103: Number | D103: Hours | E103: Cost | F103: Annualised | G103: Annualised | J103: Unit rate | K103: Number | L103: Hours | M103: Cost | N103: Annualised | O103: Annualised | R103: Unit rate | S103: Number | T103: Hours | U103: Cost | V103: Annualised | W103: Annualised | Z103: Unit rate | AA103: Number | AB103: Hours | AC103: Cost | AD103: Annualised | AE103: Annualised | AH103: Unit rate | AI103: Number | AJ103: Hours | AK103: Cost | AL103: Annualised | AM103: Annualised
F104: cost | G104: unit cost | N104: cost | O104: unit cost | V104: cost | W104: unit cost | AD104: cost | AE104: unit cost | AL104: cost | AM104: unit cost
A105: S-HP 150
A106: Patrols and repairs
A107: Materials
A108: Lamp | B108: ='DNSP Inputs O & M'!$D$55 -> 41.18180183 | C108: ='DNSP Inputs O & M'!$D$61 -> 19.2 | E108: =B108*C108 -> 790.6905951 | F108: =(E108+E109+E110)/'DNSP Inputs O & M'!$D$61 -> 54.85715055 | G108: =F108/'DNSP Inputs O & M'!$D$53 -> 10.97143011 | J108: ='DNSP Inputs O & M'!$E$55 -> 41.18180183 | K108: ='DNSP Inputs O & M'!$E$61 -> 19.2 | M108: =J108*K108 -> 790.6905951 | N108: =(M108+M109+M110)/'DNSP Inputs O & M'!$E$61 -> 54.85715055 | O108: =N108/'DNSP Inputs O & M'!$E$53 -> 10.97143011 | R108: ='DNSP Inputs O & M'!$F$55 -> 41.18180183 | S108: ='DNSP Inputs O & M'!$F$61 -> 19.2 | U108: =R108*S108 -> 790.6905951 | V108: =(U108+U109+U110)/'DNSP Inputs O & M'!$F$61 -> 54.85715055 | W108: =V108/'DNSP Inputs O & M'!$F$53 -> 10.97143011 | Z108: ='DNSP Inputs O & M'!$G$55 -> 41.18180183 | AA108: ='DNSP Inputs O & M'!$G$61 -> 19.2 | AC108: =Z108*AA108 -> 790.6905951 | AD108: =(AC108+AC109+AC110)/'DNSP Inputs O & M'!$G$61 -> 54.85715055 | AE108: =AD108/'DNSP Inputs O & M'!$G$53 -> 10.97143011 | AH108: ='DNSP Inputs O & M'!$H$55 -> 41.18180183 | AI108: ='DNSP Inputs O & M'!$H$61 -> 19.2 | AK108: =AH108*AI108 -> 790.6905951 | AL108: =(AK108+AK109+AK110)/'DNSP Inputs O & M'!$H$61 -> 54.85715055 | AM108: =AL108/'DNSP Inputs O & M'!$H$53 -> 10.97143011
A109: PE cell | B109: ='DNSP Inputs O & M'!$D$56 -> 22.36651567 | C109: =C108*'DNSP Inputs O & M'!$D$53/'DNSP Inputs O & M'!$D$54 -> 9.6 | E109: =B109*C109 -> 214.7185504 | J109: ='DNSP Inputs O & M'!$E$56 -> 22.36651567 | K109: =K108*'DNSP Inputs O & M'!$E$53/'DNSP Inputs O & M'!$E$54 -> 9.6 | M109: =J109*K109 -> 214.7185504 | R109: ='DNSP Inputs O & M'!$F$56 -> 22.36651567 | S109: =S108*'DNSP Inputs O & M'!$F$53/'DNSP Inputs O & M'!$F$54 -> 9.6 | U109: =R109*S109 -> 214.7185504 | Z109: ='DNSP Inputs O & M'!$G$56 -> 22.36651567 | AA109: =AA108*'DNSP Inputs O & M'!$G$53/'DNSP Inputs O & M'!$G$54 -> 9.6 | AC109: =Z109*AA109 -> 214.7185504 | AH109: ='DNSP Inputs O & M'!$H$56 -> 22.36651567 | AI109: =AI108*'DNSP Inputs O & M'!$H$53/'DNSP Inputs O & M'!$H$54 -> 9.6 | AK109: =AH109*AI109 -> 214.7185504
A110: Miscellaneous | B110: ='DNSP Inputs O & M'!$D$57 -> 2.492090882 | C110: ='DNSP Inputs O & M'!$D$61 -> 19.2 | E110: =B110*C110 -> 47.84814494 | J110: ='DNSP Inputs O & M'!$E$57 -> 2.492090882 | K110: ='DNSP Inputs O & M'!$E$61 -> 19.2 | M110: =J110*K110 -> 47.84814494 | R110: ='DNSP Inputs O & M'!$F$57 -> 2.492090882 | S110: ='DNSP Inputs O & M'!$F$61 -> 19.2 | U110: =R110*S110 -> 47.84814494 | Z110: ='DNSP Inputs O & M'!$G$57 -> 2.492090882 | AA110: ='DNSP Inputs O & M'!$G$61 -> 19.2 | AC110: =Z110*AA110 -> 47.84814494 | AH110: ='DNSP Inputs O & M'!$H$57 -> 2.492090882 | AI110: ='DNSP Inputs O & M'!$H$61 -> 19.2 | AK110: =AH110*AI110 -> 47.84814494
A111: Labour - Patrol
A112: Crew costs | B112: ='DNSP Inputs O & M'!$D$12 -> 145.3495434 | C112: ='DNSP Inputs O & M'!$D$58 -> 2 | D112: ='DNSP Inputs O & M'!$D$16 -> 8 | E112: =B112*C112*D112 -> 2325.592694 | F112: =(E112+E113)/'DNSP Inputs O & M'!$D$60 -> 0.8432174397 | G112: =F112*'DNSP Inputs O & M'!$D$52 -> 2.529652319 | J112: ='DNSP Inputs O & M'!$E$12 -> 147.7977724 | K112: ='DNSP Inputs O & M'!$E$58 -> 2 | L112: ='DNSP Inputs O & M'!$E$16 -> 8 | M112: =J112*K112*L112 -> 2364.764359 | N112: =(M112+M113)/'DNSP Inputs O & M'!$E$60 -> 0.8577398068 | O112: =N112*'DNSP Inputs O & M'!$E$52 -> 2.57321942 | R112: ='DNSP Inputs O & M'!$F$12 -> 150.2872388 | S112: ='DNSP Inputs O & M'!$F$58 -> 2 | T112: ='DNSP Inputs O & M'!$F$16 -> 8 | U112: =R112*S112*T112 -> 2404.595821 | V112: =(U112+U113)/'DNSP Inputs O & M'!$F$60 -> 0.8722224514 | W112: =V112*'DNSP Inputs O & M'!$F$52 -> 2.616667354 | Z112: ='DNSP Inputs O & M'!$G$12 -> 152.8186371 | AA112: ='DNSP Inputs O & M'!$G$58 -> 2 | AB112: ='DNSP Inputs O & M'!$G$16 -> 8 | AC112: =Z112*AA112*AB112 -> 2445.098194 | AD112: =(AC112+AC113)/'DNSP Inputs O & M'!$G$60 -> 0.886935867 | AE112: =AD112*'DNSP Inputs O & M'!$G$52 -> 2.660807601 | AH112: ='DNSP Inputs O & M'!$H$12 -> 155.3926736 | AI112: ='DNSP Inputs O & M'!$H$58 -> 2 | AJ112: ='DNSP Inputs O & M'!$H$16 -> 8 | AK112: =AH112*AI112*AJ112 -> 2486.282777 | AL112: =(AK112+AK113)/'DNSP Inputs O & M'!$H$60 -> 0.901918512 | AM112: =AL112*'DNSP Inputs O & M'!$H$52 -> 2.705755536
A113: Vehicle costs | B113: ='DNSP Inputs O & M'!$D$15 -> 25.50745311 | C113: 1 | D113: ='DNSP Inputs O & M'!$D$16 -> 8 | E113: =B113*C113*D113 -> 204.0596249 | J113: ='DNSP Inputs O & M'!$E$15 -> 26.05688266 | K113: 1 | L113: ='DNSP Inputs O & M'!$E$16 -> 8 | M113: =J113*K113*L113 -> 208.4550612 | R113: ='DNSP Inputs O & M'!$F$15 -> 26.50894163 | S113: 1 | T113: ='DNSP Inputs O & M'!$F$16 -> 8 | U113: =R113*S113*T113 -> 212.0715331 | Z113: ='DNSP Inputs O & M'!$G$15 -> 26.96367591 | AA113: 1 | AB113: ='DNSP Inputs O & M'!$G$16 -> 8 | AC113: =Z113*AA113*AB113 -> 215.7094073 | AH113: ='DNSP Inputs O & M'!$H$15 -> 27.43409482 | AI113: 1 | AJ113: ='DNSP Inputs O & M'!$H$16 -> 8 | AK113: =AH113*AI113*AJ113 -> 219.4727586
A114: Labour - Repair of faults
A115: Crew costs | B115: ='DNSP Inputs O & M'!$D$11 -> 123.7674125 | C115: ='DNSP Inputs O & M'!$D$59 -> 2 | D115: ='DNSP Inputs O & M'!$D$16 -> 8 | E115: =B115*C115*D115 -> 1980.278601 | F115: =(E115+E116)/'DNSP Inputs O & M'!$D$61*(C108+C109)/C108 -> 190.6801754 | G115: =F115/'DNSP Inputs O & M'!$D$53 -> 38.13603508 | J115: ='DNSP Inputs O & M'!$E$11 -> 125.8521179 | K115: ='DNSP Inputs O & M'!$E$59 -> 2 | L115: ='DNSP Inputs O & M'!$E$16 -> 8 | M115: =J115*K115*L115 -> 2013.633887 | N115: =(M115+M116)/'DNSP Inputs O & M'!$E$61*(K108+K109)/K108 -> 194.0608691 | O115: =N115/'DNSP Inputs O & M'!$E$53 -> 38.81217382 | R115: ='DNSP Inputs O & M'!$F$11 -> 127.9719375 | S115: ='DNSP Inputs O & M'!$F$59 -> 2 | T115: ='DNSP Inputs O & M'!$F$16 -> 8 | U115: =R115*S115*T115 -> 2047.551 | V115: =(U115+U116)/'DNSP Inputs O & M'!$F$61*(S108+S109)/S108 -> 197.3481425 | W115: =V115/'DNSP Inputs O & M'!$F$53 -> 39.4696285 | Z115: ='DNSP Inputs O & M'!$G$11 -> 130.1274628 | AA115: ='DNSP Inputs O & M'!$G$59 -> 2 | AB115: ='DNSP Inputs O & M'!$G$16 -> 8 | AC115: =Z115*AA115*AB115 -> 2082.039405 | AD115: =(AC115+AC116)/'DNSP Inputs O & M'!$G$61*(AA108+AA109)/AA108 -> 200.6838207 | AE115: =AD115/'DNSP Inputs O & M'!$G$53 -> 40.13676414 | AH115: ='DNSP Inputs O & M'!$H$11 -> 132.3192952 | AI115: ='DNSP Inputs O & M'!$H$59 -> 2 | AJ115: ='DNSP Inputs O & M'!$H$16 -> 8 | AK115: =AH115*AI115*AJ115 -> 2117.108723 | AL115: =(AK115+AK116)/'DNSP Inputs O & M'!$H$61*(AI108+AI109)/AI108 -> 204.0870014 | AM115: =AL115/'DNSP Inputs O & M'!$H$53 -> 40.81740029
A116: Elevated platform vehicle costs | B116: ='DNSP Inputs O & M'!$D$14 -> 57.55345553 | C116: 1 | D116: ='DNSP Inputs O & M'!$D$16 -> 8 | E116: =B116*C116*D116 -> 460.4276442 | J116: ='DNSP Inputs O & M'!$E$14 -> 58.79315472 | K116: 1 | L116: ='DNSP Inputs O & M'!$E$16 -> 8 | M116: =J116*K116*L116 -> 470.3452378 | R116: ='DNSP Inputs O & M'!$F$14 -> 59.81315292 | S116: 1 | T116: ='DNSP Inputs O & M'!$F$16 -> 8 | U116: =R116*S116*T116 -> 478.5052234 | Z116: ='DNSP Inputs O & M'!$G$14 -> 60.83918751 | AA116: 1 | AB116: ='DNSP Inputs O & M'!$G$16 -> 8 | AC116: =Z116*AA116*AB116 -> 486.7135001 | AH116: ='DNSP Inputs O & M'!$H$14 -> 61.90061193 | AI116: 1 | AJ116: ='DNSP Inputs O & M'!$H$16 -> 8 | AK116: =AH116*AI116*AJ116 -> 495.2048955
A118: Other Maintenance and Repair costs | G118: ='DNSP Inputs O & M'!$D$68 -> 10.8747598 | O118: ='DNSP Inputs O & M'!$E$68 -> 11.09016907 | W118: ='DNSP Inputs O & M'!$F$68 -> 11.13793634 | AE118: ='DNSP Inputs O & M'!$G$68 -> 11.31772124 | AM118: ='DNSP Inputs O & M'!$H$68 -> 11.44092399
A120: Overheads | B120: ='DNSP Inputs O & M'!$D$17 -> 0.2374223 | G120: =B120*(G108+G112+G115+G118) -> 14.84171369 | J120: ='DNSP Inputs O & M'!$E$17 -> 0.2374223 | O120: =J120*(O108+O112+O115+O118) -> 15.06373087 | R120: ='DNSP Inputs O & M'!$F$17 -> 0.2374223 | W120: =R120*(W108+W112+W115+W118) -> 15.24148179 | Z120: ='DNSP Inputs O & M'!$G$17 -> 0.2374223 | AE120: =Z120*(AE108+AE112+AE115+AE118) -> 15.4530395 | AH120: ='DNSP Inputs O & M'!$H$17 -> 0.2374223 | AM120: =AH120*(AM108+AM112+AM115+AM118) -> 15.65456042
G122: =SUM(G108,G112,G115,G118,G120) -> 77.35359099 | O122: =SUM(O108,O112,O115,O118,O120) -> 78.51072328 | W122: =SUM(W108,W112,W115,W118,W120) -> 79.43714409 | AE122: =SUM(AE108,AE112,AE115,AE118,AE120) -> 80.53976259 | AM122: =SUM(AM108,AM112,AM115,AM118,AM120) -> 81.59007034
A127: Sodium High Pressure 250 Watt Standard Light Type - Cost build-up
A129: Addiitonal assumptions
A130: Overheads are applied to material and labour components
A131: All costs and charges are exclusive of GST
B133: Urban | J133: Urban | R133: Urban | Z133: Urban | AH133: Urban
B135: Unit rate | C135: Number | D135: Hours | E135: Cost | F135: Annualised | G135: Annualised | J135: Unit rate | K135: Number | L135: Hours | M135: Cost | N135: Annualised | O135: Annualised | R135: Unit rate | S135: Number | T135: Hours | U135: Cost | V135: Annualised | W135: Annualised | Z135: Unit rate | AA135: Number | AB135: Hours | AC135: Cost | AD135: Annualised | AE135: Annualised | AH135: Unit rate | AI135: Number | AJ135: Hours | AK135: Cost | AL135: Annualised | AM135: Annualised
F136: cost | G136: unit cost | N136: cost | O136: unit cost | V136: cost | W136: unit cost | AD136: cost | AE136: unit cost | AL136: cost | AM136: unit cost
A137: S-HP 250
A138: Patrols and repairs
A139: Materials
A140: Lamp | B140: ='DNSP Inputs O & M'!$D$78 -> 41.18180183 | C140: ='DNSP Inputs O & M'!$D$61 -> 19.2 | E140: =B140*C140 -> 790.6905951 | F140: =(E140+E141+E142)/'DNSP Inputs O & M'!$D$61 -> 54.85715055 | G140: =F140/'DNSP Inputs O & M'!$D$53 -> 10.97143011 | J140: ='DNSP Inputs O & M'!$E$78 -> 41.18180183 | K140: ='DNSP Inputs O & M'!$E$61 -> 19.2 | M140: =J140*K140 -> 790.6905951 | N140: =(M140+M141+M142)/'DNSP Inputs O & M'!$E$61 -> 54.85715055 | O140: =N140/'DNSP Inputs O & M'!$E$53 -> 10.97143011 | R140: ='DNSP Inputs O & M'!$F$78 -> 41.18180183 | S140: ='DNSP Inputs O & M'!$F$61 -> 19.2 | U140: =R140*S140 -> 790.6905951 | V140: =(U140+U141+U142)/'DNSP Inputs O & M'!$F$61 -> 54.85715055 | W140: =V140/'DNSP Inputs O & M'!$F$53 -> 10.97143011 | Z140: ='DNSP Inputs O & M'!$G$78 -> 41.18180183 | AA140: ='DNSP Inputs O & M'!$G$61 -> 19.2 | AC140: =Z140*AA140 -> 790.6905951 | AD140: =(AC140+AC141+AC142)/'DNSP Inputs O & M'!$G$61 -> 54.85715055 | AE140: =AD140/'DNSP Inputs O & M'!$G$53 -> 10.97143011 | AH140: ='DNSP Inputs O & M'!$H$78 -> 41.18180183 | AI140: ='DNSP Inputs O & M'!$H$61 -> 19.2 | AK140: =AH140*AI140 -> 790.6905951 | AL140: =(AK140+AK141+AK142)/'DNSP Inputs O & M'!$H$61 -> 54.85715055 | AM140: =AL140/'DNSP Inputs O & M'!$H$53 -> 10.97143011
A141: PE cell | B141: ='DNSP Inputs O & M'!$D$79 -> 22.36651567 | C141: =C140*'DNSP Inputs O & M'!$D$53/'DNSP Inputs O & M'!$D$54 -> 9.6 | E141: =B141*C141 -> 214.7185504 | J141: ='DNSP Inputs O & M'!$E$79 -> 22.36651567 | K141: =K140*'DNSP Inputs O & M'!$E$53/'DNSP Inputs O & M'!$E$54 -> 9.6 | M141: =J141*K141 -> 214.7185504 | R141: ='DNSP Inputs O & M'!$F$79 -> 22.36651567 | S141: =S140*'DNSP Inputs O & M'!$F$53/'DNSP Inputs O & M'!$F$54 -> 9.6 | U141: =R141*S141 -> 214.7185504 | Z141: ='DNSP Inputs O & M'!$G$79 -> 22.36651567 | AA141: =AA140*'DNSP Inputs O & M'!$G$53/'DNSP Inputs O & M'!$G$54 -> 9.6 | AC141: =Z141*AA141 -> 214.7185504 | AH141: ='DNSP Inputs O & M'!$H$79 -> 22.36651567 | AI141: =AI140*'DNSP Inputs O & M'!$H$53/'DNSP Inputs O & M'!$H$54 -> 9.6 | AK141: =AH141*AI141 -> 214.7185504
A142: Miscellaneous | B142: ='DNSP Inputs O & M'!$D$80 -> 2.492090882 | C142: ='DNSP Inputs O & M'!$D$61 -> 19.2 | E142: =B142*C142 -> 47.84814494 | J142: ='DNSP Inputs O & M'!$E$80 -> 2.492090882 | K142: ='DNSP Inputs O & M'!$E$61 -> 19.2 | M142: =J142*K142 -> 47.84814494 | R142: ='DNSP Inputs O & M'!$F$80 -> 2.492090882 | S142: ='DNSP Inputs O & M'!$F$61 -> 19.2 | U142: =R142*S142 -> 47.84814494 | Z142: ='DNSP Inputs O & M'!$G$80 -> 2.492090882 | AA142: ='DNSP Inputs O & M'!$G$61 -> 19.2 | AC142: =Z142*AA142 -> 47.84814494 | AH142: ='DNSP Inputs O & M'!$H$80 -> 2.492090882 | AI142: ='DNSP Inputs O & M'!$H$61 -> 19.2 | AK142: =AH142*AI142 -> 47.84814494
A143: Labour - Patrol
A144: Crew costs | B144: ='DNSP Inputs O & M'!$D$12 -> 145.3495434 | C144: ='DNSP Inputs O & M'!$D$58 -> 2 | D144: ='DNSP Inputs O & M'!$D$16 -> 8 | E144: =B144*C144*D144 -> 2325.592694 | F144: =(E144+E145)/'DNSP Inputs O & M'!$D$60 -> 0.8432174397 | G144: =F144*'DNSP Inputs O & M'!$D$52 -> 2.529652319 | J144: ='DNSP Inputs O & M'!$E$12 -> 147.7977724 | K144: ='DNSP Inputs O & M'!$E$58 -> 2 | L144: ='DNSP Inputs O & M'!$E$16 -> 8 | M144: =J144*K144*L144 -> 2364.764359 | N144: =(M144+M145)/'DNSP Inputs O & M'!$E$60 -> 0.8577398068 | O144: =N144*'DNSP Inputs O & M'!$E$52 -> 2.57321942 | R144: ='DNSP Inputs O & M'!$F$12 -> 150.2872388 | S144: ='DNSP Inputs O & M'!$F$58 -> 2 | T144: ='DNSP Inputs O & M'!$F$16 -> 8 | U144: =R144*S144*T144 -> 2404.595821 | V144: =(U144+U145)/'DNSP Inputs O & M'!$F$60 -> 0.8722224514 | W144: =V144*'DNSP Inputs O & M'!$F$52 -> 2.616667354 | Z144: ='DNSP Inputs O & M'!$G$12 -> 152.8186371 | AA144: ='DNSP Inputs O & M'!$G$58 -> 2 | AB144: ='DNSP Inputs O & M'!$G$16 -> 8 | AC144: =Z144*AA144*AB144 -> 2445.098194 | AD144: =(AC144+AC145)/'DNSP Inputs O & M'!$G$60 -> 0.886935867 | AE144: =AD144*'DNSP Inputs O & M'!$G$52 -> 2.660807601 | AH144: ='DNSP Inputs O & M'!$H$12 -> 155.3926736 | AI144: ='DNSP Inputs O & M'!$H$58 -> 2 | AJ144: ='DNSP Inputs O & M'!$H$16 -> 8 | AK144: =AH144*AI144*AJ144 -> 2486.282777 | AL144: =(AK144+AK145)/'DNSP Inputs O & M'!$H$60 -> 0.901918512 | AM144: =AL144*'DNSP Inputs O & M'!$H$52 -> 2.705755536
A145: Vehicle costs | B145: ='DNSP Inputs O & M'!$D$15 -> 25.50745311 | C145: 1 | D145: ='DNSP Inputs O & M'!$D$16 -> 8 | E145: =B145*C145*D145 -> 204.0596249 | J145: ='DNSP Inputs O & M'!$E$15 -> 26.05688266 | K145: 1 | L145: ='DNSP Inputs O & M'!$E$16 -> 8 | M145: =J145*K145*L145 -> 208.4550612 | R145: ='DNSP Inputs O & M'!$F$15 -> 26.50894163 | S145: 1 | T145: ='DNSP Inputs O & M'!$F$16 -> 8 | U145: =R145*S145*T145 -> 212.0715331 | Z145: ='DNSP Inputs O & M'!$G$15 -> 26.96367591 | AA145: 1 | AB145: ='DNSP Inputs O & M'!$G$16 -> 8 | AC145: =Z145*AA145*AB145 -> 215.7094073 | AH145: ='DNSP Inputs O & M'!$H$15 -> 27.43409482 | AI145: 1 | AJ145: ='DNSP Inputs O & M'!$H$16 -> 8 | AK145: =AH145*AI145*AJ145 -> 219.4727586
A146: Labour - Repair of faults
A147: Crew costs | B147: ='DNSP Inputs O & M'!$D$11 -> 123.7674125 | C147: ='DNSP Inputs O & M'!$D$59 -> 2 | D147: ='DNSP Inputs O & M'!$D$16 -> 8 | E147: =B147*C147*D147 -> 1980.278601 | F147: =(E147+E148)/'DNSP Inputs O & M'!$D$61*(C140+C141)/C140 -> 190.6801754 | G147: =F147/'DNSP Inputs O & M'!$D$53 -> 38.13603508 | J147: ='DNSP Inputs O & M'!$E$11 -> 125.8521179 | K147: ='DNSP Inputs O & M'!$E$59 -> 2 | L147: ='DNSP Inputs O & M'!$E$16 -> 8 | M147: =J147*K147*L147 -> 2013.633887 | N147: =(M147+M148)/'DNSP Inputs O & M'!$E$61*(K140+K141)/K140 -> 194.0608691 | O147: =N147/'DNSP Inputs O & M'!$E$53 -> 38.81217382 | R147: ='DNSP Inputs O & M'!$F$11 -> 127.9719375 | S147: ='DNSP Inputs O & M'!$F$59 -> 2 | T147: ='DNSP Inputs O & M'!$F$16 -> 8 | U147: =R147*S147*T147 -> 2047.551 | V147: =(U147+U148)/'DNSP Inputs O & M'!$F$61*(S140+S141)/S140 -> 197.3481425 | W147: =V147/'DNSP Inputs O & M'!$F$53 -> 39.4696285 | Z147: ='DNSP Inputs O & M'!$G$11 -> 130.1274628 | AA147: ='DNSP Inputs O & M'!$G$59 -> 2 | AB147: ='DNSP Inputs O & M'!$G$16 -> 8 | AC147: =Z147*AA147*AB147 -> 2082.039405 | AD147: =(AC147+AC148)/'DNSP Inputs O & M'!$G$61*(AA140+AA141)/AA140 -> 200.6838207 | AE147: =AD147/'DNSP Inputs O & M'!$G$53 -> 40.13676414 | AH147: ='DNSP Inputs O & M'!$H$11 -> 132.3192952 | AI147: ='DNSP Inputs O & M'!$H$59 -> 2 | AJ147: ='DNSP Inputs O & M'!$H$16 -> 8 | AK147: =AH147*AI147*AJ147 -> 2117.108723 | AL147: =(AK147+AK148)/'DNSP Inputs O & M'!$H$61*(AI140+AI141)/AI140 -> 204.0870014 | AM147: =AL147/'DNSP Inputs O & M'!$H$53 -> 40.81740029
A148: Elevated platform vehicle costs | B148: ='DNSP Inputs O & M'!$D$14 -> 57.55345553 | C148: 1 | D148: ='DNSP Inputs O & M'!$D$16 -> 8 | E148: =B148*C148*D148 -> 460.4276442 | J148: ='DNSP Inputs O & M'!$E$14 -> 58.79315472 | K148: 1 | L148: ='DNSP Inputs O & M'!$E$16 -> 8 | M148: =J148*K148*L148 -> 470.3452378 | R148: ='DNSP Inputs O & M'!$F$14 -> 59.81315292 | S148: 1 | T148: ='DNSP Inputs O & M'!$F$16 -> 8 | U148: =R148*S148*T148 -> 478.5052234 | Z148: ='DNSP Inputs O & M'!$G$14 -> 60.83918751 | AA148: 1 | AB148: ='DNSP Inputs O & M'!$G$16 -> 8 | AC148: =Z148*AA148*AB148 -> 486.7135001 | AH148: ='DNSP Inputs O & M'!$H$14 -> 61.90061193 | AI148: 1 | AJ148: ='DNSP Inputs O & M'!$H$16 -> 8 | AK148: =AH148*AI148*AJ148 -> 495.2048955
A150: Other Maintenance and Repair costs | G150: ='DNSP Inputs O & M'!$D$91 -> 10.46932687 | O150: ='DNSP Inputs O & M'!$E$91 -> 10.67670525 | W150: ='DNSP Inputs O & M'!$F$91 -> 10.72269166 | AE150: ='DNSP Inputs O & M'!$G$91 -> 10.89577382 | AM150: ='DNSP Inputs O & M'!$H$91 -> 11.01438332
A152: Overheads | B152: ='DNSP Inputs O & M'!$D$17 -> 0.2374223 | G152: =B152*(G140+G144+G147+G150) -> 14.74545487 | J152: ='DNSP Inputs O & M'!$E$17 -> 0.2374223 | O152: =J152*(O140+O144+O147+O150) -> 14.96556534 | R152: ='DNSP Inputs O & M'!$F$17 -> 0.2374223 | W152: =R152*(W140+W144+W147+W150) -> 15.14289345 | Z152: ='DNSP Inputs O & M'!$G$17 -> 0.2374223 | AE152: =Z152*(AE140+AE144+AE147+AE150) -> 15.35285977 | AH152: ='DNSP Inputs O & M'!$H$17 -> 0.2374223 | AM152: =AH152*(AM140+AM144+AM147+AM150) -> 15.55329015
G154: =SUM(G140,G144,G147,G150,G152) -> 76.85189924 | O154: =SUM(O140,O144,O147,O150,O152) -> 77.99909393 | W154: =SUM(W140,W144,W147,W150,W152) -> 78.92331107 | AE154: =SUM(AE140,AE144,AE147,AE150,AE152) -> 80.01763544 | AM154: =SUM(AM140,AM144,AM147,AM150,AM152) -> 81.0622594
A159: Energy Efficient Lights - Cost build-up
A161: Addiitonal assumptions
A162: Proportion of luminaire that will fail before bulk change | D162: ='DNSP Inputs O & M'!$D$123 -> 0.114 | L162: ='DNSP Inputs O & M'!$E$123 -> 0.114 | T162: ='DNSP Inputs O & M'!$F$123 -> 0.114 | AB162: ='DNSP Inputs O & M'!$G$123 -> 0.114 | AJ162: ='DNSP Inputs O & M'!$H$123 -> 0.114
A163: Proportion of lamps that will fail before bulk change (per year) | D163: =D162/'DNSP Inputs O & M'!$D$120 -> 0.0285 | L163: =L162/'DNSP Inputs O & M'!$E$120 -> 0.0285 | T163: =T162/'DNSP Inputs O & M'!$F$120 -> 0.0285 | AB163: =AB162/'DNSP Inputs O & M'!$G$120 -> 0.0285 | AJ163: =AJ162/'DNSP Inputs O & M'!$H$120 -> 0.0285
A164: Overheads are applied to material and labour components
A165: All costs and charges are exclusive of GST
B167: Urban | J167: Urban | R167: Urban | Z167: Urban | AH167: Urban
B169: Unit rate | C169: Number | D169: Hours | E169: Cost | F169: Annualised | G169: Annualised | J169: Unit rate | K169: Number | L169: Hours | M169: Cost | N169: Annualised | O169: Annualised | R169: Unit rate | S169: Number | T169: Hours | U169: Cost | V169: Annualised | W169: Annualised | Z169: Unit rate | AA169: Number | AB169: Hours | AC169: Cost | AD169: Annualised | AE169: Annualised | AH169: Unit rate | AI169: Number | AJ169: Hours | AK169: Cost | AL169: Annualised | AM169: Annualised
F170: cost | G170: unit cost | N170: cost | O170: unit cost | V170: cost | W170: unit cost | AD170: cost | AE170: unit cost | AL170: cost | AM170: unit cost
A171: ='DNSP Inputs General'!A68 -> T5 2X14W
A172: Bulk change & repairs
A173: Materials - bulk lamp change
A174: Lamp | B174: ='DNSP Inputs O & M'!D124 -> 9.968363529 | C174: ='DNSP Inputs O & M'!D130 -> 73.92 | E174: =B174*C174 -> 736.8614321 | F174: =E174/'DNSP Inputs O & M'!D120 * 'DNSP Inputs O & M'!$B$146 -> 147.3722864 | G174: =(F174+F175+F176)/C174 -> 4.345583476 | H174: Amended | J174: ='DNSP Inputs O & M'!E124 -> 9.968363529 | K174: ='DNSP Inputs O & M'!E130 -> 73.92 | M174: =J174*K174 -> 736.8614321 | N174: =M174/'DNSP Inputs O & M'!E120 * 'DNSP Inputs O & M'!$B$146 -> 147.3722864 | O174: =(N174+N175+N176)/K174 -> 4.345583476 | P174: Amended | R174: ='DNSP Inputs O & M'!F124 -> 9.968363529 | S174: ='DNSP Inputs O & M'!F130 -> 73.92 | U174: =R174*S174 -> 736.8614321 | V174: =U174/'DNSP Inputs O & M'!F120 * 'DNSP Inputs O & M'!$B$146 -> 147.3722864 | W174: =(V174+V175+V176)/S174 -> 4.345583476 | X174: Amended | Z174: ='DNSP Inputs O & M'!G124 -> 9.968363529 | AA174: ='DNSP Inputs O & M'!G130 -> 73.92 | AC174: =Z174*AA174 -> 736.8614321 | AD174: =AC174/'DNSP Inputs O & M'!G120 * 'DNSP Inputs O & M'!$B$146 -> 147.3722864 | AE174: =(AD174+AD175+AD176)/AA174 -> 4.345583476 | AF174: Amended | AH174: ='DNSP Inputs O & M'!H124 -> 9.968363529 | AI174: ='DNSP Inputs O & M'!H130 -> 73.92 | AK174: =AH174*AI174 -> 736.8614321 | AL174: =AK174/'DNSP Inputs O & M'!H120 * 'DNSP Inputs O & M'!$B$146 -> 147.3722864 | AM174: =(AL174+AL175+AL176)/AI174 -> 4.345583476 | AN174: Amended
A175: PE cell | B175: ='DNSP Inputs O & M'!D125 -> 16.82161346 | C175: =C174*'DNSP Inputs O & M'!D120/'DNSP Inputs O & M'!D121 -> 36.96 | E175: =B175*C175 -> 621.7268333 | F175: =E175/'DNSP Inputs O & M'!D120 -> 155.4317083 | J175: ='DNSP Inputs O & M'!E125 -> 16.82161346 | K175: =K174*'DNSP Inputs O & M'!E120/'DNSP Inputs O & M'!E121 -> 36.96 | M175: =J175*K175 -> 621.7268333 | N175: =M175/'DNSP Inputs O & M'!E120 -> 155.4317083 | R175: ='DNSP Inputs O & M'!F125 -> 16.82161346 | S175: =S174*'DNSP Inputs O & M'!F120/'DNSP Inputs O & M'!F121 -> 36.96 | U175: =R175*S175 -> 621.7268333 | V175: =U175/'DNSP Inputs O & M'!F120 -> 155.4317083 | Z175: ='DNSP Inputs O & M'!G125 -> 16.82161346 | AA175: =AA174*'DNSP Inputs O & M'!G120/'DNSP Inputs O & M'!G121 -> 36.96 | AC175: =Z175*AA175 -> 621.7268333 | AD175: =AC175/'DNSP Inputs O & M'!G120 -> 155.4317083 | AH175: ='DNSP Inputs O & M'!H125 -> 16.82161346 | AI175: =AI174*'DNSP Inputs O & M'!H120/'DNSP Inputs O & M'!H121 -> 36.96 | AK175: =AH175*AI175 -> 621.7268333 | AL175: =AK175/'DNSP Inputs O & M'!H120 -> 155.4317083
A176: Miscellaneous | B176: ='DNSP Inputs O & M'!D127 -> 1.246045441 | C176: ='DNSP Inputs O & M'!D130 -> 73.92 | E176: =B176*C176 -> 92.10767901 | F176: =E176/'DNSP Inputs O & M'!D120 * 'DNSP Inputs O & M'!$B$146 -> 18.4215358 | H176: Amended | J176: ='DNSP Inputs O & M'!E127 -> 1.246045441 | K176: ='DNSP Inputs O & M'!E130 -> 73.92 | M176: =J176*K176 -> 92.10767901 | N176: =M176/'DNSP Inputs O & M'!E120 * 'DNSP Inputs O & M'!$B$146 -> 18.4215358 | P176: Amended | R176: ='DNSP Inputs O & M'!F127 -> 1.246045441 | S176: ='DNSP Inputs O & M'!F130 -> 73.92 | U176: =R176*S176 -> 92.10767901 | V176: =U176/'DNSP Inputs O & M'!F120 * 'DNSP Inputs O & M'!$B$146 -> 18.4215358 | X176: Amended | Z176: ='DNSP Inputs O & M'!G127 -> 1.246045441 | AA176: ='DNSP Inputs O & M'!G130 -> 73.92 | AC176: =Z176*AA176 -> 92.10767901 | AD176: =AC176/'DNSP Inputs O & M'!G120 * 'DNSP Inputs O & M'!$B$146 -> 18.4215358 | AF176: Amended | AH176: ='DNSP Inputs O & M'!H127 -> 1.246045441 | AI176: ='DNSP Inputs O & M'!H130 -> 73.92 | AK176: =AH176*AI176 -> 92.10767901 | AL176: =AK176/'DNSP Inputs O & M'!H120 * 'DNSP Inputs O & M'!$B$146 -> 18.4215358 | AN176: Amended
A177: Materials - repair of faults
A178: Lamp | B178: ='DNSP Inputs O & M'!D124 -> 9.968363529 | C178: ='DNSP Inputs O & M'!D131*'DNSP Inputs O & M'!D132 -> 14.976 | E178: =B178*C178 -> 149.2862122 | F178: =(E178+E179+E180+E181)/'DNSP Inputs O & M'!D131 -> 60.71605621 | G178: =F178*D163 -> 1.730407602 | J178: ='DNSP Inputs O & M'!E124 -> 9.968363529 | K178: ='DNSP Inputs O & M'!E131*'DNSP Inputs O & M'!E132 -> 14.976 | M178: =J178*K178 -> 149.2862122 | N178: =(M178+M179+M180+M181)/'DNSP Inputs O & M'!E131 -> 60.71605621 | O178: =N178*L163 -> 1.730407602 | R178: ='DNSP Inputs O & M'!F124 -> 9.968363529 | S178: ='DNSP Inputs O & M'!F131*'DNSP Inputs O & M'!F132 -> 14.976 | U178: =R178*S178 -> 149.2862122 | V178: =(U178+U179+U180+U181)/'DNSP Inputs O & M'!F131 -> 60.71605621 | W178: =V178*T163 -> 1.730407602 | Z178: ='DNSP Inputs O & M'!G124 -> 9.968363529 | AA178: ='DNSP Inputs O & M'!G131*'DNSP Inputs O & M'!G132 -> 14.976 | AC178: =Z178*AA178 -> 149.2862122 | AD178: =(AC178+AC179+AC180+AC181)/'DNSP Inputs O & M'!G131 -> 60.71605621 | AE178: =AD178*AB163 -> 1.730407602 | AH178: ='DNSP Inputs O & M'!H124 -> 9.968363529 | AI178: ='DNSP Inputs O & M'!H131*'DNSP Inputs O & M'!H132 -> 14.976 | AK178: =AH178*AI178 -> 149.2862122 | AL178: =(AK178+AK179+AK180+AK181)/'DNSP Inputs O & M'!H131 -> 60.71605621 | AM178: =AL178*AJ163 -> 1.730407602
A179: PE cell | B179: ='DNSP Inputs O & M'!D125 -> 16.82161346 | C179: ='DNSP Inputs O & M'!D131*'DNSP Inputs O & M'!D133 -> 12.48 | E179: =B179*C179 -> 209.9337359 | J179: ='DNSP Inputs O & M'!E125 -> 16.82161346 | K179: ='DNSP Inputs O & M'!E131*'DNSP Inputs O & M'!E133 -> 12.48 | M179: =J179*K179 -> 209.9337359 | R179: ='DNSP Inputs O & M'!F125 -> 16.82161346 | S179: ='DNSP Inputs O & M'!F131*'DNSP Inputs O & M'!F133 -> 12.48 | U179: =R179*S179 -> 209.9337359 | Z179: ='DNSP Inputs O & M'!G125 -> 16.82161346 | AA179: ='DNSP Inputs O & M'!G131*'DNSP Inputs O & M'!G133 -> 12.48 | AC179: =Z179*AA179 -> 209.9337359 | AH179: ='DNSP Inputs O & M'!H125 -> 16.82161346 | AI179: ='DNSP Inputs O & M'!H131*'DNSP Inputs O & M'!H133 -> 12.48 | AK179: =AH179*AI179 -> 209.9337359
A180: Luminaire | B180: ='DNSP Inputs O & M'!D126 -> 300.5212395 | C180: ='DNSP Inputs O & M'!D131*'DNSP Inputs O & M'!D134 -> 3.744 | E180: =B180*C180 -> 1125.151521 | J180: ='DNSP Inputs O & M'!E126 -> 300.5212395 | K180: ='DNSP Inputs O & M'!E131*'DNSP Inputs O & M'!E134 -> 3.744 | M180: =J180*K180 -> 1125.151521 | R180: ='DNSP Inputs O & M'!F126 -> 300.5212395 | S180: ='DNSP Inputs O & M'!F131*'DNSP Inputs O & M'!F134 -> 3.744 | U180: =R180*S180 -> 1125.151521 | Z180: ='DNSP Inputs O & M'!G126 -> 300.5212395 | AA180: ='DNSP Inputs O & M'!G131*'DNSP Inputs O & M'!G134 -> 3.744 | AC180: =Z180*AA180 -> 1125.151521 | AH180: ='DNSP Inputs O & M'!H126 -> 300.5212395 | AI180: ='DNSP Inputs O & M'!H131*'DNSP Inputs O & M'!H134 -> 3.744 | AK180: =AH180*AI180 -> 1125.151521
A181: Miscellaneous | B181: ='DNSP Inputs O & M'!D128 -> 12.46045441 | C181: ='DNSP Inputs O & M'!D131*'DNSP Inputs O & M'!D135 -> 2.496 | E181: =B181*C181 -> 31.10129421 | J181: ='DNSP Inputs O & M'!E128 -> 12.46045441 | K181: ='DNSP Inputs O & M'!E131*'DNSP Inputs O & M'!E135 -> 2.496 | M181: =J181*K181 -> 31.10129421 | R181: ='DNSP Inputs O & M'!F128 -> 12.46045441 | S181: ='DNSP Inputs O & M'!F131*'DNSP Inputs O & M'!F135 -> 2.496 | U181: =R181*S181 -> 31.10129421 | Z181: ='DNSP Inputs O & M'!G128 -> 12.46045441 | AA181: ='DNSP Inputs O & M'!G131*'DNSP Inputs O & M'!G135 -> 2.496 | AC181: =Z181*AA181 -> 31.10129421 | AH181: ='DNSP Inputs O & M'!H128 -> 12.46045441 | AI181: ='DNSP Inputs O & M'!H131*'DNSP Inputs O & M'!H135 -> 2.496 | AK181: =AH181*AI181 -> 31.10129421
A182: Labour - bulk lamp change
A183: Crew costs | B183: ='DNSP Inputs O & M'!D11 -> 123.7674125 | C183: ='DNSP Inputs O & M'!D129 -> 2 | D183: ='DNSP Inputs O & M'!$D$16 -> 8 | E183: =B183*C183*D183 -> 1980.278601 | F183: =E183/'DNSP Inputs O & M'!D120*(C174+C175)/C174 * 'DNSP Inputs O & M'!$B$146 -> 594.0835802 | G183: =(F183+F184)/C174 -> 10.55943072 | H183: Amended | J183: ='DNSP Inputs O & M'!E11 -> 125.8521179 | K183: ='DNSP Inputs O & M'!E129 -> 2 | L183: ='DNSP Inputs O & M'!$E$16 -> 8 | M183: =J183*K183*L183 -> 2013.633887 | N183: =M183/'DNSP Inputs O & M'!E120*(K174+K175)/K174 * 'DNSP Inputs O & M'!$B$146 -> 604.090166 | O183: =(N183+N184)/K174 -> 10.7491376 | P183: Amended | R183: ='DNSP Inputs O & M'!F11 -> 127.9719375 | S183: ='DNSP Inputs O & M'!F129 -> 2 | T183: ='DNSP Inputs O & M'!$F$16 -> 8 | U183: =R183*S183*T183 -> 2047.551 | V183: =U183/'DNSP Inputs O & M'!F120*(S174+S175)/S174 * 'DNSP Inputs O & M'!$B$146 -> 614.2653001 | W183: =(V183+V184)/S174 -> 10.93149506 | X183: Amended | Z183: ='DNSP Inputs O & M'!G11 -> 130.1274628 | AA183: ='DNSP Inputs O & M'!G129 -> 2 | AB183: ='DNSP Inputs O & M'!$G$16 -> 8 | AC183: =Z183*AA183*AB183 -> 2082.039405 | AD183: =AC183/'DNSP Inputs O & M'!G120*(AA174+AA175)/AA174 * 'DNSP Inputs O & M'!$B$146 -> 624.6118215 | AE183: =(AD183+AD184)/AA174 -> 11.11643565 | AF183: Amended | AH183: ='DNSP Inputs O & M'!H11 -> 132.3192952 | AI183: ='DNSP Inputs O & M'!H129 -> 2 | AJ183: ='DNSP Inputs O & M'!$H$16 -> 8 | AK183: =AH183*AI183*AJ183 -> 2117.108723 | AL183: =AK183/'DNSP Inputs O & M'!H120*(AI174+AI175)/AI174 * 'DNSP Inputs O & M'!$B$146 -> 635.1326169 | AM183: =(AL183+AL184)/AI174 -> 11.30528499 | AN183: Amended
A184: Elevated platform vehicle costs | B184: ='DNSP Inputs O & M'!D13 -> 77.69564122 | C184: 1 | D184: ='DNSP Inputs O & M'!$D$16 -> 8 | E184: =B184*C184*D184 -> 621.5651298 | F184: =E184/'DNSP Inputs O & M'!D120*(C174+C175)/C174 * 'DNSP Inputs O & M'!$B$146 -> 186.4695389 | H184: Amended | J184: ='DNSP Inputs O & M'!E13 -> 79.36920231 | K184: 1 | L184: ='DNSP Inputs O & M'!$E$16 -> 8 | M184: =J184*K184*L184 -> 634.9536185 | N184: =M184/'DNSP Inputs O & M'!E120*(K174+K175)/K174 * 'DNSP Inputs O & M'!$B$146 -> 190.4860855 | P184: Amended | R184: ='DNSP Inputs O & M'!F13 -> 80.74617287 | S184: 1 | T184: ='DNSP Inputs O & M'!$F$16 -> 8 | U184: =R184*S184*T184 -> 645.969383 | V184: =U184/'DNSP Inputs O & M'!F120*(S174+S175)/S174 * 'DNSP Inputs O & M'!$B$146 -> 193.7908149 | X184: Amended | Z184: ='DNSP Inputs O & M'!G13 -> 82.13129241 | AA184: 1 | AB184: ='DNSP Inputs O & M'!$G$16 -> 8 | AC184: =Z184*AA184*AB184 -> 657.0503393 | AD184: =AC184/'DNSP Inputs O & M'!G120*(AA174+AA175)/AA174 * 'DNSP Inputs O & M'!$B$146 -> 197.1151018 | AF184: Amended | AH184: ='DNSP Inputs O & M'!H13 -> 83.56418727 | AI184: 1 | AJ184: ='DNSP Inputs O & M'!$H$16 -> 8 | AK184: =AH184*AI184*AJ184 -> 668.5134982 | AL184: =AK184/'DNSP Inputs O & M'!H120*(AI174+AI175)/AI174 * 'DNSP Inputs O & M'!$B$146 -> 200.5540495 | AN184: Amended
A185: Labour - repair of faults
A186: Crew costs | B186: ='DNSP Inputs O & M'!D11 -> 123.7674125 | C186: ='DNSP Inputs O & M'!D129 -> 2 | D186: ='DNSP Inputs O & M'!$D$16 -> 8 | E186: =B186*C186*D186 -> 1980.278601 | F186: =(E186+E187)/'DNSP Inputs O & M'!D131 -> 104.2405341 | G186: =F186*D163 -> 2.970855221 | J186: ='DNSP Inputs O & M'!E11 -> 125.8521179 | K186: ='DNSP Inputs O & M'!E129 -> 2 | L186: ='DNSP Inputs O & M'!$E$16 -> 8 | M186: =J186*K186*L186 -> 2013.633887 | N186: =(M186+M187)/'DNSP Inputs O & M'!E131 -> 106.1132815 | O186: =N186*L163 -> 3.024228522 | R186: ='DNSP Inputs O & M'!F11 -> 127.9719375 | S186: ='DNSP Inputs O & M'!F129 -> 2 | T186: ='DNSP Inputs O & M'!$F$16 -> 8 | U186: =R186*S186*T186 -> 2047.551 | V186: =(U186+U187)/'DNSP Inputs O & M'!F131 -> 107.9134769 | W186: =V186*T163 -> 3.075534092 | Z186: ='DNSP Inputs O & M'!G11 -> 130.1274628 | AA186: ='DNSP Inputs O & M'!G129 -> 2 | AB186: ='DNSP Inputs O & M'!$G$16 -> 8 | AC186: =Z186*AA186*AB186 -> 2082.039405 | AD186: =(AC186+AC187)/'DNSP Inputs O & M'!G131 -> 109.7391724 | AE186: =AD186*AB163 -> 3.127566415 | AH186: ='DNSP Inputs O & M'!H11 -> 132.3192952 | AI186: ='DNSP Inputs O & M'!H129 -> 2 | AJ186: ='DNSP Inputs O & M'!$H$16 -> 8 | AK186: =AH186*AI186*AJ186 -> 2117.108723 | AL186: =(AK186+AK187)/'DNSP Inputs O & M'!H131 -> 111.6034544 | AM186: =AL186*AJ163 -> 3.18069845
A187: Elevated platform vehicle costs | B187: ='DNSP Inputs O & M'!D13 -> 77.69564122 | C187: 1 | D187: ='DNSP Inputs O & M'!$D$16 -> 8 | E187: =B187*C187*D187 -> 621.5651298 | J187: ='DNSP Inputs O & M'!E13 -> 79.36920231 | K187: 1 | L187: ='DNSP Inputs O & M'!$E$16 -> 8 | M187: =J187*K187*L187 -> 634.9536185 | R187: ='DNSP Inputs O & M'!F13 -> 80.74617287 | S187: 1 | T187: ='DNSP Inputs O & M'!$F$16 -> 8 | U187: =R187*S187*T187 -> 645.969383 | Z187: ='DNSP Inputs O & M'!G13 -> 82.13129241 | AA187: 1 | AB187: ='DNSP Inputs O & M'!$G$16 -> 8 | AC187: =Z187*AA187*AB187 -> 657.0503393 | AH187: ='DNSP Inputs O & M'!H13 -> 83.56418727 | AI187: 1 | AJ187: ='DNSP Inputs O & M'!$H$16 -> 8 | AK187: =AH187*AI187*AJ187 -> 668.5134982
A188: Other Maintenance and Repair costs | G188: ='DNSP Inputs O & M'!D142 -> 9.514969137 | O188: ='DNSP Inputs O & M'!E142 -> 9.739517611 | W188: ='DNSP Inputs O & M'!F142 -> 9.710651463 | AE188: ='DNSP Inputs O & M'!G142 -> 9.883184672 | AM188: ='DNSP Inputs O & M'!H142 -> 9.977941687
A190: Overheads | B190: ='DNSP Inputs O & M'!D17 -> 0.2374223 | G190: =B190*SUM(G174:G188) -> 6.914033242 | J190: ='DNSP Inputs O & M'!E17 -> 0.2374223 | O190: =J190*SUM(O174:O188) -> 7.025058712 | R190: ='DNSP Inputs O & M'!F17 -> 0.2374223 | W190: =R190*SUM(W174:W188) -> 7.073682059 | Z190: ='DNSP Inputs O & M'!G17 -> 0.2374223 | AE190: =Z190*SUM(AE174:AE188) -> 7.170907944 | AH190: ='DNSP Inputs O & M'!H17 -> 0.2374223 | AM190: =AH190*SUM(AM174:AM188) -> 7.250857147
G192: =SUM(G174,G178,G183,G186,G188,G190) -> 36.0352794 | O192: =SUM(O174,O178,O183,O186,O188,O190) -> 36.61393352 | W192: =SUM(W174,W178,W183,W186,W188,W190) -> 36.86735375 | AE192: =SUM(AE174,AE178,AE183,AE186,AE188,AE190) -> 37.37408576 | AM192: =SUM(AM174,AM178,AM183,AM186,AM188,AM190) -> 37.79077335
A196: Energy Efficient Lights - Cost build-up
A198: Addiitonal assumptions
A199: Proportion of luminaire that will fail before bulk change | D199: ='DNSP Inputs O & M'!$D$123 -> 0.114 | L199: ='DNSP Inputs O & M'!$E$123 -> 0.114 | T199: ='DNSP Inputs O & M'!$F$123 -> 0.114 | AB199: ='DNSP Inputs O & M'!$G$123 -> 0.114 | AJ199: ='DNSP Inputs O & M'!$H$123 -> 0.114
A200: Proportion of lamps that will fail before bulk change (per year) | D200: =D199/'DNSP Inputs O & M'!$D$151 -> 0.0057 | L200: =L199/'DNSP Inputs O & M'!$E$151 -> 0.0057 | T200: =T199/'DNSP Inputs O & M'!$F$151 -> 0.0057 | AB200: =AB199/'DNSP Inputs O & M'!$G$151 -> 0.0057 | AJ200: =AJ199/'DNSP Inputs O & M'!$H$151 -> 0.0057
A201: Overheads are applied to material and labour components
A202: All costs and charges are exclusive of GST
B204: Urban | J204: Urban | R204: Urban | Z204: Urban | AH204: Urban
B206: Unit rate | C206: Number | D206: Hours | E206: Cost | F206: Annualised | G206: Annualised | J206: Unit rate | K206: Number | L206: Hours | M206: Cost | N206: Annualised | O206: Annualised | R206: Unit rate | S206: Number | T206: Hours | U206: Cost | V206: Annualised | W206: Annualised | Z206: Unit rate | AA206: Number | AB206: Hours | AC206: Cost | AD206: Annualised | AE206: Annualised | AH206: Unit rate | AI206: Number | AJ206: Hours | AK206: Cost | AL206: Annualised | AM206: Annualised
F207: cost | G207: unit cost | N207: cost | O207: unit cost | V207: cost | W207: unit cost | AD207: cost | AE207: unit cost | AL207: cost | AM207: unit cost
A208: ='DNSP Inputs General'!A72 -> Category P LED 18 Watt
A209: Bulk change & repairs
A210: Materials - bulk lamp change | C210: Changes in one day | E210: Cost per day
A211: Lamp (not applicable for LED) | B211: ='DNSP Inputs O & M'!D155 -> 0 | C211: ='DNSP Inputs O & M'!D161 -> 73.92 | E211: =B211*C211 -> 0 | F211: =E211/'DNSP Inputs O & M'!D151 -> 0 | G211: =(F211+F212+F213)/C212 -> 2.165003954 | H211: Amended | J211: ='DNSP Inputs O & M'!E155 -> 0 | K211: ='DNSP Inputs O & M'!E161 -> 73.92 | M211: =J211*K211 -> 0 | N211: =M211/'DNSP Inputs O & M'!E151 -> 0 | O211: =(N211+N212+N213)/K212 -> 2.165003954 | P211: Amended | R211: ='DNSP Inputs O & M'!F155 -> 0 | S211: ='DNSP Inputs O & M'!F161 -> 73.92 | U211: =R211*S211 -> 0 | V211: =U211/'DNSP Inputs O & M'!F151 -> 0 | W211: =(V211+V212+V213)/S212 -> 2.165003954 | X211: Amended | Z211: ='DNSP Inputs O & M'!G155 -> 0 | AA211: ='DNSP Inputs O & M'!G161 -> 73.92 | AC211: =Z211*AA211 -> 0 | AD211: =AC211/'DNSP Inputs O & M'!G151 -> 0 | AE211: =(AD211+AD212+AD213)/AA212 -> 2.165003954 | AF211: Amended | AH211: ='DNSP Inputs O & M'!H155 -> 0 | AI211: ='DNSP Inputs O & M'!H161 -> 73.92 | AK211: =AH211*AI211 -> 0 | AL211: =AK211/'DNSP Inputs O & M'!H151 -> 0 | AM211: =(AL211+AL212+AL213)/AI212 -> 2.165003954 | AN211: Amended
A212: PE cell (change frequency same as Lamp) | B212: ='DNSP Inputs O & M'!D156 -> 16.82161346 | C212: ='DNSP Inputs O & M'!D161 -> 73.92 | E212: =B212*C212 -> 1243.453667 | F212: =E212/'DNSP Inputs O & M'!D152 -> 155.4317083 | H212: Amended | J212: ='DNSP Inputs O & M'!E156 -> 16.82161346 | K212: ='DNSP Inputs O & M'!E161 -> 73.92 | M212: =J212*K212 -> 1243.453667 | N212: =M212/'DNSP Inputs O & M'!E152 -> 155.4317083 | P212: Amended | R212: ='DNSP Inputs O & M'!F156 -> 16.82161346 | S212: ='DNSP Inputs O & M'!F161 -> 73.92 | U212: =R212*S212 -> 1243.453667 | V212: =U212/'DNSP Inputs O & M'!F152 -> 155.4317083 | X212: Amended | Z212: ='DNSP Inputs O & M'!G156 -> 16.82161346 | AA212: ='DNSP Inputs O & M'!G161 -> 73.92 | AC212: =Z212*AA212 -> 1243.453667 | AD212: =AC212/'DNSP Inputs O & M'!G152 -> 155.4317083 | AF212: Amended | AH212: ='DNSP Inputs O & M'!H156 -> 16.82161346 | AI212: ='DNSP Inputs O & M'!H161 -> 73.92 | AK212: =AH212*AI212 -> 1243.453667 | AL212: =AK212/'DNSP Inputs O & M'!H152 -> 155.4317083 | AN212: Amended
A213: Miscellaneous | B213: ='DNSP Inputs O & M'!D158 -> 1.246045441 | C213: ='DNSP Inputs O & M'!D161 -> 73.92 | E213: =B213*C213 -> 92.10767901 | F213: =E213/'DNSP Inputs O & M'!D151 -> 4.60538395 | J213: ='DNSP Inputs O & M'!E158 -> 1.246045441 | K213: ='DNSP Inputs O & M'!E161 -> 73.92 | M213: =J213*K213 -> 92.10767901 | N213: =M213/'DNSP Inputs O & M'!E151 -> 4.60538395 | R213: ='DNSP Inputs O & M'!F158 -> 1.246045441 | S213: ='DNSP Inputs O & M'!F161 -> 73.92 | U213: =R213*S213 -> 92.10767901 | V213: =U213/'DNSP Inputs O & M'!F151 -> 4.60538395 | Z213: ='DNSP Inputs O & M'!G158 -> 1.246045441 | AA213: ='DNSP Inputs O & M'!G161 -> 73.92 | AC213: =Z213*AA213 -> 92.10767901 | AD213: =AC213/'DNSP Inputs O & M'!G151 -> 4.60538395 | AH213: ='DNSP Inputs O & M'!H158 -> 1.246045441 | AI213: ='DNSP Inputs O & M'!H161 -> 73.92 | AK213: =AH213*AI213 -> 92.10767901 | AL213: =AK213/'DNSP Inputs O & M'!H151 -> 4.60538395
A214: Materials - repair of faults
